Workbook

Sheet Dashboard
B2: Purpose of AHA
B14: How to Use AHA | C14: 1. Document Program Goals and Key Assumptions in the AHA tab
C17: 2. Document Assumptions about Strays from other Populations
C20: 3. Review the Fitness Assumptions
C23: 4. Document Status and Trends data
C26: 5. (Optional) Review range of AHA outcomes ('psuedo' confidence intervals)
B30: How AHA Works

Sheet AHA
B1: All H Analyzer (AHA) | E1: Program Background | K1: Enter values in yellow cells only. Green cells contain formulas (do not edit). Orange cells contain dropdown menus (click on cell & select from the options). | BN1: Dropdown Lists
C3: Subbasin | D3: Population | E3: Species | H3: Scenario 1 | M3: Scenario 2 | R3: Scenario 3 | W3: Scenario 4 | AB3: Scenario 5 | BN3: Ford | BO3: PDO | BP3: Chinook | BQ3: Primary | BR3: Preservation
D4: Naselle | E4: Chinook | F4: Conservation Priorities: | H4: Prevent extinction, preserve genetic diversity, restore habitat. | M4: Restore and populate habitat. | R4: Increase population fitness | W4: Maintain viability | AB4: NA | BN4: Busack | BO4: PDO+Rand | BP4: Coho | BQ4: Contributing | BR4: Recolonization
C5: Population Designation | E5: Current Phase | BN5: None | BO5: None | BP5: Sockeye | BQ5: Stabilizing | BR5: Local Adaptation
C6: Contributing | E6: Local Adaptation | F6: Recovery Phase: | H6: No Hatchery | M6: Naselle Scen. 1 | R6: Naselle Scen. 2 | W6: Naselle Scen. 3 | AB6: Segregated Hatchery | BP6: Steelehad | BR6: Fully Restored
E8: Program Goals
C9: Program Goals | E9: Natural Origin Escapement (NOS) | H9: 1547 | M9: 1547 | R9: 1547 | W9: 1547
E10: Effective pHOS < | H10: 0.3 | M10: 0.3 | R10: 0.3 | W10: 0.3
E11: pNOB > | H11: 0.3 | M11: 0.3 | R11: 0.3 | W11: 0.3
E12: PNI > | H12: 0.5 | M12: 0.5 | R12: 0.5 | W12: 0.5
E13: Total Harvest | H13: 5000 | M13: 5000 | R13: 5000 | W13: 5000
E14: Terminal Harvest | H14: 250 | M14: 250 | R14: 250 | W14: 250
E15: Key Assumptions | H15: See Habitat tab for assistance with calculating Adult and Smolt Productivity and Capacity (using the Habitat tab is optional).
C16: Habitat | E16: Adult Productivity | F16: Adult Capacity | H16: 4 | J16: 6150 | M16: 4 | O16: 6150 | R16: 4 | T16: 6150 | W16: 4 | Y16: 6150
E17: Smolt Productivity | F17: Smolt Capacity | H17: 400 | J17: 615000 | M17: 400 | O17: 615000 | R17: 400 | T17: 615000 | W17: 400 | Y17: 615000
E18: Adj. Productivity | F18: Adj. Capacity | H18: =Scenario_1!$F$6 -> 4 | J18: =Scenario_1!$I$6 -> 6149.980143 | M18: =Scenario_2!$F$6 -> 4 | O18: =Scenario_2!$I$6 -> 6149.980143 | R18: =Scenario_3!$F$6 -> 4 | T18: =Scenario_3!$I$6 -> 6149.980143 | W18: =Scenario_4!$F$6 -> 4 | Y18: =Scenario_4!$I$6 -> 6149.980143
E19: Fecundity - NORs | F19: % Females | H19: 4200 | J19: 0.5 | M19: 4200 | O19: 0.5 | R19: 4200 | T19: 0.5 | W19: 4200 | Y19: 0.5 | AB19: 4200 | AD19: 0.5
H20: See SAR tab for more options to incorporate variation into the SAR
C21: Hydro and Ocean | E21: Ocean Survival | F21: Basin-to-Basin SAR - obs | H21: 0.01 | J21: =H21*H22*H23 -> 0.01 | M21: 0.01 | O21: =M21*M22*M23 -> 0.01 | R21: 0.01 | T21: =R21*R22*R23 -> 0.01 | W21: 0.01 | Y21: =W21*W22*W23 -> 0.01 | AB21: 0.01 | AD21: =AB21*AB22*AB23 -> 0.01
E22: Juv. Fish Passage Survival | F22: Basin-to-Basin SAR - baseline | H22: 1 | J22: =IF(Habitat!$D$8>0,Habitat!$D$8,J21) -> 0.01 | M22: 1 | O22: =IF(Habitat!$G$8>0,Habitat!$G$8,O21) -> 0.01 | R22: 1 | T22: =IF(Habitat!$J$8>0,Habitat!$J$8,T21) -> 0.01 | W22: 1 | Y22: =IF(Habitat!$M$8>0,Habitat!$M$8,Y21) -> 0.01 | AB22: 1 | AD22: =IF(Habitat!$E$8>0,Habitat!$E$8,AD21) -> 0.01
E23: Ad. Fish Passage Survival | F23: Vary SAR? | H23: 1 | J23: None | M23: 1 | O23: None | R23: 1 | T23: None | W23: 1 | Y23: None | AB23: 1 | AD23: None
F24: Coeff. of Variation SAR | J24: 1 | O24: 1 | T24: 1 | Y24: 1 | AD24: 1
H25: See Harvest Rate calculators below to convert exploitation rates to harvest rates and account for selective fisheries.
C26: Harvest | D26: Ocean | E26: NORs | F26: HORs | H26: 0.35 | J26: 0.35 | M26: 0.35 | O26: 0.35 | R26: 0.3 | T26: 0.3 | W26: 0.3 | Y26: 0.3 | AD26: 0.3
D27: Willapa Bay Comm. | E27: NORs | F27: HORs | H27: 0.27 | J27: 0.27 | M27: 0.27 | O27: 0.27 | R27: 0.06 | T27: 0.2 | W27: 0.06 | Y27: 0.2 | AD27: 0.2
D28: Willapa Bay Rec. | E28: NORs | F28: HORs | H28: 0.15 | J28: 0.15 | M28: 0.15 | O28: 0.15 | R28: 0.03 | T28: 0.135 | W28: 0.03 | Y28: 0.135 | AD28: 0.135
D29: Freshwater | E29: NORs | F29: HORs | H29: 0.12 | J29: 0.12 | M29: 0.12 | O29: 0.12 | R29: 0.024 | T29: 0.12 | W29: 0.024 | Y29: 0.12 | AD29: 0.12
D30: Total Exploitation Rate | E30: NORs | F30: HORs | H30: =H26+H27*(1-H26)+H28*(1-H26)*(1-H27)+H29*(1-H26)*(1-H27)*(1-H28) -> 0.645074 | J30: =J26+J27*(1-J26)+J28*(1-J26)*(1-J27)+J29*(1-J26)*(1-J27)*(1-J28) -> 0.645074 | M30: =M26+M27*(1-M26)+M28*(1-M27)*(1-M26)+M29*(1-M28)*(1-M27)*(1-M26) -> 0.645074 | O30: =O26+O27*(1-O26)+O28*(1-O27)*(1-O26)+O29*(1-O28)*(1-O27)*(1-O26) -> 0.645074 | R30: =R26+R27*(1-R26)+R28*(1-R27)*(1-R26)+R29*(1-R28)*(1-R27)*(1-R26) -> 0.37705824 | T30: =T26+T27*(1-T26)+T28*(1-T27)*(1-T26)+T29*(1-T28)*(1-T27)*(1-T26) -> 0.573728 | W30: =W26+W27*(1-W26)+W28*(1-W27)*(1-W26)+W29*(1-W28)*(1-W27)*(1-W26) -> 0.37705824 | Y30: =Y26+Y27*(1-Y26)+Y28*(1-Y27)*(1-Y26)+Y29*(1-Y28)*(1-Y27)*(1-Y26) -> 0.573728 | AB30: =AB26+AB27*(1-AB26)+AB28*(1-AB27)*(1-AB26)+AB29*(1-AB28)*(1-AB27)*(1-AB26) -> 0 | AD30: =AD26+AD27*(1-AD26)+AD28*(1-AD27)*(1-AD26)+AD29*(1-AD28)*(1-AD27)*(1-AD26) -> 0.573728
C32: Hatchery | D32: In-Hatchery | E32: Pre-spawning Survival | F32: % Females | H32: 0.95 | J32: 0.5 | M32: 0.95 | O32: 0.5 | R32: 0.95 | T32: 0.5 | W32: 0.95 | Y32: 0.5 | AB32: 0.95 | AD32: 0.5
E33: Fecundity - HORs | H33: 4200 | M33: 4200 | R33: 4200 | W33: 4200 | AB33: 4200
E34: Egg to Smolt Survival | F34: Egg to Sub Survival | H34: 0.85 | J34: 0.8 | M34: 0.85 | O34: 0.8 | R34: 0.85 | T34: 0.8 | W34: 0.85 | Y34: 0.8 | AB34: 0.85 | AD34: 0.8
D35: Post-Release | E35: SAR (yearling) | F35: SAR (subyearling) | H35: 0 | J35: 0.003 | M35: 0 | O35: 0.003 | R35: 0 | T35: 0.003 | W35: 0 | Y35: 0.003 | AB35: 0 | AD35: 0.003
E36: RRS HORs | F36: Weir Efficiency | H36: 0.8 | J36: 0 | M36: 0.8 | O36: 0 | R36: 0.8 | T36: 0 | W36: 0.8 | Y36: 0 | AB36: 0.8 | AD36: 0
E37: % to Hatchery | F37: % to Nat. Spawn | H37: 0.9 | J37: =1-H37 -> 0.1 | M37: 0.9 | O37: =1-M37 -> 0.1 | R37: 0.9 | T37: =1-R37 -> 0.1 | W37: 0.9 | Y37: =1-W37 -> 0.1 | AB37: 0.9 | AD37: =1-AB37 -> 0.1
C39: Hatchery Strategy | E39: # Yearling Releases | F39: # Subyearling Releases | H39: 0 | J39: 0 | M39: 0 | O39: 1000000 | R39: 0 | T39: 1000000 | W39: 0 | Y39: 1000000 | AB39: 0 | AD39: 500000
E40: Imported Brood | F40: Local Brood | H40: 0 | J40: =MAX(AHA!$H$39/(AHA!$H$32*AHA!$J$32*AHA!$H$33*AHA!$H$34)+AHA!$J$39/(AHA!$H$32*AHA!$J$32*AHA!$H$33*AHA!$J$34)-AHA!$H$40,0) -> 0 | M40: 0 | O40: =MAX(AHA!$M$39/(AHA!$M$32*AHA!$O$32*AHA!$M$33*AHA!$M$34)+AHA!$O$39/(AHA!$M$32*AHA!$O$32*AHA!$M$33*AHA!$O$34)-AHA!$M$40,0) -> 626.566416 | T40: =MAX(AHA!$R$39/(AHA!$R$32*AHA!$T$32*AHA!$R$33*AHA!$R$34)+AHA!$T$39/(AHA!$R$32*AHA!$T$32*AHA!$R$33*AHA!$T$34)-AHA!$R$40,0) -> 626.566416 | Y40: =MAX(AHA!$W$39/(AHA!$W$32*AHA!$Y$32*AHA!$W$33*AHA!$W$34)+AHA!$Y$39/(AHA!$W$32*AHA!$Y$32*AHA!$W$33*AHA!$Y$34)-AHA!$W$40,0) -> 626.566416 | AB40: 313 | AD40: =MAX(AHA!$AB$39/(AHA!$AB$32*AHA!$AD$32*AHA!$AB$33*AHA!$AB$34)+AHA!$AD$39/(AHA!$AB$32*AHA!$AD$32*AHA!$AB$33*AHA!$AD$34)-AHA!$AB$40,0) -> 0.2832080201
E41: Exported Brood - Goal | F41: Exported Brood - Realized | J41: =Scenario_1!N37 -> 0 | M41: 313 | O41: =Scenario_2!N37 -> 313 | R41: 313 | T41: =Scenario_3!N37 -> 313 | W41: 313 | Y41: =Scenario_4!N37 -> 313 | AB41: 0 | AD41: =Scenario_5!N37 -> 0
E42: Max % NOR run -brood | F42: Fitness adjustment | H42: 0.3 | J42: Ford | M42: 0.3 | O42: Ford | R42: 0.3 | T42: Ford | W42: 0.3 | Y42: Ford
E44: AHA Results | H44: Do not edit values in the AHA results table.
H45: Scenario 1 | M45: Scenario 2 | R45: Scenario 3 | W45: Scenario 4 | AB45: Scenario 5
H46: Goals | J46: Actuals | M46: Goals | O46: Actuals | R46: Goals | T46: Actuals | W46: Goals | Y46: Actuals | AB46: Goals | AD46: Actuals
C47: Program Goals | E47: Natural Origin Escapement (NOS) | H47: =AHA!H9 -> 1547 | J47: =Scenario_1!P4 -> 634.657498 | M47: =AHA!M9 -> 1547 | O47: =Scenario_2!P4 -> 106.2942521 | R47: =AHA!R9 -> 1547 | T47: =Scenario_3!P4 -> 1911.144557 | W47: =AHA!W9 -> 1547 | Y47: =Scenario_4!P4 -> 1911.144557 | AB47: =AHA!AB9 -> 0 | AD47: =Scenario_5!P4 -> 9.998011267e-07
E48: Effective pHOS < | H48: =AHA!H10 -> 0.3 | J48: =Scenario_1!P5 -> 0 | M48: =AHA!M10 -> 0.3 | O48: =Scenario_2!P5 -> 0.5498566973 | R48: =AHA!R10 -> 0.3 | T48: =Scenario_3!P5 -> 0.05285004269 | W48: =AHA!W10 -> 0.3 | Y48: =Scenario_4!P5 -> 0.05285004269 | AB48: =AHA!AB10 -> 0 | AD48: =Scenario_5!P5 -> 0.9999999802
E49: pNOB | H49: =AHA!$H$11 -> 0.3 | J49: =Scenario_1!P6 -> 0 | M49: =AHA!M11 -> 0.3 | O49: =Scenario_2!P6 -> 0.07196364 | R49: =AHA!R11 -> 0.3 | T49: =Scenario_3!P6 -> 0.2998884 | W49: =AHA!W11 -> 0.3 | Y49: =Scenario_4!P6 -> 0.2998884 | AB49: =AHA!AB11 -> 0 | AD49: =Scenario_5!P6 -> 0
E50: PNI > | H50: =AHA!H12 -> 0.5 | J50: =Scenario_1!P7 -> - | M50: =AHA!M12 -> 0.5 | O50: =Scenario_2!P7 -> 0.1157305988 | R50: =AHA!R12 -> 0.5 | T50: =Scenario_3!P7 -> 0.8501721494 | W50: =AHA!W12 -> 0.5 | Y50: =Scenario_4!P7 -> 0.8501721494 | AB50: =AHA!AB12 -> 0 | AD50: =Scenario_5!P7 -> 0
E51: Total Harvest | H51: =AHA!H13 -> 5000 | J51: =Scenario_1!P8 -> 1153.482841 | M51: =AHA!M13 -> 5000 | O51: =Scenario_2!P8 -> 2210.361163 | R51: =AHA!R13 -> 5000 | T51: =Scenario_3!P8 -> 2991.70733 | W51: =AHA!W13 -> 5000 | Y51: =Scenario_4!P8 -> 2991.70733 | AB51: =AHA!AB13 -> 0 | AD51: =Scenario_5!P8 -> 860.5919987
E52: Terminal Harvest | H52: =AHA!H14 -> 250 | J52: =Scenario_1!P9 -> 86.54420428 | M52: =AHA!M14 -> 250 | O52: =Scenario_2!P9 -> 165.8403066 | R52: =AHA!R14 -> 250 | T52: =Scenario_3!P9 -> 225.9998487 | W52: =AHA!W14 -> 250 | Y52: =Scenario_4!P9 -> 225.9998487 | AB52: =AHA!AB14 -> 0 | AD52: =Scenario_5!P9 -> 87.19199987
H54: Average | J54: Min | K54: Max | M54: Average | O54: Min | P54: Max | R54: Average | T54: Min | U54: Max | W54: Average | Y54: Min | Z54: Max | AB54: Average | AD54: Min | AE54: Max
C55: Escapement | E55: NOR Escapement | H55: =Scenario_1!N13 -> 634.657498 | J55: =Scenario_1!P13 -> 558.3099951 | K55: =Scenario_1!Q13 -> 645.269113 | M55: =Scenario_2!N13 -> 106.2942521 | O55: =Scenario_2!P13 -> 106.0707389 | P55: =Scenario_2!Q13 -> 115.7933766 | R55: =Scenario_3!N13 -> 1911.144557 | T55: =Scenario_3!P13 -> 1763.744402 | U55: =Scenario_3!Q13 -> 1953.069536 | W55: =Scenario_4!N13 -> 1911.144557 | Y55: =Scenario_4!P13 -> 1763.744402 | Z55: =Scenario_4!Q13 -> 1953.069536 | AB55: =Scenario_5!N13 -> 9.998011267e-07 | AD55: =Scenario_5!P13 -> 9.998011267e-07 | AE55: =Scenario_5!Q13 -> 9.998011267e-07
E56: HOR Total Escapement (including strays) | H56: =Scenario_1!N14 -> 0 | J56: =Scenario_1!P14 -> 0 | K56: =Scenario_1!Q14 -> 0 | M56: =Scenario_2!N14 -> 162.3 | O56: =Scenario_2!P14 -> 162.3 | P56: =Scenario_2!Q14 -> 162.3 | R56: =Scenario_3!N14 -> 133.3 | T56: =Scenario_3!P14 -> 133.3 | U56: =Scenario_3!Q14 -> 133.3 | W56: =Scenario_4!N14 -> 133.3 | Y56: =Scenario_4!P14 -> 133.3 | Z56: =Scenario_4!Q14 -> 133.3 | AB56: =Scenario_5!N14 -> 63 | AD56: =Scenario_5!P14 -> 63 | AE56: =Scenario_5!Q14 -> 63
E57: HOR Effective Escapement | H57: =Scenario_1!N15 -> 0 | J57: =Scenario_1!P15 -> 0 | K57: =Scenario_1!Q15 -> 0 | M57: =Scenario_2!N15 -> 129.84 | O57: =Scenario_2!P15 -> 129.84 | P57: =Scenario_2!Q15 -> 129.84 | R57: =Scenario_3!N15 -> 106.64 | T57: =Scenario_3!P15 -> 106.64 | U57: =Scenario_3!Q15 -> 106.64 | W57: =Scenario_4!N15 -> 106.64 | Y57: =Scenario_4!P15 -> 106.64 | Z57: =Scenario_4!Q15 -> 106.64 | AB57: =Scenario_5!N15 -> 50.4 | AD57: =Scenario_5!P15 -> 50.4 | AE57: =Scenario_5!Q15 -> 50.4
E58: Total Natural Escapement (NOR & HOR) | H58: =Scenario_1!N17 -> 634.657498 | J58: =Scenario_1!P17 -> 558.3099951 | K58: =Scenario_1!Q17 -> 645.269113 | M58: =Scenario_2!N17 -> 268.5942521 | O58: =Scenario_2!P17 -> 268.3707389 | P58: =Scenario_2!Q17 -> 278.0933766 | R58: =Scenario_3!N17 -> 2044.444557 | T58: =Scenario_3!P17 -> 1897.044402 | U58: =Scenario_3!Q17 -> 2086.369536 | W58: =Scenario_4!N17 -> 2044.444557 | Y58: =Scenario_4!P17 -> 1897.044402 | Z58: =Scenario_4!Q17 -> 2086.369536 | AB58: =Scenario_5!N17 -> 63.000001 | AD58: =Scenario_5!P17 -> 63.000001 | AE58: =Scenario_5!Q17 -> 63.000001
C60: Harvest and Hatchery | E60: Total Harvest | H60: =Scenario_1!N30 -> 1153.482841 | J60: =Scenario_1!P30 -> 1014.722116 | K60: =Scenario_1!Q30 -> 1172.769332 | M60: =Scenario_2!N30 -> 2210.361163 | O60: =Scenario_2!P30 -> 2209.791356 | P60: =Scenario_2!Q30 -> 2234.913844 | R60: =Scenario_3!N30 -> 2991.70733 | T60: =Scenario_3!P30 -> 2902.488006 | U60: =Scenario_3!Q30 -> 3017.083954 | W60: =Scenario_4!N30 -> 2991.70733 | Y60: =Scenario_4!P30 -> 2902.488006 | Z60: =Scenario_4!Q30 -> 3017.083954 | AB60: =Scenario_5!N30 -> 860.5919987 | AD60: =Scenario_5!P30 -> 860.5919987 | AE60: =Scenario_5!Q30 -> 860.5919987
E61: Hatchery Broodstock (includes imported) | H61: =Scenario_1!N35 -> 0 | J61: =Scenario_1!P35 -> 0 | K61: =Scenario_1!Q35 -> 0 | M61: =Scenario_2!N35 -> 626.566416 | O61: =Scenario_2!P35 -> 622.466416 | P61: =Scenario_2!Q35 -> 630.666416 | R61: =Scenario_3!N35 -> 626.566416 | T61: =Scenario_3!P35 -> 626.566416 | U61: =Scenario_3!Q35 -> 626.566416 | W61: =Scenario_4!N35 -> 626.566416 | Y61: =Scenario_4!P35 -> 626.566416 | Z61: =Scenario_4!Q35 -> 626.566416 | AB61: =Scenario_5!N35 -> 313.283208 | AD61: =Scenario_5!P35 -> 313.283208 | AE61: =Scenario_5!Q35 -> 313.283208
E62: Hatchery Surplus | H62: =Scenario_1!N36 -> 0 | J62: =Scenario_1!P36 -> 0 | K62: =Scenario_1!Q36 -> 0 | M62: =Scenario_2!N36 -> 64.30158001 | O62: =Scenario_2!P36 -> 64.21158001 | P62: =Scenario_2!Q36 -> 68.31157998 | R62: =Scenario_3!N36 -> 400.1495758 | T62: =Scenario_3!P36 -> 400.1495757 | U62: =Scenario_3!Q36 -> 400.149576 | W62: =Scenario_4!N36 -> 400.1495758 | Y62: =Scenario_4!P36 -> 400.1495757 | Z62: =Scenario_4!Q36 -> 400.149576 | AB62: =Scenario_5!N36 -> 576.124791 | AD62: =Scenario_5!P36 -> 576.124791 | AE62: =Scenario_5!Q36 -> 576.124791
E63: Exported Brood (from Hatchery Surplus) | H63: =Scenario_1!N37 -> 0 | I63: =Scenario_1!$N$37 -> 0 | J63: =Scenario_1!$P$37 -> 0 | K63: =Scenario_1!$Q$37 -> 0 | M63: =Scenario_2!N37 -> 313 | N63: =Scenario_2!$N$37 -> 313 | O63: =Scenario_2!$P$37 -> 313 | P63: =Scenario_2!$Q$37 -> 313 | R63: =Scenario_3!N37 -> 313 | S63: =Scenario_3!$N$37 -> 313 | T63: =Scenario_3!$P$37 -> 313 | U63: =Scenario_3!$Q$37 -> 313 | W63: =Scenario_4!N37 -> 313 | X63: =Scenario_4!$N$37 -> 313 | Y63: =Scenario_4!$P$37 -> 313 | Z63: =Scenario_4!$Q$37 -> 313 | AB63: =Scenario_5!N37 -> 0 | AC63: =Scenario_5!$N$37 -> 0 | AD63: =Scenario_5!$P$37 -> 0 | AE63: =Scenario_5!$Q$37 -> 0
E64: External Strays | H64: =Scenario_1!N38 -> 0 | J64: =Scenario_1!P38 -> 0 | K64: =Scenario_1!Q38 -> 0 | M64: =Scenario_2!N38 -> 56.3 | O64: =Scenario_2!P38 -> 56.3 | P64: =Scenario_2!Q38 -> 56.3 | R64: =Scenario_3!N38 -> 6.3 | T64: =Scenario_3!P38 -> 6.3 | U64: =Scenario_3!Q38 -> 6.3 | W64: =Scenario_4!N38 -> 6.3 | Y64: =Scenario_4!P38 -> 6.3 | Z64: =Scenario_4!Q38 -> 6.3 | AB64: =Scenario_5!N38 -> 0 | AD64: =Scenario_5!P38 -> 0 | AE64: =Scenario_5!Q38 -> 0
C66: Total Run | E66: Total Run Size (minus strays & imported BS) | H66: =+H55+H56+H60+H61+H62+H63-H64-H40 -> 1788.140339 | J66: =+J55+J56+J60+J61+J62+J63-J64-H40 -> 1573.032111 | K66: =+K55+K56+K60+K61+K62+K63-K64-H40 -> 1818.038445 | M66: =+M55+M56+M60+M61+M62+M63-M64-M40 -> 3426.523411 | O66: =+O55+O56+O60+O61+O62+O63-O64-M40 -> 3421.540091 | P66: =+P55+P56+P60+P61+P62+P63-P64-M40 -> 3468.685217 | R66: =+R55+R56+R60+R61+R62+R63-R64-R40 -> 6369.56788 | T66: =+T55+T56+T60+T61+T62+T63-T64-R40 -> 6132.948399 | U66: =+U55+U56+U60+U61+U62+U63-U64-R40 -> 6436.869482 | W66: =+W55+W56+W60+W61+W62+W63-W64-W40 -> 6369.56788 | Y66: =+Y55+Y56+Y60+Y61+Y62+Y63-Y64-W40 -> 6132.948399 | Z66: =+Z55+Z56+Z60+Z61+Z62+Z63-Z64-W40 -> 6436.869482 | AB66: =+AB55+AB56+AB60+AB61+AB62+AB63-AB64-AB40 -> 1499.999999 | AD66: =+AD55+AD56+AD60+AD61+AD62+AD63-AD64-AB40 -> 1499.999999 | AE66: =+AE55+AE56+AE60+AE61+AE62+AE63-AE64-AB40 -> 1499.999999 | AL66: Data for plotting isopleths in Realized Spawning Composition (pNOB vs. pHOS) graph above | AW66: pNOB vs. pNOB Scenario Data
C68: Recruits per Spawner | E68: NOR Ocean Recruits per Spawner* | H68: =H111/H58 -> 2.817488716 | M68: =M111/M58 -> 1.587984176 | R68: =R111/R58 -> 1.64815812 | W68: =W111/W58 -> 1.64815812
E69: *Spawners include all natural escapement (NOR & HOR)
AM70: PNI =pNOB/(pNOB+pHOS) | AX70: pNOB | AY70: pHOS
AL71: pNOB | AM71: 0.1 | AN71: 0.2 | AO71: 0.3 | AP71: 0.4 | AQ71: 0.5 | AR71: 0.6 | AS71: 0.7 | AT71: 0.8 | AU71: 0.9 | AW71: =H6 -> No Hatchery | AX71: =J49 -> 0 | AY71: =J48 -> 0
AL72: 0 | AM72: =$AL72*(1-AM$71)/AM$71 -> 0 | AN72: 0 | AO72: 0 | AP72: 0 | AQ72: 0 | AR72: 0 | AS72: 0 | AT72: 0 | AU72: 0 | AW72: =M6 -> Naselle Scen. 1 | AX72: =O49 -> 0.07196364 | AY72: =O48 -> 0.5498566973
AL73: 0.1 | AM73: 0.9 | AN73: 0.4 | AO73: 0.2333333333 | AP73: 0.15 | AQ73: 0.1 | AR73: 0.06666666667 | AS73: 0.04285714286 | AT73: 0.025 | AU73: 0.01111111111 | AW73: =R6 -> Naselle Scen. 2 | AX73: =T49 -> 0.2998884 | AY73: =T48 -> 0.05285004269
AL74: =AM71/(1-AM71) -> 0.1111111111 | AM74: 1 | AN74: 0.4444444444 | AO74: 0.2592592593 | AP74: 0.1666666667 | AQ74: 0.1111111111 | AR74: 0.07407407407 | AS74: 0.04761904762 | AT74: 0.02777777778 | AU74: 0.01234567901 | AW74: =W6 -> Naselle Scen. 3 | AX74: =Y49 -> 0.2998884 | AY74: =Y48 -> 0.05285004269
AL75: 0.2 | AM75: 1.8 | AN75: 0.8 | AO75: 0.4666666667 | AP75: 0.3 | AQ75: 0.2 | AR75: 0.1333333333 | AS75: 0.08571428571 | AT75: 0.05 | AU75: 0.02222222222
AL76: 0.25 | AM76: 2.25 | AN76: 1 | AO76: 0.5833333333 | AP76: 0.375 | AQ76: 0.25 | AR76: 0.1666666667 | AS76: 0.1071428571 | AT76: 0.0625 | AU76: 0.02777777778
AL77: 0.4278 | AM77: 3.8502 | AN77: 1.7112 | AO77: 0.9982 | AP77: 0.6417 | AQ77: 0.4278 | AR77: 0.2852 | AS77: 0.1833428571 | AT77: 0.10695 | AU77: 0.04753333333
AL78: 0.5 | AM78: 4.5 | AN78: 2 | AO78: 1.166666667 | AP78: 0.75 | AQ78: 0.5 | AR78: 0.3333333333 | AS78: 0.2142857143 | AT78: 0.125 | AU78: 0.05555555556
AL79: 0.6 | AM79: 5.4 | AN79: 2.4 | AO79: 1.4 | AP79: 0.9 | AQ79: 0.6 | AR79: 0.4 | AS79: 0.2571428571 | AT79: 0.15 | AU79: 0.06666666667
AL80: 0.667 | AM80: 6.003 | AN80: 2.668 | AO80: 1.556333333 | AP80: 1.0005 | AQ80: 0.667 | AR80: 0.4446666667 | AS80: 0.2858571429 | AT80: 0.16675 | AU80: 0.07411111111
AL81: 0.8 | AM81: 7.2 | AN81: 3.2 | AO81: 1.866666667 | AP81: 1.2 | AQ81: 0.8 | AR81: 0.5333333333 | AS81: 0.3428571429 | AT81: 0.2 | AU81: 0.08888888889
AL82: 0.9 | AM82: 8.1 | AN82: 3.6 | AO82: 2.1 | AP82: 1.35 | AQ82: 0.9 | AR82: 0.6 | AS82: 0.3857142857 | AT82: 0.225 | AU82: 0.1
AL83: 1 | AM83: 9 | AN83: 4 | AO83: 2.333333333 | AP83: 1.5 | AQ83: 1 | AR83: 0.6666666667 | AS83: 0.4285714286 | AT83: 0.25 | AU83: 0.1111111111
H86: * HORs-int and Surplus HORs-int are from properly integrated populations (pNOB > 10% and pHOS < pNOB)
E88: Additional AHA Results | H88: Do not edit values in the AHA results table.
H89: Scenario 1 | M89: Scenario 2 | R89: Scenario 3 | W89: Scenario 4 | AB89: Scenario 5
H90: Average | J90: Min | K90: Max | M90: Average | O90: Min | P90: Max | R90: Average | T90: Min | U90: Max | W90: Average | Y90: Min | Z90: Max | AB90: Average | AD90: Min | AE90: Max
C91: Natural Production and Escapement | E91: NOR Smolts | H91: =Scenario_1!N12 -> 178882.024 | J91: =Scenario_1!P12 -> 157796.4949 | K91: =Scenario_1!Q12 -> 181804.0168 | M91: =Scenario_2!N12 -> 45711.22753 | O91: =Scenario_2!P12 -> 45619.02553 | P91: =Scenario_2!Q12 -> 49626.00928 | R91: =Scenario_3!N12 -> 338575.9194 | T91: =Scenario_3!P12 -> 316392.3905 | U91: =Scenario_3!Q12 -> 344855.7408 | W91: =Scenario_4!N12 -> 338575.9194 | Y91: =Scenario_4!P12 -> 316392.3905 | Z91: =Scenario_4!Q12 -> 344855.7408 | AB91: =Scenario_5!N12 -> 9.998016266e-05 | AD91: =Scenario_5!P12 -> 9.998016266e-05 | AE91: =Scenario_5!Q12 -> 9.998016266e-05
E92: HOS above pHOS Goal | H92: =Scenario_1!N16 -> 0 | J92: =Scenario_1!P16 -> 0 | K92: =Scenario_1!Q16 -> 0 | M92: =Scenario_2!N16 -> 116.7453205 | O92: =Scenario_2!P16 -> 112.6742672 | P92: =Scenario_2!Q16 -> 116.8411119 | R92: =Scenario_3!N16 -> 0 | T92: =Scenario_3!P16 -> 0 | U92: =Scenario_3!Q16 -> 0 | W92: =Scenario_4!N16 -> 0 | Y92: =Scenario_4!P16 -> 0 | Z92: =Scenario_4!Q16 -> 0 | AB92: =Scenario_5!N16 -> 63 | AD92: =Scenario_5!P16 -> 63 | AE92: =Scenario_5!Q16 -> 63
C94: Harvest | E94: =CONCATENATE($D$26&" NORs") -> Ocean NORs | H94: =Scenario_1!N19 -> 625.8491187 | J94: =Scenario_1!P19 -> 550.5612389 | K94: =Scenario_1!Q19 -> 636.3134556 | M94: =Scenario_2!N19 -> 149.2831977 | O94: =Scenario_2!P19 -> 148.9740358 | P94: =Scenario_2!Q19 -> 162.6048298 | R94: =Scenario_3!N19 -> 1010.87037 | T94: =Scenario_3!P19 -> 939.8845255 | U94: =Scenario_3!Q19 -> 1031.06085 | W94: =Scenario_4!N19 -> 1010.87037 | Y94: =Scenario_4!P19 -> 939.8845255 | Z94: =Scenario_4!Q19 -> 1031.06085 | AB94: =Scenario_5!N19 -> 0 | AD94: =Scenario_5!P19 -> 0 | AE94: =Scenario_5!Q19 -> 0
E95: =CONCATENATE($D$26&" HORs") -> Ocean HORs | H95: =Scenario_1!N20 -> 0 | J95: =Scenario_1!P20 -> 0 | K95: =Scenario_1!Q20 -> 0 | M95: =Scenario_2!N20 -> 1049.999996 | O95: =Scenario_2!P20 -> 1049.999996 | P95: =Scenario_2!Q20 -> 1049.999996 | R95: =Scenario_3!N20 -> 899.9999942 | T95: =Scenario_3!P20 -> 899.9999942 | U95: =Scenario_3!Q20 -> 899.9999944 | W95: =Scenario_4!N20 -> 899.9999942 | Y95: =Scenario_4!P20 -> 899.9999942 | Z95: =Scenario_4!Q20 -> 899.9999944 | AB95: =Scenario_5!N20 -> 449.9999993 | AD95: =Scenario_5!P20 -> 449.9999993 | AE95: =Scenario_5!Q20 -> 449.9999993
E96: =CONCATENATE($D$27&" NORs") -> Willapa Bay Comm. NORs | H96: =Scenario_1!N21 -> 313.8186295 | J96: =Scenario_1!P21 -> 276.0671355 | K96: =Scenario_1!Q21 -> 319.065747 | M96: =Scenario_2!N21 -> 74.85486058 | O96: =Scenario_2!P21 -> 74.69983793 | P96: =Scenario_2!Q21 -> 81.5347075 | R96: =Scenario_3!N21 -> 141.5218518 | T96: =Scenario_3!P21 -> 131.5838336 | U96: =Scenario_3!Q21 -> 144.3485191 | W96: =Scenario_4!N21 -> 141.5218518 | Y96: =Scenario_4!P21 -> 131.5838336 | Z96: =Scenario_4!Q21 -> 144.3485191 | AB96: =Scenario_5!N21 -> 0 | AD96: =Scenario_5!P21 -> 0 | AE96: =Scenario_5!Q21 -> 0
E97: =CONCATENATE($D$27&" HORs") -> Willapa Bay Comm. HORs | H97: =Scenario_1!N22 -> 0 | J97: =Scenario_1!P22 -> 0 | K97: =Scenario_1!Q22 -> 0 | M97: =Scenario_2!N22 -> 526.499998 | O97: =Scenario_2!P22 -> 526.499998 | P97: =Scenario_2!Q22 -> 526.499998 | R97: =Scenario_3!N22 -> 419.9999973 | T97: =Scenario_3!P22 -> 419.9999973 | U97: =Scenario_3!Q22 -> 419.9999974 | W97: =Scenario_4!N22 -> 419.9999973 | Y97: =Scenario_4!P22 -> 419.9999973 | Z97: =Scenario_4!Q22 -> 419.9999974 | AB97: =Scenario_5!N22 -> 209.9999997 | AD97: =Scenario_5!P22 -> 209.9999997 | AE97: =Scenario_5!Q22 -> 209.9999997
E98: =CONCATENATE($D$28&" NORs") -> Willapa Bay Rec. NORs | H98: =Scenario_1!N23 -> 127.2708886 | J98: =Scenario_1!P23 -> 111.9605605 | K98: =Scenario_1!Q23 -> 129.3988863 | M98: =Scenario_2!N23 -> 30.35780457 | O98: =Scenario_2!P23 -> 30.29493427 | P98: =Scenario_2!Q23 -> 33.0668536 | R98: =Scenario_3!N23 -> 66.51527033 | T98: =Scenario_3!P23 -> 61.84440178 | U98: =Scenario_3!Q23 -> 67.84380396 | W98: =Scenario_4!N23 -> 66.51527033 | Y98: =Scenario_4!P23 -> 61.84440178 | Z98: =Scenario_4!Q23 -> 67.84380396 | AB98: =Scenario_5!N23 -> 0 | AD98: =Scenario_5!P23 -> 0 | AE98: =Scenario_5!Q23 -> 0
E99: =CONCATENATE($D$28&" HORs") -> Willapa Bay Rec. HORs | H99: =Scenario_1!N24 -> 0 | J99: =Scenario_1!P24 -> 0 | K99: =Scenario_1!Q24 -> 0 | M99: =Scenario_2!N24 -> 213.5249992 | O99: =Scenario_2!P24 -> 213.5249992 | P99: =Scenario_2!Q24 -> 213.5249992 | R99: =Scenario_3!N24 -> 226.7999985 | T99: =Scenario_3!P24 -> 226.7999985 | U99: =Scenario_3!Q24 -> 226.7999986 | W99: =Scenario_4!N24 -> 226.7999985 | Y99: =Scenario_4!P24 -> 226.7999985 | Z99: =Scenario_4!Q24 -> 226.7999986 | AB99: =Scenario_5!N24 -> 113.3999998 | AD99: =Scenario_5!P24 -> 113.3999998 | AE99: =Scenario_5!Q24 -> 113.3999998
E100: =CONCATENATE($D$29&" NORs") -> Freshwater NORs | H100: =Scenario_1!N25 -> 86.54420428 | J100: =Scenario_1!P25 -> 76.13318115 | K100: =Scenario_1!Q25 -> 87.99124268 | M100: =Scenario_2!N25 -> 20.64330711 | O100: =Scenario_2!P25 -> 20.60055531 | P100: =Scenario_2!Q25 -> 22.48546045 | R100: =Scenario_3!N25 -> 51.61584977 | T100: =Scenario_3!P25 -> 47.99125578 | U100: =Scenario_3!Q25 -> 52.64679187 | W100: =Scenario_4!N25 -> 51.61584977 | Y100: =Scenario_4!P25 -> 47.99125578 | Z100: =Scenario_4!Q25 -> 52.64679187 | AB100: =Scenario_5!N25 -> 0 | AD100: =Scenario_5!P25 -> 0 | AE100: =Scenario_5!Q25 -> 0
E101: =CONCATENATE($D$29&" HORs") -> Freshwater HORs | H101: =Scenario_1!N26 -> 0 | J101: =Scenario_1!P26 -> 0 | K101: =Scenario_1!Q26 -> 0 | M101: =Scenario_2!N26 -> 145.1969995 | O101: =Scenario_2!P26 -> 145.1969995 | P101: =Scenario_2!Q26 -> 145.1969995 | R101: =Scenario_3!N26 -> 174.3839989 | T101: =Scenario_3!P26 -> 174.3839989 | U101: =Scenario_3!Q26 -> 174.3839989 | W101: =Scenario_4!N26 -> 174.3839989 | Y101: =Scenario_4!P26 -> 174.3839989 | Z101: =Scenario_4!Q26 -> 174.3839989 | AB101: =Scenario_5!N26 -> 87.19199987 | AD101: =Scenario_5!P26 -> 87.19199987 | AE101: =Scenario_5!Q26 -> 87.19199987
E102: Total Harvest - NORs | H102: =Scenario_1!N28 -> 1153.482841 | J102: =Scenario_1!P28 -> 1014.722116 | K102: =Scenario_1!Q28 -> 1172.769332 | M102: =Scenario_2!N28 -> 275.13917 | O102: =Scenario_2!P28 -> 274.5693633 | P102: =Scenario_2!Q28 -> 299.6918513 | R102: =Scenario_3!N28 -> 1270.523342 | T102: =Scenario_3!P28 -> 1181.304017 | U102: =Scenario_3!Q28 -> 1295.899965 | W102: =Scenario_4!N28 -> 1270.523342 | Y102: =Scenario_4!P28 -> 1181.304017 | Z102: =Scenario_4!Q28 -> 1295.899965 | AB102: =Scenario_5!N28 -> 0 | AD102: =Scenario_5!P28 -> 0 | AE102: =Scenario_5!Q28 -> 0
E103: Total Harvest - HORs | H103: =Scenario_1!N29 -> 0 | J103: =Scenario_1!P29 -> 0 | K103: =Scenario_1!Q29 -> 0 | M103: =Scenario_2!N29 -> 1935.221993 | O103: =Scenario_2!P29 -> 1935.221993 | P103: =Scenario_2!Q29 -> 1935.221993 | R103: =Scenario_3!N29 -> 1721.183989 | T103: =Scenario_3!P29 -> 1721.183989 | U103: =Scenario_3!Q29 -> 1721.183989 | W103: =Scenario_4!N29 -> 1721.183989 | Y103: =Scenario_4!P29 -> 1721.183989 | Z103: =Scenario_4!Q29 -> 1721.183989 | AB103: =Scenario_5!N29 -> 860.5919987 | AD103: =Scenario_5!P29 -> 860.5919987 | AE103: =Scenario_5!Q29 -> 860.5919987
E104: Total Harvest | H104: =H60 -> 1153.482841 | J104: =J60 -> 1014.722116 | K104: =K60 -> 1172.769332 | M104: =M60 -> 2210.361163 | O104: =O60 -> 2209.791356 | P104: =P60 -> 2234.913844 | R104: =R60 -> 2991.70733 | T104: =T60 -> 2902.488006 | U104: =U60 -> 3017.083954 | W104: =W60 -> 2991.70733 | Y104: =Y60 -> 2902.488006 | Z104: =Z60 -> 3017.083954 | AB104: =AB60 -> 860.5919987 | AD104: =AD60 -> 860.5919987 | AE104: =AE60 -> 860.5919987
C106: Hatchery | E106: HOR Smolts Released | H106: =Scenario_1!N32 -> 0 | J106: =Scenario_1!P32 -> 0 | K106: =Scenario_1!Q32 -> 0 | M106: =Scenario_2!N32 -> 1000000 | O106: =Scenario_2!P32 -> 1000000 | P106: =Scenario_2!Q32 -> 1000000 | R106: =Scenario_3!N32 -> 1000000 | T106: =Scenario_3!P32 -> 1000000 | U106: =Scenario_3!Q32 -> 1000000 | W106: =Scenario_4!N32 -> 1000000 | Y106: =Scenario_4!P32 -> 1000000 | Z106: =Scenario_4!Q32 -> 1000000 | AB106: =Scenario_5!N32 -> 500000 | AD106: =Scenario_5!P32 -> 500000 | AE106: =Scenario_5!Q32 -> 500000
E107: NOR Brood | H107: =Scenario_1!N33 -> 0 | J107: =Scenario_1!P33 -> 0 | K107: =Scenario_1!Q33 -> 0 | M107: =Scenario_2!N33 -> 45.09 | O107: =Scenario_2!P33 -> 45 | P107: =Scenario_2!Q33 -> 49.1 | R107: =Scenario_3!N33 -> 187.9 | T107: =Scenario_3!P33 -> 187.9 | U107: =Scenario_3!Q33 -> 187.9 | W107: =Scenario_4!N33 -> 187.9 | Y107: =Scenario_4!P33 -> 187.9 | Z107: =Scenario_4!Q33 -> 187.9 | AB107: =Scenario_5!N33 -> 0 | AD107: =Scenario_5!P33 -> 0 | AE107: =Scenario_5!Q33 -> 0
E108: HOR Brood | H108: =Scenario_1!N34 -> 0 | J108: =Scenario_1!P34 -> 0 | K108: =Scenario_1!Q34 -> 0 | M108: =Scenario_2!N34 -> 581.476416 | O108: =Scenario_2!P34 -> 577.466416 | P108: =Scenario_2!Q34 -> 581.566416 | R108: =Scenario_3!N34 -> 438.666416 | T108: =Scenario_3!P34 -> 438.666416 | U108: =Scenario_3!Q34 -> 438.666416 | W108: =Scenario_4!N34 -> 438.666416 | Y108: =Scenario_4!P34 -> 438.666416 | Z108: =Scenario_4!Q34 -> 438.666416 | AB108: =Scenario_5!N34 -> 313.283208 | AD108: =Scenario_5!P34 -> 313.283208 | AE108: =Scenario_5!Q34 -> 313.283208
E109: Total Brood (includes imported) | H109: =SUM(H107:H108) -> 0 | I109: =SUM(H107:I107) -> 0 | J109: =SUM(J107:J108) -> 0 | K109: =SUM(K107:K108) -> 0 | M109: =SUM(M107:M108) -> 626.566416 | N109: =SUM(M107:N107) -> 45.09 | O109: =SUM(O107:O108) -> 622.466416 | P109: =SUM(P107:P108) -> 630.666416 | R109: =SUM(R107:R108) -> 626.566416 | S109: =SUM(R107:S107) -> 187.9 | T109: =SUM(T107:T108) -> 626.566416 | U109: =SUM(U107:U108) -> 626.566416 | W109: =SUM(W107:W108) -> 626.566416 | X109: =SUM(W107:X107) -> 187.9 | Y109: =SUM(Y107:Y108) -> 626.566416 | Z109: =SUM(Z107:Z108) -> 626.566416 | AB109: =SUM(AB107:AB108) -> 313.283208 | AC109: =SUM(AB107:AC107) -> 0 | AD109: =SUM(AD107:AD108) -> 313.283208 | AE109: =SUM(AE107:AE108) -> 313.283208
C111: Total Run | E111: Total NOR Run Size | H111: =Scenario_1!N40 -> 1788.140339 | J111: =Scenario_1!P40 -> 1573.032111 | K111: =Scenario_1!Q40 -> 1818.038445 | M111: =M55+M102+M107 -> 426.5234221 | O111: =O55+O102+O107 -> 425.6401022 | P111: =P55+P102+P107 -> 464.5852279 | R111: =R55+R102+R107 -> 3369.567899 | T111: =T55+T102+T107 -> 3132.948418 | U111: =U55+U102+U107 -> 3436.869502 | W111: =W55+W102+W107 -> 3369.567899 | Y111: =Y55+Y102+Y107 -> 3132.948418 | Z111: =Z55+Z102+Z107 -> 3436.869502 | AB111: =AB55+AB102+AB107 -> 9.998011267e-07 | AD111: =AD55+AD102+AD107 -> 9.998011267e-07 | AE111: =AE55+AE102+AE107 -> 9.998011267e-07
E112: Total HOR Run Size* | H112: =Scenario_1!$N$41 -> 0 | J112: =Scenario_1!$P$41 -> 0 | K112: =Scenario_1!$Q$41 -> 0 | M112: =Scenario_2!$N$41 -> 2999.999989 | O112: =Scenario_3!$P$41 -> 2999.999981 | P112: =Scenario_2!$Q$41 -> 3004.099989 | R112: =Scenario_3!$N$41 -> 2999.999981 | T112: =Scenario_3!$P$41 -> 2999.999981 | U112: =Scenario_3!$Q$41 -> 2999.999981 | W112: =Scenario_4!$N$41 -> 2999.999981 | Y112: =Scenario_4!$P$41 -> 2999.999981 | Z112: =Scenario_4!$Q$41 -> 2999.999981 | AB112: =Scenario_5!$N$41 -> 1499.999998 | AD112: =Scenario_5!$P$41 -> 1499.999998 | AE112: =Scenario_5!$Q$41 -> 1499.999998
E113: Total Run Size* | H113: =H66 -> 1788.140339 | J113: =J66 -> 1573.032111 | K113: =K66 -> 1818.038445 | M113: =M66 -> 3426.523411 | O113: =O66 -> 3421.540091 | P113: =P66 -> 3468.685217 | R113: =R66 -> 6369.56788 | T113: =T66 -> 6132.948399 | U113: =U66 -> 6436.869482 | W113: =W66 -> 6369.56788 | Y113: =Y66 -> 6132.948399 | Z113: =Z66 -> 6436.869482 | AB113: =AB66 -> 1499.999999 | AD113: =AD66 -> 1499.999999 | AE113: =AE66 -> 1499.999999
E114: *Minus strays and imported broodstock
H115: Assumption* | J115: Calculated** | M115: Assumption* | O115: Calculated** | R115: Assumption* | T115: Calculated** | W115: Assumption* | Y115: Calculated** | AB115: Assumption* | AD115: Calculated**
C116: SARs | E116: SAR - NORs | H116: =J21 -> 0.01 | J116: =Scenario_1!$N$44 -> 0.009996199169 | M116: =O21 -> 0.01 | O116: =Scenario_2!$N$44 -> 0.00933082407 | R116: =T21 -> 0.01 | T116: =Scenario_3!$N$44 -> 0.009952178243 | W116: =Y21 -> 0.01 | Y116: =Scenario_4!$N$44 -> 0.009952178243
E117: SAR - HORs | H117: =IFERROR((H35*H39+J35*J39)/(H39+J39),"-") -> - | J117: =Scenario_1!$N$45 -> - | M117: =IFERROR((M35*M39+O35*O39)/(M39+O39),"-") -> 0.003 | O117: =Scenario_2!$N$45 -> 0.002999999989 | R117: =IFERROR((R35*R39+T35*T39)/(R39+T39),"-") -> 0.003 | T117: =Scenario_3!$N$45 -> 0.002999999981 | W117: =IFERROR((W35*W39+Y35*Y39)/(W39+Y39),"-") -> 0.003 | Y117: =Scenario_4!$N$45 -> 0.002999999981 | AB117: =IFERROR((AB35*AB39+AD35*AD39)/(AB39+AD39),"-") -> 0.003 | AD117: =Scenario_5!$N$45 -> 0.002999999996
H118: * Assumed SARs are from key assumptions above. Note that HOR SAR is weighted based on the number of subyearling and yearling releases.
H119: ** Calculated SARs are based on average AHA estimates of NOR and HOR adult run size and smolts produced.
H120: Note: The calculated SARs are affected by the 'SAR Vary' and 'Fitness Adjustment' toggles.
E122: Harvest Rate calculators
E123: Calculator to Convert Exploitation Rates to Harvest Rates | H123: Selective Harvest Calculator: Use to Convert Harvest Rate on Marked Fish to Harvest Rate on HORs based on Percentage of HORs Marked
H124: Scenario 1 | M124: Scenario 2 | R124: Scenario 3 | W124: Scenario 4 | AB124: Scenario 5
E125: Enter Exploitation Rate | F125: Harvest Rate | H125: Harvest Rate on Marked Fish | I125: % of HORs Marked | J125: Harvest Rate on HORs | M125: Harvest Rate on Marked Fish | N125: % of HORs Marked | O125: Harvest Rate on HORs | R125: Harvest Rate on Marked Fish | S125: % of HORs Marked | T125: Harvest Rate on HORs | W125: Harvest Rate on Marked Fish | X125: % of HORs Marked | Y125: Harvest Rate on HORs | AB125: Harvest Rate on Marked Fish | AC125: % of HORs Marked | AD125: Harvest Rate on HORs
D126: =D26 -> Ocean | E126: 0.22 | F126: =E126 -> 0.22 | H126: 0 | I126: 0.08 | J126: =H26*(1-I126)+H126*I126 -> 0.322 | M126: 0 | N126: 1 | O126: =M26*(1-N126)+M126*N126 -> 0 | R126: 0 | S126: 1 | T126: =R26*(1-S126)+R126*S126 -> 0 | W126: 0 | X126: 1 | Y126: =W26*(1-X126)+W126*X126 -> 0 | AB126: 0 | AC126: 1 | AD126: =AB26*(1-AC126)+AB126*AC126 -> 0
D127: =D27 -> Willapa Bay Comm. | E127: 0.37 | F127: =E127/(1-E126) -> 0.4743589744 | H127: 0.17 | I127: 0.08 | J127: =H27*(1-I127)+H127*I127 -> 0.262 | M127: 0.17 | N127: 1 | O127: =M27*(1-N127)+M127*N127 -> 0.17 | R127: 0.17 | S127: 1 | T127: =R27*(1-S127)+R127*S127 -> 0.17 | W127: 0.17 | X127: 1 | Y127: =W27*(1-X127)+W127*X127 -> 0.17 | AB127: 0.17 | AC127: 1 | AD127: =AB27*(1-AC127)+AB127*AC127 -> 0.17
D128: =D28 -> Willapa Bay Rec. | E128: 0.15 | F128: =E128/(1-E126-E127) -> 0.3658536585 | H128: 0.07 | I128: 0.08 | J128: =H28*(1-I128)+H128*I128 -> 0.1436 | M128: 0.07 | N128: 1 | O128: =M28*(1-N128)+M128*N128 -> 0.07 | R128: 0.07 | S128: 1 | T128: =R28*(1-S128)+R128*S128 -> 0.07 | W128: 0.07 | X128: 1 | Y128: =W28*(1-X128)+W128*X128 -> 0.07 | AB128: 0.07 | AC128: 1 | AD128: =AB28*(1-AC128)+AB128*AC128 -> 0.07
D129: =D29 -> Freshwater | E129: 0.1 | F129: =E129/(1-E126-E127-E128) -> 0.3846153846 | H129: 0.07 | I129: 0.08 | J129: =H29*(1-I129)+H129*I129 -> 0.116 | M129: 0.07 | N129: 1 | O129: =M29*(1-N129)+M129*N129 -> 0.07 | R129: 0.07 | S129: 1 | T129: =R29*(1-S129)+R129*S129 -> 0.07 | W129: 0.07 | X129: 1 | Y129: =W29*(1-X129)+W129*X129 -> 0.07 | AB129: 0.07 | AC129: 1 | AD129: =AB29*(1-AC129)+AB129*AC129 -> 0.07
D130: Total Exploitation Rate | E130: =SUM(E126:E129) -> 0.84 | F130: =(1-((1-F126)*(1-F127)*(1-F128)*(1-F129))) -> 0.84

Sheet AHA CIs
AB1: =Scenario_1!M12 -> NOR Smolts | AG1: =Scenario_1!M13 -> NOR Escapement | AL1: =Scenario_1!M14 -> HOR Total Escapement (including strays) | AQ1: =Scenario_1!M15 -> HOR Effective Escapement | AV1: =Scenario_1!M17 -> Total Natural Escapement (NOR & HOR) | BA1: =Scenario_1!M19 -> Ocean NORs | BF1: =Scenario_1!M20 -> Ocean HORs | BK1: =Scenario_1!M21 -> Willapa Bay Comm. NORs | BP1: =Scenario_1!M22 -> Willapa Bay Comm. HORs | BU1: =Scenario_1!M23 -> Willapa Bay Rec. NORs | BZ1: =Scenario_1!M24 -> Willapa Bay Rec. HORs | CE1: =Scenario_1!M25 -> Freshwater NORs | CJ1: =Scenario_1!M26 -> Freshwater HORs | CO1: =Scenario_1!M28 -> Total Harvest - NORs | CT1: =Scenario_1!M29 -> Total Harvest - HORs | CY1: =Scenario_1!M30 -> Total Harvest | DD1: =Scenario_1!M32 -> HOR Smolts Released | DI1: =Scenario_1!M33 -> NOR Brood | DN1: =Scenario_1!M34 -> HOR Brood | DS1: =Scenario_1!M35 -> Total Brood (includes imported) | DX1: =Scenario_1!M36 -> Surplus at Hatchery | EC1: =Scenario_1!M37 -> Exported Brood (from Hatchery Surplus) | EH1: =Scenario_1!M38 -> External Strays | EM1: =Scenario_1!M40 -> Total NOR Run Size | ER1: =Scenario_1!M41 -> Total HOR Run Size* | EW1: =Scenario_1!M42 -> Total Run Size*
D2: Enter # of Model runs (up to 1,000) | E2: 25 | AB2: S1 | AC2: S2 | AD2: S3 | AE2: S4 | AF2: S5 | AG2: S1 | AH2: S2 | AI2: S3 | AJ2: S4 | AK2: S5 | AL2: S1 | AM2: S2 | AN2: S3 | AO2: S4 | AP2: S5 | AQ2: S1 | AR2: S2 | AS2: S3 | AT2: S4 | AU2: S5 | AV2: S1 | AW2: S2 | AX2: S3 | AY2: S4 | AZ2: S5 | BA2: S1 | BB2: S2 | BC2: S3 | BD2: S4 | BE2: S5 | BF2: S1 | BG2: S2 | BH2: S3 | BI2: S4 | BJ2: S5 | BK2: S1 | BL2: S2 | BM2: S3 | BN2: S4 | BO2: S5 | BP2: S1 | BQ2: S2 | BR2: S3 | BS2: S4 | BT2: S5 | BU2: S1 | BV2: S2 | BW2: S3 | BX2: S4 | BY2: S5 | BZ2: S1 | CA2: S2 | CB2: S3 | CC2: S4 | CD2: S5 | CE2: S1 | CF2: S2 | CG2: S3 | CH2: S4 | CI2: S5 | CJ2: S1 | CK2: S2 | CL2: S3 | CM2: S4 | CN2: S5 | CO2: S1 | CP2: S2 | CQ2: S3 | CR2: S4 | CS2: S5 | CT2: S1 | CU2: S2 | CV2: S3 | CW2: S4 | CX2: S5 | CY2: S1 | CZ2: S2 | DA2: S3 | DB2: S4 | DC2: S5 | DD2: S1 | DE2: S2 | DF2: S3 | DG2: S4 | DH2: S5 | DI2: S1 | DJ2: S2 | DK2: S3 | DL2: S4 | DM2: S5 | DN2: S1 | DO2: S2 | DP2: S3 | DQ2: S4 | DR2: S5 | DS2: S1 | DT2: S2 | DU2: S3 | DV2: S4 | DW2: S5 | DX2: S1 | DY2: S2 | DZ2: S3 | EA2: S4 | EB2: S5 | EC2: S1 | ED2: S2 | EE2: S3 | EF2: S4 | EG2: S5 | EH2: S1 | EI2: S2 | EJ2: S3 | EK2: S4 | EL2: S5 | EM2: S1 | EN2: S2 | EO2: S3 | EP2: S4 | EQ2: S5 | ER2: S1 | ES2: S2 | ET2: S3 | EU2: S4 | EV2: S5 | EW2: S1 | EX2: S2 | EY2: S3 | EZ2: S4 | FA2: S5
AA3: Mean | AB3: =AVERAGE(AB6:AB1005) -> 181807.1712 | AC3: 153568.3069 | AD3: 334114.949 | AE3: 351322.2269 | AF3: 9.998016266e-05 | AG3: 645.2809192 | AH3: 381.853303 | AI3: 1517.435293 | AJ3: 1532.321913 | AK3: 9.998011267e-07 | AL3: 0 | AM3: 162.3 | AN3: 389.3 | AO3: 645.3 | AP3: 63 | AQ3: 0 | AR3: 129.84 | AS3: 311.44 | AT3: 516.24 | AU3: 50.4 | AV3: 645.2809192 | AW3: 544.153303 | AX3: 1906.735293 | AY3: 2177.621913 | AZ3: 63.000001 | BA3: 636.3250979 | BB3: 537.4885358 | BC3: 1002.341837 | BD3: 1053.961407 | BE3: 0 | BF3: 0 | BG3: 1049.999995 | BH3: 2699.999967 | BI3: 4499.999917 | BJ3: 449.9999993 | BK3: 319.0715848 | BL3: 269.5121087 | BM3: 140.3278571 | BN3: 147.554597 | BO3: 0 | BP3: 0 | BQ3: 526.4999976 | BR3: 1259.999984 | BS3: 2099.999961 | BT3: 209.9999997 | BU3: 129.4012538 | BV3: 109.302133 | BW3: 65.95409286 | BX3: 69.35066058 | BY3: 0 | BZ3: 0 | CA3: 213.524999 | CB3: 680.3999916 | CC3: 1133.999979 | CD3: 113.3999998 | CE3: 87.99285261 | CF3: 74.32545041 | CG3: 51.18037606 | CH3: 53.81611261 | CI3: 0 | CJ3: 0 | CK3: 145.1969993 | CL3: 523.1519935 | CM3: 871.9199839 | CN3: =AVERAGE(CN6:CN1005) -> 87.19199987 | CO3: 1172.790789 | CP3: 990.6282278 | CQ3: 1259.804163 | CR3: 1324.682777 | CS3: 0 | CT3: 0 | CU3: 1935.221991 | CV3: 5163.551936 | CW3: 8605.919841 | CX3: 860.5919987 | CY3: 1172.790789 | CZ3: 2925.850219 | DA3: 6423.356099 | DB3: 9930.602618 | DC3: 860.5919987 | DD3: 0 | DE3: 1000000 | DF3: 3000000 | DG3: 5000000 | DH3: 500000 | DI3: 0 | DJ3: 163.2 | DK3: 563.9 | DL3: 656.2 | DM3: 0 | DN3: 0 | DO3: 463.366416 | DP3: 1315.799248 | DQ3: 2476.63208 | DR3: 313.283208 | DS3: 0 | DT3: 626.566416 | DU3: 1879.699248 | DV3: 3132.83208 | DW3: 313.283208 | DX3: 0 | DY3: 182.4115791 | DZ3: 1824.648705 | EA3: 2965.447801 | EB3: 576.124791 | EC3: 0 | ED3: 313 | EE3: 313 | EF3: 313 | EG3: 0 | EH3: 0 | EI3: 56.3 | EJ3: 6.3 | EK3: 6.3 | EL3: 0 | EM3: 1818.071708 | EN3: 1535.681531 | EO3: 3341.139456 | EP3: 3513.20469 | EQ3: 9.998011267e-07 | ER3: 0 | ES3: 2999.999986 | ET3: 8999.999889 | EU3: 14999.99972 | EV3: 1499.999998 | EW3: 1818.071708 | EX3: 4535.681517 | EY3: 12341.13934 | EZ3: =AVERAGE(EZ6:EZ1005) -> 18513.20441 | FA3: 1499.999999
AA4: SD | AB4: =STDEV(AB6:AB1005) -> 2.970397257e-11 | AC4: 5.940794515e-11 | AD4: 1.188158903e-10 | AE4: 1.782238354e-10 | AF4: 2.766398021e-20 | AG4: 1.160311429e-13 | AH4: 0 | AI4: 6.961868572e-13 | AJ4: 6.961868572e-13 | AK4: 0 | AL4: 0 | AM4: 5.801557144e-14 | AN4: 1.740467143e-13 | AO4: 2.320622857e-13 | AP4: 0 | AQ4: 0 | AR4: 2.900778572e-14 | AS4: 1.160311429e-13 | AT4: 2.320622857e-13 | AU4: 2.175583929e-14 | AV4: 1.160311429e-13 | AW4: 3.480934286e-13 | AX4: 2.320622857e-13 | AY4: 1.392373714e-12 | AZ4: 7.251946429e-15 | BA4: 3.480934286e-13 | BB4: 2.320622857e-13 | BC4: 2.320622857e-13 | BD4: 4.641245715e-13 | BE4: 0 | BF4: 0 | BG4: 6.961868572e-13 | BH4: 0 | BI4: 9.28249143e-13 | BJ4: 5.801557144e-14 | BK4: 1.740467143e-13 | BL4: 5.801557144e-14 | BM4: 5.801557144e-14 | BN4: 2.900778572e-14 | BO4: 0 | BP4: 0 | BQ4: 2.320622857e-13 | BR4: 4.641245715e-13 | BS4: 4.641245715e-13 | BT4: 2.900778572e-14 | BU4: 5.801557144e-14 | BV4: 4.351167858e-14 | BW4: 1.450389286e-14 | BX4: 4.351167858e-14 | BY4: 0 | BZ4: 0 | CA4: 0 | CB4: 2.320622857e-13 | CC4: 2.320622857e-13 | CD4: 2.900778572e-14 | CE4: 2.900778572e-14 | CF4: 2.900778572e-14 | CG4: 1.450389286e-14 | CH4: 1.450389286e-14 | CI4: 0 | CJ4: 0 | CK4: 8.702335715e-14 | CL4: 1.160311429e-13 | CM4: 1.160311429e-13 | CN4: =STDEV(CN6:CN1005) -> 1.450389286e-14 | CO4: 6.961868572e-13 | CP4: 2.320622857e-13 | CQ4: 4.641245715e-13 | CR4: 6.961868572e-13 | CS4: 0 | CT4: 0 | CU4: 2.320622857e-13 | CV4: 2.784747429e-12 | CW4: 1.856498286e-12 | CX4: 4.641245715e-13 | CY4: 2.320622857e-13 | CZ4: 4.641245715e-13 | DA4: 1.856498286e-12 | DB4: 3.712996572e-12 | DC4: 3.480934286e-13 | DD4: 0 | DE4: 0 | DF4: 0 | DG4: 0 | DH4: 0 | DI4: 0 | DJ4: 5.801557144e-14 | DK4: 2.320622857e-13 | DL4: 1.160311429e-13 | DM4: 0 | DN4: 0 | DO4: 1.160311429e-13 | DP4: 0 | DQ4: 9.28249143e-13 | DR4: 1.740467143e-13 | DS4: 0 | DT4: 2.320622857e-13 | DU4: 4.641245715e-13 | DV4: 0 | DW4: 1.740467143e-13 | DX4: 0 | DY4: 2.900778572e-14 | DZ4: 2.320622857e-13 | EA4: 1.392373714e-12 | EB4: 1.160311429e-13 | EC4: 0 | ED4: 0 | EE4: 0 | EF4: 0 | EG4: 0 | EH4: 0 | EI4: 2.175583929e-14 | EJ4: 9.064933037e-16 | EK4: 9.064933037e-16 | EL4: 0 | EM4: 4.641245715e-13 | EN4: 9.28249143e-13 | EO4: 0 | EP4: 0 | EQ4: 0 | ER4: 0 | ES4: 9.28249143e-13 | ET4: 5.569494858e-12 | EU4: 5.569494858e-12 | EV4: 0 | EW4: 4.641245715e-13 | EX4: 2.784747429e-12 | EY4: 7.425993144e-12 | EZ4: =STDEV(EZ6:EZ1005) -> 7.425993144e-12 | FA4: 0
AA5: CV | AB5: =IFERROR(AB4/AB3,"-") -> 1.633817433e-16 | AC5: =IFERROR(AC4/AC3,"-") -> 3.868502971e-16 | AD5: 3.556138109e-16 | AE5: 5.072945058e-16 | AF5: 2.76694691e-16 | AG5: 1.798149293e-16 | AH5: 0 | AI5: 4.58791792e-16 | AJ5: 4.54334596e-16 | AK5: 0 | AL5: - | AM5: 3.574588505e-16 | AN5: 4.470760707e-16 | AO5: 3.596192248e-16 | AP5: 0 | AQ5: - | AR5: 2.234117816e-16 | AS5: 3.725633922e-16 | AT5: 4.49524031e-16 | AU5: 4.316634779e-16 | AV5: 1.798149293e-16 | AW5: 6.396973549e-16 | AX5: 1.217066085e-16 | AY5: 6.394010393e-16 | AZ5: 1.15110259e-16 | BA5: 5.47037088e-16 | BB5: 4.317529962e-16 | BC5: 2.315201035e-16 | BD5: 4.403620174e-16 | BE5: - | BF5: - | BG5: 6.630351051e-16 | BH5: 0 | BI5: 2.062775911e-16 | BJ5: 1.289234923e-16 | BK5: 5.454785778e-16 | BL5: 2.152614653e-16 | BM5: 4.134287562e-16 | BN5: 1.965901863e-16 | BO5: - | BP5: - | BQ5: 4.407640775e-16 | BR5: 3.683528391e-16 | BS5: 2.210117048e-16 | BT5: 1.381323131e-16 | BU5: 4.483385571e-16 | BV5: 3.980862715e-16 | BW5: 2.199089129e-16 | BX5: 6.274154883e-16 | BY5: - | BZ5: - | CA5: 0 | CB5: 3.410674436e-16 | CC5: 2.046404674e-16 | CD5: 2.558005799e-16 | CE5: 3.296607038e-16 | CF5: 3.902806583e-16 | CG5: 2.833877743e-16 | CH5: 2.695083713e-16 | CI5: - | CJ5: - | CK5: 5.993468016e-16 | CL5: 2.217924127e-16 | CM5: 1.330754485e-16 | CN5: 1.663443077e-16 | CO5: =IFERROR(CO4/CO3,"-") -> 5.936155567e-16 | CP5: 2.342576955e-16 | CQ5: 3.684100952e-16 | CR5: 5.255498669e-16 | CS5: - | CT5: - | CU5: 1.199150727e-16 | CV5: 5.39308496e-16 | CW5: 2.157233997e-16 | CX5: 5.393084902e-16 | CY5: 1.978718522e-16 | CZ5: 1.58628958e-16 | DA5: 2.89023099e-16 | DB5: 3.738943863e-16 | DC5: 4.044813676e-16 | DD5: - | DE5: 0 | DF5: 0 | DG5: 0 | DH5: 0 | DI5: - | DJ5: 3.554875701e-16 | DK5: 4.115309199e-16 | DL5: 1.768228328e-16 | DM5: - | DN5: - | DO5: 2.504090475e-16 | DP5: 0 | DQ5: 3.748030038e-16 | DR5: 5.555571121e-16 | DS5: - | DT5: 3.70371408e-16 | DU5: 2.46914272e-16 | DV5: 0 | DW5: 5.555571121e-16 | DX5: - | DY5: 1.590238178e-16 | DZ5: 1.271818982e-16 | EA5: 4.695323633e-16 | EB5: 2.01399323e-16 | EC5: - | ED5: 0 | EE5: 0 | EF5: 0 | EG5: - | EH5: - | EI5: 3.864269856e-16 | EJ5: 1.43887826e-16 | EK5: 1.43887826e-16 | EL5: - | EM5: 2.552839744e-16 | EN5: 6.044541946e-16 | EO5: 0 | EP5: 0 | EQ5: 0 | ER5: - | ES5: 3.094163824e-16 | ET5: 6.188327696e-16 | EU5: 3.712996641e-16 | EV5: 0 | EW5: 2.552839744e-16 | EX5: 6.139644987e-16 | EY5: 6.017267074e-16 | EZ5: 4.011187355e-16 | FA5: =IFERROR(FA4/FA3,"-") -> 0
E6: Scenario 1 | I6: Scenario 2 | M6: Scenario 3 | Q6: Scenario 4 | U6: Scenario 5 | AA6: 1 | AB6: 181807.1712 | AC6: 153568.3069 | AD6: 334114.949 | AE6: 351322.2269 | AF6: 9.998016266e-05 | AG6: 645.2809192 | AH6: 381.853303 | AI6: 1517.435293 | AJ6: 1532.321913 | AK6: 9.998011267e-07 | AL6: 0 | AM6: 162.3 | AN6: 389.3 | AO6: 645.3 | AP6: 63 | AQ6: 0 | AR6: 129.84 | AS6: 311.44 | AT6: 516.24 | AU6: 50.4 | AV6: 645.2809192 | AW6: 544.153303 | AX6: 1906.735293 | AY6: 2177.621913 | AZ6: 63.000001 | BA6: 636.3250979 | BB6: 537.4885358 | BC6: 1002.341837 | BD6: 1053.961407 | BE6: 0 | BF6: 0 | BG6: 1049.999995 | BH6: 2699.999967 | BI6: 4499.999917 | BJ6: 449.9999993 | BK6: 319.0715848 | BL6: 269.5121087 | BM6: 140.3278571 | BN6: 147.554597 | BO6: 0 | BP6: 0 | BQ6: 526.4999976 | BR6: 1259.999984 | BS6: 2099.999961 | BT6: 209.9999997 | BU6: 129.4012538 | BV6: 109.302133 | BW6: 65.95409286 | BX6: 69.35066058 | BY6: 0 | BZ6: 0 | CA6: 213.524999 | CB6: 680.3999916 | CC6: 1133.999979 | CD6: 113.3999998 | CE6: 87.99285261 | CF6: 74.32545041 | CG6: 51.18037606 | CH6: 53.81611261 | CI6: 0 | CJ6: 0 | CK6: 145.1969993 | CL6: 523.1519935 | CM6: 871.9199839 | CN6: 87.19199987 | CO6: 1172.790789 | CP6: 990.6282278 | CQ6: 1259.804163 | CR6: 1324.682777 | CS6: 0 | CT6: 0 | CU6: 1935.221991 | CV6: 5163.551936 | CW6: 8605.919841 | CX6: 860.5919987 | CY6: 1172.790789 | CZ6: 2925.850219 | DA6: 6423.356099 | DB6: 9930.602618 | DC6: 860.5919987 | DD6: 0 | DE6: 1000000 | DF6: 3000000 | DG6: 5000000 | DH6: 500000 | DI6: 0 | DJ6: 163.2 | DK6: 563.9 | DL6: 656.2 | DM6: 0 | DN6: 0 | DO6: 463.366416 | DP6: 1315.799248 | DQ6: 2476.63208 | DR6: 313.283208 | DS6: 0 | DT6: 626.566416 | DU6: 1879.699248 | DV6: 3132.83208 | DW6: 313.283208 | DX6: 0 | DY6: 182.4115791 | DZ6: 1824.648705 | EA6: 2965.447801 | EB6: 576.124791 | EC6: 0 | ED6: 313 | EE6: 313 | EF6: 313 | EG6: 0 | EH6: 0 | EI6: 56.3 | EJ6: 6.3 | EK6: 6.3 | EL6: 0 | EM6: 1818.071708 | EN6: 1535.681531 | EO6: 3341.139456 | EP6: 3513.20469 | EQ6: 9.998011267e-07 | ER6: 0 | ES6: 2999.999986 | ET6: 8999.999889 | EU6: 14999.99972 | EV6: 1499.999998 | EW6: 1818.071708 | EX6: 4535.681517 | EY6: 12341.13934 | EZ6: 18513.20441 | FA6: 1499.999999
E7: Average | F7: CV | G7: Lower CI | H7: Upper CI | I7: Average | J7: CV | K7: Lower CI | L7: Upper CI | M7: Average | N7: CV | O7: Lower CI | P7: Upper CI | Q7: Average | R7: CV | S7: Lower CI | T7: Upper CI | U7: Average | V7: CV | W7: Lower CI | X7: Upper CI | AA7: =AA6+1 -> 2 | AB7: 181807.1712 | AC7: 153568.3069 | AD7: 334114.949 | AE7: 351322.2269 | AF7: 9.998016266e-05 | AG7: 645.2809192 | AH7: 381.853303 | AI7: 1517.435293 | AJ7: 1532.321913 | AK7: 9.998011267e-07 | AL7: 0 | AM7: 162.3 | AN7: 389.3 | AO7: 645.3 | AP7: 63 | AQ7: 0 | AR7: 129.84 | AS7: 311.44 | AT7: 516.24 | AU7: 50.4 | AV7: 645.2809192 | AW7: 544.153303 | AX7: 1906.735293 | AY7: 2177.621913 | AZ7: 63.000001 | BA7: 636.3250979 | BB7: 537.4885358 | BC7: 1002.341837 | BD7: 1053.961407 | BE7: 0 | BF7: 0 | BG7: 1049.999995 | BH7: 2699.999967 | BI7: 4499.999917 | BJ7: 449.9999993 | BK7: 319.0715848 | BL7: 269.5121087 | BM7: 140.3278571 | BN7: 147.554597 | BO7: 0 | BP7: 0 | BQ7: 526.4999976 | BR7: 1259.999984 | BS7: 2099.999961 | BT7: 209.9999997 | BU7: 129.4012538 | BV7: 109.302133 | BW7: 65.95409286 | BX7: 69.35066058 | BY7: 0 | BZ7: 0 | CA7: 213.524999 | CB7: 680.3999916 | CC7: 1133.999979 | CD7: 113.3999998 | CE7: 87.99285261 | CF7: 74.32545041 | CG7: 51.18037606 | CH7: 53.81611261 | CI7: 0 | CJ7: 0 | CK7: 145.1969993 | CL7: 523.1519935 | CM7: 871.9199839 | CN7: 87.19199987 | CO7: 1172.790789 | CP7: 990.6282278 | CQ7: 1259.804163 | CR7: 1324.682777 | CS7: 0 | CT7: 0 | CU7: 1935.221991 | CV7: 5163.551936 | CW7: 8605.919841 | CX7: 860.5919987 | CY7: 1172.790789 | CZ7: 2925.850219 | DA7: 6423.356099 | DB7: 9930.602618 | DC7: 860.5919987 | DD7: 0 | DE7: 1000000 | DF7: 3000000 | DG7: 5000000 | DH7: 500000 | DI7: 0 | DJ7: 163.2 | DK7: 563.9 | DL7: 656.2 | DM7: 0 | DN7: 0 | DO7: 463.366416 | DP7: 1315.799248 | DQ7: 2476.63208 | DR7: 313.283208 | DS7: 0 | DT7: 626.566416 | DU7: 1879.699248 | DV7: 3132.83208 | DW7: 313.283208 | DX7: 0 | DY7: 182.4115791 | DZ7: 1824.648705 | EA7: 2965.447801 | EB7: 576.124791 | EC7: 0 | ED7: 313 | EE7: 313 | EF7: 313 | EG7: 0 | EH7: 0 | EI7: 56.3 | EJ7: 6.3 | EK7: 6.3 | EL7: 0 | EM7: 1818.071708 | EN7: 1535.681531 | EO7: 3341.139456 | EP7: 3513.20469 | EQ7: 9.998011267e-07 | ER7: 0 | ES7: 2999.999986 | ET7: 8999.999889 | EU7: 14999.99972 | EV7: 1499.999998 | EW7: 1818.071708 | EX7: 4535.681517 | EY7: 12341.13934 | EZ7: 18513.20441 | FA7: 1499.999999
B8: Natural Production and Escapement | D8: NOR Smolts | E8: ='AHA CIs'!$AB$3 -> 181807.1712 | F8: ='AHA CIs'!$AB$5 -> 1.633817433e-16 | G8: =MAX(E8-2*'AHA CIs'!$AB$4,0) -> 181807.1712 | H8: =E8+2*'AHA CIs'!$AB$4 -> 181807.1712 | I8: ='AHA CIs'!$AC$3 -> 153568.3069 | J8: ='AHA CIs'!$AC$5 -> 3.868502971e-16 | K8: =MAX(I8-2*'AHA CIs'!$AC$4,0) -> 153568.3069 | L8: =I8+2*'AHA CIs'!$AC$4 -> 153568.3069 | M8: ='AHA CIs'!$AD$3 -> 334114.949 | N8: ='AHA CIs'!$AD$5 -> 3.556138109e-16 | O8: =MAX(M8-2*'AHA CIs'!$AD$4,0) -> 334114.949 | P8: =M8+2*'AHA CIs'!$AD$4 -> 334114.949 | Q8: ='AHA CIs'!$AE$3 -> 351322.2269 | R8: ='AHA CIs'!$AE$5 -> 5.072945058e-16 | S8: =MAX(Q8-2*'AHA CIs'!$AE$4,0) -> 351322.2269 | T8: =Q8+2*'AHA CIs'!$AE$4 -> 351322.2269 | U8: ='AHA CIs'!$AF$3 -> 9.998016266e-05 | V8: ='AHA CIs'!$AF$5 -> 2.76694691e-16 | W8: =MAX(U8-2*'AHA CIs'!$AF$4,0) -> 9.998016266e-05 | X8: =U8+2*'AHA CIs'!$AF$4 -> 9.998016266e-05 | AA8: =AA7+1 -> 3 | AB8: 181807.1712 | AC8: 153568.3069 | AD8: 334114.949 | AE8: 351322.2269 | AF8: 9.998016266e-05 | AG8: 645.2809192 | AH8: 381.853303 | AI8: 1517.435293 | AJ8: 1532.321913 | AK8: 9.998011267e-07 | AL8: 0 | AM8: 162.3 | AN8: 389.3 | AO8: 645.3 | AP8: 63 | AQ8: 0 | AR8: 129.84 | AS8: 311.44 | AT8: 516.24 | AU8: 50.4 | AV8: 645.2809192 | AW8: 544.153303 | AX8: 1906.735293 | AY8: 2177.621913 | AZ8: 63.000001 | BA8: 636.3250979 | BB8: 537.4885358 | BC8: 1002.341837 | BD8: 1053.961407 | BE8: 0 | BF8: 0 | BG8: 1049.999995 | BH8: 2699.999967 | BI8: 4499.999917 | BJ8: 449.9999993 | BK8: 319.0715848 | BL8: 269.5121087 | BM8: 140.3278571 | BN8: 147.554597 | BO8: 0 | BP8: 0 | BQ8: 526.4999976 | BR8: 1259.999984 | BS8: 2099.999961 | BT8: 209.9999997 | BU8: 129.4012538 | BV8: 109.302133 | BW8: 65.95409286 | BX8: 69.35066058 | BY8: 0 | BZ8: 0 | CA8: 213.524999 | CB8: 680.3999916 | CC8: 1133.999979 | CD8: 113.3999998 | CE8: 87.99285261 | CF8: 74.32545041 | CG8: 51.18037606 | CH8: 53.81611261 | CI8: 0 | CJ8: 0 | CK8: 145.1969993 | CL8: 523.1519935 | CM8: 871.9199839 | CN8: 87.19199987 | CO8: 1172.790789 | CP8: 990.6282278 | CQ8: 1259.804163 | CR8: 1324.682777 | CS8: 0 | CT8: 0 | CU8: 1935.221991 | CV8: 5163.551936 | CW8: 8605.919841 | CX8: 860.5919987 | CY8: 1172.790789 | CZ8: 2925.850219 | DA8: 6423.356099 | DB8: 9930.602618 | DC8: 860.5919987 | DD8: 0 | DE8: 1000000 | DF8: 3000000 | DG8: 5000000 | DH8: 500000 | DI8: 0 | DJ8: 163.2 | DK8: 563.9 | DL8: 656.2 | DM8: 0 | DN8: 0 | DO8: 463.366416 | DP8: 1315.799248 | DQ8: 2476.63208 | DR8: 313.283208 | DS8: 0 | DT8: 626.566416 | DU8: 1879.699248 | DV8: 3132.83208 | DW8: 313.283208 | DX8: 0 | DY8: 182.4115791 | DZ8: 1824.648705 | EA8: 2965.447801 | EB8: 576.124791 | EC8: 0 | ED8: 313 | EE8: 313 | EF8: 313 | EG8: 0 | EH8: 0 | EI8: 56.3 | EJ8: 6.3 | EK8: 6.3 | EL8: 0 | EM8: 1818.071708 | EN8: 1535.681531 | EO8: 3341.139456 | EP8: 3513.20469 | EQ8: 9.998011267e-07 | ER8: 0 | ES8: 2999.999986 | ET8: 8999.999889 | EU8: 14999.99972 | EV8: 1499.999998 | EW8: 1818.071708 | EX8: 4535.681517 | EY8: 12341.13934 | EZ8: 18513.20441 | FA8: 1499.999999
D9: NOR Escapement | E9: ='AHA CIs'!$AG$3 -> 645.2809192 | F9: ='AHA CIs'!$AG$5 -> 1.798149293e-16 | G9: =MAX(E9-2*'AHA CIs'!$AG$4,0) -> 645.2809192 | H9: =E9+2*'AHA CIs'!$AG$4 -> 645.2809192 | I9: ='AHA CIs'!$AH$3 -> 381.853303 | J9: ='AHA CIs'!$AH$5 -> 0 | K9: =MAX(I9-2*'AHA CIs'!$AH$4,0) -> 381.853303 | L9: =I9+2*'AHA CIs'!$AH$4 -> 381.853303 | M9: ='AHA CIs'!$AI$3 -> 1517.435293 | N9: ='AHA CIs'!$AI$5 -> 4.58791792e-16 | O9: =MAX(M9-2*'AHA CIs'!$AI$4,0) -> 1517.435293 | P9: =M9+2*'AHA CIs'!$AI$4 -> 1517.435293 | Q9: ='AHA CIs'!$AJ$3 -> 1532.321913 | R9: ='AHA CIs'!$AJ$5 -> 4.54334596e-16 | S9: =MAX(Q9-2*'AHA CIs'!$AJ$4,0) -> 1532.321913 | T9: =Q9+2*'AHA CIs'!$AJ$4 -> 1532.321913 | U9: ='AHA CIs'!$AK$3 -> 9.998011267e-07 | V9: ='AHA CIs'!$AK$5 -> 0 | W9: =MAX(U9-2*'AHA CIs'!$AK$4,0) -> 9.998011267e-07 | X9: =U9+2*'AHA CIs'!$AK$4 -> 9.998011267e-07 | AA9: 4 | AB9: 181807.1712 | AC9: 153568.3069 | AD9: 334114.949 | AE9: 351322.2269 | AF9: 9.998016266e-05 | AG9: 645.2809192 | AH9: 381.853303 | AI9: 1517.435293 | AJ9: 1532.321913 | AK9: 9.998011267e-07 | AL9: 0 | AM9: 162.3 | AN9: 389.3 | AO9: 645.3 | AP9: 63 | AQ9: 0 | AR9: 129.84 | AS9: 311.44 | AT9: 516.24 | AU9: 50.4 | AV9: 645.2809192 | AW9: 544.153303 | AX9: 1906.735293 | AY9: 2177.621913 | AZ9: 63.000001 | BA9: 636.3250979 | BB9: 537.4885358 | BC9: 1002.341837 | BD9: 1053.961407 | BE9: 0 | BF9: 0 | BG9: 1049.999995 | BH9: 2699.999967 | BI9: 4499.999917 | BJ9: 449.9999993 | BK9: 319.0715848 | BL9: 269.5121087 | BM9: 140.3278571 | BN9: 147.554597 | BO9: 0 | BP9: 0 | BQ9: 526.4999976 | BR9: 1259.999984 | BS9: 2099.999961 | BT9: 209.9999997 | BU9: 129.4012538 | BV9: 109.302133 | BW9: 65.95409286 | BX9: 69.35066058 | BY9: 0 | BZ9: 0 | CA9: 213.524999 | CB9: 680.3999916 | CC9: 1133.999979 | CD9: 113.3999998 | CE9: 87.99285261 | CF9: 74.32545041 | CG9: 51.18037606 | CH9: 53.81611261 | CI9: 0 | CJ9: 0 | CK9: 145.1969993 | CL9: 523.1519935 | CM9: 871.9199839 | CN9: 87.19199987 | CO9: 1172.790789 | CP9: 990.6282278 | CQ9: 1259.804163 | CR9: 1324.682777 | CS9: 0 | CT9: 0 | CU9: 1935.221991 | CV9: 5163.551936 | CW9: 8605.919841 | CX9: 860.5919987 | CY9: 1172.790789 | CZ9: 2925.850219 | DA9: 6423.356099 | DB9: 9930.602618 | DC9: 860.5919987 | DD9: 0 | DE9: 1000000 | DF9: 3000000 | DG9: 5000000 | DH9: 500000 | DI9: 0 | DJ9: 163.2 | DK9: 563.9 | DL9: 656.2 | DM9: 0 | DN9: 0 | DO9: 463.366416 | DP9: 1315.799248 | DQ9: 2476.63208 | DR9: 313.283208 | DS9: 0 | DT9: 626.566416 | DU9: 1879.699248 | DV9: 3132.83208 | DW9: 313.283208 | DX9: 0 | DY9: 182.4115791 | DZ9: 1824.648705 | EA9: 2965.447801 | EB9: 576.124791 | EC9: 0 | ED9: 313 | EE9: 313 | EF9: 313 | EG9: 0 | EH9: 0 | EI9: 56.3 | EJ9: 6.3 | EK9: 6.3 | EL9: 0 | EM9: 1818.071708 | EN9: 1535.681531 | EO9: 3341.139456 | EP9: 3513.20469 | EQ9: 9.998011267e-07 | ER9: 0 | ES9: 2999.999986 | ET9: 8999.999889 | EU9: 14999.99972 | EV9: 1499.999998 | EW9: 1818.071708 | EX9: 4535.681517 | EY9: 12341.13934 | EZ9: 18513.20441 | FA9: 1499.999999
D10: HOR Total Escapement (including strays) | E10: ='AHA CIs'!$AL$3 -> 0 | F10: ='AHA CIs'!$AL$5 -> - | G10: =MAX(E10-2*'AHA CIs'!$AL$4,0) -> 0 | H10: =E10+2*'AHA CIs'!$AL$4 -> 0 | I10: ='AHA CIs'!$AM$3 -> 162.3 | J10: ='AHA CIs'!$AM$5 -> 3.574588505e-16 | K10: =MAX(I10-2*'AHA CIs'!$AM$4,0) -> 162.3 | L10: =I10+2*'AHA CIs'!$AM$4 -> 162.3 | M10: ='AHA CIs'!$AN$3 -> 389.3 | N10: ='AHA CIs'!$AN$5 -> 4.470760707e-16 | O10: =MAX(M10-2*'AHA CIs'!$AN$4,0) -> 389.3 | P10: =M10+2*'AHA CIs'!$AN$4 -> 389.3 | Q10: ='AHA CIs'!$AO$3 -> 645.3 | R10: ='AHA CIs'!$AO$5 -> 3.596192248e-16 | S10: =MAX(Q10-2*'AHA CIs'!$AO$4,0) -> 645.3 | T10: =Q10+2*'AHA CIs'!$AO$4 -> 645.3 | U10: ='AHA CIs'!$AP$3 -> 63 | V10: ='AHA CIs'!$AP$5 -> 0 | W10: =MAX(U10-2*'AHA CIs'!$AP$4,0) -> 63 | X10: =U10+2*'AHA CIs'!$AP$4 -> 63 | AA10: 5 | AB10: 181807.1712 | AC10: 153568.3069 | AD10: 334114.949 | AE10: 351322.2269 | AF10: 9.998016266e-05 | AG10: 645.2809192 | AH10: 381.853303 | AI10: 1517.435293 | AJ10: 1532.321913 | AK10: 9.998011267e-07 | AL10: 0 | AM10: 162.3 | AN10: 389.3 | AO10: 645.3 | AP10: 63 | AQ10: 0 | AR10: 129.84 | AS10: 311.44 | AT10: 516.24 | AU10: 50.4 | AV10: 645.2809192 | AW10: 544.153303 | AX10: 1906.735293 | AY10: 2177.621913 | AZ10: 63.000001 | BA10: 636.3250979 | BB10: 537.4885358 | BC10: 1002.341837 | BD10: 1053.961407 | BE10: 0 | BF10: 0 | BG10: 1049.999995 | BH10: 2699.999967 | BI10: 4499.999917 | BJ10: 449.9999993 | BK10: 319.0715848 | BL10: 269.5121087 | BM10: 140.3278571 | BN10: 147.554597 | BO10: 0 | BP10: 0 | BQ10: 526.4999976 | BR10: 1259.999984 | BS10: 2099.999961 | BT10: 209.9999997 | BU10: 129.4012538 | BV10: 109.302133 | BW10: 65.95409286 | BX10: 69.35066058 | BY10: 0 | BZ10: 0 | CA10: 213.524999 | CB10: 680.3999916 | CC10: 1133.999979 | CD10: 113.3999998 | CE10: 87.99285261 | CF10: 74.32545041 | CG10: 51.18037606 | CH10: 53.81611261 | CI10: 0 | CJ10: 0 | CK10: 145.1969993 | CL10: 523.1519935 | CM10: 871.9199839 | CN10: 87.19199987 | CO10: 1172.790789 | CP10: 990.6282278 | CQ10: 1259.804163 | CR10: 1324.682777 | CS10: 0 | CT10: 0 | CU10: 1935.221991 | CV10: 5163.551936 | CW10: 8605.919841 | CX10: 860.5919987 | CY10: 1172.790789 | CZ10: 2925.850219 | DA10: 6423.356099 | DB10: 9930.602618 | DC10: 860.5919987 | DD10: 0 | DE10: 1000000 | DF10: 3000000 | DG10: 5000000 | DH10: 500000 | DI10: 0 | DJ10: 163.2 | DK10: 563.9 | DL10: 656.2 | DM10: 0 | DN10: 0 | DO10: 463.366416 | DP10: 1315.799248 | DQ10: 2476.63208 | DR10: 313.283208 | DS10: 0 | DT10: 626.566416 | DU10: 1879.699248 | DV10: 3132.83208 | DW10: 313.283208 | DX10: 0 | DY10: 182.4115791 | DZ10: 1824.648705 | EA10: 2965.447801 | EB10: 576.124791 | EC10: 0 | ED10: 313 | EE10: 313 | EF10: 313 | EG10: 0 | EH10: 0 | EI10: 56.3 | EJ10: 6.3 | EK10: 6.3 | EL10: 0 | EM10: 1818.071708 | EN10: 1535.681531 | EO10: 3341.139456 | EP10: 3513.20469 | EQ10: 9.998011267e-07 | ER10: 0 | ES10: 2999.999986 | ET10: 8999.999889 | EU10: 14999.99972 | EV10: 1499.999998 | EW10: 1818.071708 | EX10: 4535.681517 | EY10: 12341.13934 | EZ10: 18513.20441 | FA10: 1499.999999
D11: HOR Effective Escapement | E11: ='AHA CIs'!$AQ$3 -> 0 | F11: ='AHA CIs'!$AQ$5 -> - | G11: =MAX(E11-2*'AHA CIs'!$AQ$4,0) -> 0 | H11: =E11+2*'AHA CIs'!$AQ$4 -> 0 | I11: ='AHA CIs'!$AR$3 -> 129.84 | J11: ='AHA CIs'!$AR$5 -> 2.234117816e-16 | K11: =MAX(I11-2*'AHA CIs'!$AR$4,0) -> 129.84 | L11: =I11+2*'AHA CIs'!$AR$4 -> 129.84 | M11: ='AHA CIs'!$AS$3 -> 311.44 | N11: ='AHA CIs'!$AS$5 -> 3.725633922e-16 | O11: =MAX(M11-2*'AHA CIs'!$AS$4,0) -> 311.44 | P11: =M11+2*'AHA CIs'!$AS$4 -> 311.44 | Q11: ='AHA CIs'!$AT$3 -> 516.24 | R11: ='AHA CIs'!$AT$5 -> 4.49524031e-16 | S11: =MAX(Q11-2*'AHA CIs'!$AT$4,0) -> 516.24 | T11: =Q11+2*'AHA CIs'!$AT$4 -> 516.24 | U11: ='AHA CIs'!$AU$3 -> 50.4 | V11: ='AHA CIs'!$AU$5 -> 4.316634779e-16 | W11: =MAX(U11-2*'AHA CIs'!$AU$4,0) -> 50.4 | X11: =U11+2*'AHA CIs'!$AU$4 -> 50.4 | AA11: 6 | AB11: 181807.1712 | AC11: 153568.3069 | AD11: 334114.949 | AE11: 351322.2269 | AF11: 9.998016266e-05 | AG11: 645.2809192 | AH11: 381.853303 | AI11: 1517.435293 | AJ11: 1532.321913 | AK11: 9.998011267e-07 | AL11: 0 | AM11: 162.3 | AN11: 389.3 | AO11: 645.3 | AP11: 63 | AQ11: 0 | AR11: 129.84 | AS11: 311.44 | AT11: 516.24 | AU11: 50.4 | AV11: 645.2809192 | AW11: 544.153303 | AX11: 1906.735293 | AY11: 2177.621913 | AZ11: 63.000001 | BA11: 636.3250979 | BB11: 537.4885358 | BC11: 1002.341837 | BD11: 1053.961407 | BE11: 0 | BF11: 0 | BG11: 1049.999995 | BH11: 2699.999967 | BI11: 4499.999917 | BJ11: 449.9999993 | BK11: 319.0715848 | BL11: 269.5121087 | BM11: 140.3278571 | BN11: 147.554597 | BO11: 0 | BP11: 0 | BQ11: 526.4999976 | BR11: 1259.999984 | BS11: 2099.999961 | BT11: 209.9999997 | BU11: 129.4012538 | BV11: 109.302133 | BW11: 65.95409286 | BX11: 69.35066058 | BY11: 0 | BZ11: 0 | CA11: 213.524999 | CB11: 680.3999916 | CC11: 1133.999979 | CD11: 113.3999998 | CE11: 87.99285261 | CF11: 74.32545041 | CG11: 51.18037606 | CH11: 53.81611261 | CI11: 0 | CJ11: 0 | CK11: 145.1969993 | CL11: 523.1519935 | CM11: 871.9199839 | CN11: 87.19199987 | CO11: 1172.790789 | CP11: 990.6282278 | CQ11: 1259.804163 | CR11: 1324.682777 | CS11: 0 | CT11: 0 | CU11: 1935.221991 | CV11: 5163.551936 | CW11: 8605.919841 | CX11: 860.5919987 | CY11: 1172.790789 | CZ11: 2925.850219 | DA11: 6423.356099 | DB11: 9930.602618 | DC11: 860.5919987 | DD11: 0 | DE11: 1000000 | DF11: 3000000 | DG11: 5000000 | DH11: 500000 | DI11: 0 | DJ11: 163.2 | DK11: 563.9 | DL11: 656.2 | DM11: 0 | DN11: 0 | DO11: 463.366416 | DP11: 1315.799248 | DQ11: 2476.63208 | DR11: 313.283208 | DS11: 0 | DT11: 626.566416 | DU11: 1879.699248 | DV11: 3132.83208 | DW11: 313.283208 | DX11: 0 | DY11: 182.4115791 | DZ11: 1824.648705 | EA11: 2965.447801 | EB11: 576.124791 | EC11: 0 | ED11: 313 | EE11: 313 | EF11: 313 | EG11: 0 | EH11: 0 | EI11: 56.3 | EJ11: 6.3 | EK11: 6.3 | EL11: 0 | EM11: 1818.071708 | EN11: 1535.681531 | EO11: 3341.139456 | EP11: 3513.20469 | EQ11: 9.998011267e-07 | ER11: 0 | ES11: 2999.999986 | ET11: 8999.999889 | EU11: 14999.99972 | EV11: 1499.999998 | EW11: 1818.071708 | EX11: 4535.681517 | EY11: 12341.13934 | EZ11: 18513.20441 | FA11: 1499.999999
D12: Total Natural Escapement (NOR & HOR) | E12: ='AHA CIs'!$AV$3 -> 645.2809192 | F12: ='AHA CIs'!$AV$5 -> 1.798149293e-16 | G12: =MAX(E12-2*'AHA CIs'!$AV$4,0) -> 645.2809192 | H12: =E12+2*'AHA CIs'!$AV$4 -> 645.2809192 | I12: ='AHA CIs'!$AW$3 -> 544.153303 | J12: ='AHA CIs'!$AW$5 -> 6.396973549e-16 | K12: =MAX(I12-2*'AHA CIs'!$AW$4,0) -> 544.153303 | L12: =I12+2*'AHA CIs'!$AW$4 -> 544.153303 | M12: ='AHA CIs'!$AX$3 -> 1906.735293 | N12: ='AHA CIs'!$AX$5 -> 1.217066085e-16 | O12: =MAX(M12-2*'AHA CIs'!$AX$4,0) -> 1906.735293 | P12: =M12+2*'AHA CIs'!$AX$4 -> 1906.735293 | Q12: ='AHA CIs'!$AY$3 -> 2177.621913 | R12: ='AHA CIs'!$AY$5 -> 6.394010393e-16 | S12: =MAX(Q12-2*'AHA CIs'!$AY$4,0) -> 2177.621913 | T12: =Q12+2*'AHA CIs'!$AY$4 -> 2177.621913 | U12: ='AHA CIs'!$AZ$3 -> 63.000001 | V12: ='AHA CIs'!$AZ$5 -> 1.15110259e-16 | W12: =MAX(U12-2*'AHA CIs'!$AZ$4,0) -> 63.000001 | X12: =U12+2*'AHA CIs'!$AZ$4 -> 63.000001 | AA12: 7 | AB12: 181807.1712 | AC12: 153568.3069 | AD12: 334114.949 | AE12: 351322.2269 | AF12: 9.998016266e-05 | AG12: 645.2809192 | AH12: 381.853303 | AI12: 1517.435293 | AJ12: 1532.321913 | AK12: 9.998011267e-07 | AL12: 0 | AM12: 162.3 | AN12: 389.3 | AO12: 645.3 | AP12: 63 | AQ12: 0 | AR12: 129.84 | AS12: 311.44 | AT12: 516.24 | AU12: 50.4 | AV12: 645.2809192 | AW12: 544.153303 | AX12: 1906.735293 | AY12: 2177.621913 | AZ12: 63.000001 | BA12: 636.3250979 | BB12: 537.4885358 | BC12: 1002.341837 | BD12: 1053.961407 | BE12: 0 | BF12: 0 | BG12: 1049.999995 | BH12: 2699.999967 | BI12: 4499.999917 | BJ12: 449.9999993 | BK12: 319.0715848 | BL12: 269.5121087 | BM12: 140.3278571 | BN12: 147.554597 | BO12: 0 | BP12: 0 | BQ12: 526.4999976 | BR12: 1259.999984 | BS12: 2099.999961 | BT12: 209.9999997 | BU12: 129.4012538 | BV12: 109.302133 | BW12: 65.95409286 | BX12: 69.35066058 | BY12: 0 | BZ12: 0 | CA12: 213.524999 | CB12: 680.3999916 | CC12: 1133.999979 | CD12: 113.3999998 | CE12: 87.99285261 | CF12: 74.32545041 | CG12: 51.18037606 | CH12: 53.81611261 | CI12: 0 | CJ12: 0 | CK12: 145.1969993 | CL12: 523.1519935 | CM12: 871.9199839 | CN12: 87.19199987 | CO12: 1172.790789 | CP12: 990.6282278 | CQ12: 1259.804163 | CR12: 1324.682777 | CS12: 0 | CT12: 0 | CU12: 1935.221991 | CV12: 5163.551936 | CW12: 8605.919841 | CX12: 860.5919987 | CY12: 1172.790789 | CZ12: 2925.850219 | DA12: 6423.356099 | DB12: 9930.602618 | DC12: 860.5919987 | DD12: 0 | DE12: 1000000 | DF12: 3000000 | DG12: 5000000 | DH12: 500000 | DI12: 0 | DJ12: 163.2 | DK12: 563.9 | DL12: 656.2 | DM12: 0 | DN12: 0 | DO12: 463.366416 | DP12: 1315.799248 | DQ12: 2476.63208 | DR12: 313.283208 | DS12: 0 | DT12: 626.566416 | DU12: 1879.699248 | DV12: 3132.83208 | DW12: 313.283208 | DX12: 0 | DY12: 182.4115791 | DZ12: 1824.648705 | EA12: 2965.447801 | EB12: 576.124791 | EC12: 0 | ED12: 313 | EE12: 313 | EF12: 313 | EG12: 0 | EH12: 0 | EI12: 56.3 | EJ12: 6.3 | EK12: 6.3 | EL12: 0 | EM12: 1818.071708 | EN12: 1535.681531 | EO12: 3341.139456 | EP12: 3513.20469 | EQ12: 9.998011267e-07 | ER12: 0 | ES12: 2999.999986 | ET12: 8999.999889 | EU12: 14999.99972 | EV12: 1499.999998 | EW12: 1818.071708 | EX12: 4535.681517 | EY12: 12341.13934 | EZ12: 18513.20441 | FA12: 1499.999999
B13: Harvest | D13: =Scenario_1!M19 -> Ocean NORs | E13: ='AHA CIs'!$BA$3 -> 636.3250979 | F13: ='AHA CIs'!$BA$5 -> 5.47037088e-16 | G13: =MAX(E13-2*'AHA CIs'!$BA$4,0) -> 636.3250979 | H13: =E13+2*'AHA CIs'!$BA$4 -> 636.3250979 | I13: ='AHA CIs'!$BB$3 -> 537.4885358 | J13: ='AHA CIs'!$BB$5 -> 4.317529962e-16 | K13: =MAX(I13-2*'AHA CIs'!$BB$4,0) -> 537.4885358 | L13: =I13+2*'AHA CIs'!$BB$4 -> 537.4885358 | M13: ='AHA CIs'!$BC$3 -> 1002.341837 | N13: ='AHA CIs'!$BC$5 -> 2.315201035e-16 | O13: =MAX(M13-2*'AHA CIs'!$BC$4,0) -> 1002.341837 | P13: =M13+2*'AHA CIs'!$BC$4 -> 1002.341837 | Q13: ='AHA CIs'!$BD$3 -> 1053.961407 | R13: ='AHA CIs'!$BD$5 -> 4.403620174e-16 | S13: =MAX(Q13-2*'AHA CIs'!$BD$4,0) -> 1053.961407 | T13: =Q13+2*'AHA CIs'!$BD$4 -> 1053.961407 | U13: ='AHA CIs'!$BE$3 -> 0 | V13: ='AHA CIs'!$BE$5 -> - | W13: =MAX(U13-2*'AHA CIs'!$BE$4,0) -> 0 | X13: =U13+2*'AHA CIs'!$BE$4 -> 0 | AA13: 8 | AB13: 181807.1712 | AC13: 153568.3069 | AD13: 334114.949 | AE13: 351322.2269 | AF13: 9.998016266e-05 | AG13: 645.2809192 | AH13: 381.853303 | AI13: 1517.435293 | AJ13: 1532.321913 | AK13: 9.998011267e-07 | AL13: 0 | AM13: 162.3 | AN13: 389.3 | AO13: 645.3 | AP13: 63 | AQ13: 0 | AR13: 129.84 | AS13: 311.44 | AT13: 516.24 | AU13: 50.4 | AV13: 645.2809192 | AW13: 544.153303 | AX13: 1906.735293 | AY13: 2177.621913 | AZ13: 63.000001 | BA13: 636.3250979 | BB13: 537.4885358 | BC13: 1002.341837 | BD13: 1053.961407 | BE13: 0 | BF13: 0 | BG13: 1049.999995 | BH13: 2699.999967 | BI13: 4499.999917 | BJ13: 449.9999993 | BK13: 319.0715848 | BL13: 269.5121087 | BM13: 140.3278571 | BN13: 147.554597 | BO13: 0 | BP13: 0 | BQ13: 526.4999976 | BR13: 1259.999984 | BS13: 2099.999961 | BT13: 209.9999997 | BU13: 129.4012538 | BV13: 109.302133 | BW13: 65.95409286 | BX13: 69.35066058 | BY13: 0 | BZ13: 0 | CA13: 213.524999 | CB13: 680.3999916 | CC13: 1133.999979 | CD13: 113.3999998 | CE13: 87.99285261 | CF13: 74.32545041 | CG13: 51.18037606 | CH13: 53.81611261 | CI13: 0 | CJ13: 0 | CK13: 145.1969993 | CL13: 523.1519935 | CM13: 871.9199839 | CN13: 87.19199987 | CO13: 1172.790789 | CP13: 990.6282278 | CQ13: 1259.804163 | CR13: 1324.682777 | CS13: 0 | CT13: 0 | CU13: 1935.221991 | CV13: 5163.551936 | CW13: 8605.919841 | CX13: 860.5919987 | CY13: 1172.790789 | CZ13: 2925.850219 | DA13: 6423.356099 | DB13: 9930.602618 | DC13: 860.5919987 | DD13: 0 | DE13: 1000000 | DF13: 3000000 | DG13: 5000000 | DH13: 500000 | DI13: 0 | DJ13: 163.2 | DK13: 563.9 | DL13: 656.2 | DM13: 0 | DN13: 0 | DO13: 463.366416 | DP13: 1315.799248 | DQ13: 2476.63208 | DR13: 313.283208 | DS13: 0 | DT13: 626.566416 | DU13: 1879.699248 | DV13: 3132.83208 | DW13: 313.283208 | DX13: 0 | DY13: 182.4115791 | DZ13: 1824.648705 | EA13: 2965.447801 | EB13: 576.124791 | EC13: 0 | ED13: 313 | EE13: 313 | EF13: 313 | EG13: 0 | EH13: 0 | EI13: 56.3 | EJ13: 6.3 | EK13: 6.3 | EL13: 0 | EM13: 1818.071708 | EN13: 1535.681531 | EO13: 3341.139456 | EP13: 3513.20469 | EQ13: 9.998011267e-07 | ER13: 0 | ES13: 2999.999986 | ET13: 8999.999889 | EU13: 14999.99972 | EV13: 1499.999998 | EW13: 1818.071708 | EX13: 4535.681517 | EY13: 12341.13934 | EZ13: 18513.20441 | FA13: 1499.999999
D14: =Scenario_1!M20 -> Ocean HORs | E14: ='AHA CIs'!$BF$3 -> 0 | F14: ='AHA CIs'!$BF$5 -> - | G14: =MAX(E14-2*'AHA CIs'!$BF$4,0) -> 0 | H14: =E14+2*'AHA CIs'!$BF$4 -> 0 | I14: ='AHA CIs'!$BG$3 -> 1049.999995 | J14: ='AHA CIs'!$BG$5 -> 6.630351051e-16 | K14: =MAX(I14-2*'AHA CIs'!$BG$4,0) -> 1049.999995 | L14: =I14+2*'AHA CIs'!$BG$4 -> 1049.999995 | M14: ='AHA CIs'!$BH$3 -> 2699.999967 | N14: ='AHA CIs'!$BH$5 -> 0 | O14: =MAX(M14-2*'AHA CIs'!$BH$4,0) -> 2699.999967 | P14: =M14+2*'AHA CIs'!$BH$4 -> 2699.999967 | Q14: ='AHA CIs'!$BI$3 -> 4499.999917 | R14: ='AHA CIs'!$BI$5 -> 2.062775911e-16 | S14: =MAX(Q14-2*'AHA CIs'!$BI$4,0) -> 4499.999917 | T14: =Q14+2*'AHA CIs'!$BI$4 -> 4499.999917 | U14: ='AHA CIs'!$BJ$3 -> 449.9999993 | V14: ='AHA CIs'!$BJ$5 -> 1.289234923e-16 | W14: =MAX(U14-2*'AHA CIs'!$BJ$4,0) -> 449.9999993 | X14: =U14+2*'AHA CIs'!$BJ$4 -> 449.9999993 | AA14: 9 | AB14: 181807.1712 | AC14: 153568.3069 | AD14: 334114.949 | AE14: 351322.2269 | AF14: 9.998016266e-05 | AG14: 645.2809192 | AH14: 381.853303 | AI14: 1517.435293 | AJ14: 1532.321913 | AK14: 9.998011267e-07 | AL14: 0 | AM14: 162.3 | AN14: 389.3 | AO14: 645.3 | AP14: 63 | AQ14: 0 | AR14: 129.84 | AS14: 311.44 | AT14: 516.24 | AU14: 50.4 | AV14: 645.2809192 | AW14: 544.153303 | AX14: 1906.735293 | AY14: 2177.621913 | AZ14: 63.000001 | BA14: 636.3250979 | BB14: 537.4885358 | BC14: 1002.341837 | BD14: 1053.961407 | BE14: 0 | BF14: 0 | BG14: 1049.999995 | BH14: 2699.999967 | BI14: 4499.999917 | BJ14: 449.9999993 | BK14: 319.0715848 | BL14: 269.5121087 | BM14: 140.3278571 | BN14: 147.554597 | BO14: 0 | BP14: 0 | BQ14: 526.4999976 | BR14: 1259.999984 | BS14: 2099.999961 | BT14: 209.9999997 | BU14: 129.4012538 | BV14: 109.302133 | BW14: 65.95409286 | BX14: 69.35066058 | BY14: 0 | BZ14: 0 | CA14: 213.524999 | CB14: 680.3999916 | CC14: 1133.999979 | CD14: 113.3999998 | CE14: 87.99285261 | CF14: 74.32545041 | CG14: 51.18037606 | CH14: 53.81611261 | CI14: 0 | CJ14: 0 | CK14: 145.1969993 | CL14: 523.1519935 | CM14: 871.9199839 | CN14: 87.19199987 | CO14: 1172.790789 | CP14: 990.6282278 | CQ14: 1259.804163 | CR14: 1324.682777 | CS14: 0 | CT14: 0 | CU14: 1935.221991 | CV14: 5163.551936 | CW14: 8605.919841 | CX14: 860.5919987 | CY14: 1172.790789 | CZ14: 2925.850219 | DA14: 6423.356099 | DB14: 9930.602618 | DC14: 860.5919987 | DD14: 0 | DE14: 1000000 | DF14: 3000000 | DG14: 5000000 | DH14: 500000 | DI14: 0 | DJ14: 163.2 | DK14: 563.9 | DL14: 656.2 | DM14: 0 | DN14: 0 | DO14: 463.366416 | DP14: 1315.799248 | DQ14: 2476.63208 | DR14: 313.283208 | DS14: 0 | DT14: 626.566416 | DU14: 1879.699248 | DV14: 3132.83208 | DW14: 313.283208 | DX14: 0 | DY14: 182.4115791 | DZ14: 1824.648705 | EA14: 2965.447801 | EB14: 576.124791 | EC14: 0 | ED14: 313 | EE14: 313 | EF14: 313 | EG14: 0 | EH14: 0 | EI14: 56.3 | EJ14: 6.3 | EK14: 6.3 | EL14: 0 | EM14: 1818.071708 | EN14: 1535.681531 | EO14: 3341.139456 | EP14: 3513.20469 | EQ14: 9.998011267e-07 | ER14: 0 | ES14: 2999.999986 | ET14: 8999.999889 | EU14: 14999.99972 | EV14: 1499.999998 | EW14: 1818.071708 | EX14: 4535.681517 | EY14: 12341.13934 | EZ14: 18513.20441 | FA14: 1499.999999
D15: =Scenario_1!M21 -> Willapa Bay Comm. NORs | E15: ='AHA CIs'!$BK$3 -> 319.0715848 | F15: ='AHA CIs'!$BK$5 -> 5.454785778e-16 | G15: =MAX(E15-2*'AHA CIs'!$BK$4,0) -> 319.0715848 | H15: =E15+2*'AHA CIs'!$BK$4 -> 319.0715848 | I15: ='AHA CIs'!$BL$3 -> 269.5121087 | J15: ='AHA CIs'!$BL$5 -> 2.152614653e-16 | K15: =MAX(I15-2*'AHA CIs'!$BL$4,0) -> 269.5121087 | L15: =I15+2*'AHA CIs'!$BL$4 -> 269.5121087 | M15: ='AHA CIs'!$BM$3 -> 140.3278571 | N15: ='AHA CIs'!$BM$5 -> 4.134287562e-16 | O15: =MAX(M15-2*'AHA CIs'!$BM$4,0) -> 140.3278571 | P15: =M15+2*'AHA CIs'!$BM$4 -> 140.3278571 | Q15: ='AHA CIs'!$BN$3 -> 147.554597 | R15: ='AHA CIs'!$BN$5 -> 1.965901863e-16 | S15: =MAX(Q15-2*'AHA CIs'!$BN$4,0) -> 147.554597 | T15: =Q15+2*'AHA CIs'!$BN$4 -> 147.554597 | U15: ='AHA CIs'!$BO$3 -> 0 | V15: ='AHA CIs'!$BO$5 -> - | W15: =MAX(U15-2*'AHA CIs'!$BO$4,0) -> 0 | X15: =U15+2*'AHA CIs'!$BO$4 -> 0 | AA15: 10 | AB15: 181807.1712 | AC15: 153568.3069 | AD15: 334114.949 | AE15: 351322.2269 | AF15: 9.998016266e-05 | AG15: 645.2809192 | AH15: 381.853303 | AI15: 1517.435293 | AJ15: 1532.321913 | AK15: 9.998011267e-07 | AL15: 0 | AM15: 162.3 | AN15: 389.3 | AO15: 645.3 | AP15: 63 | AQ15: 0 | AR15: 129.84 | AS15: 311.44 | AT15: 516.24 | AU15: 50.4 | AV15: 645.2809192 | AW15: 544.153303 | AX15: 1906.735293 | AY15: 2177.621913 | AZ15: 63.000001 | BA15: 636.3250979 | BB15: 537.4885358 | BC15: 1002.341837 | BD15: 1053.961407 | BE15: 0 | BF15: 0 | BG15: 1049.999995 | BH15: 2699.999967 | BI15: 4499.999917 | BJ15: 449.9999993 | BK15: 319.0715848 | BL15: 269.5121087 | BM15: 140.3278571 | BN15: 147.554597 | BO15: 0 | BP15: 0 | BQ15: 526.4999976 | BR15: 1259.999984 | BS15: 2099.999961 | BT15: 209.9999997 | BU15: 129.4012538 | BV15: 109.302133 | BW15: 65.95409286 | BX15: 69.35066058 | BY15: 0 | BZ15: 0 | CA15: 213.524999 | CB15: 680.3999916 | CC15: 1133.999979 | CD15: 113.3999998 | CE15: 87.99285261 | CF15: 74.32545041 | CG15: 51.18037606 | CH15: 53.81611261 | CI15: 0 | CJ15: 0 | CK15: 145.1969993 | CL15: 523.1519935 | CM15: 871.9199839 | CN15: 87.19199987 | CO15: 1172.790789 | CP15: 990.6282278 | CQ15: 1259.804163 | CR15: 1324.682777 | CS15: 0 | CT15: 0 | CU15: 1935.221991 | CV15: 5163.551936 | CW15: 8605.919841 | CX15: 860.5919987 | CY15: 1172.790789 | CZ15: 2925.850219 | DA15: 6423.356099 | DB15: 9930.602618 | DC15: 860.5919987 | DD15: 0 | DE15: 1000000 | DF15: 3000000 | DG15: 5000000 | DH15: 500000 | DI15: 0 | DJ15: 163.2 | DK15: 563.9 | DL15: 656.2 | DM15: 0 | DN15: 0 | DO15: 463.366416 | DP15: 1315.799248 | DQ15: 2476.63208 | DR15: 313.283208 | DS15: 0 | DT15: 626.566416 | DU15: 1879.699248 | DV15: 3132.83208 | DW15: 313.283208 | DX15: 0 | DY15: 182.4115791 | DZ15: 1824.648705 | EA15: 2965.447801 | EB15: 576.124791 | EC15: 0 | ED15: 313 | EE15: 313 | EF15: 313 | EG15: 0 | EH15: 0 | EI15: 56.3 | EJ15: 6.3 | EK15: 6.3 | EL15: 0 | EM15: 1818.071708 | EN15: 1535.681531 | EO15: 3341.139456 | EP15: 3513.20469 | EQ15: 9.998011267e-07 | ER15: 0 | ES15: 2999.999986 | ET15: 8999.999889 | EU15: 14999.99972 | EV15: 1499.999998 | EW15: 1818.071708 | EX15: 4535.681517 | EY15: 12341.13934 | EZ15: 18513.20441 | FA15: 1499.999999
D16: =Scenario_1!M22 -> Willapa Bay Comm. HORs | E16: ='AHA CIs'!$BP$3 -> 0 | F16: ='AHA CIs'!$BP$5 -> - | G16: =MAX(E16-2*'AHA CIs'!$BP$4,0) -> 0 | H16: =E16+2*'AHA CIs'!$BP$4 -> 0 | I16: ='AHA CIs'!$BQ$3 -> 526.4999976 | J16: ='AHA CIs'!$BQ$5 -> 4.407640775e-16 | K16: =MAX(I16-2*'AHA CIs'!$BQ$4,0) -> 526.4999976 | L16: =I16+2*'AHA CIs'!$BQ$4 -> 526.4999976 | M16: ='AHA CIs'!$BR$3 -> 1259.999984 | N16: ='AHA CIs'!$BR$5 -> 3.683528391e-16 | O16: =MAX(M16-2*'AHA CIs'!$BR$4,0) -> 1259.999984 | P16: =M16+2*'AHA CIs'!$BR$4 -> 1259.999984 | Q16: ='AHA CIs'!$BS$3 -> 2099.999961 | R16: ='AHA CIs'!$BS$5 -> 2.210117048e-16 | S16: =MAX(Q16-2*'AHA CIs'!$BS$4,0) -> 2099.999961 | T16: =Q16+2*'AHA CIs'!$BS$4 -> 2099.999961 | U16: ='AHA CIs'!$BT$3 -> 209.9999997 | V16: ='AHA CIs'!$BT$5 -> 1.381323131e-16 | W16: =MAX(U16-2*'AHA CIs'!$BT$4,0) -> 209.9999997 | X16: =U16+2*'AHA CIs'!$BT$4 -> 209.9999997 | AA16: 11 | AB16: 181807.1712 | AC16: 153568.3069 | AD16: 334114.949 | AE16: 351322.2269 | AF16: 9.998016266e-05 | AG16: 645.2809192 | AH16: 381.853303 | AI16: 1517.435293 | AJ16: 1532.321913 | AK16: 9.998011267e-07 | AL16: 0 | AM16: 162.3 | AN16: 389.3 | AO16: 645.3 | AP16: 63 | AQ16: 0 | AR16: 129.84 | AS16: 311.44 | AT16: 516.24 | AU16: 50.4 | AV16: 645.2809192 | AW16: 544.153303 | AX16: 1906.735293 | AY16: 2177.621913 | AZ16: 63.000001 | BA16: 636.3250979 | BB16: 537.4885358 | BC16: 1002.341837 | BD16: 1053.961407 | BE16: 0 | BF16: 0 | BG16: 1049.999995 | BH16: 2699.999967 | BI16: 4499.999917 | BJ16: 449.9999993 | BK16: 319.0715848 | BL16: 269.5121087 | BM16: 140.3278571 | BN16: 147.554597 | BO16: 0 | BP16: 0 | BQ16: 526.4999976 | BR16: 1259.999984 | BS16: 2099.999961 | BT16: 209.9999997 | BU16: 129.4012538 | BV16: 109.302133 | BW16: 65.95409286 | BX16: 69.35066058 | BY16: 0 | BZ16: 0 | CA16: 213.524999 | CB16: 680.3999916 | CC16: 1133.999979 | CD16: 113.3999998 | CE16: 87.99285261 | CF16: 74.32545041 | CG16: 51.18037606 | CH16: 53.81611261 | CI16: 0 | CJ16: 0 | CK16: 145.1969993 | CL16: 523.1519935 | CM16: 871.9199839 | CN16: 87.19199987 | CO16: 1172.790789 | CP16: 990.6282278 | CQ16: 1259.804163 | CR16: 1324.682777 | CS16: 0 | CT16: 0 | CU16: 1935.221991 | CV16: 5163.551936 | CW16: 8605.919841 | CX16: 860.5919987 | CY16: 1172.790789 | CZ16: 2925.850219 | DA16: 6423.356099 | DB16: 9930.602618 | DC16: 860.5919987 | DD16: 0 | DE16: 1000000 | DF16: 3000000 | DG16: 5000000 | DH16: 500000 | DI16: 0 | DJ16: 163.2 | DK16: 563.9 | DL16: 656.2 | DM16: 0 | DN16: 0 | DO16: 463.366416 | DP16: 1315.799248 | DQ16: 2476.63208 | DR16: 313.283208 | DS16: 0 | DT16: 626.566416 | DU16: 1879.699248 | DV16: 3132.83208 | DW16: 313.283208 | DX16: 0 | DY16: 182.4115791 | DZ16: 1824.648705 | EA16: 2965.447801 | EB16: 576.124791 | EC16: 0 | ED16: 313 | EE16: 313 | EF16: 313 | EG16: 0 | EH16: 0 | EI16: 56.3 | EJ16: 6.3 | EK16: 6.3 | EL16: 0 | EM16: 1818.071708 | EN16: 1535.681531 | EO16: 3341.139456 | EP16: 3513.20469 | EQ16: 9.998011267e-07 | ER16: 0 | ES16: 2999.999986 | ET16: 8999.999889 | EU16: 14999.99972 | EV16: 1499.999998 | EW16: 1818.071708 | EX16: 4535.681517 | EY16: 12341.13934 | EZ16: 18513.20441 | FA16: 1499.999999
D17: =Scenario_1!M23 -> Willapa Bay Rec. NORs | E17: ='AHA CIs'!$BU$3 -> 129.4012538 | F17: ='AHA CIs'!$BU$5 -> 4.483385571e-16 | G17: =MAX(E17-2*'AHA CIs'!$BU$4,0) -> 129.4012538 | H17: =E17+2*'AHA CIs'!$BU$4 -> 129.4012538 | I17: ='AHA CIs'!$BV$3 -> 109.302133 | J17: ='AHA CIs'!$BV$5 -> 3.980862715e-16 | K17: =MAX(I17-2*'AHA CIs'!$BV$4,0) -> 109.302133 | L17: =I17+2*'AHA CIs'!$BV$4 -> 109.302133 | M17: ='AHA CIs'!$BW$3 -> 65.95409286 | N17: ='AHA CIs'!$BW$5 -> 2.199089129e-16 | O17: =MAX(M17-2*'AHA CIs'!$BW$4,0) -> 65.95409286 | P17: =M17+2*'AHA CIs'!$BW$4 -> 65.95409286 | Q17: ='AHA CIs'!$BX$3 -> 69.35066058 | R17: ='AHA CIs'!$BX$5 -> 6.274154883e-16 | S17: =MAX(Q17-2*'AHA CIs'!$BX$4,0) -> 69.35066058 | T17: =Q17+2*'AHA CIs'!$BX$4 -> 69.35066058 | U17: ='AHA CIs'!$BY$3 -> 0 | V17: ='AHA CIs'!$BY$5 -> - | W17: =MAX(U17-2*'AHA CIs'!$BY$4,0) -> 0 | X17: =U17+2*'AHA CIs'!$BY$4 -> 0 | AA17: 12 | AB17: 181807.1712 | AC17: 153568.3069 | AD17: 334114.949 | AE17: 351322.2269 | AF17: 9.998016266e-05 | AG17: 645.2809192 | AH17: 381.853303 | AI17: 1517.435293 | AJ17: 1532.321913 | AK17: 9.998011267e-07 | AL17: 0 | AM17: 162.3 | AN17: 389.3 | AO17: 645.3 | AP17: 63 | AQ17: 0 | AR17: 129.84 | AS17: 311.44 | AT17: 516.24 | AU17: 50.4 | AV17: 645.2809192 | AW17: 544.153303 | AX17: 1906.735293 | AY17: 2177.621913 | AZ17: 63.000001 | BA17: 636.3250979 | BB17: 537.4885358 | BC17: 1002.341837 | BD17: 1053.961407 | BE17: 0 | BF17: 0 | BG17: 1049.999995 | BH17: 2699.999967 | BI17: 4499.999917 | BJ17: 449.9999993 | BK17: 319.0715848 | BL17: 269.5121087 | BM17: 140.3278571 | BN17: 147.554597 | BO17: 0 | BP17: 0 | BQ17: 526.4999976 | BR17: 1259.999984 | BS17: 2099.999961 | BT17: 209.9999997 | BU17: 129.4012538 | BV17: 109.302133 | BW17: 65.95409286 | BX17: 69.35066058 | BY17: 0 | BZ17: 0 | CA17: 213.524999 | CB17: 680.3999916 | CC17: 1133.999979 | CD17: 113.3999998 | CE17: 87.99285261 | CF17: 74.32545041 | CG17: 51.18037606 | CH17: 53.81611261 | CI17: 0 | CJ17: 0 | CK17: 145.1969993 | CL17: 523.1519935 | CM17: 871.9199839 | CN17: 87.19199987 | CO17: 1172.790789 | CP17: 990.6282278 | CQ17: 1259.804163 | CR17: 1324.682777 | CS17: 0 | CT17: 0 | CU17: 1935.221991 | CV17: 5163.551936 | CW17: 8605.919841 | CX17: 860.5919987 | CY17: 1172.790789 | CZ17: 2925.850219 | DA17: 6423.356099 | DB17: 9930.602618 | DC17: 860.5919987 | DD17: 0 | DE17: 1000000 | DF17: 3000000 | DG17: 5000000 | DH17: 500000 | DI17: 0 | DJ17: 163.2 | DK17: 563.9 | DL17: 656.2 | DM17: 0 | DN17: 0 | DO17: 463.366416 | DP17: 1315.799248 | DQ17: 2476.63208 | DR17: 313.283208 | DS17: 0 | DT17: 626.566416 | DU17: 1879.699248 | DV17: 3132.83208 | DW17: 313.283208 | DX17: 0 | DY17: 182.4115791 | DZ17: 1824.648705 | EA17: 2965.447801 | EB17: 576.124791 | EC17: 0 | ED17: 313 | EE17: 313 | EF17: 313 | EG17: 0 | EH17: 0 | EI17: 56.3 | EJ17: 6.3 | EK17: 6.3 | EL17: 0 | EM17: 1818.071708 | EN17: 1535.681531 | EO17: 3341.139456 | EP17: 3513.20469 | EQ17: 9.998011267e-07 | ER17: 0 | ES17: 2999.999986 | ET17: 8999.999889 | EU17: 14999.99972 | EV17: 1499.999998 | EW17: 1818.071708 | EX17: 4535.681517 | EY17: 12341.13934 | EZ17: 18513.20441 | FA17: 1499.999999
D18: =Scenario_1!M24 -> Willapa Bay Rec. HORs | E18: ='AHA CIs'!$BZ$3 -> 0 | F18: ='AHA CIs'!$BZ$5 -> - | G18: =MAX(E18-2*'AHA CIs'!$BZ$4,0) -> 0 | H18: =E18+2*'AHA CIs'!$BZ$4 -> 0 | I18: ='AHA CIs'!$CA$3 -> 213.524999 | J18: ='AHA CIs'!$CA$5 -> 0 | K18: =MAX(I18-2*'AHA CIs'!$CA$4,0) -> 213.524999 | L18: =I18+2*'AHA CIs'!$CA$4 -> 213.524999 | M18: ='AHA CIs'!$CB$3 -> 680.3999916 | N18: ='AHA CIs'!$CB$5 -> 3.410674436e-16 | O18: =MAX(M18-2*'AHA CIs'!$CB$4,0) -> 680.3999916 | P18: =M18+2*'AHA CIs'!$CB$4 -> 680.3999916 | Q18: ='AHA CIs'!$CC$3 -> 1133.999979 | R18: ='AHA CIs'!$CC$5 -> 2.046404674e-16 | S18: =MAX(Q18-2*'AHA CIs'!$CC$4,0) -> 1133.999979 | T18: =Q18+2*'AHA CIs'!$CC$4 -> 1133.999979 | U18: ='AHA CIs'!$CD$3 -> 113.3999998 | V18: ='AHA CIs'!$CD$5 -> 2.558005799e-16 | W18: =MAX(U18-2*'AHA CIs'!$CD$4,0) -> 113.3999998 | X18: =U18+2*'AHA CIs'!$CD$4 -> 113.3999998 | AA18: 13 | AB18: 181807.1712 | AC18: 153568.3069 | AD18: 334114.949 | AE18: 351322.2269 | AF18: 9.998016266e-05 | AG18: 645.2809192 | AH18: 381.853303 | AI18: 1517.435293 | AJ18: 1532.321913 | AK18: 9.998011267e-07 | AL18: 0 | AM18: 162.3 | AN18: 389.3 | AO18: 645.3 | AP18: 63 | AQ18: 0 | AR18: 129.84 | AS18: 311.44 | AT18: 516.24 | AU18: 50.4 | AV18: 645.2809192 | AW18: 544.153303 | AX18: 1906.735293 | AY18: 2177.621913 | AZ18: 63.000001 | BA18: 636.3250979 | BB18: 537.4885358 | BC18: 1002.341837 | BD18: 1053.961407 | BE18: 0 | BF18: 0 | BG18: 1049.999995 | BH18: 2699.999967 | BI18: 4499.999917 | BJ18: 449.9999993 | BK18: 319.0715848 | BL18: 269.5121087 | BM18: 140.3278571 | BN18: 147.554597 | BO18: 0 | BP18: 0 | BQ18: 526.4999976 | BR18: 1259.999984 | BS18: 2099.999961 | BT18: 209.9999997 | BU18: 129.4012538 | BV18: 109.302133 | BW18: 65.95409286 | BX18: 69.35066058 | BY18: 0 | BZ18: 0 | CA18: 213.524999 | CB18: 680.3999916 | CC18: 1133.999979 | CD18: 113.3999998 | CE18: 87.99285261 | CF18: 74.32545041 | CG18: 51.18037606 | CH18: 53.81611261 | CI18: 0 | CJ18: 0 | CK18: 145.1969993 | CL18: 523.1519935 | CM18: 871.9199839 | CN18: 87.19199987 | CO18: 1172.790789 | CP18: 990.6282278 | CQ18: 1259.804163 | CR18: 1324.682777 | CS18: 0 | CT18: 0 | CU18: 1935.221991 | CV18: 5163.551936 | CW18: 8605.919841 | CX18: 860.5919987 | CY18: 1172.790789 | CZ18: 2925.850219 | DA18: 6423.356099 | DB18: 9930.602618 | DC18: 860.5919987 | DD18: 0 | DE18: 1000000 | DF18: 3000000 | DG18: 5000000 | DH18: 500000 | DI18: 0 | DJ18: 163.2 | DK18: 563.9 | DL18: 656.2 | DM18: 0 | DN18: 0 | DO18: 463.366416 | DP18: 1315.799248 | DQ18: 2476.63208 | DR18: 313.283208 | DS18: 0 | DT18: 626.566416 | DU18: 1879.699248 | DV18: 3132.83208 | DW18: 313.283208 | DX18: 0 | DY18: 182.4115791 | DZ18: 1824.648705 | EA18: 2965.447801 | EB18: 576.124791 | EC18: 0 | ED18: 313 | EE18: 313 | EF18: 313 | EG18: 0 | EH18: 0 | EI18: 56.3 | EJ18: 6.3 | EK18: 6.3 | EL18: 0 | EM18: 1818.071708 | EN18: 1535.681531 | EO18: 3341.139456 | EP18: 3513.20469 | EQ18: 9.998011267e-07 | ER18: 0 | ES18: 2999.999986 | ET18: 8999.999889 | EU18: 14999.99972 | EV18: 1499.999998 | EW18: 1818.071708 | EX18: 4535.681517 | EY18: 12341.13934 | EZ18: 18513.20441 | FA18: 1499.999999
D19: =Scenario_1!M25 -> Freshwater NORs | E19: ='AHA CIs'!$CE$3 -> 87.99285261 | F19: ='AHA CIs'!$CE$5 -> 3.296607038e-16 | G19: =MAX(E19-2*'AHA CIs'!$CE$4,0) -> 87.99285261 | H19: =E19+2*'AHA CIs'!$CE$4 -> 87.99285261 | I19: ='AHA CIs'!$CF$3 -> 74.32545041 | J19: ='AHA CIs'!$CF$5 -> 3.902806583e-16 | K19: =MAX(I19-2*'AHA CIs'!$CF$4,0) -> 74.32545041 | L19: =I19+2*'AHA CIs'!$CF$4 -> 74.32545041 | M19: ='AHA CIs'!$CG$3 -> 51.18037606 | N19: ='AHA CIs'!$CG$5 -> 2.833877743e-16 | O19: =MAX(M19-2*'AHA CIs'!$CG$4,0) -> 51.18037606 | P19: =M19+2*'AHA CIs'!$CG$4 -> 51.18037606 | Q19: ='AHA CIs'!$CH$3 -> 53.81611261 | R19: ='AHA CIs'!$CH$5 -> 2.695083713e-16 | S19: =MAX(Q19-2*'AHA CIs'!$CH$4,0) -> 53.81611261 | T19: =Q19+2*'AHA CIs'!$CH$4 -> 53.81611261 | U19: ='AHA CIs'!$CI$3 -> 0 | V19: ='AHA CIs'!$CI$5 -> - | W19: =MAX(U19-2*'AHA CIs'!$CI$4,0) -> 0 | X19: =U19+2*'AHA CIs'!$CI$4 -> 0 | AA19: 14 | AB19: 181807.1712 | AC19: 153568.3069 | AD19: 334114.949 | AE19: 351322.2269 | AF19: 9.998016266e-05 | AG19: 645.2809192 | AH19: 381.853303 | AI19: 1517.435293 | AJ19: 1532.321913 | AK19: 9.998011267e-07 | AL19: 0 | AM19: 162.3 | AN19: 389.3 | AO19: 645.3 | AP19: 63 | AQ19: 0 | AR19: 129.84 | AS19: 311.44 | AT19: 516.24 | AU19: 50.4 | AV19: 645.2809192 | AW19: 544.153303 | AX19: 1906.735293 | AY19: 2177.621913 | AZ19: 63.000001 | BA19: 636.3250979 | BB19: 537.4885358 | BC19: 1002.341837 | BD19: 1053.961407 | BE19: 0 | BF19: 0 | BG19: 1049.999995 | BH19: 2699.999967 | BI19: 4499.999917 | BJ19: 449.9999993 | BK19: 319.0715848 | BL19: 269.5121087 | BM19: 140.3278571 | BN19: 147.554597 | BO19: 0 | BP19: 0 | BQ19: 526.4999976 | BR19: 1259.999984 | BS19: 2099.999961 | BT19: 209.9999997 | BU19: 129.4012538 | BV19: 109.302133 | BW19: 65.95409286 | BX19: 69.35066058 | BY19: 0 | BZ19: 0 | CA19: 213.524999 | CB19: 680.3999916 | CC19: 1133.999979 | CD19: 113.3999998 | CE19: 87.99285261 | CF19: 74.32545041 | CG19: 51.18037606 | CH19: 53.81611261 | CI19: 0 | CJ19: 0 | CK19: 145.1969993 | CL19: 523.1519935 | CM19: 871.9199839 | CN19: 87.19199987 | CO19: 1172.790789 | CP19: 990.6282278 | CQ19: 1259.804163 | CR19: 1324.682777 | CS19: 0 | CT19: 0 | CU19: 1935.221991 | CV19: 5163.551936 | CW19: 8605.919841 | CX19: 860.5919987 | CY19: 1172.790789 | CZ19: 2925.850219 | DA19: 6423.356099 | DB19: 9930.602618 | DC19: 860.5919987 | DD19: 0 | DE19: 1000000 | DF19: 3000000 | DG19: 5000000 | DH19: 500000 | DI19: 0 | DJ19: 163.2 | DK19: 563.9 | DL19: 656.2 | DM19: 0 | DN19: 0 | DO19: 463.366416 | DP19: 1315.799248 | DQ19: 2476.63208 | DR19: 313.283208 | DS19: 0 | DT19: 626.566416 | DU19: 1879.699248 | DV19: 3132.83208 | DW19: 313.283208 | DX19: 0 | DY19: 182.4115791 | DZ19: 1824.648705 | EA19: 2965.447801 | EB19: 576.124791 | EC19: 0 | ED19: 313 | EE19: 313 | EF19: 313 | EG19: 0 | EH19: 0 | EI19: 56.3 | EJ19: 6.3 | EK19: 6.3 | EL19: 0 | EM19: 1818.071708 | EN19: 1535.681531 | EO19: 3341.139456 | EP19: 3513.20469 | EQ19: 9.998011267e-07 | ER19: 0 | ES19: 2999.999986 | ET19: 8999.999889 | EU19: 14999.99972 | EV19: 1499.999998 | EW19: 1818.071708 | EX19: 4535.681517 | EY19: 12341.13934 | EZ19: 18513.20441 | FA19: 1499.999999
D20: =Scenario_1!M26 -> Freshwater HORs | E20: ='AHA CIs'!$CJ$3 -> 0 | F20: ='AHA CIs'!$CJ$5 -> - | G20: =MAX(E20-2*'AHA CIs'!$CJ$4,0) -> 0 | H20: =E20+2*'AHA CIs'!$CJ$4 -> 0 | I20: ='AHA CIs'!$CK$3 -> 145.1969993 | J20: ='AHA CIs'!$CK$5 -> 5.993468016e-16 | K20: =MAX(I20-2*'AHA CIs'!$CK$4,0) -> 145.1969993 | L20: =I20+2*'AHA CIs'!$CK$4 -> 145.1969993 | M20: ='AHA CIs'!$CL$3 -> 523.1519935 | N20: ='AHA CIs'!$CL$5 -> 2.217924127e-16 | O20: =MAX(M20-2*'AHA CIs'!$CL$4,0) -> 523.1519935 | P20: =M20+2*'AHA CIs'!$CL$4 -> 523.1519935 | Q20: ='AHA CIs'!$CM$3 -> 871.9199839 | R20: ='AHA CIs'!$CM$5 -> 1.330754485e-16 | S20: =MAX(Q20-2*'AHA CIs'!$CM$4,0) -> 871.9199839 | T20: =Q20+2*'AHA CIs'!$CM$4 -> 871.9199839 | U20: ='AHA CIs'!$CN$3 -> 87.19199987 | V20: ='AHA CIs'!$CN$5 -> 1.663443077e-16 | W20: =MAX(U20-2*'AHA CIs'!$CN$4,0) -> 87.19199987 | X20: =U20+2*'AHA CIs'!$CN$4 -> 87.19199987 | AA20: 15 | AB20: 181807.1712 | AC20: 153568.3069 | AD20: 334114.949 | AE20: 351322.2269 | AF20: 9.998016266e-05 | AG20: 645.2809192 | AH20: 381.853303 | AI20: 1517.435293 | AJ20: 1532.321913 | AK20: 9.998011267e-07 | AL20: 0 | AM20: 162.3 | AN20: 389.3 | AO20: 645.3 | AP20: 63 | AQ20: 0 | AR20: 129.84 | AS20: 311.44 | AT20: 516.24 | AU20: 50.4 | AV20: 645.2809192 | AW20: 544.153303 | AX20: 1906.735293 | AY20: 2177.621913 | AZ20: 63.000001 | BA20: 636.3250979 | BB20: 537.4885358 | BC20: 1002.341837 | BD20: 1053.961407 | BE20: 0 | BF20: 0 | BG20: 1049.999995 | BH20: 2699.999967 | BI20: 4499.999917 | BJ20: 449.9999993 | BK20: 319.0715848 | BL20: 269.5121087 | BM20: 140.3278571 | BN20: 147.554597 | BO20: 0 | BP20: 0 | BQ20: 526.4999976 | BR20: 1259.999984 | BS20: 2099.999961 | BT20: 209.9999997 | BU20: 129.4012538 | BV20: 109.302133 | BW20: 65.95409286 | BX20: 69.35066058 | BY20: 0 | BZ20: 0 | CA20: 213.524999 | CB20: 680.3999916 | CC20: 1133.999979 | CD20: 113.3999998 | CE20: 87.99285261 | CF20: 74.32545041 | CG20: 51.18037606 | CH20: 53.81611261 | CI20: 0 | CJ20: 0 | CK20: 145.1969993 | CL20: 523.1519935 | CM20: 871.9199839 | CN20: 87.19199987 | CO20: 1172.790789 | CP20: 990.6282278 | CQ20: 1259.804163 | CR20: 1324.682777 | CS20: 0 | CT20: 0 | CU20: 1935.221991 | CV20: 5163.551936 | CW20: 8605.919841 | CX20: 860.5919987 | CY20: 1172.790789 | CZ20: 2925.850219 | DA20: 6423.356099 | DB20: 9930.602618 | DC20: 860.5919987 | DD20: 0 | DE20: 1000000 | DF20: 3000000 | DG20: 5000000 | DH20: 500000 | DI20: 0 | DJ20: 163.2 | DK20: 563.9 | DL20: 656.2 | DM20: 0 | DN20: 0 | DO20: 463.366416 | DP20: 1315.799248 | DQ20: 2476.63208 | DR20: 313.283208 | DS20: 0 | DT20: 626.566416 | DU20: 1879.699248 | DV20: 3132.83208 | DW20: 313.283208 | DX20: 0 | DY20: 182.4115791 | DZ20: 1824.648705 | EA20: 2965.447801 | EB20: 576.124791 | EC20: 0 | ED20: 313 | EE20: 313 | EF20: 313 | EG20: 0 | EH20: 0 | EI20: 56.3 | EJ20: 6.3 | EK20: 6.3 | EL20: 0 | EM20: 1818.071708 | EN20: 1535.681531 | EO20: 3341.139456 | EP20: 3513.20469 | EQ20: 9.998011267e-07 | ER20: 0 | ES20: 2999.999986 | ET20: 8999.999889 | EU20: 14999.99972 | EV20: 1499.999998 | EW20: 1818.071708 | EX20: 4535.681517 | EY20: 12341.13934 | EZ20: 18513.20441 | FA20: 1499.999999
D21: Total Harvest - NORs | E21: ='AHA CIs'!$CO$3 -> 1172.790789 | F21: ='AHA CIs'!$CO$5 -> 5.936155567e-16 | G21: =MAX(E21-2*'AHA CIs'!$CO$4,0) -> 1172.790789 | H21: =E21+2*'AHA CIs'!$CO$4 -> 1172.790789 | I21: ='AHA CIs'!$CP$3 -> 990.6282278 | J21: ='AHA CIs'!$CP$5 -> 2.342576955e-16 | K21: =MAX(I21-2*'AHA CIs'!$CP$4,0) -> 990.6282278 | L21: =I21+2*'AHA CIs'!$CP$4 -> 990.6282278 | M21: ='AHA CIs'!$CQ$3 -> 1259.804163 | N21: ='AHA CIs'!$CQ$5 -> 3.684100952e-16 | O21: =MAX(M21-2*'AHA CIs'!$CQ$4,0) -> 1259.804163 | P21: =M21+2*'AHA CIs'!$CQ$4 -> 1259.804163 | Q21: ='AHA CIs'!$CR$3 -> 1324.682777 | R21: ='AHA CIs'!$CR$5 -> 5.255498669e-16 | S21: =MAX(Q21-2*'AHA CIs'!$CR$4,0) -> 1324.682777 | T21: =Q21+2*'AHA CIs'!$CR$4 -> 1324.682777 | U21: ='AHA CIs'!$CS$3 -> 0 | V21: ='AHA CIs'!$CS$5 -> - | W21: =MAX(U21-2*'AHA CIs'!$CS$4,0) -> 0 | X21: =U21+2*'AHA CIs'!$CS$4 -> 0 | AA21: 16 | AB21: 181807.1712 | AC21: 153568.3069 | AD21: 334114.949 | AE21: 351322.2269 | AF21: 9.998016266e-05 | AG21: 645.2809192 | AH21: 381.853303 | AI21: 1517.435293 | AJ21: 1532.321913 | AK21: 9.998011267e-07 | AL21: 0 | AM21: 162.3 | AN21: 389.3 | AO21: 645.3 | AP21: 63 | AQ21: 0 | AR21: 129.84 | AS21: 311.44 | AT21: 516.24 | AU21: 50.4 | AV21: 645.2809192 | AW21: 544.153303 | AX21: 1906.735293 | AY21: 2177.621913 | AZ21: 63.000001 | BA21: 636.3250979 | BB21: 537.4885358 | BC21: 1002.341837 | BD21: 1053.961407 | BE21: 0 | BF21: 0 | BG21: 1049.999995 | BH21: 2699.999967 | BI21: 4499.999917 | BJ21: 449.9999993 | BK21: 319.0715848 | BL21: 269.5121087 | BM21: 140.3278571 | BN21: 147.554597 | BO21: 0 | BP21: 0 | BQ21: 526.4999976 | BR21: 1259.999984 | BS21: 2099.999961 | BT21: 209.9999997 | BU21: 129.4012538 | BV21: 109.302133 | BW21: 65.95409286 | BX21: 69.35066058 | BY21: 0 | BZ21: 0 | CA21: 213.524999 | CB21: 680.3999916 | CC21: 1133.999979 | CD21: 113.3999998 | CE21: 87.99285261 | CF21: 74.32545041 | CG21: 51.18037606 | CH21: 53.81611261 | CI21: 0 | CJ21: 0 | CK21: 145.1969993 | CL21: 523.1519935 | CM21: 871.9199839 | CN21: 87.19199987 | CO21: 1172.790789 | CP21: 990.6282278 | CQ21: 1259.804163 | CR21: 1324.682777 | CS21: 0 | CT21: 0 | CU21: 1935.221991 | CV21: 5163.551936 | CW21: 8605.919841 | CX21: 860.5919987 | CY21: 1172.790789 | CZ21: 2925.850219 | DA21: 6423.356099 | DB21: 9930.602618 | DC21: 860.5919987 | DD21: 0 | DE21: 1000000 | DF21: 3000000 | DG21: 5000000 | DH21: 500000 | DI21: 0 | DJ21: 163.2 | DK21: 563.9 | DL21: 656.2 | DM21: 0 | DN21: 0 | DO21: 463.366416 | DP21: 1315.799248 | DQ21: 2476.63208 | DR21: 313.283208 | DS21: 0 | DT21: 626.566416 | DU21: 1879.699248 | DV21: 3132.83208 | DW21: 313.283208 | DX21: 0 | DY21: 182.4115791 | DZ21: 1824.648705 | EA21: 2965.447801 | EB21: 576.124791 | EC21: 0 | ED21: 313 | EE21: 313 | EF21: 313 | EG21: 0 | EH21: 0 | EI21: 56.3 | EJ21: 6.3 | EK21: 6.3 | EL21: 0 | EM21: 1818.071708 | EN21: 1535.681531 | EO21: 3341.139456 | EP21: 3513.20469 | EQ21: 9.998011267e-07 | ER21: 0 | ES21: 2999.999986 | ET21: 8999.999889 | EU21: 14999.99972 | EV21: 1499.999998 | EW21: 1818.071708 | EX21: 4535.681517 | EY21: 12341.13934 | EZ21: 18513.20441 | FA21: 1499.999999
D22: Total Harvest - HORs | E22: ='AHA CIs'!$CT$3 -> 0 | F22: ='AHA CIs'!$CT$5 -> - | G22: =MAX(E22-2*'AHA CIs'!$CT$4,0) -> 0 | H22: =E22+2*'AHA CIs'!$CT$4 -> 0 | I22: ='AHA CIs'!$CU$3 -> 1935.221991 | J22: ='AHA CIs'!$CU$5 -> 1.199150727e-16 | K22: =MAX(I22-2*'AHA CIs'!$CU$4,0) -> 1935.221991 | L22: =I22+2*'AHA CIs'!$CU$4 -> 1935.221991 | M22: ='AHA CIs'!$CV$3 -> 5163.551936 | N22: ='AHA CIs'!$CV$5 -> 5.39308496e-16 | O22: =MAX(M22-2*'AHA CIs'!$CV$4,0) -> 5163.551936 | P22: =M22+2*'AHA CIs'!$CV$4 -> 5163.551936 | Q22: ='AHA CIs'!$CW$3 -> 8605.919841 | R22: ='AHA CIs'!$CW$5 -> 2.157233997e-16 | S22: =MAX(Q22-2*'AHA CIs'!$CW$4,0) -> 8605.919841 | T22: =Q22+2*'AHA CIs'!$CW$4 -> 8605.919841 | U22: ='AHA CIs'!$CX$3 -> 860.5919987 | V22: ='AHA CIs'!$CX$5 -> 5.393084902e-16 | W22: =MAX(U22-2*'AHA CIs'!$CX$4,0) -> 860.5919987 | X22: =U22+2*'AHA CIs'!$CX$4 -> 860.5919987 | AA22: 17 | AB22: 181807.1712 | AC22: 153568.3069 | AD22: 334114.949 | AE22: 351322.2269 | AF22: 9.998016266e-05 | AG22: 645.2809192 | AH22: 381.853303 | AI22: 1517.435293 | AJ22: 1532.321913 | AK22: 9.998011267e-07 | AL22: 0 | AM22: 162.3 | AN22: 389.3 | AO22: 645.3 | AP22: 63 | AQ22: 0 | AR22: 129.84 | AS22: 311.44 | AT22: 516.24 | AU22: 50.4 | AV22: 645.2809192 | AW22: 544.153303 | AX22: 1906.735293 | AY22: 2177.621913 | AZ22: 63.000001 | BA22: 636.3250979 | BB22: 537.4885358 | BC22: 1002.341837 | BD22: 1053.961407 | BE22: 0 | BF22: 0 | BG22: 1049.999995 | BH22: 2699.999967 | BI22: 4499.999917 | BJ22: 449.9999993 | BK22: 319.0715848 | BL22: 269.5121087 | BM22: 140.3278571 | BN22: 147.554597 | BO22: 0 | BP22: 0 | BQ22: 526.4999976 | BR22: 1259.999984 | BS22: 2099.999961 | BT22: 209.9999997 | BU22: 129.4012538 | BV22: 109.302133 | BW22: 65.95409286 | BX22: 69.35066058 | BY22: 0 | BZ22: 0 | CA22: 213.524999 | CB22: 680.3999916 | CC22: 1133.999979 | CD22: 113.3999998 | CE22: 87.99285261 | CF22: 74.32545041 | CG22: 51.18037606 | CH22: 53.81611261 | CI22: 0 | CJ22: 0 | CK22: 145.1969993 | CL22: 523.1519935 | CM22: 871.9199839 | CN22: 87.19199987 | CO22: 1172.790789 | CP22: 990.6282278 | CQ22: 1259.804163 | CR22: 1324.682777 | CS22: 0 | CT22: 0 | CU22: 1935.221991 | CV22: 5163.551936 | CW22: 8605.919841 | CX22: 860.5919987 | CY22: 1172.790789 | CZ22: 2925.850219 | DA22: 6423.356099 | DB22: 9930.602618 | DC22: 860.5919987 | DD22: 0 | DE22: 1000000 | DF22: 3000000 | DG22: 5000000 | DH22: 500000 | DI22: 0 | DJ22: 163.2 | DK22: 563.9 | DL22: 656.2 | DM22: 0 | DN22: 0 | DO22: 463.366416 | DP22: 1315.799248 | DQ22: 2476.63208 | DR22: 313.283208 | DS22: 0 | DT22: 626.566416 | DU22: 1879.699248 | DV22: 3132.83208 | DW22: 313.283208 | DX22: 0 | DY22: 182.4115791 | DZ22: 1824.648705 | EA22: 2965.447801 | EB22: 576.124791 | EC22: 0 | ED22: 313 | EE22: 313 | EF22: 313 | EG22: 0 | EH22: 0 | EI22: 56.3 | EJ22: 6.3 | EK22: 6.3 | EL22: 0 | EM22: 1818.071708 | EN22: 1535.681531 | EO22: 3341.139456 | EP22: 3513.20469 | EQ22: 9.998011267e-07 | ER22: 0 | ES22: 2999.999986 | ET22: 8999.999889 | EU22: 14999.99972 | EV22: 1499.999998 | EW22: 1818.071708 | EX22: 4535.681517 | EY22: 12341.13934 | EZ22: 18513.20441 | FA22: 1499.999999
D23: Total Harvest | E23: ='AHA CIs'!$CY$3 -> 1172.790789 | F23: ='AHA CIs'!$CY$5 -> 1.978718522e-16 | G23: =MAX(E23-2*'AHA CIs'!$CY$4,0) -> 1172.790789 | H23: =E23+2*'AHA CIs'!$CY$4 -> 1172.790789 | I23: ='AHA CIs'!$CZ$3 -> 2925.850219 | J23: ='AHA CIs'!$CZ$5 -> 1.58628958e-16 | K23: =MAX(I23-2*'AHA CIs'!$CZ$4,0) -> 2925.850219 | L23: =I23+2*'AHA CIs'!$CZ$4 -> 2925.850219 | M23: ='AHA CIs'!$DA$3 -> 6423.356099 | N23: ='AHA CIs'!$DA$5 -> 2.89023099e-16 | O23: =MAX(M23-2*'AHA CIs'!$DA$4,0) -> 6423.356099 | P23: =M23+2*'AHA CIs'!$DA$4 -> 6423.356099 | Q23: ='AHA CIs'!$DB$3 -> 9930.602618 | R23: ='AHA CIs'!$DB$5 -> 3.738943863e-16 | S23: =MAX(Q23-2*'AHA CIs'!$DB$4,0) -> 9930.602618 | T23: =Q23+2*'AHA CIs'!$DB$4 -> 9930.602618 | U23: ='AHA CIs'!$DC$3 -> 860.5919987 | V23: ='AHA CIs'!$DC$5 -> 4.044813676e-16 | W23: =MAX(U23-2*'AHA CIs'!$DC$4,0) -> 860.5919987 | X23: =U23+2*'AHA CIs'!$DC$4 -> 860.5919987 | AA23: 18 | AB23: 181807.1712 | AC23: 153568.3069 | AD23: 334114.949 | AE23: 351322.2269 | AF23: 9.998016266e-05 | AG23: 645.2809192 | AH23: 381.853303 | AI23: 1517.435293 | AJ23: 1532.321913 | AK23: 9.998011267e-07 | AL23: 0 | AM23: 162.3 | AN23: 389.3 | AO23: 645.3 | AP23: 63 | AQ23: 0 | AR23: 129.84 | AS23: 311.44 | AT23: 516.24 | AU23: 50.4 | AV23: 645.2809192 | AW23: 544.153303 | AX23: 1906.735293 | AY23: 2177.621913 | AZ23: 63.000001 | BA23: 636.3250979 | BB23: 537.4885358 | BC23: 1002.341837 | BD23: 1053.961407 | BE23: 0 | BF23: 0 | BG23: 1049.999995 | BH23: 2699.999967 | BI23: 4499.999917 | BJ23: 449.9999993 | BK23: 319.0715848 | BL23: 269.5121087 | BM23: 140.3278571 | BN23: 147.554597 | BO23: 0 | BP23: 0 | BQ23: 526.4999976 | BR23: 1259.999984 | BS23: 2099.999961 | BT23: 209.9999997 | BU23: 129.4012538 | BV23: 109.302133 | BW23: 65.95409286 | BX23: 69.35066058 | BY23: 0 | BZ23: 0 | CA23: 213.524999 | CB23: 680.3999916 | CC23: 1133.999979 | CD23: 113.3999998 | CE23: 87.99285261 | CF23: 74.32545041 | CG23: 51.18037606 | CH23: 53.81611261 | CI23: 0 | CJ23: 0 | CK23: 145.1969993 | CL23: 523.1519935 | CM23: 871.9199839 | CN23: 87.19199987 | CO23: 1172.790789 | CP23: 990.6282278 | CQ23: 1259.804163 | CR23: 1324.682777 | CS23: 0 | CT23: 0 | CU23: 1935.221991 | CV23: 5163.551936 | CW23: 8605.919841 | CX23: 860.5919987 | CY23: 1172.790789 | CZ23: 2925.850219 | DA23: 6423.356099 | DB23: 9930.602618 | DC23: 860.5919987 | DD23: 0 | DE23: 1000000 | DF23: 3000000 | DG23: 5000000 | DH23: 500000 | DI23: 0 | DJ23: 163.2 | DK23: 563.9 | DL23: 656.2 | DM23: 0 | DN23: 0 | DO23: 463.366416 | DP23: 1315.799248 | DQ23: 2476.63208 | DR23: 313.283208 | DS23: 0 | DT23: 626.566416 | DU23: 1879.699248 | DV23: 3132.83208 | DW23: 313.283208 | DX23: 0 | DY23: 182.4115791 | DZ23: 1824.648705 | EA23: 2965.447801 | EB23: 576.124791 | EC23: 0 | ED23: 313 | EE23: 313 | EF23: 313 | EG23: 0 | EH23: 0 | EI23: 56.3 | EJ23: 6.3 | EK23: 6.3 | EL23: 0 | EM23: 1818.071708 | EN23: 1535.681531 | EO23: 3341.139456 | EP23: 3513.20469 | EQ23: 9.998011267e-07 | ER23: 0 | ES23: 2999.999986 | ET23: 8999.999889 | EU23: 14999.99972 | EV23: 1499.999998 | EW23: 1818.071708 | EX23: 4535.681517 | EY23: 12341.13934 | EZ23: 18513.20441 | FA23: 1499.999999
B24: Hatchery | D24: HOR Smolts Released | E24: ='AHA CIs'!$DD$3 -> 0 | F24: ='AHA CIs'!$DD$5 -> - | G24: =MAX(E24-2*'AHA CIs'!$DD$4,0) -> 0 | H24: =E24+2*'AHA CIs'!$DD$4 -> 0 | I24: ='AHA CIs'!$DE$3 -> 1000000 | J24: ='AHA CIs'!$DE$5 -> 0 | K24: =MAX(I24-2*'AHA CIs'!$DE$4,0) -> 1000000 | L24: =I24+2*'AHA CIs'!$DE$4 -> 1000000 | M24: ='AHA CIs'!$DF$3 -> 3000000 | N24: ='AHA CIs'!$DF$5 -> 0 | O24: =MAX(M24-2*'AHA CIs'!$DF$4,0) -> 3000000 | P24: =M24+2*'AHA CIs'!$DF$4 -> 3000000 | Q24: ='AHA CIs'!$DG$3 -> 5000000 | R24: ='AHA CIs'!$DG$5 -> 0 | S24: =MAX(Q24-2*'AHA CIs'!$DG$4,0) -> 5000000 | T24: =Q24+2*'AHA CIs'!$DG$4 -> 5000000 | U24: ='AHA CIs'!$DH$3 -> 500000 | V24: ='AHA CIs'!$DH$5 -> 0 | W24: =MAX(U24-2*'AHA CIs'!$DH$4,0) -> 500000 | X24: =U24+2*'AHA CIs'!$DH$4 -> 500000 | AA24: 19 | AB24: 181807.1712 | AC24: 153568.3069 | AD24: 334114.949 | AE24: 351322.2269 | AF24: 9.998016266e-05 | AG24: 645.2809192 | AH24: 381.853303 | AI24: 1517.435293 | AJ24: 1532.321913 | AK24: 9.998011267e-07 | AL24: 0 | AM24: 162.3 | AN24: 389.3 | AO24: 645.3 | AP24: 63 | AQ24: 0 | AR24: 129.84 | AS24: 311.44 | AT24: 516.24 | AU24: 50.4 | AV24: 645.2809192 | AW24: 544.153303 | AX24: 1906.735293 | AY24: 2177.621913 | AZ24: 63.000001 | BA24: 636.3250979 | BB24: 537.4885358 | BC24: 1002.341837 | BD24: 1053.961407 | BE24: 0 | BF24: 0 | BG24: 1049.999995 | BH24: 2699.999967 | BI24: 4499.999917 | BJ24: 449.9999993 | BK24: 319.0715848 | BL24: 269.5121087 | BM24: 140.3278571 | BN24: 147.554597 | BO24: 0 | BP24: 0 | BQ24: 526.4999976 | BR24: 1259.999984 | BS24: 2099.999961 | BT24: 209.9999997 | BU24: 129.4012538 | BV24: 109.302133 | BW24: 65.95409286 | BX24: 69.35066058 | BY24: 0 | BZ24: 0 | CA24: 213.524999 | CB24: 680.3999916 | CC24: 1133.999979 | CD24: 113.3999998 | CE24: 87.99285261 | CF24: 74.32545041 | CG24: 51.18037606 | CH24: 53.81611261 | CI24: 0 | CJ24: 0 | CK24: 145.1969993 | CL24: 523.1519935 | CM24: 871.9199839 | CN24: 87.19199987 | CO24: 1172.790789 | CP24: 990.6282278 | CQ24: 1259.804163 | CR24: 1324.682777 | CS24: 0 | CT24: 0 | CU24: 1935.221991 | CV24: 5163.551936 | CW24: 8605.919841 | CX24: 860.5919987 | CY24: 1172.790789 | CZ24: 2925.850219 | DA24: 6423.356099 | DB24: 9930.602618 | DC24: 860.5919987 | DD24: 0 | DE24: 1000000 | DF24: 3000000 | DG24: 5000000 | DH24: 500000 | DI24: 0 | DJ24: 163.2 | DK24: 563.9 | DL24: 656.2 | DM24: 0 | DN24: 0 | DO24: 463.366416 | DP24: 1315.799248 | DQ24: 2476.63208 | DR24: 313.283208 | DS24: 0 | DT24: 626.566416 | DU24: 1879.699248 | DV24: 3132.83208 | DW24: 313.283208 | DX24: 0 | DY24: 182.4115791 | DZ24: 1824.648705 | EA24: 2965.447801 | EB24: 576.124791 | EC24: 0 | ED24: 313 | EE24: 313 | EF24: 313 | EG24: 0 | EH24: 0 | EI24: 56.3 | EJ24: 6.3 | EK24: 6.3 | EL24: 0 | EM24: 1818.071708 | EN24: 1535.681531 | EO24: 3341.139456 | EP24: 3513.20469 | EQ24: 9.998011267e-07 | ER24: 0 | ES24: 2999.999986 | ET24: 8999.999889 | EU24: 14999.99972 | EV24: 1499.999998 | EW24: 1818.071708 | EX24: 4535.681517 | EY24: 12341.13934 | EZ24: 18513.20441 | FA24: 1499.999999
D25: NOR Brood | E25: ='AHA CIs'!$DI$3 -> 0 | F25: ='AHA CIs'!$DI$5 -> - | G25: =MAX(E25-2*'AHA CIs'!$DI$4,0) -> 0 | H25: =E25+2*'AHA CIs'!$DI$4 -> 0 | I25: ='AHA CIs'!$DJ$3 -> 163.2 | J25: ='AHA CIs'!$DJ$5 -> 3.554875701e-16 | K25: =MAX(I25-2*'AHA CIs'!$DJ$4,0) -> 163.2 | L25: =I25+2*'AHA CIs'!$DJ$4 -> 163.2 | M25: ='AHA CIs'!$DK$3 -> 563.9 | N25: ='AHA CIs'!$DK$5 -> 4.115309199e-16 | O25: =MAX(M25-2*'AHA CIs'!$DK$4,0) -> 563.9 | P25: =M25+2*'AHA CIs'!$DK$4 -> 563.9 | Q25: ='AHA CIs'!$DL$3 -> 656.2 | R25: ='AHA CIs'!$DL$5 -> 1.768228328e-16 | S25: =MAX(Q25-2*'AHA CIs'!$DL$4,0) -> 656.2 | T25: =Q25+2*'AHA CIs'!$DL$4 -> 656.2 | U25: ='AHA CIs'!$DM$3 -> 0 | V25: ='AHA CIs'!$DM$5 -> - | W25: =MAX(U25-2*'AHA CIs'!$DM$4,0) -> 0 | X25: =U25+2*'AHA CIs'!$DM$4 -> 0 | AA25: 20 | AB25: 181807.1712 | AC25: 153568.3069 | AD25: 334114.949 | AE25: 351322.2269 | AF25: 9.998016266e-05 | AG25: 645.2809192 | AH25: 381.853303 | AI25: 1517.435293 | AJ25: 1532.321913 | AK25: 9.998011267e-07 | AL25: 0 | AM25: 162.3 | AN25: 389.3 | AO25: 645.3 | AP25: 63 | AQ25: 0 | AR25: 129.84 | AS25: 311.44 | AT25: 516.24 | AU25: 50.4 | AV25: 645.2809192 | AW25: 544.153303 | AX25: 1906.735293 | AY25: 2177.621913 | AZ25: 63.000001 | BA25: 636.3250979 | BB25: 537.4885358 | BC25: 1002.341837 | BD25: 1053.961407 | BE25: 0 | BF25: 0 | BG25: 1049.999995 | BH25: 2699.999967 | BI25: 4499.999917 | BJ25: 449.9999993 | BK25: 319.0715848 | BL25: 269.5121087 | BM25: 140.3278571 | BN25: 147.554597 | BO25: 0 | BP25: 0 | BQ25: 526.4999976 | BR25: 1259.999984 | BS25: 2099.999961 | BT25: 209.9999997 | BU25: 129.4012538 | BV25: 109.302133 | BW25: 65.95409286 | BX25: 69.35066058 | BY25: 0 | BZ25: 0 | CA25: 213.524999 | CB25: 680.3999916 | CC25: 1133.999979 | CD25: 113.3999998 | CE25: 87.99285261 | CF25: 74.32545041 | CG25: 51.18037606 | CH25: 53.81611261 | CI25: 0 | CJ25: 0 | CK25: 145.1969993 | CL25: 523.1519935 | CM25: 871.9199839 | CN25: 87.19199987 | CO25: 1172.790789 | CP25: 990.6282278 | CQ25: 1259.804163 | CR25: 1324.682777 | CS25: 0 | CT25: 0 | CU25: 1935.221991 | CV25: 5163.551936 | CW25: 8605.919841 | CX25: 860.5919987 | CY25: 1172.790789 | CZ25: 2925.850219 | DA25: 6423.356099 | DB25: 9930.602618 | DC25: 860.5919987 | DD25: 0 | DE25: 1000000 | DF25: 3000000 | DG25: 5000000 | DH25: 500000 | DI25: 0 | DJ25: 163.2 | DK25: 563.9 | DL25: 656.2 | DM25: 0 | DN25: 0 | DO25: 463.366416 | DP25: 1315.799248 | DQ25: 2476.63208 | DR25: 313.283208 | DS25: 0 | DT25: 626.566416 | DU25: 1879.699248 | DV25: 3132.83208 | DW25: 313.283208 | DX25: 0 | DY25: 182.4115791 | DZ25: 1824.648705 | EA25: 2965.447801 | EB25: 576.124791 | EC25: 0 | ED25: 313 | EE25: 313 | EF25: 313 | EG25: 0 | EH25: 0 | EI25: 56.3 | EJ25: 6.3 | EK25: 6.3 | EL25: 0 | EM25: 1818.071708 | EN25: 1535.681531 | EO25: 3341.139456 | EP25: 3513.20469 | EQ25: 9.998011267e-07 | ER25: 0 | ES25: 2999.999986 | ET25: 8999.999889 | EU25: 14999.99972 | EV25: 1499.999998 | EW25: 1818.071708 | EX25: 4535.681517 | EY25: 12341.13934 | EZ25: 18513.20441 | FA25: 1499.999999
D26: HOR Brood | E26: ='AHA CIs'!$DN$3 -> 0 | F26: ='AHA CIs'!$DN$5 -> - | G26: =MAX(E26-2*'AHA CIs'!$DN$4,0) -> 0 | H26: =E26+2*'AHA CIs'!$DN$4 -> 0 | I26: ='AHA CIs'!$DO$3 -> 463.366416 | J26: ='AHA CIs'!$DO$5 -> 2.504090475e-16 | K26: =MAX(I26-2*'AHA CIs'!$DO$4,0) -> 463.366416 | L26: =I26+2*'AHA CIs'!$DO$4 -> 463.366416 | M26: ='AHA CIs'!$DP$3 -> 1315.799248 | N26: ='AHA CIs'!$DP$5 -> 0 | O26: =MAX(M26-2*'AHA CIs'!$DP$4,0) -> 1315.799248 | P26: =M26+2*'AHA CIs'!$DP$4 -> 1315.799248 | Q26: ='AHA CIs'!$DQ$3 -> 2476.63208 | R26: ='AHA CIs'!$DQ$5 -> 3.748030038e-16 | S26: =MAX(Q26-2*'AHA CIs'!$DQ$4,0) -> 2476.63208 | T26: =Q26+2*'AHA CIs'!$DQ$4 -> 2476.63208 | U26: ='AHA CIs'!$DR$3 -> 313.283208 | V26: ='AHA CIs'!$DR$5 -> 5.555571121e-16 | W26: =MAX(U26-2*'AHA CIs'!$DR$4,0) -> 313.283208 | X26: =U26+2*'AHA CIs'!$DR$4 -> 313.283208 | AA26: 21 | AB26: 181807.1712 | AC26: 153568.3069 | AD26: 334114.949 | AE26: 351322.2269 | AF26: 9.998016266e-05 | AG26: 645.2809192 | AH26: 381.853303 | AI26: 1517.435293 | AJ26: 1532.321913 | AK26: 9.998011267e-07 | AL26: 0 | AM26: 162.3 | AN26: 389.3 | AO26: 645.3 | AP26: 63 | AQ26: 0 | AR26: 129.84 | AS26: 311.44 | AT26: 516.24 | AU26: 50.4 | AV26: 645.2809192 | AW26: 544.153303 | AX26: 1906.735293 | AY26: 2177.621913 | AZ26: 63.000001 | BA26: 636.3250979 | BB26: 537.4885358 | BC26: 1002.341837 | BD26: 1053.961407 | BE26: 0 | BF26: 0 | BG26: 1049.999995 | BH26: 2699.999967 | BI26: 4499.999917 | BJ26: 449.9999993 | BK26: 319.0715848 | BL26: 269.5121087 | BM26: 140.3278571 | BN26: 147.554597 | BO26: 0 | BP26: 0 | BQ26: 526.4999976 | BR26: 1259.999984 | BS26: 2099.999961 | BT26: 209.9999997 | BU26: 129.4012538 | BV26: 109.302133 | BW26: 65.95409286 | BX26: 69.35066058 | BY26: 0 | BZ26: 0 | CA26: 213.524999 | CB26: 680.3999916 | CC26: 1133.999979 | CD26: 113.3999998 | CE26: 87.99285261 | CF26: 74.32545041 | CG26: 51.18037606 | CH26: 53.81611261 | CI26: 0 | CJ26: 0 | CK26: 145.1969993 | CL26: 523.1519935 | CM26: 871.9199839 | CN26: 87.19199987 | CO26: 1172.790789 | CP26: 990.6282278 | CQ26: 1259.804163 | CR26: 1324.682777 | CS26: 0 | CT26: 0 | CU26: 1935.221991 | CV26: 5163.551936 | CW26: 8605.919841 | CX26: 860.5919987 | CY26: 1172.790789 | CZ26: 2925.850219 | DA26: 6423.356099 | DB26: 9930.602618 | DC26: 860.5919987 | DD26: 0 | DE26: 1000000 | DF26: 3000000 | DG26: 5000000 | DH26: 500000 | DI26: 0 | DJ26: 163.2 | DK26: 563.9 | DL26: 656.2 | DM26: 0 | DN26: 0 | DO26: 463.366416 | DP26: 1315.799248 | DQ26: 2476.63208 | DR26: 313.283208 | DS26: 0 | DT26: 626.566416 | DU26: 1879.699248 | DV26: 3132.83208 | DW26: 313.283208 | DX26: 0 | DY26: 182.4115791 | DZ26: 1824.648705 | EA26: 2965.447801 | EB26: 576.124791 | EC26: 0 | ED26: 313 | EE26: 313 | EF26: 313 | EG26: 0 | EH26: 0 | EI26: 56.3 | EJ26: 6.3 | EK26: 6.3 | EL26: 0 | EM26: 1818.071708 | EN26: 1535.681531 | EO26: 3341.139456 | EP26: 3513.20469 | EQ26: 9.998011267e-07 | ER26: 0 | ES26: 2999.999986 | ET26: 8999.999889 | EU26: 14999.99972 | EV26: 1499.999998 | EW26: 1818.071708 | EX26: 4535.681517 | EY26: 12341.13934 | EZ26: 18513.20441 | FA26: 1499.999999
D27: Total Brood (includes imported) | E27: ='AHA CIs'!$DS$3 -> 0 | F27: ='AHA CIs'!$DS$5 -> - | G27: =MAX(E27-2*'AHA CIs'!$DS$4,0) -> 0 | H27: =E27+2*'AHA CIs'!$DS$4 -> 0 | I27: ='AHA CIs'!$DT$3 -> 626.566416 | J27: ='AHA CIs'!$DT$5 -> 3.70371408e-16 | K27: =MAX(I27-2*'AHA CIs'!$DT$4,0) -> 626.566416 | L27: =I27+2*'AHA CIs'!$DT$4 -> 626.566416 | M27: ='AHA CIs'!$DU$3 -> 1879.699248 | N27: ='AHA CIs'!$DU$5 -> 2.46914272e-16 | O27: =MAX(M27-2*'AHA CIs'!$DU$4,0) -> 1879.699248 | P27: =M27+2*'AHA CIs'!$DU$4 -> 1879.699248 | Q27: ='AHA CIs'!$DV$3 -> 3132.83208 | R27: ='AHA CIs'!$DV$5 -> 0 | S27: =MAX(Q27-2*'AHA CIs'!$DV$4,0) -> 3132.83208 | T27: =Q27+2*'AHA CIs'!$DV$4 -> 3132.83208 | U27: ='AHA CIs'!$DW$3 -> 313.283208 | V27: ='AHA CIs'!$DW$5 -> 5.555571121e-16 | W27: =MAX(U27-2*'AHA CIs'!$DW$4,0) -> 313.283208 | X27: =U27+2*'AHA CIs'!$DW$4 -> 313.283208 | AA27: 22 | AB27: 181807.1712 | AC27: 153568.3069 | AD27: 334114.949 | AE27: 351322.2269 | AF27: 9.998016266e-05 | AG27: 645.2809192 | AH27: 381.853303 | AI27: 1517.435293 | AJ27: 1532.321913 | AK27: 9.998011267e-07 | AL27: 0 | AM27: 162.3 | AN27: 389.3 | AO27: 645.3 | AP27: 63 | AQ27: 0 | AR27: 129.84 | AS27: 311.44 | AT27: 516.24 | AU27: 50.4 | AV27: 645.2809192 | AW27: 544.153303 | AX27: 1906.735293 | AY27: 2177.621913 | AZ27: 63.000001 | BA27: 636.3250979 | BB27: 537.4885358 | BC27: 1002.341837 | BD27: 1053.961407 | BE27: 0 | BF27: 0 | BG27: 1049.999995 | BH27: 2699.999967 | BI27: 4499.999917 | BJ27: 449.9999993 | BK27: 319.0715848 | BL27: 269.5121087 | BM27: 140.3278571 | BN27: 147.554597 | BO27: 0 | BP27: 0 | BQ27: 526.4999976 | BR27: 1259.999984 | BS27: 2099.999961 | BT27: 209.9999997 | BU27: 129.4012538 | BV27: 109.302133 | BW27: 65.95409286 | BX27: 69.35066058 | BY27: 0 | BZ27: 0 | CA27: 213.524999 | CB27: 680.3999916 | CC27: 1133.999979 | CD27: 113.3999998 | CE27: 87.99285261 | CF27: 74.32545041 | CG27: 51.18037606 | CH27: 53.81611261 | CI27: 0 | CJ27: 0 | CK27: 145.1969993 | CL27: 523.1519935 | CM27: 871.9199839 | CN27: 87.19199987 | CO27: 1172.790789 | CP27: 990.6282278 | CQ27: 1259.804163 | CR27: 1324.682777 | CS27: 0 | CT27: 0 | CU27: 1935.221991 | CV27: 5163.551936 | CW27: 8605.919841 | CX27: 860.5919987 | CY27: 1172.790789 | CZ27: 2925.850219 | DA27: 6423.356099 | DB27: 9930.602618 | DC27: 860.5919987 | DD27: 0 | DE27: 1000000 | DF27: 3000000 | DG27: 5000000 | DH27: 500000 | DI27: 0 | DJ27: 163.2 | DK27: 563.9 | DL27: 656.2 | DM27: 0 | DN27: 0 | DO27: 463.366416 | DP27: 1315.799248 | DQ27: 2476.63208 | DR27: 313.283208 | DS27: 0 | DT27: 626.566416 | DU27: 1879.699248 | DV27: 3132.83208 | DW27: 313.283208 | DX27: 0 | DY27: 182.4115791 | DZ27: 1824.648705 | EA27: 2965.447801 | EB27: 576.124791 | EC27: 0 | ED27: 313 | EE27: 313 | EF27: 313 | EG27: 0 | EH27: 0 | EI27: 56.3 | EJ27: 6.3 | EK27: 6.3 | EL27: 0 | EM27: 1818.071708 | EN27: 1535.681531 | EO27: 3341.139456 | EP27: 3513.20469 | EQ27: 9.998011267e-07 | ER27: 0 | ES27: 2999.999986 | ET27: 8999.999889 | EU27: 14999.99972 | EV27: 1499.999998 | EW27: 1818.071708 | EX27: 4535.681517 | EY27: 12341.13934 | EZ27: 18513.20441 | FA27: 1499.999999
D28: Surplus at Hatchery | E28: ='AHA CIs'!$DX$3 -> 0 | F28: ='AHA CIs'!$DX$5 -> - | G28: =MAX(E28-2*'AHA CIs'!$DX$4,0) -> 0 | H28: =E28+2*'AHA CIs'!$DX$4 -> 0 | I28: ='AHA CIs'!$DY$3 -> 182.4115791 | J28: ='AHA CIs'!$DY$5 -> 1.590238178e-16 | K28: =MAX(I28-2*'AHA CIs'!$DY$4,0) -> 182.4115791 | L28: =I28+2*'AHA CIs'!$DY$4 -> 182.4115791 | M28: ='AHA CIs'!$DZ$3 -> 1824.648705 | N28: ='AHA CIs'!$DZ$5 -> 1.271818982e-16 | O28: =MAX(M28-2*'AHA CIs'!$DZ$4,0) -> 1824.648705 | P28: =M28+2*'AHA CIs'!$DZ$4 -> 1824.648705 | Q28: ='AHA CIs'!$EA$3 -> 2965.447801 | R28: ='AHA CIs'!$EA$5 -> 4.695323633e-16 | S28: =MAX(Q28-2*'AHA CIs'!$EA$4,0) -> 2965.447801 | T28: =Q28+2*'AHA CIs'!$EA$4 -> 2965.447801 | U28: ='AHA CIs'!$EB$3 -> 576.124791 | V28: ='AHA CIs'!$EB$5 -> 2.01399323e-16 | W28: =MAX(U28-2*'AHA CIs'!$EB$4,0) -> 576.124791 | X28: =U28+2*'AHA CIs'!$EB$4 -> 576.124791 | AA28: 23 | AB28: 181807.1712 | AC28: 153568.3069 | AD28: 334114.949 | AE28: 351322.2269 | AF28: 9.998016266e-05 | AG28: 645.2809192 | AH28: 381.853303 | AI28: 1517.435293 | AJ28: 1532.321913 | AK28: 9.998011267e-07 | AL28: 0 | AM28: 162.3 | AN28: 389.3 | AO28: 645.3 | AP28: 63 | AQ28: 0 | AR28: 129.84 | AS28: 311.44 | AT28: 516.24 | AU28: 50.4 | AV28: 645.2809192 | AW28: 544.153303 | AX28: 1906.735293 | AY28: 2177.621913 | AZ28: 63.000001 | BA28: 636.3250979 | BB28: 537.4885358 | BC28: 1002.341837 | BD28: 1053.961407 | BE28: 0 | BF28: 0 | BG28: 1049.999995 | BH28: 2699.999967 | BI28: 4499.999917 | BJ28: 449.9999993 | BK28: 319.0715848 | BL28: 269.5121087 | BM28: 140.3278571 | BN28: 147.554597 | BO28: 0 | BP28: 0 | BQ28: 526.4999976 | BR28: 1259.999984 | BS28: 2099.999961 | BT28: 209.9999997 | BU28: 129.4012538 | BV28: 109.302133 | BW28: 65.95409286 | BX28: 69.35066058 | BY28: 0 | BZ28: 0 | CA28: 213.524999 | CB28: 680.3999916 | CC28: 1133.999979 | CD28: 113.3999998 | CE28: 87.99285261 | CF28: 74.32545041 | CG28: 51.18037606 | CH28: 53.81611261 | CI28: 0 | CJ28: 0 | CK28: 145.1969993 | CL28: 523.1519935 | CM28: 871.9199839 | CN28: 87.19199987 | CO28: 1172.790789 | CP28: 990.6282278 | CQ28: 1259.804163 | CR28: 1324.682777 | CS28: 0 | CT28: 0 | CU28: 1935.221991 | CV28: 5163.551936 | CW28: 8605.919841 | CX28: 860.5919987 | CY28: 1172.790789 | CZ28: 2925.850219 | DA28: 6423.356099 | DB28: 9930.602618 | DC28: 860.5919987 | DD28: 0 | DE28: 1000000 | DF28: 3000000 | DG28: 5000000 | DH28: 500000 | DI28: 0 | DJ28: 163.2 | DK28: 563.9 | DL28: 656.2 | DM28: 0 | DN28: 0 | DO28: 463.366416 | DP28: 1315.799248 | DQ28: 2476.63208 | DR28: 313.283208 | DS28: 0 | DT28: 626.566416 | DU28: 1879.699248 | DV28: 3132.83208 | DW28: 313.283208 | DX28: 0 | DY28: 182.4115791 | DZ28: 1824.648705 | EA28: 2965.447801 | EB28: 576.124791 | EC28: 0 | ED28: 313 | EE28: 313 | EF28: 313 | EG28: 0 | EH28: 0 | EI28: 56.3 | EJ28: 6.3 | EK28: 6.3 | EL28: 0 | EM28: 1818.071708 | EN28: 1535.681531 | EO28: 3341.139456 | EP28: 3513.20469 | EQ28: 9.998011267e-07 | ER28: 0 | ES28: 2999.999986 | ET28: 8999.999889 | EU28: 14999.99972 | EV28: 1499.999998 | EW28: 1818.071708 | EX28: 4535.681517 | EY28: 12341.13934 | EZ28: 18513.20441 | FA28: 1499.999999
D29: Exported Brood (from Hatchery Surplus) | E29: ='AHA CIs'!$EC$3 -> 0 | F29: ='AHA CIs'!$EC$5 -> - | G29: =MAX(E29-2*'AHA CIs'!$EC$4,0) -> 0 | H29: =E29+2*'AHA CIs'!$EC$4 -> 0 | I29: ='AHA CIs'!$ED$3 -> 313 | J29: ='AHA CIs'!$ED$5 -> 0 | K29: =MAX(I29-2*'AHA CIs'!$ED$4,0) -> 313 | L29: =I29+2*'AHA CIs'!$ED$4 -> 313 | M29: ='AHA CIs'!$EE$3 -> 313 | N29: ='AHA CIs'!$EE$5 -> 0 | O29: =MAX(M29-2*'AHA CIs'!$EE$4,0) -> 313 | P29: =M29+2*'AHA CIs'!$EE$4 -> 313 | Q29: ='AHA CIs'!$EF$3 -> 313 | R29: ='AHA CIs'!$EF$5 -> 0 | S29: =MAX(Q29-2*'AHA CIs'!$EF$4,0) -> 313 | T29: =Q29+2*'AHA CIs'!$EF$4 -> 313 | U29: ='AHA CIs'!$EG$3 -> 0 | V29: ='AHA CIs'!$EG$5 -> - | W29: =MAX(U29-2*'AHA CIs'!$EG$4,0) -> 0 | X29: =U29+2*'AHA CIs'!$EG$4 -> 0 | AA29: 24 | AB29: 181807.1712 | AC29: 153568.3069 | AD29: 334114.949 | AE29: 351322.2269 | AF29: 9.998016266e-05 | AG29: 645.2809192 | AH29: 381.853303 | AI29: 1517.435293 | AJ29: 1532.321913 | AK29: 9.998011267e-07 | AL29: 0 | AM29: 162.3 | AN29: 389.3 | AO29: 645.3 | AP29: 63 | AQ29: 0 | AR29: 129.84 | AS29: 311.44 | AT29: 516.24 | AU29: 50.4 | AV29: 645.2809192 | AW29: 544.153303 | AX29: 1906.735293 | AY29: 2177.621913 | AZ29: 63.000001 | BA29: 636.3250979 | BB29: 537.4885358 | BC29: 1002.341837 | BD29: 1053.961407 | BE29: 0 | BF29: 0 | BG29: 1049.999995 | BH29: 2699.999967 | BI29: 4499.999917 | BJ29: 449.9999993 | BK29: 319.0715848 | BL29: 269.5121087 | BM29: 140.3278571 | BN29: 147.554597 | BO29: 0 | BP29: 0 | BQ29: 526.4999976 | BR29: 1259.999984 | BS29: 2099.999961 | BT29: 209.9999997 | BU29: 129.4012538 | BV29: 109.302133 | BW29: 65.95409286 | BX29: 69.35066058 | BY29: 0 | BZ29: 0 | CA29: 213.524999 | CB29: 680.3999916 | CC29: 1133.999979 | CD29: 113.3999998 | CE29: 87.99285261 | CF29: 74.32545041 | CG29: 51.18037606 | CH29: 53.81611261 | CI29: 0 | CJ29: 0 | CK29: 145.1969993 | CL29: 523.1519935 | CM29: 871.9199839 | CN29: 87.19199987 | CO29: 1172.790789 | CP29: 990.6282278 | CQ29: 1259.804163 | CR29: 1324.682777 | CS29: 0 | CT29: 0 | CU29: 1935.221991 | CV29: 5163.551936 | CW29: 8605.919841 | CX29: 860.5919987 | CY29: 1172.790789 | CZ29: 2925.850219 | DA29: 6423.356099 | DB29: 9930.602618 | DC29: 860.5919987 | DD29: 0 | DE29: 1000000 | DF29: 3000000 | DG29: 5000000 | DH29: 500000 | DI29: 0 | DJ29: 163.2 | DK29: 563.9 | DL29: 656.2 | DM29: 0 | DN29: 0 | DO29: 463.366416 | DP29: 1315.799248 | DQ29: 2476.63208 | DR29: 313.283208 | DS29: 0 | DT29: 626.566416 | DU29: 1879.699248 | DV29: 3132.83208 | DW29: 313.283208 | DX29: 0 | DY29: 182.4115791 | DZ29: 1824.648705 | EA29: 2965.447801 | EB29: 576.124791 | EC29: 0 | ED29: 313 | EE29: 313 | EF29: 313 | EG29: 0 | EH29: 0 | EI29: 56.3 | EJ29: 6.3 | EK29: 6.3 | EL29: 0 | EM29: 1818.071708 | EN29: 1535.681531 | EO29: 3341.139456 | EP29: 3513.20469 | EQ29: 9.998011267e-07 | ER29: 0 | ES29: 2999.999986 | ET29: 8999.999889 | EU29: 14999.99972 | EV29: 1499.999998 | EW29: 1818.071708 | EX29: 4535.681517 | EY29: 12341.13934 | EZ29: 18513.20441 | FA29: 1499.999999
D30: External Strays | E30: ='AHA CIs'!$EH$3 -> 0 | F30: ='AHA CIs'!$EH$5 -> - | G30: =MAX(E30-2*'AHA CIs'!$EH$4,0) -> 0 | H30: =E30+2*'AHA CIs'!$EH$4 -> 0 | I30: ='AHA CIs'!$EI$3 -> 56.3 | J30: ='AHA CIs'!$EI$5 -> 3.864269856e-16 | K30: =MAX(I30-2*'AHA CIs'!$EI$4,0) -> 56.3 | L30: =I30+2*'AHA CIs'!$EI$4 -> 56.3 | M30: ='AHA CIs'!$EJ$3 -> 6.3 | N30: ='AHA CIs'!$EJ$5 -> 1.43887826e-16 | O30: =MAX(M30-2*'AHA CIs'!$EJ$4,0) -> 6.3 | P30: =M30+2*'AHA CIs'!$EJ$4 -> 6.3 | Q30: ='AHA CIs'!$EK$3 -> 6.3 | R30: ='AHA CIs'!$EK$5 -> 1.43887826e-16 | S30: =MAX(Q30-2*'AHA CIs'!$EK$4,0) -> 6.3 | T30: =Q30+2*'AHA CIs'!$EK$4 -> 6.3 | U30: ='AHA CIs'!$EL$3 -> 0 | V30: ='AHA CIs'!$EL$5 -> - | W30: =MAX(U30-2*'AHA CIs'!$EL$4,0) -> 0 | X30: =U30+2*'AHA CIs'!$EL$4 -> 0 | AA30: 25 | AB30: 181807.1712 | AC30: 153568.3069 | AD30: 334114.949 | AE30: 351322.2269 | AF30: 9.998016266e-05 | AG30: 645.2809192 | AH30: 381.853303 | AI30: 1517.435293 | AJ30: 1532.321913 | AK30: 9.998011267e-07 | AL30: 0 | AM30: 162.3 | AN30: 389.3 | AO30: 645.3 | AP30: 63 | AQ30: 0 | AR30: 129.84 | AS30: 311.44 | AT30: 516.24 | AU30: 50.4 | AV30: 645.2809192 | AW30: 544.153303 | AX30: 1906.735293 | AY30: 2177.621913 | AZ30: 63.000001 | BA30: 636.3250979 | BB30: 537.4885358 | BC30: 1002.341837 | BD30: 1053.961407 | BE30: 0 | BF30: 0 | BG30: 1049.999995 | BH30: 2699.999967 | BI30: 4499.999917 | BJ30: 449.9999993 | BK30: 319.0715848 | BL30: 269.5121087 | BM30: 140.3278571 | BN30: 147.554597 | BO30: 0 | BP30: 0 | BQ30: 526.4999976 | BR30: 1259.999984 | BS30: 2099.999961 | BT30: 209.9999997 | BU30: 129.4012538 | BV30: 109.302133 | BW30: 65.95409286 | BX30: 69.35066058 | BY30: 0 | BZ30: 0 | CA30: 213.524999 | CB30: 680.3999916 | CC30: 1133.999979 | CD30: 113.3999998 | CE30: 87.99285261 | CF30: 74.32545041 | CG30: 51.18037606 | CH30: 53.81611261 | CI30: 0 | CJ30: 0 | CK30: 145.1969993 | CL30: 523.1519935 | CM30: 871.9199839 | CN30: 87.19199987 | CO30: 1172.790789 | CP30: 990.6282278 | CQ30: 1259.804163 | CR30: 1324.682777 | CS30: 0 | CT30: 0 | CU30: 1935.221991 | CV30: 5163.551936 | CW30: 8605.919841 | CX30: 860.5919987 | CY30: 1172.790789 | CZ30: 2925.850219 | DA30: 6423.356099 | DB30: 9930.602618 | DC30: 860.5919987 | DD30: 0 | DE30: 1000000 | DF30: 3000000 | DG30: 5000000 | DH30: 500000 | DI30: 0 | DJ30: 163.2 | DK30: 563.9 | DL30: 656.2 | DM30: 0 | DN30: 0 | DO30: 463.366416 | DP30: 1315.799248 | DQ30: 2476.63208 | DR30: 313.283208 | DS30: 0 | DT30: 626.566416 | DU30: 1879.699248 | DV30: 3132.83208 | DW30: 313.283208 | DX30: 0 | DY30: 182.4115791 | DZ30: 1824.648705 | EA30: 2965.447801 | EB30: 576.124791 | EC30: 0 | ED30: 313 | EE30: 313 | EF30: 313 | EG30: 0 | EH30: 0 | EI30: 56.3 | EJ30: 6.3 | EK30: 6.3 | EL30: 0 | EM30: 1818.071708 | EN30: 1535.681531 | EO30: 3341.139456 | EP30: 3513.20469 | EQ30: 9.998011267e-07 | ER30: 0 | ES30: 2999.999986 | ET30: 8999.999889 | EU30: 14999.99972 | EV30: 1499.999998 | EW30: 1818.071708 | EX30: 4535.681517 | EY30: 12341.13934 | EZ30: 18513.20441 | FA30: 1499.999999
B31: Total Run | D31: Total NOR Run Size | E31: ='AHA CIs'!$EM$3 -> 1818.071708 | F31: ='AHA CIs'!$EM$5 -> 2.552839744e-16 | G31: =MAX(E31-2*'AHA CIs'!$EM$4,0) -> 1818.071708 | H31: =E31+2*'AHA CIs'!$EM$4 -> 1818.071708 | I31: ='AHA CIs'!$EN$3 -> 1535.681531 | J31: ='AHA CIs'!$EN$5 -> 6.044541946e-16 | K31: =MAX(I31-2*'AHA CIs'!$EN$4,0) -> 1535.681531 | L31: =I31+2*'AHA CIs'!$EN$4 -> 1535.681531 | M31: ='AHA CIs'!$EO$3 -> 3341.139456 | N31: ='AHA CIs'!$EO$5 -> 0 | O31: =MAX(M31-2*'AHA CIs'!$EO$4,0) -> 3341.139456 | P31: =M31+2*'AHA CIs'!$EO$4 -> 3341.139456 | Q31: ='AHA CIs'!$EP$3 -> 3513.20469 | R31: ='AHA CIs'!$EP$5 -> 0 | S31: =MAX(Q31-2*'AHA CIs'!$EP$4,0) -> 3513.20469 | T31: =Q31+2*'AHA CIs'!$EP$4 -> 3513.20469 | U31: ='AHA CIs'!$EQ$3 -> 9.998011267e-07 | V31: ='AHA CIs'!$EQ$5 -> 0 | W31: =MAX(U31-2*'AHA CIs'!$EQ$4,0) -> 9.998011267e-07 | X31: =U31+2*'AHA CIs'!$EQ$4 -> 9.998011267e-07 | AA31: 26
D32: Total HOR Run Size* | E32: ='AHA CIs'!$ER$3 -> 0 | F32: ='AHA CIs'!$ER$5 -> - | G32: =MAX(E32-2*'AHA CIs'!$ER$4,0) -> 0 | H32: =E32+2*'AHA CIs'!$ER$4 -> 0 | I32: ='AHA CIs'!$ES$3 -> 2999.999986 | J32: ='AHA CIs'!$ES$5 -> 3.094163824e-16 | K32: =MAX(I32-2*'AHA CIs'!$ES$4,0) -> 2999.999986 | L32: =I32+2*'AHA CIs'!$ES$4 -> 2999.999986 | M32: ='AHA CIs'!$ET$3 -> 8999.999889 | N32: ='AHA CIs'!$ET$5 -> 6.188327696e-16 | O32: =MAX(M32-2*'AHA CIs'!$ET$4,0) -> 8999.999889 | P32: =M32+2*'AHA CIs'!$ET$4 -> 8999.999889 | Q32: ='AHA CIs'!$EU$3 -> 14999.99972 | R32: ='AHA CIs'!$EU$5 -> 3.712996641e-16 | S32: =MAX(Q32-2*'AHA CIs'!$EU$4,0) -> 14999.99972 | T32: =Q32+2*'AHA CIs'!$EU$4 -> 14999.99972 | U32: ='AHA CIs'!$EV$3 -> 1499.999998 | V32: ='AHA CIs'!$EV$5 -> 0 | W32: =MAX(U32-2*'AHA CIs'!$EV$4,0) -> 1499.999998 | X32: =U32+2*'AHA CIs'!$EV$4 -> 1499.999998 | AA32: 27
D33: Total Run Size* | E33: ='AHA CIs'!$EW$3 -> 1818.071708 | F33: ='AHA CIs'!$EW$5 -> 2.552839744e-16 | G33: =MAX(E33-2*'AHA CIs'!$EW$4,0) -> 1818.071708 | H33: =E33+2*'AHA CIs'!$EW$4 -> 1818.071708 | I33: ='AHA CIs'!$EX$3 -> 4535.681517 | J33: ='AHA CIs'!$EX$5 -> 6.139644987e-16 | K33: =MAX(I33-2*'AHA CIs'!$EX$4,0) -> 4535.681517 | L33: =I33+2*'AHA CIs'!$EX$4 -> 4535.681517 | M33: ='AHA CIs'!$EY$3 -> 12341.13934 | N33: ='AHA CIs'!$EY$5 -> 6.017267074e-16 | O33: =MAX(M33-2*'AHA CIs'!$EY$4,0) -> 12341.13934 | P33: =M33+2*'AHA CIs'!$EY$4 -> 12341.13934 | Q33: ='AHA CIs'!$EZ$3 -> 18513.20441 | R33: ='AHA CIs'!$EZ$5 -> 4.011187355e-16 | S33: =MAX(Q33-2*'AHA CIs'!$EZ$4,0) -> 18513.20441 | T33: =Q33+2*'AHA CIs'!$EZ$4 -> 18513.20441 | U33: ='AHA CIs'!$FA$3 -> 1499.999999 | V33: ='AHA CIs'!$FA$5 -> 0 | W33: =MAX(U33-2*'AHA CIs'!$FA$4,0) -> 1499.999999 | X33: =U33+2*'AHA CIs'!$FA$4 -> 1499.999999 | AA33: 28
AA34: 29
AA35: 30
AA36: 31
AA37: 32
AA38: 33
AA39: 34
AA40: 35
AA41: 36
AA42: 37
AA43: 38
AA44: 39
AA45: 40
AA46: 41
AA47: 42
AA48: 43
AA49: 44
AA50: 45
AA51: 46
AA52: 47
AA53: 48
AA54: 49
AA55: 50
AA56: 51
AA57: 52
AA58: 53
AA59: 54
AA60: 55
AA61: 56
AA62: 57
AA63: 58
AA64: 59
AA65: 60
AA66: 61
AA67: 62
AA68: 63
AA69: 64
AA70: 65
AA71: 66
AA72: =AA71+1 -> 67
AA73: 68
AA74: 69
AA75: 70
AA76: 71
AA77: 72
AA78: 73
AA79: 74
AA80: 75
AA81: 76
AA82: 77
AA83: 78
AA84: 79
AA85: 80
AA86: 81
AA87: 82
AA88: 83
AA89: 84
AA90: 85
AA91: 86
AA92: 87
AA93: 88
AA94: 89
AA95: 90
AA96: 91
AA97: 92
AA98: 93
AA99: 94
AA100: 95
AA101: 96
AA102: 97
AA103: 98
AA104: 99
AA105: 100
AA106: 101
AA107: 102
AA108: 103
AA109: 104
AA110: 105
AA111: 106
AA112: 107
AA113: 108
AA114: 109
AA115: 110
AA116: 111
AA117: 112
AA118: 113
AA119: 114
AA120: 115
AA121: 116
AA122: 117
AA123: 118
AA124: 119
AA125: 120
AA126: 121
AA127: 122
AA128: 123
AA129: 124
AA130: 125
AA131: 126
AA132: 127
AA133: 128
AA134: 129
AA135: 130
AA136: =AA135+1 -> 131
AA137: 132
AA138: 133
AA139: 134
AA140: 135
AA141: 136
AA142: 137
AA143: 138
AA144: 139
AA145: 140
AA146: 141
AA147: 142
AA148: 143
AA149: 144
AA150: 145
AA151: 146
AA152: 147
AA153: 148
AA154: 149
AA155: 150
AA156: 151
AA157: 152
AA158: 153
AA159: 154
AA160: 155
AA161: 156
AA162: 157
AA163: 158
AA164: 159
AA165: 160
AA166: 161
AA167: 162
AA168: 163
AA169: 164
AA170: 165
AA171: 166
AA172: 167
AA173: 168
AA174: 169
AA175: 170
AA176: 171
AA177: 172
AA178: 173
AA179: 174
AA180: 175
AA181: 176
AA182: 177
AA183: 178
AA184: 179
AA185: 180
AA186: 181
AA187: 182
AA188: 183
AA189: 184
AA190: 185
AA191: 186
AA192: 187
AA193: 188
AA194: 189
AA195: 190
AA196: 191
AA197: 192
AA198: 193
AA199: 194
AA200: =AA199+1 -> 195
... 805 more rows

Sheet Habitat
A1: Natural Production Assumptions | H1: This worksheet is optional. It may be used to calculate adult and smolt productivity (Steps 1, 2 and 3 below). If the observed SAR differs from the baseline SAR used in EDT modeling, those values are entered here.
B4: INPUTS in YELLOW CELLS | D4: =AHA!H3 -> Scenario 1 | G4: =AHA!M3 -> Scenario 2 | J4: =AHA!R3 -> Scenario 3 | M4: =AHA!W3 -> Scenario 4
C6: Step 1. Enter SAR assumptions. These values are used in the calculations of adult and smolt productivity and capacity values below.
B7: Observed Basin to Basin SAR | P7: If EDT SAR assumption differs from the basin to basin SAR, adjusted productivity and capacity will differ from adult productivity and capacity (shown on the AHA tab).
B8: Baseline SAR used in EDT Analysis (leave blank if N/A)
C10: Step 2. Enter Productivity and Capacity Assumptions here in the yellow cells (either adult values or smolt values, depending on the data available).
D11: Productivity | E11: Capacity | G11: Productivity | H11: Capacity | J11: Productivity | K11: Capacity | M11: Productivity | N11: Capacity
B12: Enter Adult Values | C12: Enter Adult Values
B13: Calculate Smolt Values | C13: Calculate Smolt Values | D13: =IFERROR(D12/D7,"-") -> - | E13: =IFERROR(E12/D7,"-") -> - | G13: =IFERROR(G12/G7,"-") -> - | H13: =IFERROR(H12/G7,"-") -> - | J13: =IFERROR(J12/J7,"-") -> - | K13: =IFERROR(K12/J7,"-") -> - | M13: =IFERROR(M12/M7,"-") -> - | N13: =IFERROR(N12/M7,"-") -> -
B15: OR
B17: Enter Smolt Values | C17: Enter Smolt Values
B18: Calculate Adult Values | C18: Calculate Adult Values | D18: =D17*D7 -> 0 | E18: =E17*D7 -> 0 | G18: =G17*G7 -> 0 | H18: =H17*G7 -> 0 | J18: =J17*J7 -> 0 | K18: =K17*J7 -> 0 | M18: =M17*M7 -> 0 | N18: =N17*M7 -> 0
C20: Step 3. Enter the resulting adult and smolt values on the AHA tab in rows 16 and 17.
I24: Choose up to two scenarios below to display in the graph (click on orange cells below to display the drop down menu):
AI25: =AHA!H6 -> No Hatchery
I26: No Hatchery | AI26: =AHA!M6 -> Naselle Scen. 1
I27: Productivity | J27: =IF($I$26=AHA!$H$6,AHA!$H$16,IF($I$26=AHA!$M$6,AHA!$M$16,IF($I$26=AHA!$R$6,AHA!$R$16,IF($I$26=AHA!$W$6,AHA!$W$16)))) -> 4 | AI27: =AHA!R6 -> Naselle Scen. 2
I28: Capacity | J28: =IF($I$26=AHA!$H$6,AHA!$J$16,IF($I$26=AHA!$M$6,AHA!$O$16,IF($I$26=AHA!$R$6,AHA!$T$16,IF($I$26=AHA!$W$6,AHA!$Y$16)))) -> 6150 | AI28: =AHA!W6 -> Naselle Scen. 3
I30: Naselle Scen. 3
I31: Productivity | J31: =IF($I$30=AHA!$H$6,AHA!$H$16,IF($I$30=AHA!$M$6,AHA!$M$16,IF($I$30=AHA!$R$6,AHA!$R$16,IF($I$30=AHA!$W$6,AHA!$W$16)))) -> 4
I32: Capacity | J32: =IF($I$30=AHA!$H$6,AHA!$J$16,IF($I$30=AHA!$M$6,AHA!$O$16,IF($I$30=AHA!$R$6,AHA!$T$16,IF($I$30=AHA!$W$6,AHA!$Y$16)))) -> 6150
C40: Beverton-Holt Spawner-Recruit Calculations
D41: =I26 -> No Hatchery | G41: =I30 -> Naselle Scen. 3
D42: S | E42: R | F42: DI | G42: S | H42: R | I42: DI
C43: 0.01 | D43: =C43*J$28 -> 61.5 | E43: =($D43*$J$27)/(1+$D43*$J$27/$J$28) -> 236.5384615 | F43: =D43 -> 61.5 | G43: =C43*J$32 -> 61.5 | H43: =($D43*$J$31)/(1+$D43*$J$31/$J$32) -> 236.5384615 | I43: =G43 -> 61.5
C44: 0.02 | D44: =C44*J$28 -> 123 | E44: =($D44*$J$27)/(1+$D44*$J$27/$J$28) -> 455.5555556 | F44: 123 | G44: =C44*J$32 -> 123 | H44: =($D44*$J$31)/(1+$D44*$J$31/$J$32) -> 455.5555556 | I44: 123
C45: 0.03 | D45: 184.5 | E45: 658.9285714 | F45: 184.5 | G45: 184.5 | H45: 658.9285714 | I45: 184.5
C46: 0.04 | D46: 246 | E46: 848.2758621 | F46: 246 | G46: 246 | H46: 848.2758621 | I46: 246
C47: 0.05 | D47: 307.5 | E47: 1025 | F47: 307.5 | G47: 307.5 | H47: 1025 | I47: 307.5
C48: 0.06 | D48: 369 | E48: 1190.322581 | F48: 369 | G48: 369 | H48: 1190.322581 | I48: 369
C49: 0.07 | D49: 430.5 | E49: 1345.3125 | F49: 430.5 | G49: 430.5 | H49: 1345.3125 | I49: 430.5
C50: 0.08 | D50: 492 | E50: 1490.909091 | F50: 492 | G50: 492 | H50: 1490.909091 | I50: 492
C51: 0.09 | D51: 553.5 | E51: 1627.941176 | F51: 553.5 | G51: 553.5 | H51: 1627.941176 | I51: 553.5
C52: 0.1 | D52: 615 | E52: 1757.142857 | F52: 615 | G52: 615 | H52: 1757.142857 | I52: 615
C53: 0.11 | D53: 676.5 | E53: 1879.166667 | F53: 676.5 | G53: 676.5 | H53: 1879.166667 | I53: 676.5
C54: 0.12 | D54: 738 | E54: 1994.594595 | F54: 738 | G54: 738 | H54: 1994.594595 | I54: 738
C55: 0.13 | D55: 799.5 | E55: 2103.947368 | F55: 799.5 | G55: 799.5 | H55: 2103.947368 | I55: 799.5
C56: 0.14 | D56: 861 | E56: 2207.692308 | F56: 861 | G56: 861 | H56: 2207.692308 | I56: 861
C57: 0.15 | D57: 922.5 | E57: 2306.25 | F57: 922.5 | G57: 922.5 | H57: 2306.25 | I57: 922.5
C58: 0.16 | D58: 984 | E58: 2400 | F58: 984 | G58: 984 | H58: 2400 | I58: 984
C59: 0.17 | D59: 1045.5 | E59: 2489.285714 | F59: 1045.5 | G59: 1045.5 | H59: 2489.285714 | I59: 1045.5
C60: 0.18 | D60: 1107 | E60: 2574.418605 | F60: 1107 | G60: 1107 | H60: 2574.418605 | I60: 1107
C61: 0.19 | D61: 1168.5 | E61: 2655.681818 | F61: 1168.5 | G61: 1168.5 | H61: 2655.681818 | I61: 1168.5
C62: 0.2 | D62: 1230 | E62: 2733.333333 | F62: 1230 | G62: 1230 | H62: 2733.333333 | I62: 1230
C63: 0.21 | D63: 1291.5 | E63: 2807.608696 | F63: 1291.5 | G63: 1291.5 | H63: 2807.608696 | I63: 1291.5
C64: 0.22 | D64: 1353 | E64: 2878.723404 | F64: 1353 | G64: 1353 | H64: 2878.723404 | I64: 1353
C65: 0.23 | D65: 1414.5 | E65: 2946.875 | F65: 1414.5 | G65: 1414.5 | H65: 2946.875 | I65: 1414.5
C66: 0.24 | D66: 1476 | E66: 3012.244898 | F66: 1476 | G66: 1476 | H66: 3012.244898 | I66: 1476
C67: 0.25 | D67: 1537.5 | E67: 3075 | F67: 1537.5 | G67: 1537.5 | H67: 3075 | I67: 1537.5
C68: 0.26 | D68: 1599 | E68: 3135.294118 | F68: 1599 | G68: 1599 | H68: 3135.294118 | I68: 1599
C69: 0.27 | D69: 1660.5 | E69: 3193.269231 | F69: 1660.5 | G69: 1660.5 | H69: 3193.269231 | I69: 1660.5
C70: 0.28 | D70: 1722 | E70: 3249.056604 | F70: 1722 | G70: 1722 | H70: 3249.056604 | I70: 1722
C71: 0.29 | D71: 1783.5 | E71: 3302.777778 | F71: 1783.5 | G71: 1783.5 | H71: 3302.777778 | I71: 1783.5
C72: 0.3 | D72: 1845 | E72: 3354.545455 | F72: 1845 | G72: 1845 | H72: 3354.545455 | I72: 1845
C73: 0.31 | D73: 1906.5 | E73: 3404.464286 | F73: 1906.5 | G73: 1906.5 | H73: 3404.464286 | I73: 1906.5
C74: 0.32 | D74: 1968 | E74: 3452.631579 | F74: 1968 | G74: 1968 | H74: 3452.631579 | I74: 1968
C75: 0.33 | D75: 2029.5 | E75: 3499.137931 | F75: 2029.5 | G75: 2029.5 | H75: 3499.137931 | I75: 2029.5
C76: 0.34 | D76: 2091 | E76: 3544.067797 | F76: 2091 | G76: 2091 | H76: 3544.067797 | I76: 2091
C77: 0.35 | D77: 2152.5 | E77: 3587.5 | F77: 2152.5 | G77: 2152.5 | H77: 3587.5 | I77: 2152.5
C78: 0.36 | D78: 2214 | E78: 3629.508197 | F78: 2214 | G78: 2214 | H78: 3629.508197 | I78: 2214
C79: 0.37 | D79: 2275.5 | E79: 3670.16129 | F79: 2275.5 | G79: 2275.5 | H79: 3670.16129 | I79: 2275.5
C80: 0.38 | D80: 2337 | E80: 3709.52381 | F80: 2337 | G80: 2337 | H80: 3709.52381 | I80: 2337
C81: 0.39 | D81: 2398.5 | E81: 3747.65625 | F81: 2398.5 | G81: 2398.5 | H81: 3747.65625 | I81: 2398.5
C82: 0.4 | D82: 2460 | E82: 3784.615385 | F82: 2460 | G82: 2460 | H82: 3784.615385 | I82: 2460
C83: 0.41 | D83: 2521.5 | E83: 3820.454545 | F83: 2521.5 | G83: 2521.5 | H83: 3820.454545 | I83: 2521.5
C84: 0.42 | D84: 2583 | E84: 3855.223881 | F84: 2583 | G84: 2583 | H84: 3855.223881 | I84: 2583
C85: 0.43 | D85: 2644.5 | E85: 3888.970588 | F85: 2644.5 | G85: 2644.5 | H85: 3888.970588 | I85: 2644.5
C86: 0.44 | D86: 2706 | E86: 3921.73913 | F86: 2706 | G86: 2706 | H86: 3921.73913 | I86: 2706
C87: 0.45 | D87: 2767.5 | E87: 3953.571429 | F87: 2767.5 | G87: 2767.5 | H87: 3953.571429 | I87: 2767.5
C88: 0.46 | D88: 2829 | E88: 3984.507042 | F88: 2829 | G88: 2829 | H88: 3984.507042 | I88: 2829
C89: 0.47 | D89: 2890.5 | E89: 4014.583333 | F89: 2890.5 | G89: 2890.5 | H89: 4014.583333 | I89: 2890.5
C90: 0.48 | D90: 2952 | E90: 4043.835616 | F90: 2952 | G90: 2952 | H90: 4043.835616 | I90: 2952
C91: 0.49 | D91: 3013.5 | E91: 4072.297297 | F91: 3013.5 | G91: 3013.5 | H91: 4072.297297 | I91: 3013.5
C92: 0.5 | D92: 3075 | E92: 4100 | F92: 3075 | G92: 3075 | H92: 4100 | I92: 3075
C93: 0.51 | D93: 3136.5 | E93: 4126.973684 | F93: 3136.5 | G93: 3136.5 | H93: 4126.973684 | I93: 3136.5
C94: 0.52 | D94: 3198 | E94: 4153.246753 | F94: 3198 | G94: 3198 | H94: 4153.246753 | I94: 3198
C95: 0.53 | D95: 3259.5 | E95: 4178.846154 | F95: 3259.5 | G95: 3259.5 | H95: 4178.846154 | I95: 3259.5
C96: 0.54 | D96: 3321 | E96: 4203.797468 | F96: 3321 | G96: 3321 | H96: 4203.797468 | I96: 3321
C97: 0.55 | D97: 3382.5 | E97: 4228.125 | F97: 3382.5 | G97: 3382.5 | H97: 4228.125 | I97: 3382.5
C98: 0.56 | D98: 3444 | E98: 4251.851852 | F98: 3444 | G98: 3444 | H98: 4251.851852 | I98: 3444
C99: 0.57 | D99: 3505.5 | E99: 4275 | F99: 3505.5 | G99: 3505.5 | H99: 4275 | I99: 3505.5
C100: 0.58 | D100: 3567 | E100: 4297.590361 | F100: 3567 | G100: 3567 | H100: 4297.590361 | I100: 3567
C101: 0.59 | D101: 3628.5 | E101: 4319.642857 | F101: 3628.5 | G101: 3628.5 | H101: 4319.642857 | I101: 3628.5
C102: 0.6 | D102: 3690 | E102: 4341.176471 | F102: 3690 | G102: 3690 | H102: 4341.176471 | I102: 3690
C103: 0.61 | D103: 3751.5 | E103: 4362.209302 | F103: 3751.5 | G103: 3751.5 | H103: 4362.209302 | I103: 3751.5
C104: 0.62 | D104: 3813 | E104: 4382.758621 | F104: 3813 | G104: 3813 | H104: 4382.758621 | I104: 3813
C105: 0.63 | D105: 3874.5 | E105: 4402.840909 | F105: 3874.5 | G105: 3874.5 | H105: 4402.840909 | I105: 3874.5
C106: 0.64 | D106: 3936 | E106: 4422.47191 | F106: 3936 | G106: 3936 | H106: 4422.47191 | I106: 3936
C107: 0.65 | D107: 3997.5 | E107: 4441.666667 | F107: =D107 -> 3997.5 | G107: 3997.5 | H107: 4441.666667 | I107: =G107 -> 3997.5
C108: 0.66 | D108: =C108*J$28 -> 4059 | E108: =($D108*$J$27)/(1+$D108*$J$27/$J$28) -> 4460.43956 | F108: 4059 | G108: =C108*J$32 -> 4059 | H108: =($D108*$J$31)/(1+$D108*$J$31/$J$32) -> 4460.43956 | I108: 4059
C109: 0.67 | D109: 4120.5 | E109: 4478.804348 | F109: 4120.5 | G109: 4120.5 | H109: 4478.804348 | I109: 4120.5
C110: 0.68 | D110: 4182 | E110: 4496.774194 | F110: 4182 | G110: 4182 | H110: 4496.774194 | I110: 4182
C111: 0.69 | D111: 4243.5 | E111: 4514.361702 | F111: 4243.5 | G111: 4243.5 | H111: 4514.361702 | I111: 4243.5
C112: 0.7 | D112: 4305 | E112: 4531.578947 | F112: 4305 | G112: 4305 | H112: 4531.578947 | I112: 4305
C113: 0.71 | D113: 4366.5 | E113: 4548.4375 | F113: 4366.5 | G113: 4366.5 | H113: 4548.4375 | I113: 4366.5
C114: 0.72 | D114: 4428 | E114: 4564.948454 | F114: 4428 | G114: 4428 | H114: 4564.948454 | I114: 4428
C115: 0.73 | D115: 4489.5 | E115: 4581.122449 | F115: 4489.5 | G115: 4489.5 | H115: 4581.122449 | I115: 4489.5
C116: 0.74 | D116: 4551 | E116: 4596.969697 | F116: 4551 | G116: 4551 | H116: 4596.969697 | I116: 4551
C117: 0.75 | D117: 4612.5 | E117: 4612.5 | F117: 4612.5 | G117: 4612.5 | H117: 4612.5 | I117: 4612.5
C118: 0.76 | D118: 4674 | E118: 4627.722772 | F118: 4674 | G118: 4674 | H118: 4627.722772 | I118: 4674
C119: 0.77 | D119: 4735.5 | E119: 4642.647059 | F119: 4735.5 | G119: 4735.5 | H119: 4642.647059 | I119: 4735.5
C120: 0.78 | D120: 4797 | E120: 4657.281553 | F120: 4797 | G120: 4797 | H120: 4657.281553 | I120: 4797
C121: 0.79 | D121: 4858.5 | E121: 4671.634615 | F121: 4858.5 | G121: 4858.5 | H121: 4671.634615 | I121: 4858.5
C122: 0.8 | D122: 4920 | E122: 4685.714286 | F122: 4920 | G122: 4920 | H122: 4685.714286 | I122: 4920
C123: 0.81 | D123: 4981.5 | E123: 4699.528302 | F123: 4981.5 | G123: 4981.5 | H123: 4699.528302 | I123: 4981.5
C124: 0.82 | D124: 5043 | E124: 4713.084112 | F124: 5043 | G124: 5043 | H124: 4713.084112 | I124: 5043
C125: 0.83 | D125: 5104.5 | E125: 4726.388889 | F125: 5104.5 | G125: 5104.5 | H125: 4726.388889 | I125: 5104.5
C126: 0.84 | D126: 5166 | E126: 4739.449541 | F126: 5166 | G126: 5166 | H126: 4739.449541 | I126: 5166
C127: 0.85 | D127: 5227.5 | E127: 4752.272727 | F127: 5227.5 | G127: 5227.5 | H127: 4752.272727 | I127: 5227.5
C128: 0.86 | D128: 5289 | E128: 4764.864865 | F128: 5289 | G128: 5289 | H128: 4764.864865 | I128: 5289
C129: 0.87 | D129: 5350.5 | E129: 4777.232143 | F129: 5350.5 | G129: 5350.5 | H129: 4777.232143 | I129: 5350.5
C130: 0.88 | D130: 5412 | E130: 4789.380531 | F130: 5412 | G130: 5412 | H130: 4789.380531 | I130: 5412
C131: 0.89 | D131: 5473.5 | E131: 4801.315789 | F131: 5473.5 | G131: 5473.5 | H131: 4801.315789 | I131: 5473.5
C132: 0.9 | D132: 5535 | E132: 4813.043478 | F132: 5535 | G132: 5535 | H132: 4813.043478 | I132: 5535
C133: 0.91 | D133: 5596.5 | E133: 4824.568966 | F133: 5596.5 | G133: 5596.5 | H133: 4824.568966 | I133: 5596.5
C134: 0.92 | D134: 5658 | E134: 4835.897436 | F134: 5658 | G134: 5658 | H134: 4835.897436 | I134: 5658
C135: 0.93 | D135: 5719.5 | E135: 4847.033898 | F135: 5719.5 | G135: 5719.5 | H135: 4847.033898 | I135: 5719.5
C136: 0.94 | D136: 5781 | E136: 4857.983193 | F136: 5781 | G136: 5781 | H136: 4857.983193 | I136: 5781
C137: 0.95 | D137: 5842.5 | E137: 4868.75 | F137: 5842.5 | G137: 5842.5 | H137: 4868.75 | I137: 5842.5
C138: 0.96 | D138: 5904 | E138: 4879.338843 | F138: 5904 | G138: 5904 | H138: 4879.338843 | I138: 5904
C139: 0.97 | D139: 5965.5 | E139: 4889.754098 | F139: 5965.5 | G139: 5965.5 | H139: 4889.754098 | I139: 5965.5
C140: 0.98 | D140: 6027 | E140: 4900 | F140: 6027 | G140: 6027 | H140: 4900 | I140: 6027
C141: 0.99 | D141: 6088.5 | E141: 4910.080645 | F141: 6088.5 | G141: 6088.5 | H141: 4910.080645 | I141: 6088.5
C142: 1 | D142: 6150 | E142: 4920 | F142: 6150 | G142: 6150 | H142: 4920 | I142: 6150
C143: 1.01 | D143: 6211.5 | E143: 4929.761905 | F143: 6211.5 | G143: 6211.5 | H143: 4929.761905 | I143: 6211.5
C144: 1.02 | D144: 6273 | E144: 4939.370079 | F144: 6273 | G144: 6273 | H144: 4939.370079 | I144: 6273
C145: 1.03 | D145: 6334.5 | E145: 4948.828125 | F145: 6334.5 | G145: 6334.5 | H145: 4948.828125 | I145: 6334.5
C146: 1.04 | D146: 6396 | E146: 4958.139535 | F146: 6396 | G146: 6396 | H146: 4958.139535 | I146: 6396
C147: 1.05 | D147: 6457.5 | E147: 4967.307692 | F147: 6457.5 | G147: 6457.5 | H147: 4967.307692 | I147: 6457.5
C148: 1.06 | D148: 6519 | E148: 4976.335878 | F148: 6519 | G148: 6519 | H148: 4976.335878 | I148: 6519
C149: 1.07 | D149: 6580.5 | E149: 4985.227273 | F149: 6580.5 | G149: 6580.5 | H149: 4985.227273 | I149: 6580.5
C150: 1.08 | D150: 6642 | E150: 4993.984962 | F150: 6642 | G150: 6642 | H150: 4993.984962 | I150: 6642
C151: 1.09 | D151: 6703.5 | E151: 5002.61194 | F151: 6703.5 | G151: 6703.5 | H151: 5002.61194 | I151: 6703.5
C152: 1.1 | D152: 6765 | E152: 5011.111111 | F152: 6765 | G152: 6765 | H152: 5011.111111 | I152: 6765
C153: 1.11 | D153: 6826.5 | E153: 5019.485294 | F153: 6826.5 | G153: 6826.5 | H153: 5019.485294 | I153: 6826.5
C154: 1.12 | D154: 6888 | E154: 5027.737226 | F154: 6888 | G154: 6888 | H154: 5027.737226 | I154: 6888
C155: 1.13 | D155: 6949.5 | E155: 5035.869565 | F155: 6949.5 | G155: 6949.5 | H155: 5035.869565 | I155: 6949.5
C156: 1.14 | D156: 7011 | E156: 5043.884892 | F156: 7011 | G156: 7011 | H156: 5043.884892 | I156: 7011
C157: 1.15 | D157: 7072.5 | E157: 5051.785714 | F157: 7072.5 | G157: 7072.5 | H157: 5051.785714 | I157: 7072.5
C158: 1.16 | D158: 7134 | E158: 5059.574468 | F158: 7134 | G158: 7134 | H158: 5059.574468 | I158: 7134
C159: 1.17 | D159: 7195.5 | E159: 5067.253521 | F159: 7195.5 | G159: 7195.5 | H159: 5067.253521 | I159: 7195.5

Sheet SAR
A2: SAR Assumptions | K2: The user may edit three values (the yellow cells in row 6) on this worksheet. The ‘amplitude’ controls the relative size of the PDO effect. If the amplitude is set to 100%, the full historical PDO variability is applied to the SAR for NORs. If it is set to less than 100% or greater than 100%, the amplitude is reduced or increased, respectively. The user may also enter the PDO Start Year. This allows the user to select the starting point in the cycle, which corresponds to generation 21 in the AHA calculations. Finally, the user may enter the generation length (2, 3, or 4 years) for the species being modeled, which adjusts the SAR multiplier (column U) by taking the geomean of the most recent 2, 3, or 4 years selected as the generation length. If the 'PDO' or 'PDO + Random' options are selected on the AHA tab from the 'SAR Vary' menu, the values in column V on this tab will be applied to the Scenario calculations (formula 53 in column BB). If the PDO option is selected, systematic variation is applied to the SARs for naturally- and hatchery-produced smolts. If the PDO + Random option is selected, both systematic and lognormal random variation are applied. There are three user-supplied inputs on this tab (the yellow cells in P6:R6). The 'amplitude' adjusts the degree of variation in the PDO. The start year applies the PDO sequence beginning in that year to generation 20 of the Scenario calculations. The generation length may be adjusted depending on the species being modeled.
Y3: Applied SARs (values shown in Scenario graphics on this tab)
P4: PDO Years | Q4: =A8 -> 1958 | R4: =MAX(A8:A103) -> 2017
A5: Standardized values for the PDO index from: http://jisao.washington.edu/pdo/PDO.latest | J5: Link to PDO data online | M5: INPUTS in YELLOW CELLS | P5: PDO "Amplitude" | Q5: PDO Start Yr 1958-2017 | R5: Average generation length of species (2, 3, or 4) | S5: PDO Multiplier | T5: SAR "log multiplier" Normalized around zero, and Amplitude applied | U5: SAR multiplier | V5: SAR multiplier adjusted for generation length | X5: Scenario | Y5: Scenario 1 | Z5: Scenario 2 | AA5: Scenario 3 | AB5: Scenario 4 | AC5: Scenario 5
P6: 0.5 | Q6: 2005 | R6: 4 | W6: Generation # | X6: Variability | Y6: =AHA!J23 -> None | Z6: =AHA!O23 -> None | AA6: =AHA!T23 -> None | AB6: =AHA!Y23 -> None | AC6: =AHA!AD23 -> None
A7: YEAR | B7: JAN | C7: FEB | D7: MAR | E7: APR | F7: MAY | G7: JUN | H7: JUL | I7: AUG | J7: SEP | K7: OCT | L7: NOV | M7: DEC | N7: Average Apr-Sep | O7: Year | P7: Amplitude applied | Q7: Start Year Applied | R7: Run Year | X7: CV | Y7: =AHA!J24 -> 1 | Z7: =AHA!O24 -> 1 | AA7: =AHA!T24 -> 1 | AB7: =AHA!Y24 -> 1 | AC7: =AHA!AD24 -> 1
A8: 1958 | B8: 0.25 | C8: 0.62 | D8: 0.25 | E8: 1.06 | F8: 1.28 | G8: 1.33 | H8: 0.89 | I8: 1.06 | J8: 0.29 | K8: 0.01 | L8: -0.18 | M8: 0.86 | N8: =-AVERAGE(E8:J8) -> -0.985 | O8: =A8 -> 1958 | P8: =$P$6*(N8-AVERAGE($N$8:$N$67)) -> -0.4290694444 | Q8: =IF(Q9>$Q$6,Q9-1,IF($Q$6-R8<=$Q$4-1,$R$4,$Q$6-R8)) -> 1985 | R8: 20 | S8: =VLOOKUP(Q8,$O$8:$P$67,2,FALSE) -> -0.1607361111 | T8: =(S8-AVERAGE($P$8:$P$67))*$P$6 -> -0.08036805556 | U8: =EXP(T8) -> 0.9227766508 | V8: =IF($R$6=2,GEOMEAN(U8,U67),IF($R$6=3,GEOMEAN(U66,U67,U8),GEOMEAN(U65,U66,U67,U8))) -> 0.8494378039 | W8: 1 | Y8: =Scenario_1!$BC80 -> 0.01 | Z8: =Scenario_2!$BC80 -> 0.01 | AA8: =Scenario_3!$BC80 -> 0.01 | AB8: =Scenario_4!$BC80 -> 0.01 | AC8: =Scenario_5!$BC80 -> 0.01 | AE8: =AHA!J24 -> 1 | AF8: =AHA!O24 -> 1 | AG8: =AHA!T24 -> 1 | AH8: =AHA!Y24 -> 1 | AI8: =AHA!AD24 -> 1
A9: 1959 | B9: 0.69 | C9: -0.43 | D9: -0.95 | E9: -0.02 | F9: 0.23 | G9: 0.44 | H9: -0.5 | I9: -0.62 | J9: -0.85 | K9: 0.52 | L9: 1.11 | M9: 0.06 | N9: 0.22 | O9: =IF(A8=$R$2,$Q$2,IF(A8<$Q$2,O8+1,A9)) -> 1959 | P9: =$P$6*(N9-AVERAGE($N$8:$N$67)) -> 0.1734305556 | Q9: =IF(Q10>$Q$6,Q10-1,IF($Q$6-R9<=$Q$4-1,$R$4,$Q$6-R9)) -> 1986 | R9: 19 | S9: =VLOOKUP(Q9,$O$8:$P$67,2,FALSE) -> -0.3882361111 | T9: =(S9-AVERAGE($P$8:$P$67))*$P$6 -> -0.1941180556 | U9: =EXP(T9) -> 0.8235606726 | V9: =IF($R$6=2,GEOMEAN(U9,U8),IF($R$6=3,GEOMEAN(U8,U68,U9),GEOMEAN(U8,U67,U68,U9))) -> 0.8897396484 | W9: 2 | Y9: =Scenario_1!BC81 -> 0.01 | Z9: =Scenario_2!$BC81 -> 0.01 | AA9: =Scenario_3!$BC81 -> 0.01 | AB9: =Scenario_4!$BC81 -> 0.01 | AC9: =Scenario_5!$BC81 -> 0.01 | AE9: =AE8 -> 1 | AF9: =AF8 -> 1 | AG9: =AG8 -> 1 | AH9: =AH8 -> 1 | AI9: =AI8 -> 1
A10: 1960 | B10: 0.3 | C10: 0.52 | D10: -0.21 | E10: 0.09 | F10: 0.91 | G10: 0.64 | H10: -0.27 | I10: -0.38 | J10: -0.94 | K10: 0.09 | L10: -0.23 | M10: 0.17 | N10: -0.008333333333 | O10: =IF(A9=$R$2,$Q$2,IF(A9<$Q$2,O9+1,A10)) -> 1960 | P10: 0.05926388889 | Q10: 1987 | R10: 18 | S10: -0.9382361111 | T10: -0.4691180556 | U10: 0.6255537287 | V10: =IF($R$6=2,GEOMEAN(U10,U9),IF($R$6=3,GEOMEAN(U9,U8,U10),GEOMEAN(U9,U68,U8,U10))) -> 0.8138387279 | W10: 3 | Y10: =Scenario_1!BC82 -> 0.01 | Z10: =Scenario_2!$BC82 -> 0.01 | AA10: =Scenario_3!$BC82 -> 0.01 | AB10: =Scenario_4!$BC82 -> 0.01 | AC10: =Scenario_5!$BC82 -> 0.01 | AE10: =AE9 -> 1 | AF10: 1 | AG10: 1 | AH10: 1 | AI10: 1
A11: 1961 | B11: 1.18 | C11: 0.43 | D11: 0.09 | E11: 0.34 | F11: -0.06 | G11: -0.61 | H11: -1.22 | I11: -1.13 | J11: -2.01 | K11: -2.28 | L11: -1.85 | M11: -2.69 | N11: 0.7816666667 | O11: 1961 | P11: 0.4542638889 | Q11: 1988 | R11: 17 | S11: -0.2149027778 | T11: -0.1074513889 | U11: 0.89812018 | V11: =IF($R$6=2,GEOMEAN(U11,U10),IF($R$6=3,GEOMEAN(U10,U9,U11),GEOMEAN(U10,U8,U9,U11))) -> 0.8083469744 | W11: 4 | Y11: =Scenario_1!BC83 -> 0.01 | Z11: =Scenario_2!$BC83 -> 0.01 | AA11: =Scenario_3!$BC83 -> 0.01 | AB11: =Scenario_4!$BC83 -> 0.01 | AC11: =Scenario_5!$BC83 -> 0.01 | AE11: 1 | AF11: 1 | AG11: 1 | AH11: 1 | AI11: 1
A12: 1962 | B12: -1.29 | C12: -1.15 | D12: -1.42 | E12: -0.8 | F12: -1.22 | G12: -1.62 | H12: -1.46 | I12: -0.48 | J12: -1.58 | K12: -1.55 | L12: -0.37 | M12: -0.96 | N12: 1.193333333 | O12: 1962 | P12: 0.6600972222 | Q12: 1989 | R12: 16 | S12: -0.05990277778 | T12: -0.02995138889 | U12: 0.9704927091 | V12: =IF($R$6=2,GEOMEAN(U12,U11),IF($R$6=3,GEOMEAN(U11,U10,U12),GEOMEAN(U11,U9,U10,U12))) -> 0.818599994 | W12: 5 | Y12: =Scenario_1!BC84 -> 0.01 | Z12: =Scenario_2!$BC84 -> 0.01 | AA12: =Scenario_3!$BC84 -> 0.01 | AB12: =Scenario_4!$BC84 -> 0.01 | AC12: =Scenario_5!$BC84 -> 0.01 | AE12: 1 | AF12: 1 | AG12: 1 | AH12: 1 | AI12: 1
A13: 1963 | B13: -0.33 | C13: -0.16 | D13: -0.54 | E13: -0.41 | F13: -0.65 | G13: -0.88 | H13: -1 | I13: -1.03 | J13: 0.45 | K13: -0.52 | L13: -2.08 | M13: -1.08 | N13: 0.5866666667 | O13: 1963 | P13: 0.3567638889 | Q13: 1990 | R13: 15 | S13: -0.09573611111 | T13: -0.04786805556 | U13: 0.9532595561 | V13: 0.8490839452 | W13: 6 | Y13: =Scenario_1!BC85 -> 0.01 | Z13: =Scenario_2!$BC85 -> 0.01 | AA13: =Scenario_3!$BC85 -> 0.01 | AB13: =Scenario_4!$BC85 -> 0.01 | AC13: =Scenario_5!$BC85 -> 0.01 | AE13: 1 | AF13: 1 | AG13: 1 | AH13: 1 | AI13: 1
A14: 1964 | B14: 0.01 | C14: -0.21 | D14: -0.87 | E14: -1.03 | F14: -1.91 | G14: -0.32 | H14: -0.51 | I14: -1.03 | J14: -0.68 | K14: -0.37 | L14: -0.8 | M14: -1.52 | N14: 0.9133333333 | O14: 1964 | P14: 0.5200972222 | Q14: 1991 | R14: 14 | S14: 0.2367638889 | T14: 0.1183819444 | U14: 1.125673974 | V14: 0.983416818 | W14: 7 | Y14: =Scenario_1!BC86 -> 0.01 | Z14: =Scenario_2!$BC86 -> 0.01 | AA14: =Scenario_3!$BC86 -> 0.01 | AB14: =Scenario_4!$BC86 -> 0.01 | AC14: =Scenario_5!$BC86 -> 0.01 | AE14: 1 | AF14: 1 | AG14: 1 | AH14: 1 | AI14: 1
A15: 1965 | B15: -1.24 | C15: -1.16 | D15: 0.04 | E15: 0.62 | F15: -0.66 | G15: -0.8 | H15: -0.47 | I15: 0.2 | J15: 0.59 | K15: -0.36 | L15: -0.59 | M15: 0.06 | N15: 0.08666666667 | O15: 1965 | P15: 0.1067638889 | Q15: 1992 | R15: 13 | S15: -0.5799027778 | T15: -0.2899513889 | U15: 0.7482999424 | V15: 0.9395565952 | W15: 8 | Y15: =Scenario_1!BC87 -> 0.01 | Z15: =Scenario_2!$BC87 -> 0.01 | AA15: =Scenario_3!$BC87 -> 0.01 | AB15: =Scenario_4!$BC87 -> 0.01 | AC15: =Scenario_5!$BC87 -> 0.01 | AE15: 1 | AF15: 1 | AG15: 1 | AH15: 1 | AI15: 1
A16: 1966 | B16: -0.82 | C16: -0.03 | D16: -1.29 | E16: 0.06 | F16: -0.53 | G16: 0.16 | H16: 0.26 | I16: -0.35 | J16: -0.33 | K16: -1.17 | L16: -1.15 | M16: -0.32 | N16: 0.1216666667 | O16: 1966 | P16: 0.1242638889 | Q16: 1993 | R16: 12 | S16: -0.9599027778 | T16: -0.4799513889 | U16: 0.6188134723 | V16: 0.8395852809 | W16: 9 | Y16: =Scenario_1!BC88 -> 0.01 | Z16: =Scenario_2!$BC88 -> 0.01 | AA16: =Scenario_3!$BC88 -> 0.01 | AB16: =Scenario_4!$BC88 -> 0.01 | AC16: =Scenario_5!$BC88 -> 0.01 | AE16: 1 | AF16: 1 | AG16: 1 | AH16: 1 | AI16: 1
A17: 1967 | B17: -0.2 | C17: -0.18 | D17: -1.2 | E17: -0.89 | F17: -1.24 | G17: -1.16 | H17: -0.89 | I17: -1.24 | J17: -0.72 | K17: -0.64 | L17: -0.05 | M17: -0.4 | N17: 1.023333333 | O17: 1967 | P17: 0.5750972222 | Q17: 1994 | R17: 11 | S17: 0.009263888889 | T17: 0.004631944444 | U17: 1.004642688 | V17: 0.850677471 | W17: 10 | Y17: =Scenario_1!BC89 -> 0.01 | Z17: =Scenario_2!$BC89 -> 0.01 | AA17: =Scenario_3!$BC89 -> 0.01 | AB17: =Scenario_4!$BC89 -> 0.01 | AC17: =Scenario_5!$BC89 -> 0.01 | AE17: 1 | AF17: 1 | AG17: 1 | AH17: 1 | AI17: 1
A18: 1968 | B18: -0.95 | C18: -0.4 | D18: -0.31 | E18: -1.03 | F18: -0.53 | G18: -0.35 | H18: 0.53 | I18: 0.19 | J18: 0.06 | K18: -0.34 | L18: -0.44 | M18: -1.27 | N18: 0.1883333333 | O18: 1968 | P18: 0.1575972222 | Q18: 1995 | R18: 10 | S18: -0.4899027778 | T18: -0.2449513889 | U18: 0.7827425873 | V18: 0.7768130554 | W18: 11 | Y18: =Scenario_1!BC90 -> 0.01 | Z18: =Scenario_2!$BC90 -> 0.01 | AA18: =Scenario_3!$BC90 -> 0.01 | AB18: =Scenario_4!$BC90 -> 0.01 | AC18: =Scenario_5!$BC90 -> 0.01 | AE18: 1 | AF18: 1 | AG18: 1 | AH18: 1 | AI18: 1
A19: 1969 | B19: -1.26 | C19: -0.95 | D19: -0.5 | E19: -0.44 | F19: -0.2 | G19: 0.89 | H19: 0.1 | I19: -0.81 | J19: -0.66 | K19: 1.12 | L19: 0.15 | M19: 1.38 | N19: 0.1866666667 | O19: 1969 | P19: 0.1567638889 | Q19: 1996 | R19: 9 | S19: -0.4040694444 | T19: -0.2020347222 | U19: 0.8170665571 | V19: 0.7940757741 | W19: 12 | Y19: =Scenario_1!BC91 -> 0.01 | Z19: =Scenario_2!$BC91 -> 0.01 | AA19: =Scenario_3!$BC91 -> 0.01 | AB19: =Scenario_4!$BC91 -> 0.01 | AC19: =Scenario_5!$BC91 -> 0.01 | AE19: 1 | AF19: 1 | AG19: 1 | AH19: 1 | AI19: 1
A20: 1970 | B20: 0.61 | C20: 0.43 | D20: 1.33 | E20: 0.43 | F20: -0.49 | G20: 0.06 | H20: -0.68 | I20: -1.63 | J20: -1.67 | K20: -1.39 | L20: -0.8 | M20: -0.97 | N20: 0.6633333333 | O20: 1970 | P20: 0.3950972222 | Q20: 1997 | R20: 8 | S20: -1.017402778 | T20: -0.5087013889 | U20: 0.6012758956 | V20: 0.7883888165 | W20: 13 | Y20: =Scenario_1!BC92 -> 0.01 | Z20: =Scenario_2!$BC92 -> 0.01 | AA20: =Scenario_3!$BC92 -> 0.01 | AB20: =Scenario_4!$BC92 -> 0.01 | AC20: =Scenario_5!$BC92 -> 0.01 | AE20: 1 | AF20: 1 | AG20: 1 | AH20: 1 | AI20: 1
A21: 1971 | B21: -1.9 | C21: -1.74 | D21: -1.68 | E21: -1.59 | F21: -1.55 | G21: -1.55 | H21: -2.2 | I21: -0.15 | J21: 0.21 | K21: -0.22 | L21: -1.25 | M21: -1.87 | N21: 1.138333333 | O21: 1971 | P21: 0.6325972222 | Q21: 1998 | R21: 7 | S21: -0.01156944444 | T21: -0.005784722222 | U21: 0.9942319771 | V21: 0.7863383916 | W21: 14 | Y21: =Scenario_1!BC93 -> 0.01 | Z21: =Scenario_2!$BC93 -> 0.01 | AA21: =Scenario_3!$BC93 -> 0.01 | AB21: =Scenario_4!$BC93 -> 0.01 | AC21: =Scenario_5!$BC93 -> 0.01 | AE21: 1 | AF21: 1 | AG21: 1 | AH21: 1 | AI21: 1
A22: 1972 | B22: -1.99 | C22: -1.83 | D22: -2.09 | E22: -1.65 | F22: -1.57 | G22: -1.87 | H22: -0.83 | I22: 0.25 | J22: 0.17 | K22: 0.11 | L22: 0.57 | M22: -0.33 | N22: 0.9166666667 | O22: 1972 | P22: 0.5217638889 | Q22: 1999 | R22: 6 | S22: 0.5250972222 | T22: 0.2625486111 | U22: 1.300239673 | V22: 0.8927103958 | W22: 15 | Y22: =Scenario_1!BC94 -> 0.01 | Z22: =Scenario_2!$BC94 -> 0.01 | AA22: =Scenario_3!$BC94 -> 0.01 | AB22: =Scenario_4!$BC94 -> 0.01 | AC22: =Scenario_5!$BC94 -> 0.01 | AE22: 1 | AF22: 1 | AG22: 1 | AH22: 1 | AI22: 1
A23: 1973 | B23: -0.46 | C23: -0.61 | D23: -0.5 | E23: -0.69 | F23: -0.76 | G23: -0.97 | H23: -0.57 | I23: -1.14 | J23: -0.51 | K23: -0.87 | L23: -1.81 | M23: -0.76 | N23: 0.7733333333 | O23: 1973 | P23: 0.4500972222 | Q23: 2000 | R23: 5 | S23: 0.3325972222 | T23: 0.1662986111 | U23: 1.180925687 | V23: 0.978817839 | W23: 16 | Y23: =Scenario_1!BC95 -> 0.01 | Z23: =Scenario_2!$BC95 -> 0.01 | AA23: =Scenario_3!$BC95 -> 0.01 | AB23: =Scenario_4!$BC95 -> 0.01 | AC23: =Scenario_5!$BC95 -> 0.01 | AE23: 1 | AF23: 1 | AG23: 1 | AH23: 1 | AI23: 1
A24: 1974 | B24: -1.22 | C24: -1.65 | D24: -0.9 | E24: -0.52 | F24: -0.28 | G24: -0.31 | H24: -0.08 | I24: 0.27 | J24: 0.44 | K24: -0.1 | L24: 0.43 | M24: -0.12 | N24: 0.08 | O24: 1974 | P24: 0.1034305556 | Q24: 2001 | R24: 4 | S24: 0.4409305556 | T24: 0.2204652778 | U24: 1.246656637 | V24: 1.174546299 | W24: 17 | Y24: =Scenario_1!BC96 -> 0.01 | Z24: =Scenario_2!$BC96 -> 0.01 | AA24: =Scenario_3!$BC96 -> 0.01 | AB24: =Scenario_4!$BC96 -> 0.01 | AC24: =Scenario_5!$BC96 -> 0.01 | AE24: 1 | AF24: 1 | AG24: 1 | AH24: 1 | AI24: 1
A25: 1975 | B25: -0.84 | C25: -0.71 | D25: -0.51 | E25: -1.3 | F25: -1.02 | G25: -1.16 | H25: -0.4 | I25: -1.07 | J25: -1.23 | K25: -1.29 | L25: -2.08 | M25: -1.61 | N25: 1.03 | O25: 1975 | P25: 0.5784305556 | Q25: 2002 | R25: 3 | S25: 0.1117638889 | T25: 0.05588194444 | U25: 1.057472836 | V25: 1.192794187 | W25: 18 | Y25: =Scenario_1!BC97 -> 0.01 | Z25: =Scenario_2!$BC97 -> 0.01 | AA25: =Scenario_3!$BC97 -> 0.01 | AB25: =Scenario_4!$BC97 -> 0.01 | AC25: =Scenario_5!$BC97 -> 0.01 | AE25: 1 | AF25: 1 | AG25: 1 | AH25: 1 | AI25: 1
A26: 1976 | B26: -1.14 | C26: -1.85 | D26: -0.96 | E26: -0.89 | F26: -0.68 | G26: -0.67 | H26: 0.61 | I26: 1.28 | J26: 0.82 | K26: 1.11 | L26: 1.25 | M26: 1.22 | N26: -0.07833333333 | O26: 1976 | P26: 0.02426388889 | Q26: 2003 | R26: 2 | S26: -0.3199027778 | T26: -0.1599513889 | U26: 0.8521852136 | V26: 1.073230878 | W26: 19 | Y26: =Scenario_1!BC98 -> 0.01 | Z26: =Scenario_2!$BC98 -> 0.01 | AA26: =Scenario_3!$BC98 -> 0.01 | AB26: =Scenario_4!$BC98 -> 0.01 | AC26: =Scenario_5!$BC98 -> 0.01 | AE26: =AE25 -> 1 | AF26: 1 | AG26: 1 | AH26: 1 | AI26: 1
A27: 1977 | B27: 1.65 | C27: 1.11 | D27: 0.72 | E27: 0.3 | F27: 0.31 | G27: 0.42 | H27: 0.19 | I27: 0.64 | J27: -0.55 | K27: -0.61 | L27: -0.72 | M27: -0.69 | N27: -0.2183333333 | O27: 1977 | P27: -0.04573611111 | Q27: 2004 | R27: 1 | S27: -0.2307361111 | T27: -0.1153680556 | U27: 0.891038132 | V27: 1.000256977 | W27: 20 | Y27: =Scenario_1!BC99 -> 0.01 | Z27: =Scenario_2!$BC99 -> 0.01 | AA27: =Scenario_3!$BC99 -> 0.01 | AB27: =Scenario_4!$BC99 -> 0.01 | AC27: =Scenario_5!$BC99 -> 0.01 | AE27: 1 | AF27: 1 | AG27: 1 | AH27: 1 | AI27: 1
A28: 1978 | B28: 0.34 | C28: 1.45 | D28: 1.34 | E28: 1.29 | F28: 0.9 | G28: 0.15 | H28: -1.24 | I28: -0.56 | J28: -0.44 | K28: 0.1 | L28: -0.07 | M28: -0.43 | N28: -0.01666666667 | O28: 1978 | P28: 0.05509722222 | Q28: =Q6 -> 2005 | R28: 21 | S28: -0.3124027778 | T28: -0.1562013889 | U28: 0.8553869076 | V28: 0.9103649443 | W28: 21 | Y28: =Scenario_1!BC100 -> 0.01 | Z28: =Scenario_2!$BC100 -> 0.01 | AA28: =Scenario_3!$BC100 -> 0.01 | AB28: =Scenario_4!$BC100 -> 0.01 | AC28: =Scenario_5!$BC100 -> 0.01 | AE28: 1 | AF28: 1 | AG28: 1 | AH28: 1 | AI28: 1
A29: 1979 | B29: -0.58 | C29: -1.33 | D29: 0.3 | E29: 0.89 | F29: 1.09 | G29: 0.17 | H29: 0.84 | I29: 0.52 | J29: 1 | K29: 1.06 | L29: 0.48 | M29: -0.42 | N29: -0.7516666667 | O29: 1979 | P29: -0.3124027778 | Q29: =IF(Q28=2017,1957,Q28)+1 -> 2006 | R29: 22 | S29: 0.006763888889 | T29: 0.003381944444 | U29: 1.00338767 | V29: 0.8984944747 | W29: 22 | Y29: =Scenario_1!BC101 -> 0.01 | Z29: =Scenario_2!$BC101 -> 0.01 | AA29: =Scenario_3!$BC101 -> 0.01 | AB29: =Scenario_4!$BC101 -> 0.01 | AC29: =Scenario_5!$BC101 -> 0.01 | AE29: 1 | AF29: 1 | AG29: 1 | AH29: 1 | AI29: 1
A30: 1980 | B30: -0.11 | C30: 1.32 | D30: 1.09 | E30: 1.49 | F30: 1.2 | G30: -0.22 | H30: 0.23 | I30: 0.51 | J30: 0.1 | K30: 1.35 | L30: 0.37 | M30: -0.1 | N30: -0.5516666667 | O30: 1980 | P30: -0.2124027778 | Q30: 2007 | R30: 23 | S30: -0.02573611111 | T30: -0.01286805556 | U30: 0.9872143839 | V30: 0.932147804 | W30: 23 | Y30: =Scenario_1!BC102 -> 0.01 | Z30: =Scenario_2!$BC102 -> 0.01 | AA30: =Scenario_3!$BC102 -> 0.01 | AB30: =Scenario_4!$BC102 -> 0.01 | AC30: =Scenario_5!$BC102 -> 0.01 | AE30: 1 | AF30: 1 | AG30: 1 | AH30: 1 | AI30: 1
A31: 1981 | B31: 0.59 | C31: 1.46 | D31: 0.99 | E31: 1.45 | F31: 1.75 | G31: 1.69 | H31: 0.84 | I31: 0.18 | J31: 0.42 | K31: 0.18 | L31: 0.8 | M31: 0.67 | N31: -1.055 | O31: 1981 | P31: -0.4640694444 | Q31: 2008 | R31: 24 | S31: 0.8259305556 | T31: 0.4129652778 | U31: 1.51129255 | V31: 1.063770258 | W31: 24 | Y31: =Scenario_1!BC103 -> 0.01 | Z31: =Scenario_2!$BC103 -> 0.01 | AA31: =Scenario_3!$BC103 -> 0.01 | AB31: =Scenario_4!$BC103 -> 0.01 | AC31: =Scenario_5!$BC103 -> 0.01 | AE31: 1 | AF31: 1 | AG31: 1 | AH31: 1 | AI31: 1
A32: 1982 | B32: 0.34 | C32: 0.2 | D32: 0.19 | E32: -0.19 | F32: -0.58 | G32: -0.78 | H32: 0.58 | I32: 0.39 | J32: 0.84 | K32: 0.37 | L32: -0.25 | M32: 0.26 | N32: -0.04333333333 | O32: 1982 | P32: 0.04176388889 | Q32: 2009 | R32: 25 | S32: 0.2934305556 | T32: 0.1467152778 | U32: 1.158024201 | V32: 1.147457484 | W32: 25 | Y32: =Scenario_1!BC104 -> 0.01 | Z32: =Scenario_2!$BC104 -> 0.01 | AA32: =Scenario_3!$BC104 -> 0.01 | AB32: =Scenario_4!$BC104 -> 0.01 | AC32: =Scenario_5!$BC104 -> 0.01 | AE32: 1 | AF32: 1 | AG32: 1 | AH32: 1 | AI32: 1
A33: 1983 | B33: 0.56 | C33: 1.14 | D33: 2.11 | E33: 1.87 | F33: 1.8 | G33: 2.36 | H33: 3.51 | I33: 1.85 | J33: 0.91 | K33: 0.96 | L33: 1.02 | M33: 1.69 | N33: -2.05 | O33: 1983 | P33: -0.9615694444 | Q33: 2010 | R33: 26 | S33: 0.2925972222 | T33: 0.1462986111 | U33: 1.157541791 | V33: 1.189196392 | W33: 26 | Y33: =Scenario_1!BC105 -> 0.01 | Z33: =Scenario_2!$BC105 -> 0.01 | AA33: =Scenario_3!$BC105 -> 0.01 | AB33: =Scenario_4!$BC105 -> 0.01 | AC33: =Scenario_5!$BC105 -> 0.01 | AE33: 1 | AF33: 1 | AG33: 1 | AH33: 1 | AI33: 1
A34: 1984 | B34: 1.5 | C34: 1.21 | D34: 1.77 | E34: 1.52 | F34: 1.3 | G34: 0.18 | H34: -0.18 | I34: -0.03 | J34: 0.67 | K34: 0.58 | L34: 0.71 | M34: 0.82 | N34: -0.5766666667 | O34: 1984 | P34: -0.2249027778 | Q34: 2011 | R34: 27 | S34: 0.6359305556 | T34: 0.3179652778 | U34: 1.374328541 | V34: 1.291734787 | W34: 27 | Y34: =Scenario_1!BC106 -> 0.01 | Z34: =Scenario_2!$BC106 -> 0.01 | AA34: =Scenario_3!$BC106 -> 0.01 | AB34: =Scenario_4!$BC106 -> 0.01 | AC34: =Scenario_5!$BC106 -> 0.01 | AE34: 1 | AF34: 1 | AG34: 1 | AH34: 1 | AI34: 1
A35: 1985 | B35: 1.27 | C35: 0.94 | D35: 0.57 | E35: 0.19 | F35: 0 | G35: 0.18 | H35: 1.07 | I35: 0.81 | J35: 0.44 | K35: 0.29 | L35: -0.75 | M35: 0.38 | N35: -0.4483333333 | O35: 1985 | P35: -0.1607361111 | Q35: 2012 | R35: 28 | S35: 0.7350972222 | T35: 0.3675486111 | U35: 1.444190001 | V35: 1.277151164 | W35: 28 | Y35: =Scenario_1!BC107 -> 0.01 | Z35: =Scenario_2!$BC107 -> 0.01 | AA35: =Scenario_3!$BC107 -> 0.01 | AB35: =Scenario_4!$BC107 -> 0.01 | AC35: =Scenario_5!$BC107 -> 0.01 | AE35: 1 | AF35: 1 | AG35: 1 | AH35: 1 | AI35: 1
A36: 1986 | B36: 1.12 | C36: 1.61 | D36: 2.18 | E36: 1.55 | F36: 1.16 | G36: 0.89 | H36: 1.38 | I36: 0.22 | J36: 0.22 | K36: 1 | L36: 1.77 | M36: 1.77 | N36: -0.9033333333 | O36: 1986 | P36: -0.3882361111 | Q36: 2013 | R36: 29 | S36: 0.3659305556 | T36: 0.1829652778 | U36: 1.200772714 | V36: 1.288777951 | W36: 29 | Y36: =Scenario_1!BC108 -> 0.01 | Z36: =Scenario_2!$BC108 -> 0.01 | AA36: =Scenario_3!$BC108 -> 0.01 | AB36: =Scenario_4!$BC108 -> 0.01 | AC36: =Scenario_5!$BC108 -> 0.01 | AE36: 1 | AF36: 1 | AG36: 1 | AH36: 1 | AI36: 1
A37: 1987 | B37: 1.88 | C37: 1.75 | D37: 2.1 | E37: 2.16 | F37: 1.85 | G37: 0.73 | H37: 2.01 | I37: 2.83 | J37: 2.44 | K37: 1.36 | L37: 1.47 | M37: 1.27 | N37: -2.003333333 | O37: 1987 | P37: -0.9382361111 | Q37: 2014 | R37: 30 | S37: -0.4532361111 | T37: -0.2266180556 | U37: 0.7972252199 | V37: 1.174057007 | W37: 30 | Y37: =Scenario_1!BC109 -> 0.01 | Z37: =Scenario_2!$BC109 -> 0.01 | AA37: =Scenario_3!$BC109 -> 0.01 | AB37: =Scenario_4!$BC109 -> 0.01 | AC37: =Scenario_5!$BC109 -> 0.01 | AE37: 1 | AF37: 1 | AG37: 1 | AH37: 1 | AI37: 1
A38: 1988 | B38: 0.93 | C38: 1.24 | D38: 1.42 | E38: 0.94 | F38: 1.2 | G38: 0.74 | H38: 0.64 | I38: 0.19 | J38: -0.37 | K38: -0.1 | L38: -0.02 | M38: -0.43 | N38: -0.5566666667 | O38: 1988 | P38: -0.2149027778 | Q38: 2015 | R38: 31 | S38: -0.7299027778 | T38: -0.3649513889 | U38: 0.6942303974 | V38: 0.9897886051 | W38: 31 | Y38: =Scenario_1!BC110 -> 0.01 | Z38: =Scenario_2!$BC110 -> 0.01 | AA38: =Scenario_3!$BC110 -> 0.01 | AB38: =Scenario_4!$BC110 -> 0.01 | AC38: =Scenario_5!$BC110 -> 0.01 | AE38: 1 | AF38: 1 | AG38: 1 | AH38: 1 | AI38: 1
A39: 1989 | B39: -0.95 | C39: -1.02 | D39: -0.83 | E39: -0.32 | F39: 0.47 | G39: 0.36 | H39: 0.83 | I39: 0.09 | J39: 0.05 | K39: -0.12 | L39: -0.5 | M39: -0.21 | N39: -0.2466666667 | O39: 1989 | P39: -0.05990277778 | Q39: 2016 | R39: 32 | S39: -0.7049027778 | T39: -0.3524513889 | U39: 0.7029627408 | V39: 0.8267409374 | W39: 32 | Y39: =Scenario_1!BC111 -> 0.01 | Z39: =Scenario_2!$BC111 -> 0.01 | AA39: =Scenario_3!$BC111 -> 0.01 | AB39: =Scenario_4!$BC111 -> 0.01 | AC39: =Scenario_5!$BC111 -> 0.01 | AE39: 1 | AF39: 1 | AG39: 1 | AH39: 1 | AI39: 1
A40: 1990 | B40: -0.3 | C40: -0.65 | D40: -0.62 | E40: 0.27 | F40: 0.44 | G40: 0.44 | H40: 0.27 | I40: 0.11 | J40: 0.38 | K40: -0.69 | L40: -1.69 | M40: -2.23 | N40: -0.3183333333 | O40: 1990 | P40: -0.09573611111 | Q40: 2017 | R40: 33 | S40: -0.2115694444 | T40: -0.1057847222 | U40: 0.8996182951 | V40: 0.7691637534 | W40: 33 | Y40: =Scenario_1!BC112 -> 0.01 | Z40: =Scenario_2!$BC112 -> 0.01 | AA40: =Scenario_3!$BC112 -> 0.01 | AB40: =Scenario_4!$BC112 -> 0.01 | AC40: =Scenario_5!$BC112 -> 0.01 | AE40: 1 | AF40: 1 | AG40: 1 | AH40: 1 | AI40: 1
A41: 1991 | B41: -2.02 | C41: -1.19 | D41: -0.74 | E41: -1.01 | F41: -0.51 | G41: -1.47 | H41: -0.1 | I41: 0.36 | J41: 0.65 | K41: 0.49 | L41: 0.42 | M41: 0.09 | N41: 0.3466666667 | O41: 1991 | P41: 0.2367638889 | Q41: 1958 | R41: 34 | S41: -0.4290694444 | T41: -0.2145347222 | U41: 0.8069167933 | V41: 0.7714907819 | W41: 34 | Y41: =Scenario_1!BC113 -> 0.01 | Z41: =Scenario_2!$BC113 -> 0.01 | AA41: =Scenario_3!$BC113 -> 0.01 | AB41: =Scenario_4!$BC113 -> 0.01 | AC41: =Scenario_5!$BC113 -> 0.01 | AE41: 1 | AF41: 1 | AG41: 1 | AH41: 1 | AI41: 1
A42: 1992 | B42: 0.05 | C42: 0.31 | D42: 0.67 | E42: 0.75 | F42: 1.54 | G42: 1.26 | H42: 1.9 | I42: 1.44 | J42: 0.83 | K42: 0.93 | L42: 0.93 | M42: 0.53 | N42: -1.286666667 | O42: 1992 | P42: -0.5799027778 | Q42: 1959 | R42: 35 | S42: 0.1734305556 | T42: 0.08671527778 | U42: 1.090586121 | V42: 0.8637137362 | W42: 35 | Y42: =Scenario_1!BC114 -> 0.01 | Z42: =Scenario_2!$BC114 -> 0.01 | AA42: =Scenario_3!$BC114 -> 0.01 | AB42: =Scenario_4!$BC114 -> 0.01 | AC42: =Scenario_5!$BC114 -> 0.01 | AE42: =AE41 -> 1 | AF42: 1 | AG42: 1 | AH42: 1 | AI42: 1
A43: 1993 | B43: 0.05 | C43: 0.19 | D43: 0.76 | E43: 1.21 | F43: 2.13 | G43: 2.34 | H43: 2.35 | I43: 2.69 | J43: 1.56 | K43: 1.41 | L43: 1.24 | M43: 1.07 | N43: -2.046666667 | O43: 1993 | P43: -0.9599027778 | Q43: 1960 | R43: 36 | S43: 0.05926388889 | T43: 0.02963194444 | U43: 1.030075339 | V43: 0.9502852697 | W43: 36 | Y43: =Scenario_1!BC115 -> 0.01 | Z43: =Scenario_2!$BC115 -> 0.01 | AA43: =Scenario_3!$BC115 -> 0.01 | AB43: =Scenario_4!$BC115 -> 0.01 | AC43: =Scenario_5!$BC115 -> 0.01 | AE43: 1 | AF43: 1 | AG43: 1 | AH43: 1 | AI43: 1
A44: 1994 | B44: 1.21 | C44: 0.59 | D44: 0.8 | E44: 1.05 | F44: 1.23 | G44: 0.46 | H44: 0.06 | I44: -0.79 | J44: -1.36 | K44: -1.32 | L44: -1.96 | M44: -1.79 | N44: -0.1083333333 | O44: 1994 | P44: 0.009263888889 | Q44: 1961 | R44: 37 | S44: 0.4542638889 | T44: 0.2271319444 | U44: 1.254995447 | V44: 1.032761323 | W44: 37 | Y44: =Scenario_1!BC116 -> 0.01 | Z44: =Scenario_2!$BC116 -> 0.01 | AA44: =Scenario_3!$BC116 -> 0.01 | AB44: =Scenario_4!$BC116 -> 0.01 | AC44: =Scenario_5!$BC116 -> 0.01 | AE44: 1 | AF44: 1 | AG44: 1 | AH44: 1 | AI44: 1
A45: 1995 | B45: -0.49 | C45: 0.46 | D45: 0.75 | E45: 0.83 | F45: 1.46 | G45: 1.27 | H45: 1.71 | I45: 0.21 | J45: 1.16 | K45: 0.47 | L45: -0.28 | M45: 0.16 | N45: -1.106666667 | O45: 1995 | P45: -0.4899027778 | Q45: 1962 | R45: 38 | S45: 0.6600972222 | T45: 0.3300486111 | U45: 1.391035747 | V45: 1.183388513 | W45: 38 | Y45: =Scenario_1!BC117 -> 0.01 | Z45: =Scenario_2!$BC117 -> 0.01 | AA45: =Scenario_3!$BC117 -> 0.01 | AB45: =Scenario_4!$BC117 -> 0.01 | AC45: =Scenario_5!$BC117 -> 0.01 | AE45: 1 | AF45: 1 | AG45: 1 | AH45: 1 | AI45: 1
A46: 1996 | B46: 0.59 | C46: 0.75 | D46: 1.01 | E46: 1.46 | F46: 2.18 | G46: 1.1 | H46: 0.77 | I46: -0.14 | J46: 0.24 | K46: -0.33 | L46: 0.09 | M46: -0.03 | N46: -0.935 | O46: 1996 | P46: -0.4040694444 | Q46: 1963 | R46: 39 | S46: 0.3567638889 | T46: 0.1783819444 | U46: 1.195281765 | V46: 1.210820963 | W46: 39 | Y46: =Scenario_1!BC118 -> 0.01 | Z46: =Scenario_2!$BC118 -> 0.01 | AA46: =Scenario_3!$BC118 -> 0.01 | AB46: =Scenario_4!$BC118 -> 0.01 | AC46: =Scenario_5!$BC118 -> 0.01 | AE46: 1 | AF46: 1 | AG46: 1 | AH46: 1 | AI46: 1
A47: 1997 | B47: 0.23 | C47: 0.28 | D47: 0.65 | E47: 1.05 | F47: 1.83 | G47: 2.76 | H47: 2.35 | I47: 2.79 | J47: 2.19 | K47: 1.61 | L47: 1.12 | M47: 0.67 | N47: -2.161666667 | O47: 1997 | P47: -1.017402778 | Q47: 1964 | R47: 40 | S47: 0.5200972222 | T47: 0.2600486111 | U47: 1.296993133 | V47: 1.282617328 | W47: 40 | Y47: =Scenario_1!BC119 -> 0.01 | Z47: =Scenario_2!$BC119 -> 0.01 | AA47: =Scenario_3!$BC119 -> 0.01 | AB47: =Scenario_4!$BC119 -> 0.01 | AC47: =Scenario_5!$BC119 -> 0.01 | AE47: 1 | AF47: 1 | AG47: 1 | AH47: 1 | AI47: 1
A48: 1998 | B48: 0.83 | C48: 1.56 | D48: 2.01 | E48: 1.27 | F48: 0.7 | G48: 0.4 | H48: -0.04 | I48: -0.22 | J48: -1.21 | K48: -1.39 | L48: -0.52 | M48: -0.44 | N48: -0.15 | O48: 1998 | P48: -0.01156944444 | Q48: 1965 | R48: 41 | S48: 0.1067638889 | T48: 0.05338194444 | U48: 1.054832456 | V48: 1.228096338 | W48: 41 | Y48: =Scenario_1!BC120 -> 0.01 | Z48: =Scenario_2!$BC120 -> 0.01 | AA48: =Scenario_3!$BC120 -> 0.01 | AB48: =Scenario_4!$BC120 -> 0.01 | AC48: =Scenario_5!$BC120 -> 0.01 | AE48: 1 | AF48: 1 | AG48: 1 | AH48: 1 | AI48: 1
A49: 1999 | B49: -0.32 | C49: -0.66 | D49: -0.33 | E49: -0.41 | F49: -0.68 | G49: -1.3 | H49: -0.66 | I49: -0.96 | J49: -1.53 | K49: -2.23 | L49: -2.05 | M49: -1.63 | N49: 0.9233333333 | O49: 1999 | P49: 0.5250972222 | Q49: 1966 | R49: 42 | S49: 0.1242638889 | T49: 0.06213194444 | U49: 1.064102738 | V49: 1.14853373 | W49: 42 | Y49: =Scenario_1!BC121 -> 0.01 | Z49: =Scenario_2!$BC121 -> 0.01 | AA49: =Scenario_3!$BC121 -> 0.01 | AB49: =Scenario_4!$BC121 -> 0.01 | AC49: =Scenario_5!$BC121 -> 0.01 | AE49: 1 | AF49: 1 | AG49: 1 | AH49: 1 | AI49: 1
A50: 2000 | B50: -2 | C50: -0.83 | D50: 0.29 | E50: 0.35 | F50: -0.05 | G50: -0.44 | H50: -0.66 | I50: -1.19 | J50: -1.24 | K50: -1.3 | L50: -0.53 | M50: 0.52 | N50: 0.5383333333 | O50: 2000 | P50: 0.3325972222 | Q50: 1967 | R50: 43 | S50: 0.5750972222 | T50: 0.2875486111 | U50: 1.333155397 | V50: 1.180310781 | W50: 43 | Y50: =Scenario_1!BC122 -> 0.01 | Z50: =Scenario_2!$BC122 -> 0.01 | AA50: =Scenario_3!$BC122 -> 0.01 | AB50: =Scenario_4!$BC122 -> 0.01 | AC50: =Scenario_5!$BC122 -> 0.01 | AE50: 1 | AF50: 1 | AG50: 1 | AH50: 1 | AI50: 1
A51: 2001 | B51: 0.6 | C51: 0.29 | D51: 0.45 | E51: -0.31 | F51: -0.3 | G51: -0.47 | H51: -1.31 | I51: -0.77 | J51: -1.37 | K51: -1.37 | L51: -1.26 | M51: -0.93 | N51: 0.755 | O51: 2001 | P51: 0.4409305556 | Q51: 1968 | R51: 44 | S51: 0.1575972222 | T51: 0.07879861111 | U51: 1.0819864 | V51: 1.128021573 | W51: 44 | Y51: =Scenario_1!BC123 -> 0.01 | Z51: =Scenario_2!$BC123 -> 0.01 | AA51: =Scenario_3!$BC123 -> 0.01 | AB51: =Scenario_4!$BC123 -> 0.01 | AC51: =Scenario_5!$BC123 -> 0.01 | AE51: 1 | AF51: 1 | AG51: 1 | AH51: 1 | AI51: 1
A52: 2002 | B52: 0.27 | C52: -0.64 | D52: -0.43 | E52: -0.32 | F52: -0.63 | G52: -0.35 | H52: -0.31 | I52: 0.6 | J52: 0.43 | K52: 0.42 | L52: 1.51 | M52: 2.1 | N52: 0.09666666667 | O52: 2002 | P52: 0.1117638889 | Q52: 1969 | R52: 45 | S52: 0.1567638889 | T52: 0.07838194444 | U52: 1.081535666 | V52: 1.135093785 | W52: 45 | Y52: =Scenario_1!BC124 -> 0.01 | Z52: =Scenario_2!$BC124 -> 0.01 | AA52: =Scenario_3!$BC124 -> 0.01 | AB52: =Scenario_4!$BC124 -> 0.01 | AC52: =Scenario_5!$BC124 -> 0.01 | AE52: 1 | AF52: 1 | AG52: 1 | AH52: 1 | AI52: 1
A53: 2003 | B53: 2.09 | C53: 1.75 | D53: 1.51 | E53: 1.18 | F53: 0.89 | G53: 0.68 | H53: 0.96 | I53: 0.88 | J53: 0.01 | K53: 0.83 | L53: 0.52 | M53: 0.33 | N53: -0.7666666667 | O53: 2003 | P53: -0.3199027778 | Q53: 1970 | R53: 46 | S53: 0.3950972222 | T53: 0.1975486111 | U53: 1.218412292 | V53: 1.174179311 | W53: 46 | Y53: =Scenario_1!BC125 -> 0.01 | Z53: =Scenario_2!$BC125 -> 0.01 | AA53: =Scenario_3!$BC125 -> 0.01 | AB53: =Scenario_4!$BC125 -> 0.01 | AC53: =Scenario_5!$BC125 -> 0.01 | AE53: 1 | AF53: 1 | AG53: 1 | AH53: 1 | AI53: 1
A54: 2004 | B54: 0.43 | C54: 0.48 | D54: 0.61 | E54: 0.57 | F54: 0.88 | G54: 0.04 | H54: 0.44 | I54: 0.85 | J54: 0.75 | K54: -0.11 | L54: -0.63 | M54: -0.17 | N54: -0.5883333333 | O54: 2004 | P54: -0.2307361111 | Q54: 1971 | R54: 47 | S54: 0.6325972222 | T54: 0.3162986111 | U54: 1.372039901 | V54: 1.182649126 | W54: 47 | Y54: =Scenario_1!BC126 -> 0.01 | Z54: =Scenario_2!$BC126 -> 0.01 | AA54: =Scenario_3!$BC126 -> 0.01 | AB54: =Scenario_4!$BC126 -> 0.01 | AC54: =Scenario_5!$BC126 -> 0.01 | AE54: 1 | AF54: 1 | AG54: 1 | AH54: 1 | AI54: 1
A55: 2005 | B55: 0.44 | C55: 0.81 | D55: 1.36 | E55: 1.03 | F55: 1.86 | G55: 1.17 | H55: 0.66 | I55: 0.25 | J55: -0.46 | K55: -1.32 | L55: -1.5 | M55: 0.2 | N55: -0.7516666667 | O55: 2005 | P55: -0.3124027778 | Q55: 1972 | R55: 48 | S55: 0.5217638889 | T55: 0.2608819444 | U55: 1.298074411 | V55: 1.237728417 | W55: 48 | Y55: =Scenario_1!BC127 -> 0.01 | Z55: =Scenario_2!$BC127 -> 0.01 | AA55: =Scenario_3!$BC127 -> 0.01 | AB55: =Scenario_4!$BC127 -> 0.01 | AC55: =Scenario_5!$BC127 -> 0.01 | AE55: 1 | AF55: 1 | AG55: 1 | AH55: 1 | AI55: 1
A56: 2006 | B56: 1.03 | C56: 0.66 | D56: 0.05 | E56: 0.4 | F56: 0.48 | G56: 1.04 | H56: 0.35 | I56: -0.65 | J56: -0.94 | K56: -0.05 | L56: -0.22 | M56: 0.14 | N56: -0.1133333333 | O56: 2006 | P56: 0.006763888889 | Q56: 1973 | R56: 49 | S56: 0.4500972222 | T56: 0.2250486111 | U56: 1.252383594 | V56: 1.283954084 | W56: 49 | Y56: =Scenario_1!BC128 -> 0.01 | Z56: =Scenario_2!$BC128 -> 0.01 | AA56: =Scenario_3!$BC128 -> 0.01 | AB56: =Scenario_4!$BC128 -> 0.01 | AC56: =Scenario_5!$BC128 -> 0.01 | AE56: 1 | AF56: 1 | AG56: 1 | AH56: 1 | AI56: 1
A57: 2007 | B57: 0.01 | C57: 0.04 | D57: -0.36 | E57: 0.16 | F57: -0.1 | G57: 0.09 | H57: 0.78 | I57: 0.5 | J57: -0.36 | K57: -1.45 | L57: -1.08 | M57: -0.58 | N57: -0.1783333333 | O57: 2007 | P57: -0.02573611111 | Q57: 1974 | R57: 50 | S57: 0.1034305556 | T57: 0.05171527778 | U57: 1.053075866 | V57: 1.237986304 | W57: 50 | Y57: =Scenario_1!BC129 -> 0.01 | Z57: =Scenario_2!$BC129 -> 0.01 | AA57: =Scenario_3!$BC129 -> 0.01 | AB57: =Scenario_4!$BC129 -> 0.01 | AC57: =Scenario_5!$BC129 -> 0.01 | AE57: 1 | AF57: 1 | AG57: 1 | AH57: 1 | AI57: 1
A58: 2008 | B58: -1 | C58: -0.77 | D58: -0.71 | E58: -1.52 | F58: -1.37 | G58: -1.34 | H58: -1.67 | I58: -1.7 | J58: -1.55 | K58: -1.76 | L58: -1.25 | M58: -0.87 | N58: 1.525 | O58: 2008 | P58: 0.8259305556 | Q58: 1975 | R58: 51 | S58: 0.5784305556 | T58: 0.2892152778 | U58: 1.335379175 | V58: 1.229632418 | W58: 51 | Y58: =Scenario_1!BC130 -> 0.01 | Z58: =Scenario_2!$BC130 -> 0.01 | AA58: =Scenario_3!$BC130 -> 0.01 | AB58: =Scenario_4!$BC130 -> 0.01 | AC58: =Scenario_5!$BC130 -> 0.01 | AE58: =AE57 -> 1 | AF58: 1 | AG58: 1 | AH58: 1 | AI58: 1
A59: 2009 | B59: -1.4 | C59: -1.55 | D59: -1.59 | E59: -1.65 | F59: -0.88 | G59: -0.31 | H59: -0.53 | I59: 0.09 | J59: 0.52 | K59: 0.27 | L59: -0.4 | M59: 0.08 | N59: 0.46 | O59: 2009 | P59: 0.2934305556 | Q59: 1976 | R59: 52 | S59: 0.02426388889 | T59: 0.01213194444 | U59: 1.012205835 | V59: 1.155493792 | W59: 52 | Y59: =Scenario_1!BC131 -> 0.01 | Z59: =Scenario_2!$BC131 -> 0.01 | AA59: =Scenario_3!$BC131 -> 0.01 | AB59: =Scenario_4!$BC131 -> 0.01 | AC59: =Scenario_5!$BC131 -> 0.01 | AE59: 1 | AF59: 1 | AG59: 1 | AH59: 1 | AI59: 1
A60: 2010 | B60: 0.83 | C60: 0.82 | D60: 0.44 | E60: 0.78 | F60: 0.62 | G60: -0.22 | H60: -1.05 | I60: -1.27 | J60: -1.61 | K60: -1.06 | L60: -0.82 | M60: -1.21 | N60: 0.4583333333 | O60: 2010 | P60: 0.2925972222 | Q60: 1977 | R60: 53 | S60: -0.04573611111 | T60: -0.02286805556 | U60: 0.9773914366 | V60: 1.086051466 | W60: 53 | Y60: =Scenario_1!BC132 -> 0.01 | Z60: =Scenario_2!$BC132 -> 0.01 | AA60: =Scenario_3!$BC132 -> 0.01 | AB60: =Scenario_4!$BC132 -> 0.01 | AC60: =Scenario_5!$BC132 -> 0.01 | AE60: 1 | AF60: 1 | AG60: 1 | AH60: 1 | AI60: 1
A61: 2011 | B61: -0.92 | C61: -0.83 | D61: -0.69 | E61: -0.42 | F61: -0.37 | G61: -0.69 | H61: -1.86 | I61: -1.74 | J61: -1.79 | K61: -1.34 | L61: -2.33 | M61: -1.79 | N61: 1.145 | O61: 2011 | P61: 0.6359305556 | Q61: 1978 | R61: 54 | S61: 0.05509722222 | T61: 0.02754861111 | U61: 1.027931583 | V61: 1.079509687 | W61: 54 | Y61: =Scenario_1!BC133 -> 0.01 | Z61: =Scenario_2!$BC133 -> 0.01 | AA61: =Scenario_3!$BC133 -> 0.01 | AB61: =Scenario_4!$BC133 -> 0.01 | AC61: =Scenario_5!$BC133 -> 0.01 | AE61: 1 | AF61: 1 | AG61: 1 | AH61: 1 | AI61: 1
A62: 2012 | B62: -1.38 | C62: -0.85 | D62: -1.05 | E62: -0.27 | F62: -1.26 | G62: -0.87 | H62: -1.52 | I62: -1.93 | J62: -2.21 | K62: -0.79 | L62: -0.59 | M62: -0.48 | N62: 1.343333333 | O62: 2012 | P62: 0.7350972222 | Q62: 1979 | R62: 55 | S62: -0.3124027778 | T62: -0.1562013889 | U62: 0.8553869076 | V62: 0.9657529506 | W62: 55 | Y62: =Scenario_1!BC134 -> 0.01 | Z62: =Scenario_2!$BC134 -> 0.01 | AA62: =Scenario_3!$BC134 -> 0.01 | AB62: =Scenario_4!$BC134 -> 0.01 | AC62: =Scenario_5!$BC134 -> 0.01 | AE62: 1 | AF62: 1 | AG62: 1 | AH62: 1 | AI62: 1
A63: 2013 | B63: -0.13 | C63: -0.43 | D63: -0.63 | E63: -0.16 | F63: 0.08 | G63: -0.78 | H63: -1.25 | I63: -1.04 | J63: -0.48 | K63: -0.87 | L63: -0.11 | M63: -0.41 | N63: 0.605 | O63: 2013 | P63: 0.3659305556 | Q63: 1980 | R63: 56 | S63: -0.2124027778 | T63: -0.1062013889 | U63: 0.8992435322 | V63: 0.9376012232 | W63: 56 | Y63: =Scenario_1!BC135 -> 0.01 | Z63: =Scenario_2!$BC135 -> 0.01 | AA63: =Scenario_3!$BC135 -> 0.01 | AB63: =Scenario_4!$BC135 -> 0.01 | AC63: =Scenario_5!$BC135 -> 0.01 | AE63: 1 | AF63: 1 | AG63: 1 | AH63: 1 | AI63: 1
A64: 2014 | B64: 0.3 | C64: 0.38 | D64: 0.97 | E64: 1.13 | F64: 1.8 | G64: 0.82 | H64: 0.7 | I64: 0.67 | J64: 1.08 | K64: 1.49 | L64: 1.72 | M64: 2.51 | N64: -1.033333333 | O64: 2014 | P64: -0.4532361111 | Q64: 1981 | R64: 57 | S64: -0.4640694444 | T64: -0.2320347222 | U64: 0.7929185909 | V64: 0.8898323345 | W64: 57 | Y64: =Scenario_1!BC136 -> 0.01 | Z64: =Scenario_2!$BC136 -> 0.01 | AA64: =Scenario_3!$BC136 -> 0.01 | AB64: =Scenario_4!$BC136 -> 0.01 | AC64: =Scenario_5!$BC136 -> 0.01 | AE64: 1 | AF64: 1 | AG64: 1 | AH64: 1 | AI64: 1
A65: 2015 | B65: 2.45 | C65: 2.3 | D65: 2 | E65: 1.44 | F65: 1.2 | G65: 1.54 | H65: 1.84 | I65: 1.56 | J65: 1.94 | K65: 1.47 | L65: 0.86 | M65: 1.01 | N65: -1.586666667 | O65: 2015 | P65: -0.7299027778 | Q65: 1982 | R65: 58 | S65: 0.04176388889 | T65: 0.02088194444 | U65: 1.021101498 | V65: 0.8883505158 | W65: 58 | Y65: =Scenario_1!BC137 -> 0.01 | Z65: =Scenario_2!$BC137 -> 0.01 | AA65: =Scenario_3!$BC137 -> 0.01 | AB65: =Scenario_4!$BC137 -> 0.01 | AC65: =Scenario_5!$BC137 -> 0.01 | AE65: 1 | AF65: 1 | AG65: 1 | AH65: 1 | AI65: 1
A66: 2016 | B66: 1.53 | C66: 1.75 | D66: 2.4 | E66: 2.62 | F66: 2.35 | G66: 2.03 | H66: 1.25 | I66: 0.52 | J66: 0.45 | K66: 0.56 | L66: 1.88 | M66: 1.17 | N66: -1.536666667 | O66: 2016 | P66: -0.7049027778 | Q66: 1983 | R66: 59 | S66: -0.9615694444 | T66: -0.4807847222 | U66: 0.6182980092 | V66: 0.8191117789 | W66: 59 | Y66: =Scenario_1!BC138 -> 0.01 | Z66: =Scenario_2!$BC138 -> 0.01 | AA66: =Scenario_3!$BC138 -> 0.01 | AB66: =Scenario_4!$BC138 -> 0.01 | AC66: =Scenario_5!$BC138 -> 0.01 | AE66: 1 | AF66: 1 | AG66: 1 | AH66: 1 | AI66: 1
A67: 2017 | B67: 0.77 | C67: 0.7 | D67: 0.74 | E67: 1.12 | F67: 0.88 | G67: 0.79 | H67: 0.1 | I67: 0.09 | J67: 0.32 | K67: 0.05 | L67: 0.15 | M67: 0.5 | N67: -0.55 | O67: 2017 | P67: -0.2115694444 | Q67: 1984 | R67: 60 | S67: -0.2249027778 | T67: -0.1124513889 | U67: 0.8936407869 | V67: 0.8178329162 | W67: 60 | Y67: =Scenario_1!BC139 -> 0.01 | Z67: =Scenario_2!$BC139 -> 0.01 | AA67: =Scenario_3!$BC139 -> 0.01 | AB67: =Scenario_4!$BC139 -> 0.01 | AC67: =Scenario_5!$BC139 -> 0.01 | AE67: 1 | AF67: 1 | AG67: 1 | AH67: 1 | AI67: 1
O68: 0 | P68: 0.06343055556 | Q68: 1985 | R68: 61 | S68: -0.1607361111 | T68: -0.08036805556 | U68: 0.9227766508 | V68: 0.8494378039 | W68: 61 | Y68: =Scenario_1!BC140 -> 0.01 | Z68: =Scenario_2!$BC140 -> 0.01 | AA68: =Scenario_3!$BC140 -> 0.01 | AB68: =Scenario_4!$BC140 -> 0.01 | AC68: =Scenario_5!$BC140 -> 0.01 | AE68: 1 | AF68: 1 | AG68: 1 | AH68: 1 | AI68: 1
O69: 0 | P69: 0.06343055556 | Q69: 1986 | R69: 62 | S69: -0.3882361111 | T69: -0.1941180556 | U69: 0.8235606726 | V69: 0.8049858692 | W69: 62 | Y69: =Scenario_1!BC141 -> 0.01 | Z69: =Scenario_2!$BC141 -> 0.01 | AA69: =Scenario_3!$BC141 -> 0.01 | AB69: =Scenario_4!$BC141 -> 0.01 | AC69: =Scenario_5!$BC141 -> 0.01 | AE69: 1 | AF69: 1 | AG69: 1 | AH69: 1 | AI69: 1
O70: 0 | P70: 0.06343055556 | Q70: 1987 | R70: 63 | S70: -0.9382361111 | T70: -0.4691180556 | U70: 0.6255537287 | V70: 0.8073371719 | W70: 63 | Y70: =Scenario_1!BC142 -> 0.01 | Z70: =Scenario_2!$BC142 -> 0.01 | AA70: =Scenario_3!$BC142 -> 0.01 | AB70: =Scenario_4!$BC142 -> 0.01 | AC70: =Scenario_5!$BC142 -> 0.01 | AE70: 1 | AF70: 1 | AG70: 1 | AH70: 1 | AI70: 1
O71: 0 | P71: 0.06343055556 | Q71: 1988 | R71: 64 | S71: -0.2149027778 | T71: -0.1074513889 | U71: 0.89812018 | V71: 0.8083469744 | W71: 64 | Y71: =Scenario_1!BC143 -> 0.01 | Z71: =Scenario_2!$BC143 -> 0.01 | AA71: =Scenario_3!$BC143 -> 0.01 | AB71: =Scenario_4!$BC143 -> 0.01 | AC71: =Scenario_5!$BC143 -> 0.01 | AE71: 1 | AF71: 1 | AG71: 1 | AH71: 1 | AI71: 1
O72: 0 | P72: 0.06343055556 | Q72: 1989 | R72: 65 | S72: -0.05990277778 | T72: -0.02995138889 | U72: 0.9704927091 | V72: 0.818599994 | W72: 65 | Y72: =Scenario_1!BC144 -> 0.01 | Z72: =Scenario_2!$BC144 -> 0.01 | AA72: =Scenario_3!$BC144 -> 0.01 | AB72: =Scenario_4!$BC144 -> 0.01 | AC72: =Scenario_5!$BC144 -> 0.01 | AE72: 1 | AF72: 1 | AG72: 1 | AH72: 1 | AI72: 1
O73: 0 | P73: =$P$6*(N73-AVERAGE($N$8:$N$67)) -> 0.06343055556 | Q73: 1990 | R73: 66 | S73: =VLOOKUP(Q73,$O$8:$P$67,2,FALSE) -> -0.09573611111 | T73: =(S73-AVERAGE($P$8:$P$67))*$P$6 -> -0.04786805556 | U73: =EXP(T73) -> 0.9532595561 | V73: 0.8490839452 | W73: 66 | Y73: =Scenario_1!BC145 -> 0.01 | Z73: =Scenario_2!$BC145 -> 0.01 | AA73: =Scenario_3!$BC145 -> 0.01 | AB73: =Scenario_4!$BC145 -> 0.01 | AC73: =Scenario_5!$BC145 -> 0.01 | AE73: 1 | AF73: 1 | AG73: 1 | AH73: 1 | AI73: 1
O74: =IF(A73=$R$2,$Q$2,IF(A73<$Q$2,O73+1,A74)) -> 0 | P74: 0.06343055556 | Q74: 1991 | R74: 67 | S74: 0.2367638889 | T74: 0.1183819444 | U74: 1.125673974 | V74: 0.983416818 | W74: 67 | Y74: =Scenario_1!BC146 -> 0.01 | Z74: =Scenario_2!$BC146 -> 0.01 | AA74: =Scenario_3!$BC146 -> 0.01 | AB74: =Scenario_4!$BC146 -> 0.01 | AC74: =Scenario_5!$BC146 -> 0.01 | AE74: =AE73 -> 1 | AF74: 1 | AG74: 1 | AH74: 1 | AI74: 1
O75: 0 | P75: 0.06343055556 | Q75: 1992 | R75: 68 | S75: -0.5799027778 | T75: -0.2899513889 | U75: 0.7482999424 | V75: 0.9395565952 | W75: 68 | Y75: =Scenario_1!BC147 -> 0.01 | Z75: =Scenario_2!$BC147 -> 0.01 | AA75: =Scenario_3!$BC147 -> 0.01 | AB75: =Scenario_4!$BC147 -> 0.01 | AC75: =Scenario_5!$BC147 -> 0.01 | AE75: 1 | AF75: 1 | AG75: 1 | AH75: 1 | AI75: 1
O76: 0 | P76: 0.06343055556 | Q76: 1993 | R76: 69 | S76: -0.9599027778 | T76: -0.4799513889 | U76: 0.6188134723 | V76: =IF($R$6=2,GEOMEAN(U76,U75),IF($R$6=3,GEOMEAN(U75,U74,U76),GEOMEAN(U75,U73,U74,U76))) -> 0.8395852809 | W76: 69 | Y76: =Scenario_1!BC148 -> 0.01 | Z76: =Scenario_2!$BC148 -> 0.01 | AA76: =Scenario_3!$BC148 -> 0.01 | AB76: =Scenario_4!$BC148 -> 0.01 | AC76: =Scenario_5!$BC148 -> 0.01 | AE76: 1 | AF76: 1 | AG76: 1 | AH76: 1 | AI76: 1
O77: 0 | P77: 0.06343055556 | Q77: 1994 | R77: 70 | S77: 0.009263888889 | T77: 0.004631944444 | U77: 1.004642688 | V77: 0.850677471 | W77: 70 | Y77: =Scenario_1!BC149 -> 0.01 | Z77: =Scenario_2!$BC149 -> 0.01 | AA77: =Scenario_3!$BC149 -> 0.01 | AB77: =Scenario_4!$BC149 -> 0.01 | AC77: =Scenario_5!$BC149 -> 0.01 | AE77: 1 | AF77: 1 | AG77: 1 | AH77: 1 | AI77: 1
O78: 0 | P78: 0.06343055556 | Q78: 1995 | R78: 71 | S78: -0.4899027778 | T78: -0.2449513889 | U78: 0.7827425873 | V78: 0.7768130554 | W78: 71 | Y78: =Scenario_1!BC150 -> 0.01 | Z78: =Scenario_2!$BC150 -> 0.01 | AA78: =Scenario_3!$BC150 -> 0.01 | AB78: =Scenario_4!$BC150 -> 0.01 | AC78: =Scenario_5!$BC150 -> 0.01 | AE78: 1 | AF78: 1 | AG78: 1 | AH78: 1 | AI78: 1
O79: 0 | P79: 0.06343055556 | Q79: 1996 | R79: 72 | S79: -0.4040694444 | T79: -0.2020347222 | U79: 0.8170665571 | V79: 0.7940757741 | W79: 72 | Y79: =Scenario_1!BC151 -> 0.01 | Z79: =Scenario_2!$BC151 -> 0.01 | AA79: =Scenario_3!$BC151 -> 0.01 | AB79: =Scenario_4!$BC151 -> 0.01 | AC79: =Scenario_5!$BC151 -> 0.01 | AE79: 1 | AF79: 1 | AG79: 1 | AH79: 1 | AI79: 1
O80: 0 | P80: 0.06343055556 | Q80: 1997 | R80: 73 | S80: -1.017402778 | T80: -0.5087013889 | U80: 0.6012758956 | V80: 0.7883888165 | W80: 73 | Y80: =Scenario_1!BC152 -> 0.01 | Z80: =Scenario_2!$BC152 -> 0.01 | AA80: =Scenario_3!$BC152 -> 0.01 | AB80: =Scenario_4!$BC152 -> 0.01 | AC80: =Scenario_5!$BC152 -> 0.01 | AE80: 1 | AF80: 1 | AG80: 1 | AH80: 1 | AI80: 1
O81: 0 | P81: 0.06343055556 | Q81: 1998 | R81: 74 | S81: -0.01156944444 | T81: -0.005784722222 | U81: 0.9942319771 | V81: 0.7863383916 | W81: 74 | Y81: =Scenario_1!BC153 -> 0.01 | Z81: =Scenario_2!$BC153 -> 0.01 | AA81: =Scenario_3!$BC153 -> 0.01 | AB81: =Scenario_4!$BC153 -> 0.01 | AC81: =Scenario_5!$BC153 -> 0.01 | AE81: 1 | AF81: 1 | AG81: 1 | AH81: 1 | AI81: 1
O82: 0 | P82: 0.06343055556 | Q82: 1999 | R82: 75 | S82: 0.5250972222 | T82: 0.2625486111 | U82: 1.300239673 | V82: 0.8927103958 | W82: 75 | Y82: =Scenario_1!BC154 -> 0.01 | Z82: =Scenario_2!$BC154 -> 0.01 | AA82: =Scenario_3!$BC154 -> 0.01 | AB82: =Scenario_4!$BC154 -> 0.01 | AC82: =Scenario_5!$BC154 -> 0.01 | AE82: 1 | AF82: 1 | AG82: 1 | AH82: 1 | AI82: 1
O83: 0 | P83: 0.06343055556 | Q83: 2000 | R83: 76 | S83: 0.3325972222 | T83: 0.1662986111 | U83: 1.180925687 | V83: 0.978817839 | W83: 76 | Y83: =Scenario_1!BC155 -> 0.01 | Z83: =Scenario_2!$BC155 -> 0.01 | AA83: =Scenario_3!$BC155 -> 0.01 | AB83: =Scenario_4!$BC155 -> 0.01 | AC83: =Scenario_5!$BC155 -> 0.01 | AE83: 1 | AF83: 1 | AG83: 1 | AH83: 1 | AI83: 1
O84: 0 | P84: 0.06343055556 | Q84: 2001 | R84: 77 | S84: 0.4409305556 | T84: 0.2204652778 | U84: 1.246656637 | V84: 1.174546299 | W84: 77 | Y84: =Scenario_1!BC156 -> 0.01 | Z84: =Scenario_2!$BC156 -> 0.01 | AA84: =Scenario_3!$BC156 -> 0.01 | AB84: =Scenario_4!$BC156 -> 0.01 | AC84: =Scenario_5!$BC156 -> 0.01 | AE84: 1 | AF84: 1 | AG84: 1 | AH84: 1 | AI84: 1
O85: 0 | P85: 0.06343055556 | Q85: 2002 | R85: 78 | S85: 0.1117638889 | T85: 0.05588194444 | U85: 1.057472836 | V85: 1.192794187 | W85: 78 | Y85: =Scenario_1!BC157 -> 0.01 | Z85: =Scenario_2!$BC157 -> 0.01 | AA85: =Scenario_3!$BC157 -> 0.01 | AB85: =Scenario_4!$BC157 -> 0.01 | AC85: =Scenario_5!$BC157 -> 0.01 | AE85: 1 | AF85: 1 | AG85: 1 | AH85: 1 | AI85: 1
O86: 0 | P86: 0.06343055556 | Q86: 2003 | R86: 79 | S86: -0.3199027778 | T86: -0.1599513889 | U86: 0.8521852136 | V86: 1.073230878 | W86: 79 | Y86: =Scenario_1!BC158 -> 0.01 | Z86: =Scenario_2!$BC158 -> 0.01 | AA86: =Scenario_3!$BC158 -> 0.01 | AB86: =Scenario_4!$BC158 -> 0.01 | AC86: =Scenario_5!$BC158 -> 0.01 | AE86: 1 | AF86: 1 | AG86: 1 | AH86: 1 | AI86: 1
O87: 0 | P87: 0.06343055556 | Q87: 2004 | R87: 80 | S87: -0.2307361111 | T87: -0.1153680556 | U87: 0.891038132 | V87: 1.000256977 | W87: 80 | Y87: =Scenario_1!BC159 -> 0.01 | Z87: =Scenario_2!$BC159 -> 0.01 | AA87: =Scenario_3!$BC159 -> 0.01 | AB87: =Scenario_4!$BC159 -> 0.01 | AC87: =Scenario_5!$BC159 -> 0.01 | AE87: 1 | AF87: 1 | AG87: 1 | AH87: 1 | AI87: 1
O88: 0 | P88: 0.06343055556 | Q88: 2005 | R88: 81 | S88: -0.3124027778 | T88: -0.1562013889 | U88: 0.8553869076 | V88: 0.9103649443 | W88: 81
O89: 0 | P89: 0.06343055556 | Q89: 2006 | R89: 82 | S89: 0.006763888889 | T89: 0.003381944444 | U89: 1.00338767 | V89: 0.8984944747 | W89: 82
O90: 0 | P90: 0.06343055556 | Q90: 2007 | R90: 83 | S90: -0.02573611111 | T90: -0.01286805556 | U90: 0.9872143839 | V90: 0.932147804 | W90: 83
O91: 0 | P91: 0.06343055556 | Q91: 2008 | R91: 84 | S91: 0.8259305556 | T91: 0.4129652778 | U91: 1.51129255 | V91: 1.063770258 | W91: 84
O92: 0 | P92: 0.06343055556 | Q92: 2009 | R92: 85 | S92: 0.2934305556 | T92: 0.1467152778 | U92: 1.158024201 | V92: 1.147457484 | W92: 85
O93: 0 | P93: 0.06343055556 | Q93: =IF(Q92=2017,1957,Q92)+1 -> 2010 | R93: 86 | S93: 0.2925972222 | T93: 0.1462986111 | U93: 1.157541791 | V93: 1.189196392 | W93: 86
O94: 0 | P94: 0.06343055556 | Q94: 2011 | R94: 87 | S94: 0.6359305556 | T94: 0.3179652778 | U94: 1.374328541 | V94: 1.291734787 | W94: 87
O95: =IF(A94=$R$2,$Q$2,IF(A94<$Q$2,O94+1,A95)) -> 0 | P95: 0.06343055556 | Q95: 2012 | R95: 88 | S95: 0.7350972222 | T95: 0.3675486111 | U95: 1.444190001 | V95: 1.277151164 | W95: 88
O96: =IF(A95=$R$2,$Q$2,IF(A95<$Q$2,O95+1,A96)) -> 0 | P96: 0.06343055556 | Q96: 2013 | R96: 89 | S96: 0.3659305556 | T96: 0.1829652778 | U96: 1.200772714 | V96: 1.288777951 | W96: 89
O97: 0 | P97: 0.06343055556 | Q97: 2014 | R97: 90 | S97: -0.4532361111 | T97: -0.2266180556 | U97: 0.7972252199 | V97: 1.174057007 | W97: 90
O98: 0 | P98: 0.06343055556 | Q98: 2015 | R98: 91 | S98: -0.7299027778 | T98: -0.3649513889 | U98: 0.6942303974 | V98: 0.9897886051 | W98: 91
O99: 0 | P99: 0.06343055556 | Q99: 2016 | R99: 92 | S99: -0.7049027778 | T99: -0.3524513889 | U99: 0.7029627408 | V99: 0.8267409374 | W99: 92
O100: 0 | P100: 0.06343055556 | Q100: 2017 | R100: 93 | S100: -0.2115694444 | T100: -0.1057847222 | U100: 0.8996182951 | V100: 0.7691637534 | W100: 93
O101: 0 | P101: 0.06343055556 | Q101: 1958 | R101: 94 | S101: -0.4290694444 | T101: -0.2145347222 | U101: 0.8069167933 | V101: 0.7714907819 | W101: 94
O102: 0 | P102: 0.06343055556 | Q102: 1959 | R102: 95 | S102: 0.1734305556 | T102: 0.08671527778 | U102: 1.090586121 | V102: 0.8637137362 | W102: 95
O103: 0 | P103: 0.06343055556 | Q103: 1960 | R103: 96 | S103: 0.05926388889 | T103: 0.02963194444 | U103: 1.030075339 | V103: 0.9502852697 | W103: 96
O104: 0 | P104: 0.06343055556 | Q104: 1961 | R104: 97 | S104: 0.4542638889 | T104: 0.2271319444 | U104: 1.254995447 | V104: 1.032761323 | W104: 97
O105: 0 | P105: 0.06343055556 | Q105: 1962 | R105: 98 | S105: 0.6600972222 | T105: 0.3300486111 | U105: 1.391035747 | V105: 1.183388513 | W105: 98
O106: 0 | P106: 0.06343055556 | Q106: 1963 | R106: 99 | S106: 0.3567638889 | T106: 0.1783819444 | U106: 1.195281765 | V106: 1.210820963 | W106: 99
O107: 0 | P107: 0.06343055556 | Q107: 1964 | R107: 100 | S107: 0.5200972222 | T107: 0.2600486111 | U107: 1.296993133 | V107: 1.282617328 | W107: 100
O108: 0 | P108: 0.06343055556 | Q108: 1965 | R108: 101 | S108: 0.1067638889 | T108: 0.05338194444 | U108: 1.054832456 | V108: 1.228096338
O109: 0 | P109: 0.06343055556 | Q109: 1966 | R109: 102 | S109: 0.1242638889 | T109: 0.06213194444 | U109: 1.064102738 | V109: 1.14853373
O110: 0 | P110: 0.06343055556 | Q110: 1967 | R110: 103 | S110: 0.5750972222 | T110: 0.2875486111 | U110: 1.333155397 | V110: 1.180310781
O111: 0 | P111: 0.06343055556 | Q111: 1968 | R111: 104 | S111: 0.1575972222 | T111: 0.07879861111 | U111: 1.0819864 | V111: 1.128021573
O112: 0 | P112: 0.06343055556 | Q112: 1969 | R112: 105 | S112: 0.1567638889 | T112: 0.07838194444 | U112: 1.081535666 | V112: 1.135093785
O113: 0 | P113: 0.06343055556 | Q113: 1970 | R113: 106 | S113: 0.3950972222 | T113: 0.1975486111 | U113: 1.218412292 | V113: 1.174179311
O114: 0 | P114: 0.06343055556 | Q114: 1971 | R114: 107 | S114: 0.6325972222 | T114: 0.3162986111 | U114: 1.372039901 | V114: 1.182649126
O115: 0 | P115: 0.06343055556 | Q115: 1972 | R115: 108 | S115: 0.5217638889 | T115: 0.2608819444 | U115: 1.298074411 | V115: 1.237728417
O116: 0 | P116: 0.06343055556 | Q116: 1973 | R116: 109 | S116: 0.4500972222 | T116: 0.2250486111 | U116: 1.252383594 | V116: 1.283954084
O117: 0 | P117: 0.06343055556 | Q117: 1974 | R117: 110 | S117: 0.1034305556 | T117: 0.05171527778 | U117: 1.053075866 | V117: 1.237986304
O118: 0 | P118: 0.06343055556 | Q118: 1975 | R118: 111 | S118: 0.5784305556 | T118: 0.2892152778 | U118: 1.335379175 | V118: 1.229632418
O119: 0 | P119: 0.06343055556 | Q119: 1976 | R119: 112 | S119: 0.02426388889 | T119: 0.01213194444 | U119: 1.012205835 | V119: 1.155493792
O120: 0 | P120: 0.06343055556 | Q120: 1977 | R120: 113 | S120: -0.04573611111 | T120: -0.02286805556 | U120: 0.9773914366 | V120: 1.086051466
O121: 0 | P121: 0.06343055556 | Q121: 1978 | R121: 114 | S121: 0.05509722222 | T121: 0.02754861111 | U121: 1.027931583 | V121: 1.079509687
O122: 0 | P122: 0.06343055556 | Q122: 1979 | R122: 115 | S122: -0.3124027778 | T122: -0.1562013889 | U122: 0.8553869076 | V122: 0.9657529506
O123: 0 | P123: 0.06343055556 | Q123: 1980 | R123: 116 | S123: -0.2124027778 | T123: -0.1062013889 | U123: 0.8992435322 | V123: 0.9376012232
O124: 0 | P124: 0.06343055556 | Q124: 1981 | R124: 117 | S124: -0.4640694444 | T124: -0.2320347222 | U124: 0.7929185909 | V124: 0.8898323345
O125: 0 | P125: 0.06343055556 | Q125: 1982 | R125: 118 | S125: 0.04176388889 | T125: 0.02088194444 | U125: 1.021101498 | V125: 0.8883505158
O126: 0 | P126: 0.06343055556 | Q126: 1983 | R126: 119 | S126: -0.9615694444 | T126: -0.4807847222 | U126: 0.6182980092 | V126: 0.8191117789
O127: 0 | P127: 0.06343055556 | Q127: 1984 | R127: 120 | S127: -0.2249027778 | T127: -0.1124513889 | U127: 0.8936407869 | V127: 0.8178329162

Sheet Stray Assumptions
C1: Stray Assumptions | K1: This table is used to enter the stray assumptions for each scenario. If brood are exported from a Scenario and imported into Scenario 5 (segregated/stepping stone hatchery), the strays from that program are automatically accounted for in the first row of this table.
C3: INPUTS in YELLOW CELLS
C6: =AHA!H6 -> No Hatchery | J6: =+AHA!M6 -> Naselle Scen. 1 | Q6: =+AHA!R6 -> Naselle Scen. 2 | X6: =+AHA!W6 -> Naselle Scen. 3 | AE6: =+AHA!AB6 -> Segregated Hatchery
D7: Total Number adult strays (1) | E7: Percent adults straying to recipient population (2) | F7: Percent Effective Spawners (3) | G7: Percent allowed to spawn naturally (4) | H7: Effect Contrib. To Population (# HOS) | K7: Total Number adult strays (1) | L7: Percent adults straying to recipient population (2) | M7: Percent Effective Spawners (3) | N7: Percent allowed to spawn naturally (4) | O7: Effect Contrib. To Population (# HOS) | R7: Total Number adult strays (1) | S7: Percent adults straying to recipient population (2) | T7: Percent Effective Spawners (3) | U7: Percent allowed to spawn naturally (4) | V7: Effect Contrib. To Population (# HOS) | Y7: Total Number adult strays (1) | Z7: Percent adults straying to recipient population (2) | AA7: Percent Effective Spawners (3) | AB7: Percent allowed to spawn naturally (4) | AC7: Effect Contrib. To Population (# HOS) | AF7: Total Number adult strays (1) | AG7: Percent adults straying to recipient population (2) | AH7: Percent Effective Spawners (3) | AI7: Percent allowed to spawn naturally (4) | AJ7: Effect Contrib. To Population (# HOS)
C8: Donor Population | J8: Donor Population | Q8: Donor Population | X8: Donor Population | AE8: Donor Population
B9: # 1 | C9: =AHA!AB6 -> Segregated Hatchery | D9: =IF(AHA!H41>0,AHA!$AB$56,0) -> 0 | E9: =1-AHA!$AB$37 -> 0.1 | F9: =AHA!$H$36 -> 0.8 | G9: =1-Scenario_1!$I$29 -> 1 | H9: =IF(E9=0,0,(D9*E9*F9*G9)) -> 0 | J9: =C9 -> Segregated Hatchery | K9: =IF(AHA!M41>0,AHA!$AB$56,0) -> 63 | L9: =1-AHA!$AB$37 -> 0.1 | M9: =AHA!$M$36 -> 0.8 | N9: =1-Scenario_2!$I$29 -> 1 | O9: =IF(L9=0,0,(K9*L9*M9*N9)) -> 5.04 | Q9: =C9 -> Segregated Hatchery | R9: =IF(AHA!R41>0,AHA!$AB$56,0) -> 63 | S9: =1-AHA!$AB$37 -> 0.1 | T9: =AHA!$R$36 -> 0.8 | U9: =1-Scenario_3!$I$29 -> 1 | V9: =IF(S9=0,0,(R9*S9*T9*U9)) -> 5.04 | X9: =C9 -> Segregated Hatchery | Y9: =IF(AHA!W41>0,AHA!$AB$56,0) -> 63 | Z9: =1-AHA!$AB$37 -> 0.1 | AA9: =AHA!$W$36 -> 0.8 | AB9: =1-Scenario_4!$I$29 -> 1 | AC9: =IF(Z9=0,0,(Y9*Z9*AA9*AB9)) -> 5.04 | AG9: 0 | AH9: =AHA!$AB$36 -> 0.8 | AI9: =1-Scenario_5!$I$29 -> 1 | AJ9: =IF(AG9=0,0,(AF9*AG9*AH9*AI9)) -> 0
B10: # 2 | E10: 1 | F10: =AHA!$H$36 -> 0.8 | G10: =1-Scenario_1!$I$29 -> 1 | H10: =IF(E10=0,0,(D10*E10*F10*G10)) -> 0 | J10: Population xyz | K10: 250 | L10: 0.2 | M10: =AHA!$M$36 -> 0.8 | N10: =1-Scenario_2!$I$29 -> 1 | O10: =IF(L10=0,0,(K10*L10*M10*N10)) -> 40 | S10: 1 | T10: =AHA!$R$36 -> 0.8 | U10: =1-Scenario_3!$I$29 -> 1 | V10: =IF(S10=0,0,(R10*S10*T10*U10)) -> 0 | Z10: 1 | AA10: =AHA!$W$36 -> 0.8 | AB10: =1-Scenario_4!$I$29 -> 1 | AC10: =IF(Z10=0,0,(Y10*Z10*AA10*AB10)) -> 0 | AG10: 0 | AH10: =AHA!$AB$36 -> 0.8 | AI10: =1-Scenario_5!$I$29 -> 1 | AJ10: =IF(AG10=0,0,(AF10*AG10*AH10*AI10)) -> 0
B11: # 3 | E11: 0 | F11: =AHA!$H$36 -> 0.8 | G11: =1-Scenario_1!$I$29 -> 1 | H11: 0 | L11: 0 | M11: =AHA!$M$36 -> 0.8 | N11: =1-Scenario_2!$I$29 -> 1 | O11: 0 | S11: 0 | T11: =AHA!$R$36 -> 0.8 | U11: =1-Scenario_3!$I$29 -> 1 | V11: 0 | Z11: 0 | AA11: =AHA!$W$36 -> 0.8 | AB11: =1-Scenario_4!$I$29 -> 1 | AC11: 0 | AG11: 0 | AH11: =AHA!$AB$36 -> 0.8 | AI11: =1-Scenario_5!$I$29 -> 1 | AJ11: 0
B12: # 4 | E12: 0 | F12: =AHA!$H$36 -> 0.8 | G12: =1-Scenario_1!$I$29 -> 1 | H12: 0 | L12: 0 | M12: =AHA!$M$36 -> 0.8 | N12: =1-Scenario_2!$I$29 -> 1 | O12: 0 | S12: 0 | T12: =AHA!$R$36 -> 0.8 | U12: =1-Scenario_3!$I$29 -> 1 | V12: 0 | Z12: 0 | AA12: =AHA!$W$36 -> 0.8 | AB12: =1-Scenario_4!$I$29 -> 1 | AC12: 0 | AG12: 0 | AH12: =AHA!$AB$36 -> 0.8 | AI12: =1-Scenario_5!$I$29 -> 1 | AJ12: 0
B13: # 5 | E13: 0 | F13: =AHA!$H$36 -> 0.8 | G13: =1-Scenario_1!$I$29 -> 1 | H13: 0 | L13: 0 | M13: =AHA!$M$36 -> 0.8 | N13: =1-Scenario_2!$I$29 -> 1 | O13: 0 | S13: 0 | T13: =AHA!$R$36 -> 0.8 | U13: =1-Scenario_3!$I$29 -> 1 | V13: 0 | Z13: 0 | AA13: =AHA!$W$36 -> 0.8 | AB13: =1-Scenario_4!$I$29 -> 1 | AC13: 0 | AG13: 0 | AH13: =AHA!$AB$36 -> 0.8 | AI13: =1-Scenario_5!$I$29 -> 1 | AJ13: 0
B14: # 6 | E14: 0 | F14: =AHA!$H$36 -> 0.8 | G14: =1-Scenario_1!$I$29 -> 1 | H14: 0 | L14: 0 | M14: =AHA!$M$36 -> 0.8 | N14: =1-Scenario_2!$I$29 -> 1 | O14: 0 | S14: 0 | T14: =AHA!$R$36 -> 0.8 | U14: =1-Scenario_3!$I$29 -> 1 | V14: 0 | Z14: 0 | AA14: =AHA!$W$36 -> 0.8 | AB14: =1-Scenario_4!$I$29 -> 1 | AC14: 0 | AG14: 0 | AH14: =AHA!$AB$36 -> 0.8 | AI14: =1-Scenario_5!$I$29 -> 1 | AJ14: 0
B15: # 7 | E15: 0 | F15: =AHA!$H$36 -> 0.8 | G15: =1-Scenario_1!$I$29 -> 1 | H15: 0 | L15: 0 | M15: =AHA!$M$36 -> 0.8 | N15: =1-Scenario_2!$I$29 -> 1 | O15: 0 | S15: 0 | T15: =AHA!$R$36 -> 0.8 | U15: =1-Scenario_3!$I$29 -> 1 | V15: 0 | Z15: 0 | AA15: =AHA!$W$36 -> 0.8 | AB15: =1-Scenario_4!$I$29 -> 1 | AC15: 0 | AG15: 0 | AH15: =AHA!$AB$36 -> 0.8 | AI15: =1-Scenario_5!$I$29 -> 1 | AJ15: 0
B16: # 8 | E16: 0 | F16: =AHA!$H$36 -> 0.8 | G16: =1-Scenario_1!$I$29 -> 1 | H16: 0 | L16: 0 | M16: =AHA!$M$36 -> 0.8 | N16: =1-Scenario_2!$I$29 -> 1 | O16: 0 | S16: 0 | T16: =AHA!$R$36 -> 0.8 | U16: =1-Scenario_3!$I$29 -> 1 | V16: 0 | Z16: 0 | AA16: =AHA!$W$36 -> 0.8 | AB16: =1-Scenario_4!$I$29 -> 1 | AC16: 0 | AG16: 0 | AH16: =AHA!$AB$36 -> 0.8 | AI16: =1-Scenario_5!$I$29 -> 1 | AJ16: 0
B17: # 9 | E17: 0 | F17: =AHA!$H$36 -> 0.8 | G17: =1-Scenario_1!$I$29 -> 1 | H17: 0 | L17: 0 | M17: =AHA!$M$36 -> 0.8 | N17: =1-Scenario_2!$I$29 -> 1 | O17: 0 | S17: 0 | T17: =AHA!$R$36 -> 0.8 | U17: =1-Scenario_3!$I$29 -> 1 | V17: 0 | Z17: 0 | AA17: =AHA!$W$36 -> 0.8 | AB17: =1-Scenario_4!$I$29 -> 1 | AC17: 0 | AG17: 0 | AH17: =AHA!$AB$36 -> 0.8 | AI17: =1-Scenario_5!$I$29 -> 1 | AJ17: 0
B18: # 10 | E18: 0 | F18: =AHA!$H$36 -> 0.8 | G18: =1-Scenario_1!$I$29 -> 1 | H18: 0 | L18: 0 | M18: =AHA!$M$36 -> 0.8 | N18: =1-Scenario_2!$I$29 -> 1 | O18: 0 | S18: 0 | T18: =AHA!$R$36 -> 0.8 | U18: =1-Scenario_3!$I$29 -> 1 | V18: 0 | Z18: 0 | AA18: =AHA!$W$36 -> 0.8 | AB18: =1-Scenario_4!$I$29 -> 1 | AC18: 0 | AG18: 0 | AH18: =AHA!$AB$36 -> 0.8 | AI18: =1-Scenario_5!$I$29 -> 1 | AJ18: 0
C19: Combined All Stocks | F19: Number spawn naturally: | G19: =D9*E9*G9+D10*E10*G10+D11*E11*G11+D12*E12*G12+D13*E13*G13+D14*E14*G14+D15*E15*G15+D16*E16*G16+D17*E17*G17+D18*E18*G18 -> 0 | H19: =+SUM(H9:H18) -> 0 | M19: Number spawn naturally: | N19: =K9*L9*N9+K10*L10*N10+K11*L11*N11+K12*L12*N12+K13*L13*N13+K14*L14*N14+K15*L15*N15+K16*L16*N16+K17*L17*N17+K18*L18*N18 -> 56.3 | O19: =+SUM(O9:O18) -> 45.04 | T19: Number spawn naturally: | U19: =R9*S9*U9+R10*S10*U10+R11*S11*U11+R12*S12*U12+R13*S13*U13+R14*S14*U14+R15*S15*U15+R16*S16*U16+R17*S17*U17+R18*S18*U18 -> 6.3 | V19: =+SUM(V9:V18) -> 5.04 | AA19: Number spawn naturally: | AB19: =Y9*Z9*AB9+Y10*Z10*AB10+Y11*Z11*AB11+Y12*Z12*AB12+Y13*Z13*AB13+Y14*Z14*AB14+Y15*Z15*AB15+Y16*Z16*AB16+Y17*Z17*AB17+Y18*Z18*AB18 -> 6.3 | AC19: =+SUM(AC9:AC18) -> 5.04 | AH19: Number spawn naturally: | AI19: =AF9*AG9*AI9+AF10*AG10*AI10+AF11*AG11*AI11+AF12*AG12*AI12+AF13*AG13*AI13+AF14*AG14*AI14+AF15*AG15*AI15+AF16*AG16*AI16+AF17*AG17*AI17+AF18*AG18*AI18 -> 0 | AJ19: =+SUM(AJ9:AJ18) -> 0
A21: 1) Total number of adult strays is the number of hatchery adults from donor population that strayed to natural spawning grounds of any population. | J21: 1) Total number of adult strays is the number of hatchery adults from donor population that strayed to natural spawning grounds of any population.
A22: 2) Percent of total strays that strayed to the recipient population defined by this AHA scenario. | J22: 2) Percent of total strays that strayed to the recipient population defined by this AHA scenario.
A23: 3) Percent effective spawners is the RRS (relative reproductive success) of HORs spawning in nature. | J23: 3) Percent effective spawners is the RRS (relative reproductive success) of HORs spawning in nature.
A24: 4) Percent allowed to spawn naturally is 1 minus the percent weir efficiency. | J24: 4) Percent allowed to spawn naturally is 1 minus the percent weir efficiency.

Sheet Fitness Assumptions
B1: FITNESS ASSUMPTIONS* | K1: The fitness assumptions developed in collaboration with WDFW (Jim Scott and Craig Busack, pers. comm., 2004) are listed in the table below. The yellow cells may be edited, but typically are not changed from the default assumptions.
B2: Yellow cells below may be edited. | G2: Hypothetical Trait Distribution Relative to Trait Optima for Natural and Hatchery Environments The bell curve is the long-term trait distribution for the naturally spawning population | R2: =AB17 -> No Hatchery | S2: =AB18 -> Naselle Scen. 1 | T2: =AB19 -> Naselle Scen. 2 | U2: =AB20 -> Naselle Scen. 3 | W2: =AA5 -> Local Adaptation
B3: Adapted from Busack (2015) and Ford (2002) | H3: Scenario 1: | I3: =CONCATENATE(R2," - ",AHA!J42) -> No Hatchery - Ford | O3: Scenario 2: | P3: =CONCATENATE(S2," - ",AHA!O42) -> Naselle Scen. 1 - Ford | R3: =AC17 -> 99.99335497 | S3: =AC18 -> 50 | T3: =AC19 -> 96.48692939 | U3: =AC20 -> 96.48692939 | W3: =Y4 -> 
R4: =$D$17*SQRT($D$16) -> 9.486832981 | S4: =$D$17*SQRT($D$16) -> 9.486832981 | T4: =$D$17*SQRT($D$16) -> 9.486832981 | U4: =$D$17*SQRT($D$16) -> 9.486832981 | W4: =$D$17*SQRT($D$16) -> 9.486832981 | Y4: =VLOOKUP(AA5,$AB$17:$AC$20,2,FALSE) ->  | Z4: 0
Y5: =Y4 ->  | Z5: 1 | AA5: =AHA!E6 -> Local Adaptation
R6: W(z) | S6: W(z) | T6: W(z) | U6: W(z) | W6: W(z) | Y6: =Y4 ->  | Z6: 0
B7: Optimal Trait Values | C7: Nature | D7: 100 | E7: Theta1 | Q7: 0 | R7: =EXP(-(($Q7-R$3)^2/(2*R$4^2))) -> 7.511648092e-25 | S7: 9.292491998e-07 | T7: 3.451291702e-23 | U7: 3.451291702e-23 | W7: =EXP(-(($Q7-W$3)^2/(2*W$4^2))) -> 
C8: Hatchery 1 | D8: 80 | E8: Theta2 | Q8: 5 | R8: 1.690453969e-22 | S8: 1.300729765e-05 | T8: 6.392174185e-21 | U8: 6.392174185e-21
C9: Hatchery 2 | D9: 70 | E9: Theta3 | Q9: 10 | R9: 2.881602745e-20 | S9: 0.0001379128093 | T9: 8.967640266e-19 | U9: 8.967640266e-19
C10: Hatchery Avg | D10: =AVERAGE(D8:D9) -> 75 | E10: Average | Q10: 15 | R10: 3.72072449e-18 | S10: 0.001107604664 | T10: 9.529506262e-17 | U10: 9.529506262e-17
Q11: 20 | R11: 3.639012609e-16 | S11: 0.006737946999 | T11: 7.670528098e-15 | U11: 7.670528098e-15
B12: Initial Population Trait Values (100 is fully adapated to natural environment) | C12: Pop 1 | D12: 93.1 | E12: Start1 | Q12: 25 | R12: 2.695890522e-14 | S12: 0.03104795848 | T12: =EXP(-(($Q12-T$3)^2/(2*T$4^2))) -> 4.676735134e-13 | U12: 4.676735134e-13
C13: Pop 2 | D13: 92 | E13: Start2 | Q13: 30 | R13: 1.512807215e-12 | S13: 0.1083680232 | T13: 2.159846702e-11 | U13: 2.159846702e-11
C14: Pop 3 | D14: 90 | E14: Start3 | Q14: 35 | R14: 6.430245683e-11 | S14: 0.2865047969 | T14: 7.555543749e-10 | U14: 7.555543749e-10
Q15: 40 | R15: 2.070304326e-09 | S15: 0.5737534207 | T15: 2.002032695e-08 | U15: 2.002032695e-08
C16: Variance | D16: 10 | Q16: 45 | R16: 5.04897775e-08 | S16: 0.8703247258 | T16: 4.018271254e-07 | U16: 4.018271254e-07
C17: Strength of selection (in SD units) | D17: 3 | Q17: 50 | R17: 9.326858066e-07 | S17: 1 | T17: 6.108997949e-06 | U17: 6.108997949e-06 | AB17: =AA23 -> No Hatchery | AC17: =Y22 -> 99.99335497
C18: Heritability | D18: 0.5 | H18: Scenario 3: | I18: =CONCATENATE(T2," - ",AHA!T42) -> Naselle Scen. 2 - Ford | O18: Scenario 4: | P18: =CONCATENATE(U2," - ",AHA!Y42) -> Naselle Scen. 3 - Ford | Q18: 55 | R18: 1.305058329e-05 | S18: 0.8703247258 | T18: 7.034987856e-05 | U18: 7.034987856e-05 | AB18: =AA26 -> Naselle Scen. 1 | AC18: =Y25 -> 50
Q19: 60 | R19: 0.000138320682 | S19: 0.5737534207 | T19: 0.0006136480645 | U19: 0.0006136480645 | Y19: =D7 -> 100 | Z19: 0 | AB19: =AA29 -> Naselle Scen. 2 | AC19: =Y28 -> 96.48692939
B20: Fitness "Floor" | C20: 0.5 | Q20: 65 | R20: 0.001110470343 | S20: 0.2865047969 | T20: 0.004054506765 | U20: 0.004054506765 | Y20: =Y19 -> 100 | Z20: 1 | AA20: Wild | AB20: =AA32 -> Naselle Scen. 3 | AC20: =Y31 -> 96.48692939
Q21: 70 | R21: 0.006752886512 | S21: 0.1083680232 | T21: 0.02029174209 | U21: 0.02029174209 | Y21: =Y19 -> 100 | Z21: 0
B22: Distribution of Fitness loss over life cycle | C22: Egg | D22: Fry | E22: Smolt | Q22: 75 | R22: 0.03110531342 | S22: 0.03104795848 | T22: 0.07692425205 | U22: 0.07692425205 | Y22: =IF(AHA!J42="Busack",Scenario_1!CH139,Scenario_1!BO139*100) -> 99.99335497 | Z22: 0
C23: 0.5 | D23: 0.4 | E23: =MAX(0,1-C23-D23) -> 0.1 | Q23: 80 | R23: =EXP(-(($Q23-R$3)^2/(2*R$4^2))) -> 0.1085281391 | S23: =EXP(-(($Q23-S$3)^2/(2*S$4^2))) -> 0.006737946999 | T23: 0.2208868564 | U23: 0.2208868564 | Y23: =Y22 -> 99.99335497 | Z23: 1 | AA23: =AHA!H6 -> No Hatchery
Q24: 85 | R24: 0.2868222079 | S24: 0.001107604664 | T24: 0.4804399475 | U24: 0.4804399475 | Y24: =Y23 -> 99.99335497 | Z24: 0
B25: * See AHA documentation (2020) for more information on fitness assumptions. | Q25: 90 | R25: 0.5741770597 | S25: 0.0001379128093 | T25: 0.7915365815 | U25: 0.7915365815 | Y25: =IF(AHA!O42="Busack",Scenario_2!CH139,Scenario_2!BO139*100) -> 50 | Z25: 0
Q26: 95 | R26: 0.8706458681 | S26: 1.300729765e-05 | T26: 0.9877920238 | U26: 0.9877920238 | Y26: =Y25 -> 50 | Z26: 1 | AA26: =AHA!M6 -> Naselle Scen. 1
Q27: 100 | R27: 0.9999997547 | S27: 9.292491998e-07 | T27: 0.9337329464 | U27: 0.9337329464 | Y27: =Y25 -> 50 | Z27: 0
Q28: 105 | R28: 0.8700032752 | S28: 5.028517396e-08 | T28: 0.6685632416 | U28: 0.6685632416 | Y28: =IF(AHA!T42="Busack",Scenario_3!CH139,Scenario_3!BO139*100) -> 96.48692939 | Z28: 0
Q29: 110 | R29: 0.573329813 | S29: 2.061153622e-09 | T29: 0.3625976213 | U29: 0.3625976213 | Y29: =Y28 -> 96.48692939 | Z29: 1 | AA29: =AHA!R6 -> Naselle Scen. 2
Q30: 115 | R30: 0.2861875966 | S30: 6.399461209e-11 | T30: 0.1489601327 | U30: 0.1489601327 | Y30: =Y28 -> 96.48692939 | Z30: 0
Q31: 120 | R31: 0.1082080905 | S31: 1.505009023e-12 | T31: 0.04635299433 | U31: 0.04635299433 | Y31: =IF(AHA!Y42="Busck",Scenario_4!CH139,Scenario_4!BO139*100) -> 96.48692939 | Z31: 0
Q32: 125 | R32: 0.03099069409 | S32: 2.681003868e-14 | T32: 0.01092567259 | U32: 0.01092567259 | Y32: =Y31 -> 96.48692939 | Z32: 1 | AA32: =AHA!W6 -> Naselle Scen. 3
Q33: 130 | R33: 0.006723037239 | S33: 3.617582309e-16 | T33: 0.001950658359 | U33: 0.001950658359 | Y33: =Y31 -> 96.48692939 | Z33: 0
Q34: 135 | R34: 0.001104745839 | S34: 3.697447752e-18 | T34: 0.000263801274 | U34: 0.000263801274 | Y34: =D8 -> 80 | Z34: 0
Q35: 140 | R35: 0.0001375060719 | S35: 2.862518581e-20 | T35: 2.702310246e-05 | U35: 2.702310246e-05 | Y35: =Y34 -> 80 | Z35: 1 | AA35: Hatchery
Q36: 145 | R36: 1.296414922e-05 | S36: 1.678638683e-22 | T36: 2.09679596e-06 | U36: 2.09679596e-06 | Y36: =Y34 -> 80 | Z36: 0
Q37: 150 | R37: 9.258248014e-07 | S37: 7.456392881e-25 | T37: 1.232366199e-07 | U37: 1.232366199e-07 | Y37: =D9 -> 70 | Z37: 0
Y38: =Y37 -> 70 | Z38: 1 | AA38: Hatchery
Y39: =Y37 -> 70 | Z39: 0

Sheet Status and Trends
C2: STATUS AND TRENDS | R2: Select a Scenario: | S2: No Hatchery
BB3: Do not edit values
BB4: Values for Dropdown menu | BE4: Preterm NORs | BF4: Preterm HORs
BB5: =AHA!H6 -> No Hatchery | BE5: =(AHA!$H$30-AHA!$H$29)/(1-AHA!$H$29) -> 0.596675 | BF5: =(AHA!$J$30-AHA!$J$29)/(1-AHA!$J$29) -> 0.596675
BB6: =AHA!M6 -> Naselle Scen. 1 | BE6: =(AHA!$M$30-AHA!$M$29)/(1-AHA!$M$29) -> 0.596675 | BF6: =(AHA!$O$30-AHA!$O$29)/(1-AHA!$O$29) -> 0.596675
BB7: =AHA!R6 -> Naselle Scen. 2 | BE7: =(AHA!$R$30-AHA!$R$29)/(1-AHA!$R$29) -> 0.36174 | BF7: =(AHA!$T$30-AHA!$T$29)/(1-AHA!$T$29) -> 0.5156
BB8: =AHA!W6 -> Naselle Scen. 3 | BE8: =(AHA!$W$30-AHA!$W$29)/(1-AHA!$W$29) -> 0.36174 | BF8: =(AHA!$Y$30-AHA!$Y$29)/(1-AHA!$Y$29) -> 0.5156
C21: INPUTS in YELLOW CELLS
B23: Year | C23: Harvest | O23: Spawning Escapement | T23: Hatchery Returns | AB23: Weir Removal | AE23: Juvenile Outmigrants | AS23: Estimated Terminal Run Size | AV23: Preterminal Harvest Rate | AX23: Total Recruitment | BD23: Pre-terminal Harvest | BF23: Broodstock | BI23: Spawning Escapement | BK23: Total Hatchery Release | BL23: Census pHOS | BM23: Effective pHOS | BN23: PNI | BO23: Long-term goals
C24: =AHA!D26 -> Ocean | F24: =AHA!D27 -> Willapa Bay Comm. | I24: =AHA!D28 -> Willapa Bay Rec. | L24: =AHA!D29 -> Freshwater | O24: NOS | P24: Int HOS | Q24: Seg HOS | R24: Out-of Basin Strays | T24: Total Return to Hatchery | V24: Broodstock | AB24: NOR | AC24: Int HOR | AD24: Seg HOR | AE24: Hatchery Releases | AK24: Natural Origin Smolts | BA24: Terminal Harvest Rates | BC24: Total | BD24: NOR | BE24: HOR | BF24: Total Int. Brood | BG24: pNOB | BH24: Total Segr. Brood | BO24: NOS | BP24: PNI | BQ24: pHOS | BR24: Harvest
V25: Integrated Program | Y25: Segregated Program | AE25: Integrated Program | AH25: Segregated Program | AS25: NORs | AT25: Int. HORs | AU25: Segr. HORs | AV25: NORs | AW25: HORs | AX25: NORs | AY25: Int. HORs | AZ25: Segr. HORs | BI25: HOS | BJ25: Total Spawners | BR25: Total | BS25: Terminal
C26: NOR | D26: Int HOR | E26: Seg HOR | F26: NOR | G26: Int HOR | H26: Seg HOR | I26: NOR | J26: Int HOR | K26: Seg HOR | L26: NOR | M26: Int HOR | N26: Seg HOR | R26: Int HOR | S26: Seg HOR | T26: Int HOR | U26: Seg HOR | V26: NOB | W26: Int HOB | X26: Seg HOB | Y26: NOB | Z26: Int HOB | AA26: Seg HOB | AE26: subs | AF26: Yearl | AG26: 2+ | AH26: subs | AI26: Yearl | AJ26: 2+ | AK26: subs | AL26: Yearl | AM26: 2+ | BA26: NOR | BB26: HOR
B27: 1998 | C27: 0 | D27: 0 | E27: 0 | F27: 0 | G27: 0 | H27: 0 | I27: 0 | J27: 0 | K27: 0 | L27: 0 | M27: 0 | N27: 0 | O27: 0 | P27: 0 | Q27: 0 | R27: 0 | S27: 0 | T27: 0 | U27: 0 | V27: 0 | W27: 0 | X27: 0 | Y27: 0 | Z27: 0 | AA27: 0 | AB27: 0 | AC27: 0 | AD27: 0 | AE27: 0 | AF27: 0 | AG27: 0 | AH27: 0 | AI27: 0 | AJ27: 0 | AK27: 0 | AL27: 0 | AM27: 0 | AR27: =B27 -> 1998 | AS27: =L27+V27+O27 -> 0 | AT27: =M27+T27+P27 -> 0 | AU27: =N27+Q27+U27 -> 0 | AV27: =IF($S$2=AHA!$H$6,$BE$5, IF($S$2=AHA!$M$6,$BE$6,IF($S$2=AHA!$R$6,$BE$7,$BE$8))) -> 0.596675 | AW27: =IF($S$2=AHA!$H$6,$BF$5, IF($S$2=AHA!$M$6,$BF$6,IF($S$2=AHA!$R$6,$BF$7,$BF$8))) -> 0.596675 | AX27: =IF(C27+F27>0,C27+F27+I27+AS27,AS27/(1-AV27)) -> 0 | AY27: =IF(D27+G27>0,D27+G27+J27+AT27,AT27/(1-$AW27)) -> 0 | AZ27: =IF(E27+H27>0,E27+H27+K27+AU27,AU27/(1-$AW27)) -> 0 | BA27: =IFERROR((L27)/AS27,"-") -> - | BB27: =IFERROR((M27+N27)/(AT27+AU27),"-") -> - | BC27: =SUM(L27+M27+N27) -> 0 | BD27: =AX27*AV27 -> 0 | BE27: =(AY27+AZ27)*AW27 -> 0 | BF27: =SUM(V27:X27) -> 0 | BG27: =IF(BF27+BH27>0,V27/(BF27+BH27),0) -> 0 | BH27: =SUM(Y27:AA27) -> 0 | BI27: =P27+Q27 -> 0 | BJ27: =SUM(O27:Q27) -> 0 | BK27: =SUM(AE27:AJ27) -> 0 | BL27: =IFERROR(($P27+$Q27)/($P27+$Q27+$O27),"-") -> - | BM27: =IFERROR(($P27+$Q27)*AHA!$H$36/($P27*AHA!$H$36+$Q27*AHA!$H$36+$O27),"-") -> - | BN27: =IFERROR(BG27/(BG27+BM27),"-") -> - | BO27: =IF($S$2=AHA!$H$6,AHA!$H$47,IF($S$2=AHA!$M$6,AHA!$M$47,IF($S$2=AHA!$R$6,AHA!$R$47,AHA!$W$47))) -> 1547 | BP27: =IF($S$2=AHA!$H$6,AHA!$H$50,IF($S$2=AHA!$M$6,AHA!$M$50,IF($S$2=AHA!$R$6,AHA!$R$50,AHA!$W$50))) -> 0.5 | BQ27: =IF($S$2=AHA!$H$6,AHA!$H$48,IF($S$2=AHA!$M$6,AHA!$M$48,IF($S$2=AHA!$R$6,AHA!$R$48,AHA!$W$48))) -> 0.3 | BR27: =IF($S$2=AHA!$H$6,AHA!$H$51,IF($S$2=AHA!$M$6,AHA!$M$51,IF($S$2=AHA!$R$6,AHA!$R$51,AHA!$W$51))) -> 5000 | BS27: =IF($S$2=AHA!$H$6,AHA!$H$52,IF($S$2=AHA!$M$6,AHA!$M$52,IF($S$2=AHA!$R$6,AHA!$R$52,AHA!$W$52))) -> 250
B28: 1999 | C28: 0 | D28: 0 | E28: 0 | F28: 0 | G28: 0 | H28: 0 | I28: 0 | J28: 0 | K28: 0 | L28: 0 | M28: 0 | N28: 0 | O28: 0 | P28: 0 | Q28: 0 | R28: 0 | S28: 0 | T28: 0 | U28: 0 | V28: 0 | W28: 0 | X28: 0 | Y28: 0 | Z28: 0 | AA28: 0 | AB28: 0 | AC28: 0 | AD28: 0 | AE28: 0 | AF28: 0 | AG28: 0 | AH28: 0 | AI28: 0 | AJ28: 0 | AK28: 0 | AL28: 0 | AM28: 0 | AR28: =B28 -> 1999 | AS28: 0 | AT28: 0 | AU28: 0 | AV28: =IF($S$2=AHA!$H$6,$BE$5, IF($S$2=AHA!$M$6,$BE$6,IF($S$2=AHA!$R$6,$BE$7,$BE$8))) -> 0.596675 | AW28: =IF($S$2=AHA!$H$6,$BF$5, IF($S$2=AHA!$M$6,$BF$6,IF($S$2=AHA!$R$6,$BF$7,$BF$8))) -> 0.596675 | AX28: 0 | AY28: 0 | AZ28: 0 | BA28: - | BB28: - | BC28: =SUM(L28+M28+N28) -> 0 | BD28: =AX28*AV28 -> 0 | BE28: =(AY28+AZ28)*AW28 -> 0 | BF28: 0 | BG28: 0 | BH28: 0 | BI28: 0 | BJ28: 0 | BK28: 0 | BL28: =IFERROR((P28+Q28)/(P28+Q28+O28),"-") -> - | BM28: =IFERROR(($P28+$Q28)*AHA!$H$36/($P28*AHA!$H$36+$Q28*AHA!$H$36+$O28),"-") -> - | BN28: - | BO28: =IF($S$2=AHA!$H$6,AHA!$H$47,IF($S$2=AHA!$M$6,AHA!$M$47,IF($S$2=AHA!$R$6,AHA!$R$47,AHA!$W$47))) -> 1547 | BP28: =IF($S$2=AHA!$H$6,AHA!$H$50,IF($S$2=AHA!$M$6,AHA!$M$50,IF($S$2=AHA!$R$6,AHA!$R$50,AHA!$W$50))) -> 0.5 | BQ28: =IF($S$2=AHA!$H$6,AHA!$H$48,IF($S$2=AHA!$M$6,AHA!$M$48,IF($S$2=AHA!$R$6,AHA!$R$48,AHA!$W$48))) -> 0.3 | BR28: =IF($S$2=AHA!$H$6,AHA!$H$51,IF($S$2=AHA!$M$6,AHA!$M$51,IF($S$2=AHA!$R$6,AHA!$R$51,AHA!$W$51))) -> 5000 | BS28: =IF($S$2=AHA!$H$6,AHA!$H$52,IF($S$2=AHA!$M$6,AHA!$M$52,IF($S$2=AHA!$R$6,AHA!$R$52,AHA!$W$52))) -> 250
B29: 2000 | C29: 0 | D29: 0 | E29: 0 | F29: 0 | G29: 0 | H29: 0 | I29: 0 | J29: 0 | K29: 0 | L29: 0 | M29: 0 | N29: 0 | O29: 0 | P29: 0 | Q29: 0 | R29: 0 | S29: 0 | T29: 0 | U29: 0 | V29: 0 | W29: 0 | X29: 0 | Y29: 0 | Z29: 0 | AA29: 0 | AB29: 0 | AC29: 0 | AD29: 0 | AE29: 0 | AF29: 0 | AG29: 0 | AH29: 0 | AI29: 0 | AJ29: 0 | AK29: 0 | AL29: 0 | AM29: 0 | AR29: 2000 | AS29: 0 | AT29: 0 | AU29: 0 | AV29: =IF($S$2=AHA!$H$6,$BE$5, IF($S$2=AHA!$M$6,$BE$6,IF($S$2=AHA!$R$6,$BE$7,$BE$8))) -> 0.596675 | AW29: =IF($S$2=AHA!$H$6,$BF$5, IF($S$2=AHA!$M$6,$BF$6,IF($S$2=AHA!$R$6,$BF$7,$BF$8))) -> 0.596675 | AX29: 0 | AY29: 0 | AZ29: 0 | BA29: - | BB29: - | BC29: 0 | BD29: 0 | BE29: 0 | BF29: 0 | BG29: 0 | BH29: 0 | BI29: 0 | BJ29: 0 | BK29: 0 | BL29: - | BM29: =IFERROR(($P29+$Q29)*AHA!$H$36/($P29*AHA!$H$36+$Q29*AHA!$H$36+$O29),"-") -> - | BN29: - | BO29: =IF($S$2=AHA!$H$6,AHA!$H$47,IF($S$2=AHA!$M$6,AHA!$M$47,IF($S$2=AHA!$R$6,AHA!$R$47,AHA!$W$47))) -> 1547 | BP29: =IF($S$2=AHA!$H$6,AHA!$H$50,IF($S$2=AHA!$M$6,AHA!$M$50,IF($S$2=AHA!$R$6,AHA!$R$50,AHA!$W$50))) -> 0.5 | BQ29: =IF($S$2=AHA!$H$6,AHA!$H$48,IF($S$2=AHA!$M$6,AHA!$M$48,IF($S$2=AHA!$R$6,AHA!$R$48,AHA!$W$48))) -> 0.3 | BR29: =IF($S$2=AHA!$H$6,AHA!$H$51,IF($S$2=AHA!$M$6,AHA!$M$51,IF($S$2=AHA!$R$6,AHA!$R$51,AHA!$W$51))) -> 5000 | BS29: =IF($S$2=AHA!$H$6,AHA!$H$52,IF($S$2=AHA!$M$6,AHA!$M$52,IF($S$2=AHA!$R$6,AHA!$R$52,AHA!$W$52))) -> 250
B30: 2001 | C30: 0 | D30: 0 | E30: 0 | F30: 0 | G30: 0 | H30: 0 | I30: 0 | J30: 0 | K30: 0 | L30: 0 | M30: 0 | N30: 0 | O30: 0 | P30: 0 | Q30: 0 | R30: 0 | S30: 0 | T30: 0 | U30: 0 | V30: 0 | W30: 0 | X30: 0 | Y30: 0 | Z30: 0 | AA30: 0 | AB30: 0 | AC30: 0 | AD30: 0 | AE30: 0 | AF30: 0 | AG30: 0 | AH30: 0 | AI30: 0 | AJ30: 0 | AK30: 0 | AL30: 0 | AM30: 0 | AR30: 2001 | AS30: 0 | AT30: 0 | AU30: 0 | AV30: =IF($S$2=AHA!$H$6,$BE$5, IF($S$2=AHA!$M$6,$BE$6,IF($S$2=AHA!$R$6,$BE$7,$BE$8))) -> 0.596675 | AW30: =IF($S$2=AHA!$H$6,$BF$5, IF($S$2=AHA!$M$6,$BF$6,IF($S$2=AHA!$R$6,$BF$7,$BF$8))) -> 0.596675 | AX30: 0 | AY30: 0 | AZ30: 0 | BA30: - | BB30: - | BC30: 0 | BD30: 0 | BE30: 0 | BF30: 0 | BG30: 0 | BH30: 0 | BI30: 0 | BJ30: 0 | BK30: 0 | BL30: - | BM30: =IFERROR(($P30+$Q30)*AHA!$H$36/($P30*AHA!$H$36+$Q30*AHA!$H$36+$O30),"-") -> - | BN30: - | BO30: =IF($S$2=AHA!$H$6,AHA!$H$47,IF($S$2=AHA!$M$6,AHA!$M$47,IF($S$2=AHA!$R$6,AHA!$R$47,AHA!$W$47))) -> 1547 | BP30: =IF($S$2=AHA!$H$6,AHA!$H$50,IF($S$2=AHA!$M$6,AHA!$M$50,IF($S$2=AHA!$R$6,AHA!$R$50,AHA!$W$50))) -> 0.5 | BQ30: =IF($S$2=AHA!$H$6,AHA!$H$48,IF($S$2=AHA!$M$6,AHA!$M$48,IF($S$2=AHA!$R$6,AHA!$R$48,AHA!$W$48))) -> 0.3 | BR30: =IF($S$2=AHA!$H$6,AHA!$H$51,IF($S$2=AHA!$M$6,AHA!$M$51,IF($S$2=AHA!$R$6,AHA!$R$51,AHA!$W$51))) -> 5000 | BS30: =IF($S$2=AHA!$H$6,AHA!$H$52,IF($S$2=AHA!$M$6,AHA!$M$52,IF($S$2=AHA!$R$6,AHA!$R$52,AHA!$W$52))) -> 250
B31: 2002 | C31: 0 | D31: 0 | E31: 0 | F31: 0 | G31: 0 | H31: 0 | I31: 0 | J31: 0 | K31: 0 | L31: 0 | M31: 0 | N31: 0 | O31: 0 | P31: 0 | Q31: 0 | R31: 0 | S31: 0 | T31: 0 | U31: 0 | V31: 0 | W31: 0 | X31: 0 | Y31: 0 | Z31: 0 | AA31: 0 | AB31: 0 | AC31: 0 | AD31: 0 | AE31: 0 | AF31: 0 | AG31: 0 | AH31: 0 | AI31: 0 | AJ31: 0 | AK31: 0 | AL31: 0 | AM31: 0 | AR31: 2002 | AS31: 0 | AT31: 0 | AU31: 0 | AV31: =IF($S$2=AHA!$H$6,$BE$5, IF($S$2=AHA!$M$6,$BE$6,IF($S$2=AHA!$R$6,$BE$7,$BE$8))) -> 0.596675 | AW31: =IF($S$2=AHA!$H$6,$BF$5, IF($S$2=AHA!$M$6,$BF$6,IF($S$2=AHA!$R$6,$BF$7,$BF$8))) -> 0.596675 | AX31: 0 | AY31: 0 | AZ31: 0 | BA31: - | BB31: - | BC31: 0 | BD31: 0 | BE31: 0 | BF31: 0 | BG31: 0 | BH31: 0 | BI31: 0 | BJ31: 0 | BK31: 0 | BL31: - | BM31: =IFERROR(($P31+$Q31)*AHA!$H$36/($P31*AHA!$H$36+$Q31*AHA!$H$36+$O31),"-") -> - | BN31: - | BO31: =IF($S$2=AHA!$H$6,AHA!$H$47,IF($S$2=AHA!$M$6,AHA!$M$47,IF($S$2=AHA!$R$6,AHA!$R$47,AHA!$W$47))) -> 1547 | BP31: =IF($S$2=AHA!$H$6,AHA!$H$50,IF($S$2=AHA!$M$6,AHA!$M$50,IF($S$2=AHA!$R$6,AHA!$R$50,AHA!$W$50))) -> 0.5 | BQ31: =IF($S$2=AHA!$H$6,AHA!$H$48,IF($S$2=AHA!$M$6,AHA!$M$48,IF($S$2=AHA!$R$6,AHA!$R$48,AHA!$W$48))) -> 0.3 | BR31: =IF($S$2=AHA!$H$6,AHA!$H$51,IF($S$2=AHA!$M$6,AHA!$M$51,IF($S$2=AHA!$R$6,AHA!$R$51,AHA!$W$51))) -> 5000 | BS31: =IF($S$2=AHA!$H$6,AHA!$H$52,IF($S$2=AHA!$M$6,AHA!$M$52,IF($S$2=AHA!$R$6,AHA!$R$52,AHA!$W$52))) -> 250
B32: 2003 | C32: 0 | D32: 0 | E32: 0 | F32: 0 | G32: 0 | H32: 0 | I32: 0 | J32: 0 | K32: 0 | L32: 0 | M32: 0 | N32: 0 | O32: 0 | P32: 0 | Q32: 0 | R32: 0 | S32: 0 | T32: 0 | U32: 0 | V32: 0 | W32: 0 | X32: 0 | Y32: 0 | Z32: 0 | AA32: 0 | AB32: 0 | AC32: 0 | AD32: 0 | AE32: 0 | AF32: 0 | AG32: 0 | AH32: 0 | AI32: 0 | AJ32: 0 | AK32: 0 | AL32: 0 | AM32: 0 | AR32: 2003 | AS32: 0 | AT32: 0 | AU32: 0 | AV32: =IF($S$2=AHA!$H$6,$BE$5, IF($S$2=AHA!$M$6,$BE$6,IF($S$2=AHA!$R$6,$BE$7,$BE$8))) -> 0.596675 | AW32: =IF($S$2=AHA!$H$6,$BF$5, IF($S$2=AHA!$M$6,$BF$6,IF($S$2=AHA!$R$6,$BF$7,$BF$8))) -> 0.596675 | AX32: 0 | AY32: 0 | AZ32: 0 | BA32: - | BB32: - | BC32: 0 | BD32: 0 | BE32: 0 | BF32: 0 | BG32: 0 | BH32: 0 | BI32: 0 | BJ32: 0 | BK32: 0 | BL32: - | BM32: =IFERROR(($P32+$Q32)*AHA!$H$36/($P32*AHA!$H$36+$Q32*AHA!$H$36+$O32),"-") -> - | BN32: - | BO32: =IF($S$2=AHA!$H$6,AHA!$H$47,IF($S$2=AHA!$M$6,AHA!$M$47,IF($S$2=AHA!$R$6,AHA!$R$47,AHA!$W$47))) -> 1547 | BP32: =IF($S$2=AHA!$H$6,AHA!$H$50,IF($S$2=AHA!$M$6,AHA!$M$50,IF($S$2=AHA!$R$6,AHA!$R$50,AHA!$W$50))) -> 0.5 | BQ32: =IF($S$2=AHA!$H$6,AHA!$H$48,IF($S$2=AHA!$M$6,AHA!$M$48,IF($S$2=AHA!$R$6,AHA!$R$48,AHA!$W$48))) -> 0.3 | BR32: =IF($S$2=AHA!$H$6,AHA!$H$51,IF($S$2=AHA!$M$6,AHA!$M$51,IF($S$2=AHA!$R$6,AHA!$R$51,AHA!$W$51))) -> 5000 | BS32: =IF($S$2=AHA!$H$6,AHA!$H$52,IF($S$2=AHA!$M$6,AHA!$M$52,IF($S$2=AHA!$R$6,AHA!$R$52,AHA!$W$52))) -> 250
B33: 2004 | C33: 0 | D33: 0 | E33: 0 | F33: 0 | G33: 0 | H33: 0 | I33: 0 | J33: 0 | K33: 0 | L33: 0 | M33: 0 | N33: 0 | O33: 0 | P33: 0 | Q33: 0 | R33: 0 | S33: 0 | T33: 0 | U33: 0 | V33: 0 | W33: 0 | X33: 0 | Y33: 0 | Z33: 0 | AA33: 0 | AB33: 0 | AC33: 0 | AD33: 0 | AE33: 0 | AF33: 0 | AG33: 0 | AH33: 0 | AI33: 0 | AJ33: 0 | AK33: 0 | AL33: 0 | AM33: 0 | AR33: 2004 | AS33: 0 | AT33: 0 | AU33: 0 | AV33: =IF($S$2=AHA!$H$6,$BE$5, IF($S$2=AHA!$M$6,$BE$6,IF($S$2=AHA!$R$6,$BE$7,$BE$8))) -> 0.596675 | AW33: =IF($S$2=AHA!$H$6,$BF$5, IF($S$2=AHA!$M$6,$BF$6,IF($S$2=AHA!$R$6,$BF$7,$BF$8))) -> 0.596675 | AX33: 0 | AY33: 0 | AZ33: 0 | BA33: - | BB33: - | BC33: 0 | BD33: 0 | BE33: 0 | BF33: 0 | BG33: 0 | BH33: 0 | BI33: 0 | BJ33: 0 | BK33: 0 | BL33: - | BM33: =IFERROR(($P33+$Q33)*AHA!$H$36/($P33*AHA!$H$36+$Q33*AHA!$H$36+$O33),"-") -> - | BN33: - | BO33: =IF($S$2=AHA!$H$6,AHA!$H$47,IF($S$2=AHA!$M$6,AHA!$M$47,IF($S$2=AHA!$R$6,AHA!$R$47,AHA!$W$47))) -> 1547 | BP33: =IF($S$2=AHA!$H$6,AHA!$H$50,IF($S$2=AHA!$M$6,AHA!$M$50,IF($S$2=AHA!$R$6,AHA!$R$50,AHA!$W$50))) -> 0.5 | BQ33: =IF($S$2=AHA!$H$6,AHA!$H$48,IF($S$2=AHA!$M$6,AHA!$M$48,IF($S$2=AHA!$R$6,AHA!$R$48,AHA!$W$48))) -> 0.3 | BR33: =IF($S$2=AHA!$H$6,AHA!$H$51,IF($S$2=AHA!$M$6,AHA!$M$51,IF($S$2=AHA!$R$6,AHA!$R$51,AHA!$W$51))) -> 5000 | BS33: =IF($S$2=AHA!$H$6,AHA!$H$52,IF($S$2=AHA!$M$6,AHA!$M$52,IF($S$2=AHA!$R$6,AHA!$R$52,AHA!$W$52))) -> 250
B34: 2005 | C34: 0 | D34: 0 | E34: 0 | F34: 0 | G34: 0 | H34: 0 | I34: 0 | J34: 0 | K34: 0 | L34: 0 | M34: 0 | N34: 0 | O34: 0 | P34: 0 | Q34: 0 | R34: 0 | S34: 0 | T34: 0 | U34: 0 | V34: 0 | W34: 0 | X34: 0 | Y34: 0 | Z34: 0 | AA34: 0 | AB34: 0 | AC34: 0 | AD34: 0 | AE34: 0 | AF34: 0 | AG34: 0 | AH34: 0 | AI34: 0 | AJ34: 0 | AK34: 0 | AL34: 0 | AM34: 0 | AR34: 2005 | AS34: 0 | AT34: 0 | AU34: 0 | AV34: =IF($S$2=AHA!$H$6,$BE$5, IF($S$2=AHA!$M$6,$BE$6,IF($S$2=AHA!$R$6,$BE$7,$BE$8))) -> 0.596675 | AW34: =IF($S$2=AHA!$H$6,$BF$5, IF($S$2=AHA!$M$6,$BF$6,IF($S$2=AHA!$R$6,$BF$7,$BF$8))) -> 0.596675 | AX34: 0 | AY34: 0 | AZ34: 0 | BA34: - | BB34: - | BC34: 0 | BD34: 0 | BE34: 0 | BF34: 0 | BG34: 0 | BH34: 0 | BI34: 0 | BJ34: 0 | BK34: 0 | BL34: - | BM34: =IFERROR(($P34+$Q34)*AHA!$H$36/($P34*AHA!$H$36+$Q34*AHA!$H$36+$O34),"-") -> - | BN34: - | BO34: =IF($S$2=AHA!$H$6,AHA!$H$47,IF($S$2=AHA!$M$6,AHA!$M$47,IF($S$2=AHA!$R$6,AHA!$R$47,AHA!$W$47))) -> 1547 | BP34: =IF($S$2=AHA!$H$6,AHA!$H$50,IF($S$2=AHA!$M$6,AHA!$M$50,IF($S$2=AHA!$R$6,AHA!$R$50,AHA!$W$50))) -> 0.5 | BQ34: =IF($S$2=AHA!$H$6,AHA!$H$48,IF($S$2=AHA!$M$6,AHA!$M$48,IF($S$2=AHA!$R$6,AHA!$R$48,AHA!$W$48))) -> 0.3 | BR34: =IF($S$2=AHA!$H$6,AHA!$H$51,IF($S$2=AHA!$M$6,AHA!$M$51,IF($S$2=AHA!$R$6,AHA!$R$51,AHA!$W$51))) -> 5000 | BS34: =IF($S$2=AHA!$H$6,AHA!$H$52,IF($S$2=AHA!$M$6,AHA!$M$52,IF($S$2=AHA!$R$6,AHA!$R$52,AHA!$W$52))) -> 250
B35: 2006 | C35: 0 | D35: 0 | E35: 0 | F35: 0 | G35: 0 | H35: 0 | I35: 0 | J35: 0 | K35: 0 | L35: 0 | M35: 0 | N35: 0 | O35: 0 | P35: 0 | Q35: 0 | R35: 0 | S35: 0 | T35: 0 | U35: 0 | V35: 0 | W35: 0 | X35: 0 | Y35: 0 | Z35: 0 | AA35: 0 | AB35: 0 | AC35: 0 | AD35: 0 | AE35: 0 | AF35: 0 | AG35: 0 | AH35: 0 | AI35: 0 | AJ35: 0 | AK35: 0 | AL35: 0 | AM35: 0 | AR35: 2006 | AS35: 0 | AT35: 0 | AU35: 0 | AV35: =IF($S$2=AHA!$H$6,$BE$5, IF($S$2=AHA!$M$6,$BE$6,IF($S$2=AHA!$R$6,$BE$7,$BE$8))) -> 0.596675 | AW35: =IF($S$2=AHA!$H$6,$BF$5, IF($S$2=AHA!$M$6,$BF$6,IF($S$2=AHA!$R$6,$BF$7,$BF$8))) -> 0.596675 | AX35: 0 | AY35: 0 | AZ35: 0 | BA35: - | BB35: - | BC35: 0 | BD35: 0 | BE35: 0 | BF35: 0 | BG35: 0 | BH35: 0 | BI35: 0 | BJ35: 0 | BK35: 0 | BL35: - | BM35: =IFERROR(($P35+$Q35)*AHA!$H$36/($P35*AHA!$H$36+$Q35*AHA!$H$36+$O35),"-") -> - | BN35: - | BO35: =IF($S$2=AHA!$H$6,AHA!$H$47,IF($S$2=AHA!$M$6,AHA!$M$47,IF($S$2=AHA!$R$6,AHA!$R$47,AHA!$W$47))) -> 1547 | BP35: =IF($S$2=AHA!$H$6,AHA!$H$50,IF($S$2=AHA!$M$6,AHA!$M$50,IF($S$2=AHA!$R$6,AHA!$R$50,AHA!$W$50))) -> 0.5 | BQ35: =IF($S$2=AHA!$H$6,AHA!$H$48,IF($S$2=AHA!$M$6,AHA!$M$48,IF($S$2=AHA!$R$6,AHA!$R$48,AHA!$W$48))) -> 0.3 | BR35: =IF($S$2=AHA!$H$6,AHA!$H$51,IF($S$2=AHA!$M$6,AHA!$M$51,IF($S$2=AHA!$R$6,AHA!$R$51,AHA!$W$51))) -> 5000 | BS35: =IF($S$2=AHA!$H$6,AHA!$H$52,IF($S$2=AHA!$M$6,AHA!$M$52,IF($S$2=AHA!$R$6,AHA!$R$52,AHA!$W$52))) -> 250
B36: 2007 | C36: 0 | D36: 0 | E36: 0 | F36: 0 | G36: 0 | H36: 0 | I36: 0 | J36: 0 | K36: 0 | L36: 0 | M36: 0 | N36: 0 | O36: 526 | P36: 3207 | Q36: 0 | R36: 0 | S36: 0 | T36: 1862 | U36: 0 | V36: 27 | W36: 1336 | X36: 0 | Y36: 0 | Z36: 0 | AA36: 0 | AB36: 0 | AC36: 0 | AD36: 0 | AE36: 5628000 | AF36: 0 | AG36: 0 | AH36: 0 | AI36: 0 | AJ36: 0 | AK36: 0 | AL36: 0 | AM36: 0 | AR36: 2007 | AS36: 553 | AT36: 5069 | AU36: 0 | AV36: =IF($S$2=AHA!$H$6,$BE$5, IF($S$2=AHA!$M$6,$BE$6,IF($S$2=AHA!$R$6,$BE$7,$BE$8))) -> 0.596675 | AW36: =IF($S$2=AHA!$H$6,$BF$5, IF($S$2=AHA!$M$6,$BF$6,IF($S$2=AHA!$R$6,$BF$7,$BF$8))) -> 0.596675 | AX36: 1371.102709 | AY36: 12568.02827 | AZ36: 0 | BA36: 0 | BB36: 0 | BC36: 0 | BD36: 818.1027087 | BE36: 7499.028265 | BF36: 1363 | BG36: 0.01980924431 | BH36: 0 | BI36: 3207 | BJ36: 3733 | BK36: 5628000 | BL36: 0.859094562 | BM36: =IFERROR(($P36+$Q36)*AHA!$H$36/($P36*AHA!$H$36+$Q36*AHA!$H$36+$O36),"-") -> 0.8298615604 | BN36: 0.02331402257 | BO36: =IF($S$2=AHA!$H$6,AHA!$H$47,IF($S$2=AHA!$M$6,AHA!$M$47,IF($S$2=AHA!$R$6,AHA!$R$47,AHA!$W$47))) -> 1547 | BP36: =IF($S$2=AHA!$H$6,AHA!$H$50,IF($S$2=AHA!$M$6,AHA!$M$50,IF($S$2=AHA!$R$6,AHA!$R$50,AHA!$W$50))) -> 0.5 | BQ36: =IF($S$2=AHA!$H$6,AHA!$H$48,IF($S$2=AHA!$M$6,AHA!$M$48,IF($S$2=AHA!$R$6,AHA!$R$48,AHA!$W$48))) -> 0.3 | BR36: =IF($S$2=AHA!$H$6,AHA!$H$51,IF($S$2=AHA!$M$6,AHA!$M$51,IF($S$2=AHA!$R$6,AHA!$R$51,AHA!$W$51))) -> 5000 | BS36: =IF($S$2=AHA!$H$6,AHA!$H$52,IF($S$2=AHA!$M$6,AHA!$M$52,IF($S$2=AHA!$R$6,AHA!$R$52,AHA!$W$52))) -> 250
B37: 2008 | C37: 0 | D37: 0 | E37: 0 | F37: 0 | G37: 0 | H37: 0 | I37: 0 | J37: 0 | K37: 0 | L37: 0 | M37: 0 | N37: 0 | O37: 681 | P37: 4234 | Q37: 0 | R37: 0 | S37: 0 | T37: 1949 | U37: 0 | V37: 19 | W37: 947 | X37: 0 | Y37: 0 | Z37: 0 | AA37: 0 | AB37: 0 | AC37: 0 | AD37: 0 | AE37: 3215523 | AF37: 0 | AG37: 0 | AH37: 0 | AI37: 0 | AJ37: 0 | AK37: 0 | AL37: 0 | AM37: 0 | AR37: 2008 | AS37: 700 | AT37: 6183 | AU37: 0 | AV37: =IF($S$2=AHA!$H$6,$BE$5, IF($S$2=AHA!$M$6,$BE$6,IF($S$2=AHA!$R$6,$BE$7,$BE$8))) -> 0.596675 | AW37: =IF($S$2=AHA!$H$6,$BF$5, IF($S$2=AHA!$M$6,$BF$6,IF($S$2=AHA!$R$6,$BF$7,$BF$8))) -> 0.596675 | AX37: 1735.573049 | AY37: 15330.0688 | AZ37: 0 | BA37: 0 | BB37: 0 | BC37: 0 | BD37: 1035.573049 | BE37: 9147.068803 | BF37: 966 | BG37: 0.01966873706 | BH37: 0 | BI37: 4234 | BJ37: 4915 | BK37: 3215523 | BL37: 0.8614445575 | BM37: =IFERROR(($P37+$Q37)*AHA!$H$36/($P37*AHA!$H$36+$Q37*AHA!$H$36+$O37),"-") -> 0.8326041001 | BN37: 0.02307798184 | BO37: =IF($S$2=AHA!$H$6,AHA!$H$47,IF($S$2=AHA!$M$6,AHA!$M$47,IF($S$2=AHA!$R$6,AHA!$R$47,AHA!$W$47))) -> 1547 | BP37: =IF($S$2=AHA!$H$6,AHA!$H$50,IF($S$2=AHA!$M$6,AHA!$M$50,IF($S$2=AHA!$R$6,AHA!$R$50,AHA!$W$50))) -> 0.5 | BQ37: =IF($S$2=AHA!$H$6,AHA!$H$48,IF($S$2=AHA!$M$6,AHA!$M$48,IF($S$2=AHA!$R$6,AHA!$R$48,AHA!$W$48))) -> 0.3 | BR37: =IF($S$2=AHA!$H$6,AHA!$H$51,IF($S$2=AHA!$M$6,AHA!$M$51,IF($S$2=AHA!$R$6,AHA!$R$51,AHA!$W$51))) -> 5000 | BS37: =IF($S$2=AHA!$H$6,AHA!$H$52,IF($S$2=AHA!$M$6,AHA!$M$52,IF($S$2=AHA!$R$6,AHA!$R$52,AHA!$W$52))) -> 250
B38: 2009 | C38: 0 | D38: 0 | E38: 0 | F38: 0 | G38: 0 | H38: 0 | I38: 0 | J38: 0 | K38: 0 | L38: 0 | M38: 0 | N38: 0 | O38: 939 | P38: 5506 | Q38: 0 | R38: 0 | S38: 0 | T38: 1719 | U38: 0 | V38: 19 | W38: 928 | X38: 0 | Y38: 0 | Z38: 0 | AA38: 0 | AB38: 0 | AC38: 0 | AD38: 0 | AE38: 3412000 | AF38: 0 | AG38: 0 | AH38: 0 | AI38: 0 | AJ38: 0 | AK38: 0 | AL38: 0 | AM38: 0 | AR38: 2009 | AS38: 958 | AT38: 7225 | AU38: 0 | AV38: =IF($S$2=AHA!$H$6,$BE$5, IF($S$2=AHA!$M$6,$BE$6,IF($S$2=AHA!$R$6,$BE$7,$BE$8))) -> 0.596675 | AW38: =IF($S$2=AHA!$H$6,$BF$5, IF($S$2=AHA!$M$6,$BF$6,IF($S$2=AHA!$R$6,$BF$7,$BF$8))) -> 0.596675 | AX38: 2375.255687 | AY38: 17913.59326 | AZ38: 0 | BA38: 0 | BB38: 0 | BC38: 0 | BD38: 1417.255687 | BE38: 10688.59326 | BF38: 947 | BG38: 0.02006335797 | BH38: 0 | BI38: 5506 | BJ38: 6445 | BK38: 3412000 | BL38: 0.8543056633 | BM38: =IFERROR(($P38+$Q38)*AHA!$H$36/($P38*AHA!$H$36+$Q38*AHA!$H$36+$O38),"-") -> 0.8242823459 | BN38: 0.02376201819 | BO38: =IF($S$2=AHA!$H$6,AHA!$H$47,IF($S$2=AHA!$M$6,AHA!$M$47,IF($S$2=AHA!$R$6,AHA!$R$47,AHA!$W$47))) -> 1547 | BP38: =IF($S$2=AHA!$H$6,AHA!$H$50,IF($S$2=AHA!$M$6,AHA!$M$50,IF($S$2=AHA!$R$6,AHA!$R$50,AHA!$W$50))) -> 0.5 | BQ38: =IF($S$2=AHA!$H$6,AHA!$H$48,IF($S$2=AHA!$M$6,AHA!$M$48,IF($S$2=AHA!$R$6,AHA!$R$48,AHA!$W$48))) -> 0.3 | BR38: =IF($S$2=AHA!$H$6,AHA!$H$51,IF($S$2=AHA!$M$6,AHA!$M$51,IF($S$2=AHA!$R$6,AHA!$R$51,AHA!$W$51))) -> 5000 | BS38: =IF($S$2=AHA!$H$6,AHA!$H$52,IF($S$2=AHA!$M$6,AHA!$M$52,IF($S$2=AHA!$R$6,AHA!$R$52,AHA!$W$52))) -> 250
B39: 2010 | C39: 0 | D39: 0 | E39: 0 | F39: 0 | G39: 0 | H39: 0 | I39: 0 | J39: 0 | K39: 0 | L39: 0 | M39: 0 | N39: 0 | O39: 1971 | P39: 8776 | Q39: 0 | R39: 0 | S39: 0 | T39: 691 | U39: 0 | V39: 10 | W39: 519 | X39: 0 | Y39: 0 | Z39: 0 | AA39: 0 | AB39: 0 | AC39: 0 | AD39: 0 | AE39: 865000 | AF39: 0 | AG39: 0 | AH39: 0 | AI39: 0 | AJ39: 0 | AK39: 0 | AL39: 0 | AM39: 0 | AR39: 2010 | AS39: 1981 | AT39: 9467 | AU39: 0 | AV39: =IF($S$2=AHA!$H$6,$BE$5, IF($S$2=AHA!$M$6,$BE$6,IF($S$2=AHA!$R$6,$BE$7,$BE$8))) -> 0.596675 | AW39: =IF($S$2=AHA!$H$6,$BF$5, IF($S$2=AHA!$M$6,$BF$6,IF($S$2=AHA!$R$6,$BF$7,$BF$8))) -> 0.596675 | AX39: 4911.671729 | AY39: 23472.38579 | AZ39: 0 | BA39: 0 | BB39: 0 | BC39: 0 | BD39: 2930.671729 | BE39: 14005.38579 | BF39: 529 | BG39: 0.01890359168 | BH39: 0 | BI39: 8776 | BJ39: 10747 | BK39: 865000 | BL39: 0.8165999814 | BM39: =IFERROR(($P39+$Q39)*AHA!$H$36/($P39*AHA!$H$36+$Q39*AHA!$H$36+$O39),"-") -> 0.7808002847 | BN39: 0.0236382394 | BO39: =IF($S$2=AHA!$H$6,AHA!$H$47,IF($S$2=AHA!$M$6,AHA!$M$47,IF($S$2=AHA!$R$6,AHA!$R$47,AHA!$W$47))) -> 1547 | BP39: =IF($S$2=AHA!$H$6,AHA!$H$50,IF($S$2=AHA!$M$6,AHA!$M$50,IF($S$2=AHA!$R$6,AHA!$R$50,AHA!$W$50))) -> 0.5 | BQ39: =IF($S$2=AHA!$H$6,AHA!$H$48,IF($S$2=AHA!$M$6,AHA!$M$48,IF($S$2=AHA!$R$6,AHA!$R$48,AHA!$W$48))) -> 0.3 | BR39: =IF($S$2=AHA!$H$6,AHA!$H$51,IF($S$2=AHA!$M$6,AHA!$M$51,IF($S$2=AHA!$R$6,AHA!$R$51,AHA!$W$51))) -> 5000 | BS39: =IF($S$2=AHA!$H$6,AHA!$H$52,IF($S$2=AHA!$M$6,AHA!$M$52,IF($S$2=AHA!$R$6,AHA!$R$52,AHA!$W$52))) -> 250
B40: 2011 | C40: 0 | D40: 0 | E40: 0 | F40: 0 | G40: 0 | H40: 0 | I40: 0 | J40: 0 | K40: 0 | L40: 0 | M40: 0 | N40: 0 | O40: 1415 | P40: 9240 | Q40: 0 | R40: 0 | S40: 0 | T40: 4975 | U40: 0 | V40: 15 | W40: 768 | X40: 0 | Y40: 0 | Z40: 0 | AA40: 0 | AB40: 0 | AC40: 0 | AD40: 0 | AE40: 882000 | AF40: 0 | AG40: 0 | AH40: 0 | AI40: 0 | AJ40: 0 | AK40: 0 | AL40: 0 | AM40: 0 | AR40: 2011 | AS40: 1430 | AT40: 14215 | AU40: 0 | AV40: =IF($S$2=AHA!$H$6,$BE$5, IF($S$2=AHA!$M$6,$BE$6,IF($S$2=AHA!$R$6,$BE$7,$BE$8))) -> 0.596675 | AW40: =IF($S$2=AHA!$H$6,$BF$5, IF($S$2=AHA!$M$6,$BF$6,IF($S$2=AHA!$R$6,$BF$7,$BF$8))) -> 0.596675 | AX40: 3545.5278 | AY40: 35244.52985 | AZ40: 0 | BA40: 0 | BB40: 0 | BC40: 0 | BD40: 2115.5278 | BE40: 21029.52985 | BF40: 783 | BG40: 0.01915708812 | BH40: 0 | BI40: 9240 | BJ40: 10655 | BK40: 882000 | BL40: 0.8671984984 | BM40: =IFERROR(($P40+$Q40)*AHA!$H$36/($P40*AHA!$H$36+$Q40*AHA!$H$36+$O40),"-") -> 0.8393323493 | BN40: 0.02231487924 | BO40: =IF($S$2=AHA!$H$6,AHA!$H$47,IF($S$2=AHA!$M$6,AHA!$M$47,IF($S$2=AHA!$R$6,AHA!$R$47,AHA!$W$47))) -> 1547 | BP40: =IF($S$2=AHA!$H$6,AHA!$H$50,IF($S$2=AHA!$M$6,AHA!$M$50,IF($S$2=AHA!$R$6,AHA!$R$50,AHA!$W$50))) -> 0.5 | BQ40: =IF($S$2=AHA!$H$6,AHA!$H$48,IF($S$2=AHA!$M$6,AHA!$M$48,IF($S$2=AHA!$R$6,AHA!$R$48,AHA!$W$48))) -> 0.3 | BR40: =IF($S$2=AHA!$H$6,AHA!$H$51,IF($S$2=AHA!$M$6,AHA!$M$51,IF($S$2=AHA!$R$6,AHA!$R$51,AHA!$W$51))) -> 5000 | BS40: =IF($S$2=AHA!$H$6,AHA!$H$52,IF($S$2=AHA!$M$6,AHA!$M$52,IF($S$2=AHA!$R$6,AHA!$R$52,AHA!$W$52))) -> 250
B41: 2012 | C41: 0 | D41: 0 | E41: 0 | F41: 0 | G41: 0 | H41: 0 | I41: 0 | J41: 0 | K41: 0 | L41: 0 | M41: 0 | N41: 0 | O41: 581 | P41: 6294 | Q41: 0 | R41: 0 | S41: 0 | T41: 4738 | U41: 0 | V41: 22 | W41: 1084 | X41: 0 | Y41: 0 | Z41: 0 | AA41: 0 | AB41: 0 | AC41: 0 | AD41: 0 | AE41: 878100 | AF41: 0 | AG41: 0 | AH41: 0 | AI41: 0 | AJ41: 0 | AK41: 0 | AL41: 0 | AM41: 0 | AR41: 2012 | AS41: 603 | AT41: 11032 | AU41: 0 | AV41: =IF($S$2=AHA!$H$6,$BE$5, IF($S$2=AHA!$M$6,$BE$6,IF($S$2=AHA!$R$6,$BE$7,$BE$8))) -> 0.596675 | AW41: =IF($S$2=AHA!$H$6,$BF$5, IF($S$2=AHA!$M$6,$BF$6,IF($S$2=AHA!$R$6,$BF$7,$BF$8))) -> 0.596675 | AX41: 1495.072212 | AY41: 27352.63125 | AZ41: 0 | BA41: 0 | BB41: 0 | BC41: 0 | BD41: 892.0722122 | BE41: 16320.63125 | BF41: 1106 | BG41: 0.0198915009 | BH41: 0 | BI41: 6294 | BJ41: 6875 | BK41: 878100 | BL41: 0.9154909091 | BM41: =IFERROR(($P41+$Q41)*AHA!$H$36/($P41*AHA!$H$36+$Q41*AHA!$H$36+$O41),"-") -> 0.8965492682 | BN41: 0.02170516805 | BO41: =IF($S$2=AHA!$H$6,AHA!$H$47,IF($S$2=AHA!$M$6,AHA!$M$47,IF($S$2=AHA!$R$6,AHA!$R$47,AHA!$W$47))) -> 1547 | BP41: =IF($S$2=AHA!$H$6,AHA!$H$50,IF($S$2=AHA!$M$6,AHA!$M$50,IF($S$2=AHA!$R$6,AHA!$R$50,AHA!$W$50))) -> 0.5 | BQ41: =IF($S$2=AHA!$H$6,AHA!$H$48,IF($S$2=AHA!$M$6,AHA!$M$48,IF($S$2=AHA!$R$6,AHA!$R$48,AHA!$W$48))) -> 0.3 | BR41: =IF($S$2=AHA!$H$6,AHA!$H$51,IF($S$2=AHA!$M$6,AHA!$M$51,IF($S$2=AHA!$R$6,AHA!$R$51,AHA!$W$51))) -> 5000 | BS41: =IF($S$2=AHA!$H$6,AHA!$H$52,IF($S$2=AHA!$M$6,AHA!$M$52,IF($S$2=AHA!$R$6,AHA!$R$52,AHA!$W$52))) -> 250
B42: 2013 | C42: 0 | D42: 0 | E42: 0 | F42: 0 | G42: 0 | H42: 0 | I42: 0 | J42: 0 | K42: 0 | L42: 0 | M42: 0 | N42: 0 | O42: 767 | P42: 3390 | Q42: 0 | R42: 0 | S42: 0 | T42: 3539 | U42: 0 | V42: 11 | W42: 534 | X42: 0 | Y42: 0 | Z42: 0 | AA42: 0 | AB42: 0 | AC42: 0 | AD42: 0 | AE42: 940800 | AF42: 0 | AG42: 0 | AH42: 0 | AI42: 0 | AJ42: 0 | AK42: 0 | AL42: 0 | AM42: 0 | AR42: 2013 | AS42: 778 | AT42: 6929 | AU42: 0 | AV42: =IF($S$2=AHA!$H$6,$BE$5, IF($S$2=AHA!$M$6,$BE$6,IF($S$2=AHA!$R$6,$BE$7,$BE$8))) -> 0.596675 | AW42: =IF($S$2=AHA!$H$6,$BF$5, IF($S$2=AHA!$M$6,$BF$6,IF($S$2=AHA!$R$6,$BF$7,$BF$8))) -> 0.596675 | AX42: 1928.965474 | AY42: 17179.6938 | AZ42: 0 | BA42: 0 | BB42: 0 | BC42: 0 | BD42: 1150.965474 | BE42: 10250.6938 | BF42: 545 | BG42: 0.02018348624 | BH42: 0 | BI42: 3390 | BJ42: 4157 | BK42: 940800 | BL42: 0.8154919413 | BM42: =IFERROR(($P42+$Q42)*AHA!$H$36/($P42*AHA!$H$36+$Q42*AHA!$H$36+$O42),"-") -> 0.779534349 | BN42: 0.02523825948 | BO42: =IF($S$2=AHA!$H$6,AHA!$H$47,IF($S$2=AHA!$M$6,AHA!$M$47,IF($S$2=AHA!$R$6,AHA!$R$47,AHA!$W$47))) -> 1547 | BP42: =IF($S$2=AHA!$H$6,AHA!$H$50,IF($S$2=AHA!$M$6,AHA!$M$50,IF($S$2=AHA!$R$6,AHA!$R$50,AHA!$W$50))) -> 0.5 | BQ42: =IF($S$2=AHA!$H$6,AHA!$H$48,IF($S$2=AHA!$M$6,AHA!$M$48,IF($S$2=AHA!$R$6,AHA!$R$48,AHA!$W$48))) -> 0.3 | BR42: =IF($S$2=AHA!$H$6,AHA!$H$51,IF($S$2=AHA!$M$6,AHA!$M$51,IF($S$2=AHA!$R$6,AHA!$R$51,AHA!$W$51))) -> 5000 | BS42: =IF($S$2=AHA!$H$6,AHA!$H$52,IF($S$2=AHA!$M$6,AHA!$M$52,IF($S$2=AHA!$R$6,AHA!$R$52,AHA!$W$52))) -> 250
B43: 2014 | C43: 0 | D43: 0 | E43: 0 | F43: 0 | G43: 0 | H43: 0 | I43: 0 | J43: 0 | K43: 0 | L43: 0 | M43: 0 | N43: 0 | O43: 975 | P43: 4150 | Q43: 0 | R43: 0 | S43: 0 | T43: 2636 | U43: 0 | V43: 50 | W43: 482 | X43: 0 | Y43: 0 | Z43: 0 | AA43: 0 | AB43: 0 | AC43: 0 | AD43: 0 | AE43: 850000 | AF43: 0 | AG43: 0 | AH43: 0 | AI43: 0 | AJ43: 0 | AK43: 0 | AL43: 0 | AM43: 0 | AR43: 2014 | AS43: 1025 | AT43: 6786 | AU43: 0 | AV43: =IF($S$2=AHA!$H$6,$BE$5, IF($S$2=AHA!$M$6,$BE$6,IF($S$2=AHA!$R$6,$BE$7,$BE$8))) -> 0.596675 | AW43: =IF($S$2=AHA!$H$6,$BF$5, IF($S$2=AHA!$M$6,$BF$6,IF($S$2=AHA!$R$6,$BF$7,$BF$8))) -> 0.596675 | AX43: 2541.374822 | AY43: 16825.14102 | AZ43: 0 | BA43: 0 | BB43: 0 | BC43: 0 | BD43: 1516.374822 | BE43: 10039.14102 | BF43: 532 | BG43: 0.09398496241 | BH43: 0 | BI43: 4150 | BJ43: 5125 | BK43: 850000 | BL43: 0.8097560976 | BM43: =IFERROR(($P43+$Q43)*AHA!$H$36/($P43*AHA!$H$36+$Q43*AHA!$H$36+$O43),"-") -> 0.772991851 | BN43: 0.1084053933 | BO43: =IF($S$2=AHA!$H$6,AHA!$H$47,IF($S$2=AHA!$M$6,AHA!$M$47,IF($S$2=AHA!$R$6,AHA!$R$47,AHA!$W$47))) -> 1547 | BP43: =IF($S$2=AHA!$H$6,AHA!$H$50,IF($S$2=AHA!$M$6,AHA!$M$50,IF($S$2=AHA!$R$6,AHA!$R$50,AHA!$W$50))) -> 0.5 | BQ43: =IF($S$2=AHA!$H$6,AHA!$H$48,IF($S$2=AHA!$M$6,AHA!$M$48,IF($S$2=AHA!$R$6,AHA!$R$48,AHA!$W$48))) -> 0.3 | BR43: =IF($S$2=AHA!$H$6,AHA!$H$51,IF($S$2=AHA!$M$6,AHA!$M$51,IF($S$2=AHA!$R$6,AHA!$R$51,AHA!$W$51))) -> 5000 | BS43: =IF($S$2=AHA!$H$6,AHA!$H$52,IF($S$2=AHA!$M$6,AHA!$M$52,IF($S$2=AHA!$R$6,AHA!$R$52,AHA!$W$52))) -> 250
B44: 2015 | C44: 0 | D44: 0 | E44: 0 | F44: 0 | G44: 0 | H44: 0 | I44: 0 | J44: 0 | K44: 0 | L44: 0 | M44: 0 | N44: 0 | O44: 483 | P44: 1048 | Q44: 0 | R44: 0 | S44: 0 | T44: 4844 | U44: 0 | V44: 83 | W44: 64 | X44: 0 | Y44: 0 | Z44: 0 | AA44: 0 | AB44: 0 | AC44: 0 | AD44: 0 | AE44: 500000 | AF44: 0 | AG44: 0 | AH44: 0 | AI44: 0 | AJ44: 0 | AK44: 0 | AL44: 0 | AM44: 0 | AR44: 2015 | AS44: 566 | AT44: 5892 | AU44: 0 | AV44: =IF($S$2=AHA!$H$6,$BE$5, IF($S$2=AHA!$M$6,$BE$6,IF($S$2=AHA!$R$6,$BE$7,$BE$8))) -> 0.596675 | AW44: =IF($S$2=AHA!$H$6,$BF$5, IF($S$2=AHA!$M$6,$BF$6,IF($S$2=AHA!$R$6,$BF$7,$BF$8))) -> 0.596675 | AX44: 1403.33478 | AY44: 14608.56629 | AZ44: 0 | BA44: 0 | BB44: 0 | BC44: 0 | BD44: 837.3347796 | BE44: 8716.566293 | BF44: 147 | BG44: 0.5646258503 | BH44: 0 | BI44: 1048 | BJ44: 1531 | BK44: 500000 | BL44: 0.6845199216 | BM44: =IFERROR(($P44+$Q44)*AHA!$H$36/($P44*AHA!$H$36+$Q44*AHA!$H$36+$O44),"-") -> 0.6344785833 | BN44: 0.4708729569 | BO44: =IF($S$2=AHA!$H$6,AHA!$H$47,IF($S$2=AHA!$M$6,AHA!$M$47,IF($S$2=AHA!$R$6,AHA!$R$47,AHA!$W$47))) -> 1547 | BP44: =IF($S$2=AHA!$H$6,AHA!$H$50,IF($S$2=AHA!$M$6,AHA!$M$50,IF($S$2=AHA!$R$6,AHA!$R$50,AHA!$W$50))) -> 0.5 | BQ44: =IF($S$2=AHA!$H$6,AHA!$H$48,IF($S$2=AHA!$M$6,AHA!$M$48,IF($S$2=AHA!$R$6,AHA!$R$48,AHA!$W$48))) -> 0.3 | BR44: =IF($S$2=AHA!$H$6,AHA!$H$51,IF($S$2=AHA!$M$6,AHA!$M$51,IF($S$2=AHA!$R$6,AHA!$R$51,AHA!$W$51))) -> 5000 | BS44: =IF($S$2=AHA!$H$6,AHA!$H$52,IF($S$2=AHA!$M$6,AHA!$M$52,IF($S$2=AHA!$R$6,AHA!$R$52,AHA!$W$52))) -> 250
B45: 2016 | C45: 0 | D45: 0 | E45: 0 | F45: 0 | G45: 0 | H45: 0 | I45: 0 | J45: 0 | K45: 0 | L45: 0 | M45: 0 | N45: 0 | O45: 597 | P45: 1786 | Q45: 0 | R45: 0 | S45: 0 | T45: 2018 | U45: 0 | V45: 43 | W45: 866 | X45: 0 | Y45: 0 | Z45: 0 | AA45: 0 | AB45: 0 | AC45: 0 | AD45: 0 | AE45: 500000 | AF45: 0 | AG45: 0 | AH45: 0 | AI45: 0 | AJ45: 0 | AK45: 0 | AL45: 0 | AM45: 0 | AR45: 2016 | AS45: 640 | AT45: 3804 | AU45: 0 | AV45: =IF($S$2=AHA!$H$6,$BE$5, IF($S$2=AHA!$M$6,$BE$6,IF($S$2=AHA!$R$6,$BE$7,$BE$8))) -> 0.596675 | AW45: =IF($S$2=AHA!$H$6,$BF$5, IF($S$2=AHA!$M$6,$BF$6,IF($S$2=AHA!$R$6,$BF$7,$BF$8))) -> 0.596675 | AX45: 1586.809645 | AY45: 9431.599826 | AZ45: 0 | BA45: 0 | BB45: 0 | BC45: 0 | BD45: 946.8096448 | BE45: 5627.599826 | BF45: 909 | BG45: 0.04730473047 | BH45: 0 | BI45: 1786 | BJ45: 2383 | BK45: 500000 | BL45: 0.7494754511 | BM45: =IFERROR(($P45+$Q45)*AHA!$H$36/($P45*AHA!$H$36+$Q45*AHA!$H$36+$O45),"-") -> 0.7053016092 | BN45: 0.0628545469 | BO45: =IF($S$2=AHA!$H$6,AHA!$H$47,IF($S$2=AHA!$M$6,AHA!$M$47,IF($S$2=AHA!$R$6,AHA!$R$47,AHA!$W$47))) -> 1547 | BP45: =IF($S$2=AHA!$H$6,AHA!$H$50,IF($S$2=AHA!$M$6,AHA!$M$50,IF($S$2=AHA!$R$6,AHA!$R$50,AHA!$W$50))) -> 0.5 | BQ45: =IF($S$2=AHA!$H$6,AHA!$H$48,IF($S$2=AHA!$M$6,AHA!$M$48,IF($S$2=AHA!$R$6,AHA!$R$48,AHA!$W$48))) -> 0.3 | BR45: =IF($S$2=AHA!$H$6,AHA!$H$51,IF($S$2=AHA!$M$6,AHA!$M$51,IF($S$2=AHA!$R$6,AHA!$R$51,AHA!$W$51))) -> 5000 | BS45: =IF($S$2=AHA!$H$6,AHA!$H$52,IF($S$2=AHA!$M$6,AHA!$M$52,IF($S$2=AHA!$R$6,AHA!$R$52,AHA!$W$52))) -> 250
B46: 2017 | C46: 0 | D46: 0 | E46: 0 | F46: 0 | G46: 0 | H46: 0 | I46: 0 | J46: 0 | K46: 0 | L46: 0 | M46: 0 | N46: 0 | O46: 1172 | P46: 403 | Q46: 0 | R46: 0 | S46: 0 | T46: 3280 | U46: 0 | V46: 257 | W46: 1329 | X46: 0 | Y46: 0 | Z46: 0 | AA46: 0 | AB46: 0 | AC46: 0 | AD46: 0 | AE46: 2500000 | AF46: 0 | AG46: 0 | AH46: 0 | AI46: 0 | AJ46: 0 | AK46: 0 | AL46: 0 | AM46: 0 | AR46: 2017 | AS46: 1429 | AT46: 3683 | AU46: 0 | AV46: =IF($S$2=AHA!$H$6,$BE$5, IF($S$2=AHA!$M$6,$BE$6,IF($S$2=AHA!$R$6,$BE$7,$BE$8))) -> 0.596675 | AW46: =IF($S$2=AHA!$H$6,$BF$5, IF($S$2=AHA!$M$6,$BF$6,IF($S$2=AHA!$R$6,$BF$7,$BF$8))) -> 0.596675 | AX46: 3543.04841 | AY46: 9131.593628 | AZ46: 0 | BA46: 0 | BB46: 0 | BC46: 0 | BD46: 2114.04841 | BE46: 5448.593628 | BF46: 1586 | BG46: 0.1620428752 | BH46: 0 | BI46: 403 | BJ46: 1575 | BK46: 2500000 | BL46: 0.2558730159 | BM46: =IFERROR(($P46+$Q46)*AHA!$H$36/($P46*AHA!$H$36+$Q46*AHA!$H$36+$O46),"-") -> 0.215738758 | BN46: 0.428932645 | BO46: =IF($S$2=AHA!$H$6,AHA!$H$47,IF($S$2=AHA!$M$6,AHA!$M$47,IF($S$2=AHA!$R$6,AHA!$R$47,AHA!$W$47))) -> 1547 | BP46: =IF($S$2=AHA!$H$6,AHA!$H$50,IF($S$2=AHA!$M$6,AHA!$M$50,IF($S$2=AHA!$R$6,AHA!$R$50,AHA!$W$50))) -> 0.5 | BQ46: =IF($S$2=AHA!$H$6,AHA!$H$48,IF($S$2=AHA!$M$6,AHA!$M$48,IF($S$2=AHA!$R$6,AHA!$R$48,AHA!$W$48))) -> 0.3 | BR46: =IF($S$2=AHA!$H$6,AHA!$H$51,IF($S$2=AHA!$M$6,AHA!$M$51,IF($S$2=AHA!$R$6,AHA!$R$51,AHA!$W$51))) -> 5000 | BS46: =IF($S$2=AHA!$H$6,AHA!$H$52,IF($S$2=AHA!$M$6,AHA!$M$52,IF($S$2=AHA!$R$6,AHA!$R$52,AHA!$W$52))) -> 250
B47: 2018 | C47: 0 | D47: 0 | E47: 0 | F47: 0 | G47: 0 | H47: 0 | I47: 0 | J47: 0 | K47: 0 | L47: 0 | M47: 0 | N47: 0 | O47: 0 | P47: 0 | Q47: 0 | R47: 0 | S47: 0 | T47: 0 | U47: 0 | V47: 0 | W47: 0 | X47: 0 | Y47: 0 | Z47: 0 | AA47: 0 | AB47: 0 | AC47: 0 | AD47: 0 | AE47: 0 | AF47: 0 | AG47: 0 | AH47: 0 | AI47: 0 | AJ47: 0 | AK47: 0 | AL47: 0 | AM47: 0 | AR47: 2018 | AS47: 0 | AT47: 0 | AU47: 0 | AV47: =IF($S$2=AHA!$H$6,$BE$5, IF($S$2=AHA!$M$6,$BE$6,IF($S$2=AHA!$R$6,$BE$7,$BE$8))) -> 0.596675 | AW47: =IF($S$2=AHA!$H$6,$BF$5, IF($S$2=AHA!$M$6,$BF$6,IF($S$2=AHA!$R$6,$BF$7,$BF$8))) -> 0.596675 | AX47: 0 | AY47: 0 | AZ47: 0 | BA47: - | BB47: - | BC47: 0 | BD47: 0 | BE47: 0 | BF47: 0 | BG47: 0 | BH47: 0 | BI47: 0 | BJ47: 0 | BK47: 0 | BL47: - | BM47: =IFERROR(($P47+$Q47)*AHA!$H$36/($P47*AHA!$H$36+$Q47*AHA!$H$36+$O47),"-") -> - | BN47: - | BO47: =IF($S$2=AHA!$H$6,AHA!$H$47,IF($S$2=AHA!$M$6,AHA!$M$47,IF($S$2=AHA!$R$6,AHA!$R$47,AHA!$W$47))) -> 1547 | BP47: =IF($S$2=AHA!$H$6,AHA!$H$50,IF($S$2=AHA!$M$6,AHA!$M$50,IF($S$2=AHA!$R$6,AHA!$R$50,AHA!$W$50))) -> 0.5 | BQ47: =IF($S$2=AHA!$H$6,AHA!$H$48,IF($S$2=AHA!$M$6,AHA!$M$48,IF($S$2=AHA!$R$6,AHA!$R$48,AHA!$W$48))) -> 0.3 | BR47: =IF($S$2=AHA!$H$6,AHA!$H$51,IF($S$2=AHA!$M$6,AHA!$M$51,IF($S$2=AHA!$R$6,AHA!$R$51,AHA!$W$51))) -> 5000 | BS47: =IF($S$2=AHA!$H$6,AHA!$H$52,IF($S$2=AHA!$M$6,AHA!$M$52,IF($S$2=AHA!$R$6,AHA!$R$52,AHA!$W$52))) -> 250
B48: 2019 | C48: 0 | D48: 0 | E48: 0 | F48: 0 | G48: 0 | H48: 0 | I48: 0 | J48: 0 | K48: 0 | L48: 0 | M48: 0 | N48: 0 | O48: 0 | P48: 0 | Q48: 0 | R48: 0 | S48: 0 | T48: 0 | U48: 0 | V48: 0 | W48: 0 | X48: 0 | Y48: 0 | Z48: 0 | AA48: 0 | AB48: 0 | AC48: 0 | AD48: 0 | AE48: 0 | AF48: 0 | AG48: 0 | AH48: 0 | AI48: 0 | AJ48: 0 | AK48: 0 | AL48: 0 | AM48: 0 | AR48: 2019 | AS48: 0 | AT48: 0 | AU48: 0 | AV48: =IF($S$2=AHA!$H$6,$BE$5, IF($S$2=AHA!$M$6,$BE$6,IF($S$2=AHA!$R$6,$BE$7,$BE$8))) -> 0.596675 | AW48: =IF($S$2=AHA!$H$6,$BF$5, IF($S$2=AHA!$M$6,$BF$6,IF($S$2=AHA!$R$6,$BF$7,$BF$8))) -> 0.596675 | AX48: 0 | AY48: 0 | AZ48: 0 | BA48: - | BB48: - | BC48: 0 | BD48: 0 | BE48: 0 | BF48: 0 | BG48: 0 | BH48: 0 | BI48: 0 | BJ48: 0 | BK48: 0 | BL48: - | BM48: =IFERROR(($P48+$Q48)*AHA!$H$36/($P48*AHA!$H$36+$Q48*AHA!$H$36+$O48),"-") -> - | BN48: - | BO48: =IF($S$2=AHA!$H$6,AHA!$H$47,IF($S$2=AHA!$M$6,AHA!$M$47,IF($S$2=AHA!$R$6,AHA!$R$47,AHA!$W$47))) -> 1547 | BP48: =IF($S$2=AHA!$H$6,AHA!$H$50,IF($S$2=AHA!$M$6,AHA!$M$50,IF($S$2=AHA!$R$6,AHA!$R$50,AHA!$W$50))) -> 0.5 | BQ48: =IF($S$2=AHA!$H$6,AHA!$H$48,IF($S$2=AHA!$M$6,AHA!$M$48,IF($S$2=AHA!$R$6,AHA!$R$48,AHA!$W$48))) -> 0.3 | BR48: =IF($S$2=AHA!$H$6,AHA!$H$51,IF($S$2=AHA!$M$6,AHA!$M$51,IF($S$2=AHA!$R$6,AHA!$R$51,AHA!$W$51))) -> 5000 | BS48: =IF($S$2=AHA!$H$6,AHA!$H$52,IF($S$2=AHA!$M$6,AHA!$M$52,IF($S$2=AHA!$R$6,AHA!$R$52,AHA!$W$52))) -> 250
B49: 2020 | C49: 0 | D49: 0 | E49: 0 | F49: 0 | G49: 0 | H49: 0 | I49: 0 | J49: 0 | K49: 0 | L49: 0 | M49: 0 | N49: 0 | O49: 0 | P49: 0 | Q49: 0 | R49: 0 | S49: 0 | T49: 0 | U49: 0 | V49: 0 | W49: 0 | X49: 0 | Y49: 0 | Z49: 0 | AA49: 0 | AB49: 0 | AC49: 0 | AD49: 0 | AE49: 0 | AF49: 0 | AG49: 0 | AH49: 0 | AI49: 0 | AJ49: 0 | AK49: 0 | AL49: 0 | AM49: 0 | AR49: 2020 | AS49: 0 | AT49: 0 | AU49: 0 | AV49: =IF($S$2=AHA!$H$6,$BE$5, IF($S$2=AHA!$M$6,$BE$6,IF($S$2=AHA!$R$6,$BE$7,$BE$8))) -> 0.596675 | AW49: =IF($S$2=AHA!$H$6,$BF$5, IF($S$2=AHA!$M$6,$BF$6,IF($S$2=AHA!$R$6,$BF$7,$BF$8))) -> 0.596675 | AX49: 0 | AY49: 0 | AZ49: 0 | BA49: - | BB49: - | BC49: 0 | BD49: 0 | BE49: 0 | BF49: 0 | BG49: 0 | BH49: 0 | BI49: 0 | BJ49: 0 | BK49: 0 | BL49: - | BM49: =IFERROR(($P49+$Q49)*AHA!$H$36/($P49*AHA!$H$36+$Q49*AHA!$H$36+$O49),"-") -> - | BN49: - | BO49: =IF($S$2=AHA!$H$6,AHA!$H$47,IF($S$2=AHA!$M$6,AHA!$M$47,IF($S$2=AHA!$R$6,AHA!$R$47,AHA!$W$47))) -> 1547 | BP49: =IF($S$2=AHA!$H$6,AHA!$H$50,IF($S$2=AHA!$M$6,AHA!$M$50,IF($S$2=AHA!$R$6,AHA!$R$50,AHA!$W$50))) -> 0.5 | BQ49: =IF($S$2=AHA!$H$6,AHA!$H$48,IF($S$2=AHA!$M$6,AHA!$M$48,IF($S$2=AHA!$R$6,AHA!$R$48,AHA!$W$48))) -> 0.3 | BR49: =IF($S$2=AHA!$H$6,AHA!$H$51,IF($S$2=AHA!$M$6,AHA!$M$51,IF($S$2=AHA!$R$6,AHA!$R$51,AHA!$W$51))) -> 5000 | BS49: =IF($S$2=AHA!$H$6,AHA!$H$52,IF($S$2=AHA!$M$6,AHA!$M$52,IF($S$2=AHA!$R$6,AHA!$R$52,AHA!$W$52))) -> 250
B50: 2021 | C50: 0 | D50: 0 | E50: 0 | F50: 0 | G50: 0 | H50: 0 | I50: 0 | J50: 0 | K50: 0 | L50: 0 | M50: 0 | N50: 0 | O50: 0 | P50: 0 | Q50: 0 | R50: 0 | S50: 0 | T50: 0 | U50: 0 | V50: 0 | W50: 0 | X50: 0 | Y50: 0 | Z50: 0 | AA50: 0 | AB50: 0 | AC50: 0 | AD50: 0 | AE50: 0 | AF50: 0 | AG50: 0 | AH50: 0 | AI50: 0 | AJ50: 0 | AK50: 0 | AL50: 0 | AM50: 0 | AR50: 2021 | AS50: 0 | AT50: 0 | AU50: 0 | AV50: =IF($S$2=AHA!$H$6,$BE$5, IF($S$2=AHA!$M$6,$BE$6,IF($S$2=AHA!$R$6,$BE$7,$BE$8))) -> 0.596675 | AW50: =IF($S$2=AHA!$H$6,$BF$5, IF($S$2=AHA!$M$6,$BF$6,IF($S$2=AHA!$R$6,$BF$7,$BF$8))) -> 0.596675 | AX50: 0 | AY50: 0 | AZ50: 0 | BA50: - | BB50: - | BC50: 0 | BD50: 0 | BE50: 0 | BF50: 0 | BG50: 0 | BH50: 0 | BI50: 0 | BJ50: 0 | BK50: 0 | BL50: - | BM50: =IFERROR(($P50+$Q50)*AHA!$H$36/($P50*AHA!$H$36+$Q50*AHA!$H$36+$O50),"-") -> - | BN50: - | BO50: =IF($S$2=AHA!$H$6,AHA!$H$47,IF($S$2=AHA!$M$6,AHA!$M$47,IF($S$2=AHA!$R$6,AHA!$R$47,AHA!$W$47))) -> 1547 | BP50: =IF($S$2=AHA!$H$6,AHA!$H$50,IF($S$2=AHA!$M$6,AHA!$M$50,IF($S$2=AHA!$R$6,AHA!$R$50,AHA!$W$50))) -> 0.5 | BQ50: =IF($S$2=AHA!$H$6,AHA!$H$48,IF($S$2=AHA!$M$6,AHA!$M$48,IF($S$2=AHA!$R$6,AHA!$R$48,AHA!$W$48))) -> 0.3 | BR50: =IF($S$2=AHA!$H$6,AHA!$H$51,IF($S$2=AHA!$M$6,AHA!$M$51,IF($S$2=AHA!$R$6,AHA!$R$51,AHA!$W$51))) -> 5000 | BS50: =IF($S$2=AHA!$H$6,AHA!$H$52,IF($S$2=AHA!$M$6,AHA!$M$52,IF($S$2=AHA!$R$6,AHA!$R$52,AHA!$W$52))) -> 250
B51: 2022 | C51: 0 | D51: 0 | E51: 0 | F51: 0 | G51: 0 | H51: 0 | I51: 0 | J51: 0 | K51: 0 | L51: 0 | M51: 0 | N51: 0 | O51: 0 | P51: 0 | Q51: 0 | R51: 0 | S51: 0 | T51: 0 | U51: 0 | V51: 0 | W51: 0 | X51: 0 | Y51: 0 | Z51: 0 | AA51: 0 | AB51: 0 | AC51: 0 | AD51: 0 | AE51: 0 | AF51: 0 | AG51: 0 | AH51: 0 | AI51: 0 | AJ51: 0 | AK51: 0 | AL51: 0 | AM51: 0 | AR51: 2022 | AS51: =L51+V51+O51 -> 0 | AT51: =M51+T51+P51 -> 0 | AU51: =N51+Q51+U51 -> 0 | AV51: =IF($S$2=AHA!$H$6,$BE$5, IF($S$2=AHA!$M$6,$BE$6,IF($S$2=AHA!$R$6,$BE$7,$BE$8))) -> 0.596675 | AW51: =IF($S$2=AHA!$H$6,$BF$5, IF($S$2=AHA!$M$6,$BF$6,IF($S$2=AHA!$R$6,$BF$7,$BF$8))) -> 0.596675 | AX51: =IF(C51+F51>0,C51+F51+I51+AS51,AS51/(1-AV51)) -> 0 | AY51: =IF(D51+G51>0,D51+G51+J51+AT51,AT51/(1-$AW51)) -> 0 | AZ51: =IF(E51+H51>0,E51+H51+K51+AU51,AU51/(1-$AW51)) -> 0 | BA51: =IFERROR((L51)/AS51,"-") -> - | BB51: =IFERROR((M51+N51)/(AT51+AU51),"-") -> - | BC51: =SUM(L51+M51+N51) -> 0 | BD51: =AX51*AV51 -> 0 | BE51: =(AY51+AZ51)*AW51 -> 0 | BF51: =SUM(V51:X51) -> 0 | BG51: =IF(BF51+BH51>0,V51/(BF51+BH51),0) -> 0 | BH51: =SUM(Y51:AA51) -> 0 | BI51: =P51+Q51 -> 0 | BJ51: =SUM(O51:Q51) -> 0 | BK51: =SUM(AE51:AJ51) -> 0 | BL51: =IFERROR((P51+Q51)/(P51+Q51+O51),"-") -> - | BM51: =IFERROR(($P51+$Q51)*AHA!$H$36/($P51*AHA!$H$36+$Q51*AHA!$H$36+$O51),"-") -> - | BN51: =IFERROR(BG51/(BG51+BM51),"-") -> - | BO51: =IF($S$2=AHA!$H$6,AHA!$H$47,IF($S$2=AHA!$M$6,AHA!$M$47,IF($S$2=AHA!$R$6,AHA!$R$47,AHA!$W$47))) -> 1547 | BP51: =IF($S$2=AHA!$H$6,AHA!$H$50,IF($S$2=AHA!$M$6,AHA!$M$50,IF($S$2=AHA!$R$6,AHA!$R$50,AHA!$W$50))) -> 0.5 | BQ51: =IF($S$2=AHA!$H$6,AHA!$H$48,IF($S$2=AHA!$M$6,AHA!$M$48,IF($S$2=AHA!$R$6,AHA!$R$48,AHA!$W$48))) -> 0.3 | BR51: =IF($S$2=AHA!$H$6,AHA!$H$51,IF($S$2=AHA!$M$6,AHA!$M$51,IF($S$2=AHA!$R$6,AHA!$R$51,AHA!$W$51))) -> 5000 | BS51: =IF($S$2=AHA!$H$6,AHA!$H$52,IF($S$2=AHA!$M$6,AHA!$M$52,IF($S$2=AHA!$R$6,AHA!$R$52,AHA!$W$52))) -> 250
B52: 2023 | C52: 0 | D52: 0 | E52: 0 | F52: 0 | G52: 0 | H52: 0 | I52: 0 | J52: 0 | K52: 0 | L52: 0 | M52: 0 | N52: 0 | O52: 0 | P52: 0 | Q52: 0 | R52: 0 | S52: 0 | T52: 0 | U52: 0 | V52: 0 | W52: 0 | X52: 0 | Y52: 0 | Z52: 0 | AA52: 0 | AB52: 0 | AC52: 0 | AD52: 0 | AE52: 0 | AF52: 0 | AG52: 0 | AH52: 0 | AI52: 0 | AJ52: 0 | AK52: 0 | AL52: 0 | AM52: 0 | AR52: 2023 | AS52: 0 | AT52: 0 | AU52: 0 | AV52: =IF($S$2=AHA!$H$6,$BE$5, IF($S$2=AHA!$M$6,$BE$6,IF($S$2=AHA!$R$6,$BE$7,$BE$8))) -> 0.596675 | AW52: =IF($S$2=AHA!$H$6,$BF$5, IF($S$2=AHA!$M$6,$BF$6,IF($S$2=AHA!$R$6,$BF$7,$BF$8))) -> 0.596675 | AX52: 0 | AY52: 0 | AZ52: 0 | BA52: - | BB52: - | BC52: 0 | BD52: 0 | BE52: 0 | BF52: 0 | BG52: 0 | BH52: 0 | BI52: 0 | BJ52: 0 | BK52: 0 | BL52: - | BM52: =IFERROR(($P52+$Q52)*AHA!$H$36/($P52*AHA!$H$36+$Q52*AHA!$H$36+$O52),"-") -> - | BN52: - | BO52: =IF($S$2=AHA!$H$6,AHA!$H$47,IF($S$2=AHA!$M$6,AHA!$M$47,IF($S$2=AHA!$R$6,AHA!$R$47,AHA!$W$47))) -> 1547 | BP52: =IF($S$2=AHA!$H$6,AHA!$H$50,IF($S$2=AHA!$M$6,AHA!$M$50,IF($S$2=AHA!$R$6,AHA!$R$50,AHA!$W$50))) -> 0.5 | BQ52: =IF($S$2=AHA!$H$6,AHA!$H$48,IF($S$2=AHA!$M$6,AHA!$M$48,IF($S$2=AHA!$R$6,AHA!$R$48,AHA!$W$48))) -> 0.3 | BR52: =IF($S$2=AHA!$H$6,AHA!$H$51,IF($S$2=AHA!$M$6,AHA!$M$51,IF($S$2=AHA!$R$6,AHA!$R$51,AHA!$W$51))) -> 5000 | BS52: =IF($S$2=AHA!$H$6,AHA!$H$52,IF($S$2=AHA!$M$6,AHA!$M$52,IF($S$2=AHA!$R$6,AHA!$R$52,AHA!$W$52))) -> 250
B53: 2024 | C53: 0 | D53: 0 | E53: 0 | F53: 0 | G53: 0 | H53: 0 | I53: 0 | J53: 0 | K53: 0 | L53: 0 | M53: 0 | N53: 0 | O53: 0 | P53: 0 | Q53: 0 | R53: 0 | S53: 0 | T53: 0 | U53: 0 | V53: 0 | W53: 0 | X53: 0 | Y53: 0 | Z53: 0 | AA53: 0 | AB53: 0 | AC53: 0 | AD53: 0 | AE53: 0 | AF53: 0 | AG53: 0 | AH53: 0 | AI53: 0 | AJ53: 0 | AK53: 0 | AL53: 0 | AM53: 0 | AR53: 2024 | AS53: 0 | AT53: 0 | AU53: 0 | AV53: =IF($S$2=AHA!$H$6,$BE$5, IF($S$2=AHA!$M$6,$BE$6,IF($S$2=AHA!$R$6,$BE$7,$BE$8))) -> 0.596675 | AW53: =IF($S$2=AHA!$H$6,$BF$5, IF($S$2=AHA!$M$6,$BF$6,IF($S$2=AHA!$R$6,$BF$7,$BF$8))) -> 0.596675 | AX53: 0 | AY53: 0 | AZ53: 0 | BA53: - | BB53: - | BC53: 0 | BD53: 0 | BE53: 0 | BF53: 0 | BG53: 0 | BH53: 0 | BI53: 0 | BJ53: 0 | BK53: 0 | BL53: - | BM53: =IFERROR(($P53+$Q53)*AHA!$H$36/($P53*AHA!$H$36+$Q53*AHA!$H$36+$O53),"-") -> - | BN53: - | BO53: =IF($S$2=AHA!$H$6,AHA!$H$47,IF($S$2=AHA!$M$6,AHA!$M$47,IF($S$2=AHA!$R$6,AHA!$R$47,AHA!$W$47))) -> 1547 | BP53: =IF($S$2=AHA!$H$6,AHA!$H$50,IF($S$2=AHA!$M$6,AHA!$M$50,IF($S$2=AHA!$R$6,AHA!$R$50,AHA!$W$50))) -> 0.5 | BQ53: =IF($S$2=AHA!$H$6,AHA!$H$48,IF($S$2=AHA!$M$6,AHA!$M$48,IF($S$2=AHA!$R$6,AHA!$R$48,AHA!$W$48))) -> 0.3 | BR53: =IF($S$2=AHA!$H$6,AHA!$H$51,IF($S$2=AHA!$M$6,AHA!$M$51,IF($S$2=AHA!$R$6,AHA!$R$51,AHA!$W$51))) -> 5000 | BS53: =IF($S$2=AHA!$H$6,AHA!$H$52,IF($S$2=AHA!$M$6,AHA!$M$52,IF($S$2=AHA!$R$6,AHA!$R$52,AHA!$W$52))) -> 250
B54: 2025 | C54: 0 | D54: 0 | E54: 0 | F54: 0 | G54: 0 | H54: 0 | I54: 0 | J54: 0 | K54: 0 | L54: 0 | M54: 0 | N54: 0 | O54: 0 | P54: 0 | Q54: 0 | R54: 0 | S54: 0 | T54: 0 | U54: 0 | V54: 0 | W54: 0 | X54: 0 | Y54: 0 | Z54: 0 | AA54: 0 | AB54: 0 | AC54: 0 | AD54: 0 | AE54: 0 | AF54: 0 | AG54: 0 | AH54: 0 | AI54: 0 | AJ54: 0 | AK54: 0 | AL54: 0 | AM54: 0 | AR54: 2025 | AS54: 0 | AT54: 0 | AU54: 0 | AV54: =IF($S$2=AHA!$H$6,$BE$5, IF($S$2=AHA!$M$6,$BE$6,IF($S$2=AHA!$R$6,$BE$7,$BE$8))) -> 0.596675 | AW54: =IF($S$2=AHA!$H$6,$BF$5, IF($S$2=AHA!$M$6,$BF$6,IF($S$2=AHA!$R$6,$BF$7,$BF$8))) -> 0.596675 | AX54: 0 | AY54: 0 | AZ54: 0 | BA54: - | BB54: - | BC54: 0 | BD54: 0 | BE54: 0 | BF54: 0 | BG54: 0 | BH54: 0 | BI54: 0 | BJ54: 0 | BK54: 0 | BL54: - | BM54: =IFERROR(($P54+$Q54)*AHA!$H$36/($P54*AHA!$H$36+$Q54*AHA!$H$36+$O54),"-") -> - | BN54: - | BO54: =IF($S$2=AHA!$H$6,AHA!$H$47,IF($S$2=AHA!$M$6,AHA!$M$47,IF($S$2=AHA!$R$6,AHA!$R$47,AHA!$W$47))) -> 1547 | BP54: =IF($S$2=AHA!$H$6,AHA!$H$50,IF($S$2=AHA!$M$6,AHA!$M$50,IF($S$2=AHA!$R$6,AHA!$R$50,AHA!$W$50))) -> 0.5 | BQ54: =IF($S$2=AHA!$H$6,AHA!$H$48,IF($S$2=AHA!$M$6,AHA!$M$48,IF($S$2=AHA!$R$6,AHA!$R$48,AHA!$W$48))) -> 0.3 | BR54: =IF($S$2=AHA!$H$6,AHA!$H$51,IF($S$2=AHA!$M$6,AHA!$M$51,IF($S$2=AHA!$R$6,AHA!$R$51,AHA!$W$51))) -> 5000 | BS54: =IF($S$2=AHA!$H$6,AHA!$H$52,IF($S$2=AHA!$M$6,AHA!$M$52,IF($S$2=AHA!$R$6,AHA!$R$52,AHA!$W$52))) -> 250
B55: 2026 | C55: 0 | D55: 0 | E55: 0 | F55: 0 | G55: 0 | H55: 0 | I55: 0 | J55: 0 | K55: 0 | L55: 0 | M55: 0 | N55: 0 | O55: 0 | P55: 0 | Q55: 0 | R55: 0 | S55: 0 | T55: 0 | U55: 0 | V55: 0 | W55: 0 | X55: 0 | Y55: 0 | Z55: 0 | AA55: 0 | AB55: 0 | AC55: 0 | AD55: 0 | AE55: 0 | AF55: 0 | AG55: 0 | AH55: 0 | AI55: 0 | AJ55: 0 | AK55: 0 | AL55: 0 | AM55: 0 | AR55: 2026 | AS55: 0 | AT55: 0 | AU55: 0 | AV55: =IF($S$2=AHA!$H$6,$BE$5, IF($S$2=AHA!$M$6,$BE$6,IF($S$2=AHA!$R$6,$BE$7,$BE$8))) -> 0.596675 | AW55: =IF($S$2=AHA!$H$6,$BF$5, IF($S$2=AHA!$M$6,$BF$6,IF($S$2=AHA!$R$6,$BF$7,$BF$8))) -> 0.596675 | AX55: 0 | AY55: 0 | AZ55: 0 | BA55: - | BB55: - | BC55: 0 | BD55: 0 | BE55: 0 | BF55: 0 | BG55: 0 | BH55: 0 | BI55: 0 | BJ55: 0 | BK55: 0 | BL55: - | BM55: =IFERROR(($P55+$Q55)*AHA!$H$36/($P55*AHA!$H$36+$Q55*AHA!$H$36+$O55),"-") -> - | BN55: - | BO55: =IF($S$2=AHA!$H$6,AHA!$H$47,IF($S$2=AHA!$M$6,AHA!$M$47,IF($S$2=AHA!$R$6,AHA!$R$47,AHA!$W$47))) -> 1547 | BP55: =IF($S$2=AHA!$H$6,AHA!$H$50,IF($S$2=AHA!$M$6,AHA!$M$50,IF($S$2=AHA!$R$6,AHA!$R$50,AHA!$W$50))) -> 0.5 | BQ55: =IF($S$2=AHA!$H$6,AHA!$H$48,IF($S$2=AHA!$M$6,AHA!$M$48,IF($S$2=AHA!$R$6,AHA!$R$48,AHA!$W$48))) -> 0.3 | BR55: =IF($S$2=AHA!$H$6,AHA!$H$51,IF($S$2=AHA!$M$6,AHA!$M$51,IF($S$2=AHA!$R$6,AHA!$R$51,AHA!$W$51))) -> 5000 | BS55: =IF($S$2=AHA!$H$6,AHA!$H$52,IF($S$2=AHA!$M$6,AHA!$M$52,IF($S$2=AHA!$R$6,AHA!$R$52,AHA!$W$52))) -> 250
B56: 2027 | C56: 0 | D56: 0 | E56: 0 | F56: 0 | G56: 0 | H56: 0 | I56: 0 | J56: 0 | K56: 0 | L56: 0 | M56: 0 | N56: 0 | O56: 0 | P56: 0 | Q56: 0 | R56: 0 | S56: 0 | T56: 0 | U56: 0 | V56: 0 | W56: 0 | X56: 0 | Y56: 0 | Z56: 0 | AA56: 0 | AB56: 0 | AC56: 0 | AD56: 0 | AE56: 0 | AF56: 0 | AG56: 0 | AH56: 0 | AI56: 0 | AJ56: 0 | AK56: 0 | AL56: 0 | AM56: 0 | AR56: 2027 | AS56: 0 | AT56: 0 | AU56: 0 | AV56: =IF($S$2=AHA!$H$6,$BE$5, IF($S$2=AHA!$M$6,$BE$6,IF($S$2=AHA!$R$6,$BE$7,$BE$8))) -> 0.596675 | AW56: =IF($S$2=AHA!$H$6,$BF$5, IF($S$2=AHA!$M$6,$BF$6,IF($S$2=AHA!$R$6,$BF$7,$BF$8))) -> 0.596675 | AX56: 0 | AY56: 0 | AZ56: 0 | BA56: - | BB56: - | BC56: 0 | BD56: 0 | BE56: 0 | BF56: 0 | BG56: 0 | BH56: 0 | BI56: 0 | BJ56: 0 | BK56: 0 | BL56: - | BM56: =IFERROR(($P56+$Q56)*AHA!$H$36/($P56*AHA!$H$36+$Q56*AHA!$H$36+$O56),"-") -> - | BN56: - | BO56: =IF($S$2=AHA!$H$6,AHA!$H$47,IF($S$2=AHA!$M$6,AHA!$M$47,IF($S$2=AHA!$R$6,AHA!$R$47,AHA!$W$47))) -> 1547 | BP56: =IF($S$2=AHA!$H$6,AHA!$H$50,IF($S$2=AHA!$M$6,AHA!$M$50,IF($S$2=AHA!$R$6,AHA!$R$50,AHA!$W$50))) -> 0.5 | BQ56: =IF($S$2=AHA!$H$6,AHA!$H$48,IF($S$2=AHA!$M$6,AHA!$M$48,IF($S$2=AHA!$R$6,AHA!$R$48,AHA!$W$48))) -> 0.3 | BR56: =IF($S$2=AHA!$H$6,AHA!$H$51,IF($S$2=AHA!$M$6,AHA!$M$51,IF($S$2=AHA!$R$6,AHA!$R$51,AHA!$W$51))) -> 5000 | BS56: =IF($S$2=AHA!$H$6,AHA!$H$52,IF($S$2=AHA!$M$6,AHA!$M$52,IF($S$2=AHA!$R$6,AHA!$R$52,AHA!$W$52))) -> 250

Sheet Scenario_1
A2: Scenario 1 Inputs | C2: The Scenario Inputs table is a compilation of all inputs from the AHA, Habitat, Fitness, and Stray Assumptions tabs used in the Scenario 1 calculations below. See Appendix B of the User Guide for details on each input. | L2: Scenario 1 Results | M2: The Scenario Results table summarizes average, minimum and maximum values from the Scenario 1 Calculations based on the last 80 generations (generations 21-100).
N3: Goals | P3: Actuals
A4: Habitat | B4: Adult Productivity | C4: Adult Capacity | D4: (1) | E4: ProdAdult | F4: =AHA!H16 -> 4 | G4: (2) | H4: CapAdult | I4: =AHA!J16 -> 6150 | L4: Program Goals | M4: Natural Origin Escapement (NOS) | N4: =AHA!$H$9 -> 1547 | P4: =N13 -> 634.657498
B5: Smolt Productivity | C5: Smolt Capacity | D5: (3) | E5: ProdSmolt | F5: =AHA!H17 -> 400 | G5: (4) | H5: CapSmolt | I5: =AHA!J17 -> 615000 | M5: Effective pHOS < | N5: =AHA!$H$10 -> 0.3 | P5: =1-SUM($AF$80:$AF$159)/(SUM($AF$80:$AF$159)+SUM($AB$80:$AB$159)) -> 0
B6: Adj. Adult Productivity | C6: Adj. Adult Capacity | D6: (5) | E6: Adj-ProdAdult | F6: =F4*(I14/I15) -> 4 | G6: (6) | H6: Adj-CapAdult | I6: =F9*I14/(1/I8+F9/I9+F9*I14/I10) -> 6149.980143 | M6: pNOB | N6: =AHA!$H$11 -> 0.3 | P6: =IF($I$34>0,(SUM($I$80:$I$159))/MAX(0.000001,(SUM($I$80:$I$159)+SUM($J$80:$J$159)+$F$34)),0) -> 0
B7: Fecundity NORs | C7: % Females | D7: (7) | E7: FecundNOR | F7: =AHA!H19 -> 4200 | G7: (8) | H7: %FemNOR | I7: =AHA!J19 -> 0.5 | M7: PNI > | N7: =AHA!$H$12 -> 0.5 | P7: =IFERROR(P6/(P5+P6),"-") -> -
B8: Sp-Emerg Productivity | C8: Sp-Emerg Capacity | D8: (9) | E8: ProdSpawn-Em | F8: =F7*I7 -> 2100 | G8: (10) | H8: CapSpawn-Em | I8: 1000000000000 | M8: Total Harvest | N8: =AHA!$H$13 -> 5000 | P8: =N30 -> 1153.482841
B9: Emerg-Sm Productivity | C9: Emerg-Sm Capacity | D9: (11) | E9: ProdEm-Smolt | F9: =F$4/(F10*F8) -> 0.1904761905 | G9: (12) | H9: CapEm-Smolt | I9: =1/((F10)*(1/I4-1/I10)) -> 615000.0038 | M9: Terminal Harvest | N9: =AHA!$H$14 -> 250 | P9: =N25+N26 -> 86.54420428
B10: Sm-Ad Productivity | C10: Sm-Ad Capacity | D10: (13) | E10: ProdSmolt-Ad | F10: =I15 -> 0.01 | G10: (14) | H10: CapSmolt-Ad | I10: 1000000000000
B11: Neq | C11: MSY | D11: (15) | E11: Neq | F11: =MAX(I6*(1-1/F6),0) -> 4612.485107 | G11: (16) | H11: MSY | I11: =IF(F11=0,0,((F6^0.5-1)^2)*I6/F6) -> 1537.495036 | N11: Average | P11: Min | Q11: Max
B12: SMSY | C12: MSY Expl. Rate | D12: (17) | E12: SMSY | F12: =MAX((F6^0.5-1)*I6/F6,0) -> 1537.495036 | G12: (18) | H12: ExplMSY | I12: =I11/(I11+F12) -> 0.5 | L12: Natural Production and Escapement | M12: NOR Smolts | N12: =AVERAGE($AK$80:$AK$159) -> 178882.024 | P12: =MIN($AK$80:$AK$159) -> 157796.4949 | Q12: =MAX($AK$80:$AK$159) -> 181804.0168
M13: NOR Escapement | N13: =AVERAGE($AF$80:$AF$159) -> 634.657498 | P13: =MIN($AF$80:$AF$159) -> 558.3099951 | Q13: =MAX($AF$80:$AF$159) -> 645.269113
A14: Hydro and Ocean | B14: Ocean Survival | C14: Basin-to-Basin SAR - obs | D14: (19) | E14: SOcean | F14: =AHA!H21 -> 0.01 | G14: (22) | H14: SARobs | I14: =F16*F15*F14 -> 0.01 | M14: HOR Total Escapement (including strays) | N14: =AVERAGE($AA$80:$AA$159) -> 0 | P14: =MIN($AA$80:$AA$159) -> 0 | Q14: =MAX($AA$80:$AA$159) -> 0
B15: Juv. Fish Passage Survival | C15: Basin-to-Basin SAR - baseline | D15: (20) | E15: FPSjuv | F15: =AHA!H22 -> 1 | G15: (23) | H15: SARbase | I15: =IF(Habitat!$D$8>0,Habitat!$D$8,I14) -> 0.01 | M15: HOR Effective Escapement | N15: =AVERAGE($AB$80:$AB$159) -> 0 | P15: =MIN($AB$80:$AB$159) -> 0 | Q15: =MAX($AB$80:$AB$159) -> 0
B16: Ad. Fish Passage Survival | C16: Vary SAR? | D16: (21) | E16: FPSadult | F16: =AHA!H23 -> 1 | G16: (24) | H16: SARvary | I16: =AHA!J23 -> None | M16: HOS above pHOS goal | N16: =AVERAGE($AD$80:$AD$159) -> 0 | P16: =MIN($AD$80:$AD$159) -> 0 | Q16: =MAX($AD$80:$AD$159) -> 0
C17: Coeff. of Variation SAR | G17: (25) | H17: SARcv | I17: =AHA!J24 -> 1 | M17: Total Natural Escapement (NOR & HOR) | N17: =AVERAGE($AG$80:$AG$159) -> 634.657498 | P17: =MIN($AG$80:$AG$159) -> 558.3099951 | Q17: =MAX($AG$80:$AG$159) -> 645.269113
A19: Harvest | B19: NOR - Fishery 1 Harvest | C19: HOR - Fishery 1 Harvest | D19: (26) | E19: HRNOR,F1 | F19: =AHA!H26 -> 0.35 | G19: (27) | H19: HRHOR,F1 | I19: =AHA!J26 -> 0.35 | L19: Harvest | M19: =AHA!E94 -> Ocean NORs | N19: =AVERAGE($O$80:$O$159) -> 625.8491187 | P19: =MIN($O$80:$O$159) -> 550.5612389 | Q19: =MAX($O$80:$O$159) -> 636.3134556
B20: NOR - Fishery 2 Harvest | C20: HOR - Fishery 2 Harvest | D20: (28) | E20: HRNOR,F2 | F20: =AHA!H27 -> 0.27 | G20: (29) | H20: HRHOR,F2 | I20: =AHA!J27 -> 0.27 | M20: =AHA!E95 -> Ocean HORs | N20: =+AVERAGE($T$80:$T$159) -> 0 | P20: =+MIN($T$80:$T$159) -> 0 | Q20: =+MAX($T$80:$T$159) -> 0
B21: NOR - Fishery 3 Harvest | C21: HOR - Fishery 3 Harvest | D21: (30) | E21: HRNOR,F3 | F21: =AHA!H28 -> 0.15 | G21: (31) | H21: HRHOR,F3 | I21: =AHA!J28 -> 0.15 | M21: =AHA!E96 -> Willapa Bay Comm. NORs | N21: =AVERAGE($P$80:$P$159) -> 313.8186295 | P21: =MIN($P$80:$P$159) -> 276.0671355 | Q21: =MAX($P$80:$P$159) -> 319.065747
B22: NOR - Fishery 4 Harvest | C22: HOR - Fishery 4 Harvest | D22: (32) | E22: HRNOR,F4 | F22: =AHA!H29 -> 0.12 | G22: (33) | H22: HRHOR,F4 | I22: =AHA!J29 -> 0.12 | M22: =AHA!E97 -> Willapa Bay Comm. HORs | N22: =+AVERAGE($U$80:$U$159) -> 0 | P22: =+MIN($U$80:$U$159) -> 0 | Q22: =+MAX($U$80:$U$159) -> 0
B23: Total Exploit. NOR | C23: Total Exploit. HOR | D23: (34) | E23: TotExplNOR | F23: =1-(1-F19)*(1-F20)*(1-F21)*(1-F22) -> 0.645074 | G23: (35) | H23: TotExplHOR | I23: =1-(1-I19)*(1-I20)*(1-I21)*(1-I22) -> 0.645074 | M23: =AHA!E98 -> Willapa Bay Rec. NORs | N23: =AVERAGE($Q$80:$Q$159) -> 127.2708886 | P23: =MIN($Q$80:$Q$159) -> 111.9605605 | Q23: =MAX($Q$80:$Q$159) -> 129.3988863
M24: =AHA!E99 -> Willapa Bay Rec. HORs | N24: =+AVERAGE($V$80:$V$159) -> 0 | P24: =+MIN($V$80:$V$159) -> 0 | Q24: =+MAX($V$80:$V$159) -> 0
A25: Hatchery | B25: Pre-spawning Survival | C25: % Females | D25: (36) | E25: Sprespawn | F25: =AHA!H32 -> 0.95 | G25: (37) | H25: %FemHOR | I25: =AHA!J32 -> 0.5 | M25: =AHA!E100 -> Freshwater NORs | N25: =AVERAGE($S$80:$S$159) -> 86.54420428 | P25: =MIN($S$80:$S$159) -> 76.13318115 | Q25: =MAX($S$80:$S$159) -> 87.99124268
B26: Fecundity - HORs | D26: (38) | E26: FecundHOR | F26: =AHA!H33 -> 4200 | M26: =AHA!E101 -> Freshwater HORs | N26: =+AVERAGE($X$80:$X$159) -> 0 | P26: =+MIN($X$80:$X$159) -> 0 | Q26: =+MAX($X$80:$X$159) -> 0
B27: Egg to Smolt Survival | C27: Egg to Sub Survival | D27: (39) | E27: Segg-smolt | F27: =AHA!H34 -> 0.85 | G27: (40) | H27: Segg-sub | I27: =AHA!J34 -> 0.8
B28: Applied SAR (yearling) | C28: Applied SAR (subyearling) | D28: (41) | E28: SARyearling | F28: =AHA!H35*I15/I14 -> 0 | G28: (42) | H28: SARsub | I28: =AHA!J35*I15/I14 -> 0.003 | M28: Total Harvest - NORs | N28: =AVERAGE($O$80:$O$159)+AVERAGE($P$80:$P$159)+AVERAGE($Q$80:$Q$159)+AVERAGE($S$80:$S$159) -> 1153.482841 | P28: =MIN($O$80:$O$159)+MIN($P$80:$P$159)+MIN($Q$80:$Q$159)+MIN($S$80:$S$159) -> 1014.722116 | Q28: =MAX($O$80:$O$159)+MAX($P$80:$P$159)+MAX($Q$80:$Q$159)+MAX($S$80:$S$159) -> 1172.769332
B29: RRS HOS | C29: Weir Efficiency | D29: (43) | E29: RRSHOS | F29: =AHA!H36 -> 0.8 | G29: (44) | H29: %Weir | I29: =AHA!J36 -> 0 | M29: Total Harvest - HORs | N29: =AVERAGE($T$80:$T$159)+AVERAGE($U$80:$U$159)+AVERAGE($V$80:$V$159)+AVERAGE($X$80:$X$159) -> 0 | P29: =MIN($T$80:$T$159)+MIN($U$80:$U$159)+MIN($V$80:$V$159)+MIN($X$80:$X$159) -> 0 | Q29: =MAX($T$80:$T$159)+MAX($U$80:$U$159)+MAX($V$80:$V$159)+MAX($X$80:$X$159) -> 0
B30: % to Hatchery | C30: % to Nat. Spawn | D30: (45) | E30: %Hatch | F30: =AHA!H37 -> 0.9 | G30: (46) | H30: %Spawn | I30: =1-F30 -> 0.1 | M30: Total Harvest | N30: =AVERAGE($Y$80:$Y$159) -> 1153.482841 | P30: =MIN($Y$80:$Y$159) -> 1014.722116 | Q30: =MAX($Y$80:$Y$159) -> 1172.769332
B32: Yearling Releases | C32: Subyearling Releases | D32: (47) | E32: #Yearlings | F32: =AHA!H39 -> 0 | G32: (48) | H32: #Subs | I32: =AHA!J39 -> 0 | L32: Hatchery | M32: HOR Smolts Released | N32: =AVERAGE($C$80:$C$159) -> 0 | P32: =MIN($C$80:$C$159) -> 0 | Q32: =MAX($C$80:$C$159) -> 0
B33: % Yearlings | C33: % Subs | D33: (49) | E33: %Yearlings | F33: =IF(($F$32+$I$32)=0,1,$F$32/($F$32+$I$32)) -> 1 | G33: (50) | H33: %Subs | I33: =1-F33 -> 0 | M33: NOR Brood | N33: =AVERAGE($I$80:$I$159) -> 0 | P33: =MIN($I$80:$I$159) -> 0 | Q33: =MAX($I$80:$I$159) -> 0
B34: Imported Brood | C34: Local Brood | D34: (51) | E34: Broodimp | F34: =AHA!H40 -> 0 | G34: (52) | H34: Broodlocal | I34: =MAX(F32/(F25*F26*F27*I25)+I32/(F25*F26*I27*I25)-F34,0) -> 0 | M34: HOR Brood | N34: =AVERAGE($J$80:$J$159)+F34 -> 0 | P34: =MIN($J$80:$J$159)+F34 -> 0 | Q34: =MAX($J$80:$J$159)+F34 -> 0
B35: Exported Brood - Goal | C35: Max % NOR run -brood | D35: (53) | E35: Broodexp,goal | F35: =AHA!H41 -> 0 | G35: (54) | H35: %NORmax | I35: =AHA!H42 -> 0.3 | M35: Total Brood (includes imported) | N35: =SUM(N33:O34) -> 0 | P35: =SUM(P33:P34) -> 0 | Q35: =SUM(Q33:Q34) -> 0
B36: Fitness adj? | C36: Relative SAR of HORs | D36: (55) | E36: FitnessAdj | F36: =AHA!$J$42 -> Ford | G36: (56) | H36: SARrel | I36: =(F28*F33+I28*I33)/I15 -> 0 | M36: Surplus at Hatchery | N36: =AVERAGE($M$80:$M$159) -> 0 | P36: =MIN($M$80:$M$159) -> 0 | Q36: =MAX($M$80:$M$159) -> 0
B37: Total Strays | C37: Effective Strays | D37: (57) | E37: Straystot | F37: ='Stray Assumptions'!G19 -> 0 | G37: (58) | H37: Strayseff | I37: ='Stray Assumptions'!H19 -> 0 | M37: Exported Brood (from Hatchery Surplus) | N37: =AVERAGE($N$80:$N$159) -> 0 | O37: =Scenario_1!#REF! ->  | P37: =MIN($N$80:$N$159) -> 0 | Q37: =MAX($N$80:$N$159) -> 0
B38: pHOS Goal | C38: pNOB Goal | D38: (59) | E38: pHOSgoal | F38: =IF(AHA!$H$10=1,0.999999,IF(AHA!$H$10=0,0.0000001,AHA!$H$10)) -> 0.3 | G38: (60) | H38: pNOBgoal | I38: =IF(AHA!$H$11=1,0.999999,IF(AHA!$H$11=0,0.0000001,AHA!$H$11)) -> 0.3 | M38: External Strays | N38: ='Stray Assumptions'!$G$19 -> 0 | P38: =N38 -> 0 | Q38: =N38 -> 0
A40: Fitness | B40: Optimum - Nature | C40: Initial - Pop1 | D40: (61) | E40: θNat | F40: ='Fitness Assumptions'!$D$7 -> 100 | G40: (68) | H40: Start1 | I40: ='Fitness Assumptions'!$D$12 -> 93.1 | L40: Total Run | M40: Total NOR Run Size | N40: =N13+(N19+N21+N23)*$F$16+N25+N33 -> 1788.140339 | P40: =P13+(P19+P21+P23)*$F$16+P25+P33 -> 1573.032111 | Q40: =Q13+(Q19+Q21+Q23)*$F$16+Q25+Q33 -> 1818.038445
B41: Optimum - Hatchery 1 | C41: Initial - Pop2 | D41: (62) | E41: θHatch | F41: ='Fitness Assumptions'!$D$8 -> 80 | G41: (69) | H41: Start2 | I41: ='Fitness Assumptions'!$D$13 -> 92 | M41: Total HOR Run Size* | N41: =N14+(N20+N22+N24)*$F$16+N26+N34+N36+N37-N38-$F$34 -> 0 | P41: =P14+(P20+P22+P24)*$F$16+P26+P34+P36+P37-P38-$F$34 -> 0 | Q41: =Q14+(Q20+Q22+Q24)*$F$16+Q26+Q34+Q36+Q37-Q38-$F$34 -> 0
B42: Optimum - Hatchery 2 | C42: Initial - Pop3 | D42: (63) | E42: θHatch2 | F42: ='Fitness Assumptions'!$D$9 -> 70 | G42: (70) | H42: Start3 | I42: ='Fitness Assumptions'!$D$14 -> 90 | M42: Total Run Size* | N42: =+N13+N14+N30+N35+N36+N37-N38-F34 -> 1788.140339 | P42: =+P13+P14+P30+P35+P36+P37-P38-F34 -> 1573.032111 | Q42: =+Q13+Q14+Q30+Q35+Q36+Q37-Q38-F34 -> 1818.038445
B43: Average Hatchery | C43: Variance | D43: (64) | E43: θHatAvg | F43: ='Fitness Assumptions'!$D$10 -> 75 | G43: (71) | H43: Ơ2 | I43: ='Fitness Assumptions'!$D$16 -> 10 | M43: *Minus strays and imported broodstock
B44: Selection strength (SD) | C44: Fitness Loss-egg | D44: (65) | E44: SD units | F44: ='Fitness Assumptions'!$D$17 -> 3 | G44: (72) | H44: Rel_lossegg | I44: ='Fitness Assumptions'!C23 -> 0.5 | M44: SAR - NORs | N44: =IFERROR(N40/N12,"-") -> 0.009996199169 | P44: =IFERROR(P40/P12,"-") -> 0.009968739243 | Q44: =IFERROR(Q40/Q12,"-") -> 0.009999990519
B45: Heritability | C45: Fitness Loss-fry | D45: (66) | E45: h2 | F45: ='Fitness Assumptions'!$D$18 -> 0.5 | G45: (73) | H45: Rel_lossfry | I45: ='Fitness Assumptions'!D23 -> 0.4 | M45: SAR - HORs | N45: =IFERROR(N41/N32,"-") -> - | P45: =IFERROR(P41/P32,"-") -> - | Q45: =IFERROR(Q41/Q32,"-") -> -
B46: Fitness Floor | C46: Fitness Loss-smolt | D46: (67) | E46: Fitnessfloor | F46: ='Fitness Assumptions'!C20 -> 0.5 | G46: (74) | H46: Rel_losssmolt | I46: ='Fitness Assumptions'!E23 -> 0.1
B47: Initial Fitness | C47: Omega | D47: (75) | E47: Fitnessinitial | F47: =BO59 -> 0.7881632819 | G47: (79) | H47: Omega | I47: =SQRT(I43)*F44 -> 9.486832981 | L47: Graphics Data | M47: NORs | N47: HORs | O47: Surplus HORs | P47: HORs-int | Q47: Surplus HORs-int
B48: Equilibrium Fitness | C48: Omegasq | D48: (76) | E48: Fitnesseq | F48: =BO159 -> 0.9999914601 | G48: (80) | H48: Omega2 | I48: =I47^2 -> 90 | L48: Hatchery | M48: =N33 -> 0 | N48: =IF($P$6<0.1,N34,IF($P$5<$P$6,0,N34)) -> 0 | O48: =IF(N48>=P48,N36,0) -> 0 | P48: =IF($P$6<0.1,0,IF($P$5<$P$6,N34,0)) -> 0 | Q48: =IF(P48>N48,N36,0) -> 0
B49: Average Fitness | C49: A | D49: (77) | E49: Fitnessaverage | F49: =AVERAGE(BO80:BO159) -> 0.9964050214 | G49: (81) | H49: A | I49: =1-(F45*I43/(I48+I43)) -> 0.95 | L49: Habitat | M49: =N13 -> 634.657498 | N49: =IF(P$6<0.1,AVERAGE($AC$80:$AC$179),IF(P$5<P$6,0,AVERAGE($AC$80:$AC$179))) -> 0 | O49: =IF(N49>=P49,N16,0) -> 0 | P49: =IF($P$6<0.1,0,IF($P$5<$P$6,AVERAGE($AC$80:$AC$179),0)) -> 0 | Q49: =IF(P49>N49,N16,0) -> 0
B50: Generations To Avg. | D50: (78) | E50: Generations | F50: =MAX(BI59:BI159) -> 29 | L50: =AHA!D26 -> Ocean | M50: =AVERAGE($O$80:$O$159) -> 625.8491187 | N50: =IF($P$6<0.1,IF($I$23>0,AVERAGE($T$80:$T$159),0),IF($P$5<$P$6,0,IF($I$23>0,AVERAGE($T$80:$T$159),0))) -> 0 | P50: =IF($P$6<0.1,0,IF($P$5<$P$6,IF($I$23>0,AVERAGE($T$80:$T$159),0),0)) -> 0
L51: =AHA!D27 -> Willapa Bay Comm. | M51: =AVERAGE($P$80:$P$159) -> 313.8186295 | N51: =IF($P$6<0.1,IF($I$23>0,AVERAGE($U$80:$U$159),0),IF($P$5<$P$6,0,IF($I$23>0,AVERAGE($U$80:$U$159),0))) -> 0 | P51: =IF($P$6<0.1,0,IF($P$5<$P$6,IF($I$23>0,AVERAGE($U$80:$U$159),0),0)) -> 0
C52: The calculations on each of the Scenario tabs are identical, except that Scenario 5 does not have Busack fitness calculations. All of the inputs to the Scenario Calculations are displayed in the table above, with one exception. The SAR PDO (calculation 53) uses the values from the SAR tab column V. The calculations are described in detail in Appendix C of the User Guide. Note that some of the 'Generation 0' values differ from the Generations 1-100 calculations because they are starting values (see yellow highlighted cells). The calculations in Generations 1-100 are identical. | L52: =AHA!D28 -> Willapa Bay Rec. | M52: =AVERAGE($Q$80:$Q$159) -> 127.2708886 | N52: =IF($P$6<0.1,IF($I$23>0,AVERAGE($V$80:$V$159),0),IF($P$5<$P$6,0,IF($I$23>0,AVERAGE($V$80:$V$159),0))) -> 0 | P52: =IF($P$6<0.1,0,IF($P$5<$P$6,IF($I$23>0,AVERAGE($V$80:$V$159),0),0)) -> 0
B53: Scenario 1 Calculations | L53: =AHA!D29 -> Freshwater | M53: =AVERAGE($S$80:$S$159) -> 86.54420428 | N53: =IF($P$6<0.1,IF($I$23>0,AVERAGE($X$80:$X$159),0),IF($P$5<$P$6,0,IF($I$23>0,AVERAGE($X$80:$X$159),0))) -> 0 | P53: =IF($P$6<0.1,0,IF($P$5<$P$6,IF($I$23>0,AVERAGE($X$80:$X$159),0),0)) -> 0
BP54: Busack Fitness calculations
B55: Hatchery | O55: Harvest and Adult Fish Passage Mortality | AA55: Natural Spawners | AH55: Natural Production | AQ55: Fitness Loss | AT55: BH Productivity | AX55: BH Capacity | BC55: =GEOMEAN($BC$80:$BC$159) -> 0.01 | BI55: Ford Fitness Adjustment | BZ55: Natural spawning | CC55: Integrated program | CF55: Stepping stone (segr.)
A56: Generation | B56: Fry | C56: 0+Smolt | D56: Total Adults in Ocean | E56: Eggs per Spawner | F56: Egg-Release Survival | G56: Sm-Adult (Ocean) Survival | H56: Sm-Adult Capacity | I56: NOB | J56: HOB | K56: Return to hatchery before BS removed | L56: Hatchery Surplus before export | M56: "Surplus" Hatchery fish | N56: Max Exported Hatchery fish | O56: Harvest natural Fishery 1 | P56: Harvest natural Fishery 2 | Q56: Harvest natural Fishery 3 | R56: Adult Fish Passage Mortality | S56: Harvest natural Terminal | T56: Harvest hatchery Fishery 1 | U56: Harvest hatchery Fishery 2 | V56: Harvest hatchery Fishery 3 | W56: Adult Fish Passage Mortality | X56: Harvest hatchery Terminal | Y56: Total Harvest | Z56: NOR Exploit Rate as % of harvestable surplus | AA56: Total HOS | AB56: Effective HOS | AC56: HOS to meet pHOS goal | AD56: HOS above pHOS goal | AE56: NOR Escap. (after passage & harvest) | AF56: NOS (NOR esc. after brood collection) | AG56: Total Escapement | AH56: Total Fry | AI56: Fry (HoS contribution) | AJ56: Fry (NoS contribution) | AK56: Total Smolts | AL56: Smolts (HoS contribution) | AM56: Smolts (NoS contribution) | AN56: Total Adults in Ocean | AO56: Adults (HoS contribution) | AP56: Adults (NoS contribution) | AQ56: Sp-E | AR56: E-Sm | AS56: Sm-A | AT56: Sp-E | AU56: E-Sm | AV56: Sm-A | AW56: Cum | AX56: Sp-E | AY56: E-Sm | AZ56: Sm-A | BA56: Cum | BB56: SAR for NORs adjusted for PDO | BC56: Applied SAR | BD56: SAR for NORs adjusted for PDO and Lognormal Variation | BE56: Adult Run Size (Ocean) NORs | BF56: Adult Run Size (Ocean) NORs | BG56: Adult Run Size (Ocean) HORs | BH56: Adult Run Size (Ocean) HORs | BI56: Num. of generations to reach max. fitness | BM56: Natural Trait Value | BN56: Hatchery Trait Value | BP56: Natural Spawning | BS56: Integrated | BV56: Step stone | BY56: pNOS | BZ56: pHOSint | CA56: pHOSseg | CB56: pNOB1 | CC56: pHOBint,1 | CD56: pHOBseg,1 | CE56: pNOB2 | CF56: pHOBint,2 | CG56: pHOBseg,2 | CH56: Z values | CK56: Busack PNI
A57: Appendix C User Guide Calculation Number >> | B57: HORfry | C57: HORreleases | D57: HORtot | E57: Eggsspawner | F57: Segg-release | G57: Srelease-adult | H57: Capsmolt-adult | I57: BroodNOB | J57: BroodHOB | K57: HORreturns | L57: HORsurplus + HORexport | M57: HORsurplus | N57: HORexport | O57: HarvNOR,F1 | P57: HarvNOR,F2 | Q57: HarvNOR,F3 | R57: FPSAdult, NOR | S57: HarvNOR,F4 | T57: HarvHOR,F1 | U57: HarvHOR,F2 | V57: HarvHOR,F3 | W57: FPSAdult, HOR | X57: HarvHOR,F4 | Y57: Harvtotal | Z57: Harvperc | AA57: HOStotal | AB57: HOSeffective | AC57: HOSgoal | AD57: HOSsurplus | AE57: NOResc | AF57: NOS | AG57: NOS+HOStotal | AH57: Frytot | AI57: FryHOS | AJ57: FryNOS | AK57: Smolttot | AL57: SmoltHOS | AM57: SmoltNOS | AN57: NORtot | AO57: AdultHOS | AP57: AdultNOS | AQ57: FitnessEgg | AR57: FitnessFry | AS57: FitnessSmolt | AT57: FitProdSp-Em | AU57: FitProdEm-Smolt | AV57: FitProdSmolt-Ad | AW57: FitProdCum | AX57: FitCapSp-Em | AY57: FitCapEm-Smolt | AZ57: FitCapSmolt-Ad | BA57: FitCapCum | BB57: SARPDO | BC57: SARApplied | BD57: SARRAND | BE57: Check Calcs | BF57: Check Calcs | BG57: Check Calcs | BH57: Check Calcs | BI57: Maxgen | BJ57: Generation | BK57: 1-pHOS | BL57: 1-pNOB | BM57: P-barnat,g | BN57: P-barhatch,g | BO57: Fitnessg | BP57: NOS | BQ57: HOSint | BR57: HOSseg | BS57: NOBint | BT57: HOBint,1 | BU57: HOBseg,1 | BV57: NOBseg | BW57: HOBint,2 | BX57: HOBseg,2 | BY57: p11 | BZ57: p21 | CA57: p31 | CB57: p12 | CC57: p22 | CD57: p32 | CE57: p13 | CF57: p23 | CG57: p33 | CH57: ZPop1 | CI57: ZPop2 | CJ57: ZPop3 | CK57: PNIBusack
B58: 1 | C58: =B58+1 -> 2 | D58: 3 | E58: 4 | F58: 5 | G58: 6 | H58: 7 | I58: =H58+1 -> 8 | J58: =I58+1 -> 9 | K58: 10 | L58: =K58+1 -> 11 | M58: 12 | N58: 13 | O58: =N58+1 -> 14 | P58: 15 | Q58: =P58+1 -> 16 | R58: =Q58+1 -> 17 | S58: =R58+1 -> 18 | T58: =S58+1 -> 19 | U58: =T58+1 -> 20 | V58: =U58+1 -> 21 | W58: =V58+1 -> 22 | X58: =W58+1 -> 23 | Y58: =X58+1 -> 24 | Z58: =Y58+1 -> 25 | AA58: =Z58+1 -> 26 | AB58: 27 | AC58: 28 | AD58: 29 | AE58: 30 | AF58: 31 | AG58: 32 | AH58: 33 | AI58: 34 | AJ58: 35 | AK58: 36 | AL58: 37 | AM58: 38 | AN58: 39 | AO58: 40 | AP58: 41 | AQ58: 42 | AR58: 43 | AS58: 44 | AT58: 45 | AU58: 46 | AV58: 47 | AW58: =AV58+1 -> 48 | AX58: 49 | AY58: 50 | AZ58: 51 | BA58: 52 | BB58: 53 | BC58: 54 | BD58: 55 | BI58: =BD58+1 -> 56 | BJ58: 57 | BK58: 58 | BL58: 59 | BM58: 60 | BN58: 61 | BO58: 62 | BP58: 63 | BQ58: 64 | BR58: 65 | BS58: 66 | BT58: 67 | BU58: 68 | BV58: 69 | BW58: 70 | BX58: 71 | BY58: 72 | BZ58: 73 | CA58: 74 | CB58: 75 | CC58: 76 | CD58: 77 | CE58: 78 | CF58: 79 | CG58: 80 | CH58: 81 | CI58: 82 | CJ58: 83 | CK58: 84
A59: 0 | D59: 1000 | E59: =$F$26*$I$25*$F$25 -> 1995 | F59: =$F$27*$F$33+$I$27*$I$33 -> 0.85 | G59: =BC59*I$36*$F$15 -> 0 | H59: =AZ59 -> 9.76476104e+11 | I59: =ROUNDDOWN(IF((AN59-O59-P59-Q59-S59)>1,MIN($I$38*$I$34,$I$35*(AN59-O59-P59-Q59-S59-1)),0),1) -> 0 | J59: =MIN(MAX(0,IF($I$38>0.0000001,(MAX($I$34,MIN(I59/$I$38,$I$34,D59-T59-U59-V59-X59))-I59),MIN($I$34,D59-T59-U59-V59-X59))),(1-I$30)*(D59-T59-U59-V59-X59)) -> 0 | O59: =$AN59*$F$19 -> 350 | P59: =$AN59*$F$20*(1-$F$19) -> 175.5 | Q59: =$AN59*$F$21*(1-$F$20)*(1-$F$19) -> 71.175 | R59: =(AN59-SUM(O59:Q59))*(1-$F$16) -> 0 | S59: =MIN($AN59*$F$22*$F$16*(1-$F$21)*(1-$F$20)*(1-$F$19),MAX(0,$AN59*(1-$F$21)*(1-$F$20)*(1-$F$19)-1)) -> 48.399 | T59: =$D59*$I$19 -> 350 | U59: =$D59*$I$20*(1-$I$19) -> 175.5 | V59: =$D59*$I$21*(1-$I$20)*(1-$I$19) -> 71.175 | W59: =(D59-SUM(T59:V59))*(1-$F$16) -> 0 | X59: =$D59*$I$22*$F$16*(1-$I$21)*(1-$I$20)*(1-$I$19) -> 48.399 | Y59: =O59+P59+Q59+S59+T59+U59+V59+X59 -> 1290.148 | Z59: =MIN(1,MAX(0,$F$23*AN59/(AN59-$F$12))) -> 0 | AA59: =ROUNDDOWN(MAX(0,$D59*(1-$I$23)*$F$16*I$30),0)*(1-I$29)+(BC59/BC$55)*$F$37 -> 35 | AB59: =ROUNDDOWN(MAX(0,$D59*(1-$I$23)*$F$16*I$30),0)*(1-I$29)*$F$29+(BC59/BC$55)*$I$37 -> 28 | AC59: =MIN(AA59,AF59*F$38/(1-F$38)) -> 35 | AD59: =AA59-AC59 -> 0 | AE59: =$F$16*(1-$F$21)*(1-$F$20)*(1-$F$19)*($AN59)-S59 -> 354.926 | AF59: =MAX(AE59-I59,0) -> 354.926 | AG59: =AA59+AF59 -> 389.926 | AN59: 1000 | AQ59: =BO59^$I$44 -> 0.8877856058 | AR59: =BO59^$I$45 -> 0.9091728944 | AS59: =BO59^$I$46 -> 0.976476104 | AT59: =F$8*AQ59 -> 1864.349772 | AU59: =F$9*AR59 -> 0.1731757894 | AV59: =$F$15*BC59*AS59 -> 0.00976476104 | AW59: =PRODUCT(AT59:AV59) -> 3.152653128 | AX59: =I$8*AQ59 -> 8.877856058e+11 | AY59: =I$9*AR59 -> 559141.3335 | AZ59: =I$10*AS59 -> 9.76476104e+11 | BA59: =AW59/(AT59/AX59+AT59*AU59/AY59+AT59*AU59*AV59/AZ59) -> 5459.861622 | BB59: =$F$14*SAR!V8 -> 0.008494378039 | BC59: =IF($I$16="PDO",BB59,IF($I$16="None",$F$14,BD59)) -> 0.01 | BD59: =MIN(LOGINV(RAND(),LN(BB59),MAX(LN(2*$I$17+1)/2,0.0000000001)),0.99999) -> 0.007279050258 | BJ59: 0 | BK59: =AF59/(AF59+AB59) -> 0.9268788225 | BL59: =IF($J59+$I59+$F$34>0,($J59+$F$34)/($J59+$I59+$F$34),IF($F$37>0,1,0)) -> 0 | BM59: =I40 -> 93.1 | BN59: =I41 -> 92 | BO59: =IF($F$36="Ford",MAX($F$46,EXP((-1*(BM59-$F$40)^2/(2*($I$48+$I$43))))),IF($F$36="Busack",CK59,1)) -> 0.7881632819 | BP59: =AF59 -> 354.926 | BQ59: 0 | BR59: 0 | BS59: =MAX(I59,1) -> 1 | BT59: =J59 -> 0 | BU59: 0 | BV59: 0 | BW59: =MAX(1,N59) -> 1 | BX59: =Scenario_5!J59 -> 0.2832080201 | BY59: =BP59/(BP59+$F$29*(BQ59+BR59)) -> 1 | BZ59: =(BQ59*$F$29)/(BP59+$F$29*(BQ59+BR59)) -> 0 | CA59: =BR59*$F$29/(BP59+$F$29*(BQ59+BR59)) -> 0 | CB59: =BS59/(BS59+BT59+BU59) -> 1 | CC59: =BT59/(BS59+BT59+BU59) -> 0 | CD59: =BU59/(BS59+BT59+BU59) -> 0 | CE59: =BV59/(BV59+BW59+BX59) -> 0 | CF59: =BW59/(BV59+BW59+BX59) -> 0.779296875 | CG59: =BX59/(BV59+BW59+BX59) -> 0.220703125 | CH59: =I40 -> 93.1 | CI59: =I41 -> 92 | CJ59: =I42 -> 90 | CK59: =ABS(CH59-$F$43)/ABS($F$40-$F$43) -> 0.724
A60: 1 | B60: =(J59+F$34+I59)*E59 -> 0 | C60: =(J59+F$34+I59)*E59*F59 -> 0 | D60: =(C60*G59)/(1+((C60*G59)+AK60*BC59*$F$15)/H59) -> 0 | E60: 1995 | F60: =F$27*$F$33+I$27*$I$33 -> 0.85 | G60: 0 | H60: 9.782521598e+11 | I60: =ROUNDDOWN(IF((AN60-O60-P60-Q60-S60)>1,MIN($I$38*$I$34,$I$35*(AN60-O60-P60-Q60-S60-1)),0),1) -> 0 | J60: =MIN(MAX(0,IF($I$38>0.0000001,(MAX($I$34,MIN(I60/$I$38,$I$34,D60-T60-U60-V60-X60))-I60),MIN($I$34,D60-T60-U60-V60-X60))),(1-I$30)*(D60-T60-U60-V60-X60)) -> 0 | K60: =MAX(0,($D60*(1-$I$23)*$F$16)-(AA60-(BC59/BC$55)*$F$37)) -> 0 | L60: =MAX(0,($D60*(1-$I$23)*$F$16-(AA60-(BC59/BC$55)*$F$37)-J60)) -> 0 | M60: =MAX(0,($D60*(1-$I$23)*$F$16)-(AA60-(BC59/BC$55)*$F$37)-J60-N60) -> 0 | N60: =MAX(+MIN($F$35,L60),0) -> 0 | O60: 346.0223219 | P60: 173.5054786 | Q60: 70.36611076 | R60: =(AN60-SUM(O60:Q60))*(1-$F$16) -> 0 | S60: 47.84895531 | T60: 0 | U60: 0 | V60: 0 | W60: =(D60-SUM(T60:V60))*(1-$F$16) -> 0 | X60: 0 | Y60: =O60+P60+Q60+S60+T60+U60+V60+X60 -> 637.7428666 | Z60: 0 | AA60: =ROUNDDOWN(MAX(0,$D60*(1-$I$23)*$F$16*I$30),0)*(1-I$29)+(BC59/BC$55)*$F$37 -> 0 | AB60: =ROUNDDOWN(MAX(0,$D60*(1-$I$23)*$F$16*I$30),0)*(1-I$29)*$F$29+(BC60/BC$55)*$I$37 -> 0 | AC60: 0 | AD60: 0 | AE60: 350.892339 | AF60: 350.892339 | AG60: 350.892339 | AH60: =AI60+AJ60 -> 713907.4268 | AI60: =(AT59*AB59)/(1+(AT59*(AF59+AB59))/AX59) -> 52201.75165 | AJ60: =(AT59*AF59)/(1+(AT59*(AF59+AB59)/AX59)) -> 661705.6752 | AK60: =AL60+AM60 -> 101245.2023 | AL60: =(AU59*(AI60))/(1+(AU59*(AJ60+(AI60)))/AY59) -> 7403.168401 | AM60: =(AU59*AJ60)/(1+(AU59*(AJ60+(AI60)))/AY59) -> 93842.03386 | AN60: =AO60+AP60 -> 988.6352056 | AO60: =(AV59*(AL60))/(1+(AV59*(AM60+AL60)+(C60))/AZ59) -> 72.29017031 | AP60: =(AV59*AM60)/(1+(AV59*(AM60+AL60)+(C60))/AZ59) -> 916.3450352 | AQ60: 0.8958887376 | AR60: 0.9158055299 | AS60: 0.9782521598 | AT60: 1881.366349 | AU60: 0.1744391486 | AV60: 0.009782521598 | AW60: =PRODUCT(AT60:AV60) -> 3.21046652 | AX60: 8.958887376e+11 | AY60: 563220.4044 | AZ60: 9.782521598e+11 | BA60: =AW60/(AT60/AX60+AT60*AU60/AY60+AT60*AU60*AV60/AZ60) -> 5509.695882 | BB60: =$F$14*SAR!V9 -> 0.008897396484 | BC60: 0.01 | BD60: 0.005543493823 | BE60: =AN60 -> 988.6352056 | BF60: =I60+SUM(O60:S60)+AF60 -> 988.6352056 | BG60: =D60 -> 0 | BH60: =J60+M60+N60+SUM(T60:X60)+AA60-$F$37 -> 0 | BI60: =IF(SUM(BI$59:BI59)=0,IF(ABS(BO60-$F$49)<0.01,$BJ60,0),0) -> 0 | BJ60: 1 | BK60: 1 | BL60: 0 | BM60: =BK59*(BM59+(((BM59*$I$48+($F$40*$I$43))/($I$48+$I$43))-BM59)*$F$45)+(1-BK59)*(BN59+(((BN59*$I$48+($F$40*$I$43))/($I$48+$I$43))-BN59)*$F$45) -> 93.36858837 | BN60: =BL59*(BN59+(((BN59*$I$48+$F$41*$I$43)/($I$48+$I$43))-BN59)*$F$45)+(1-BL59)*(BM59+(((BM59*$I$48+($F$41*$I$43))/($I$48+$I$43))-BM59)*$F$45) -> 92.445 | BO60: 0.8026166301 | BP60: 350.892339 | BQ60: =AA60-BR60 -> 0 | BR60: =(BC59/BC$55)*$F$37 -> 0 | BS60: 1 | BT60: 0 | BU60: 0 | BV60: 0 | BW60: 1 | BX60: =Scenario_5!J60 -> 0.2832080201 | BY60: 1 | BZ60: 0 | CA60: 0 | CB60: 1 | CC60: 0 | CD60: 0 | CE60: 0 | CF60: 0.779296875 | CG60: 0.220703125 | CH60: =$I$49*(BY59*($CH59-$F$40)+BZ59*($CI59-$F$40)+CA59*($CJ59-$F$40))+$F$40 -> 93.445 | CI60: =$I$49*(CB59*(CH59-$F$41)+CC59*(CI59-$F$41)+CD59*(CJ59-$F$41))+$F$41 -> 92.445 | CJ60: =$I$49*(CE59*(CH59-$F$42)+CF59*(CI59-$F$42)+CG59*(CJ59-$F$42))+$F$42 -> 90.48066406 | CK60: 0.7378
A61: 2 | B61: 0 | C61: =(J60+F$34+I60)*E60*F60 -> 0 | D61: 0 | E61: 1995 | F61: 0.85 | G61: 0 | H61: 9.803515976e+11 | I61: 0 | J61: 0 | K61: 0 | L61: =MAX(0,($D61*(1-$I$23)*$F$16-(AA61-(BC60/BC$55)*$F$37)-J61)) -> 0 | M61: =MAX(0,($D61*(1-$I$23)*$F$16)-(AA61-(BC60/BC$55)*$F$37)-J61-N61) -> 0 | N61: =MAX(+MIN($F$35,L61),0) -> 0 | O61: 327.3532581 | P61: 164.1442766 | Q61: 66.56962328 | R61: 0 | S61: 45.26734383 | T61: 0 | U61: 0 | V61: 0 | W61: 0 | X61: 0 | Y61: 603.3345018 | Z61: 0 | AA61: =ROUNDDOWN(MAX(0,$D61*(1-$I$23)*$F$16*I$30),0)*(1-I$29)+(BC60/BC$55)*$F$37 -> 0 | AB61: 0 | AC61: 0 | AD61: 0 | AE61: 331.9605214 | AF61: 331.9605214 | AG61: 331.9605214 | AH61: =AI61+AJ61 -> 660156.5522 | AI61: =(AT60*AB60)/(1+(AT60*(AF60+AB60))/AX60) -> 0 | AJ61: 660156.5522 | AK61: =AL61+AM61 -> 95608.78704 | AL61: =(AU60*(AI61))/(1+(AU60*(AJ61+(AI61)))/AY60) -> 0 | AM61: =(AU60*AJ61)/(1+(AU60*(AJ61+(AI61)))/AY60) -> 95608.78704 | AN61: 935.2950232 | AO61: 0 | AP61: 935.2950232 | AQ61: 0.9055434728 | AR61: 0.9236925558 | AS61: 0.9803515976 | AT61: 1901.641293 | AU61: 0.1759414392 | AV61: 0.009803515976 | AW61: 3.280035924 | AX61: 9.055434728e+11 | AY61: 568070.9253 | AZ61: 9.803515976e+11 | BA61: 5569.072504 | BB61: =$F$14*SAR!V10 -> 0.008138387279 | BC61: 0.01 | BD61: 0.005602981953 | BE61: =AN61 -> 935.2950232 | BF61: =I61+SUM(O61:S61)+AF61 -> 935.2950232 | BG61: =D61 -> 0 | BH61: =J61+M61+N61+SUM(T61:X61)+AA61-$F$37 -> 0 | BI61: =IF(SUM(BI$59:BI60)=0,IF(ABS(BO61-$F$49)<0.01,$BJ61,0),0) -> 0 | BJ61: 2 | BK61: 1 | BL61: 0 | BM61: 93.70015895 | BN61: 92.70015895 | BO61: 0.8200089811 | BP61: 331.9605214 | BQ61: 0 | BR61: 0 | BS61: 1 | BT61: 0 | BU61: 0 | BV61: 0 | BW61: 1 | BX61: =Scenario_5!J61 -> 0.2832080201 | BY61: 1 | BZ61: 0 | CA61: 0 | CB61: 1 | CC61: 0 | CD61: 0 | CE61: 0 | CF61: 0.779296875 | CG61: 0.220703125 | CH61: 93.77275 | CI61: 92.77275 | CJ61: 90.91089167 | CK61: 0.75091
A62: 3 | B62: 0 | C62: 0 | D62: 0 | E62: 1995 | F62: 0.85 | G62: 0 | H62: 9.82250208e+11 | I62: 0 | J62: 0 | K62: 0 | L62: 0 | M62: 0 | N62: 0 | O62: 318.7701981 | P62: 159.8404851 | Q62: 64.82419672 | R62: 0 | S62: 44.08045377 | T62: 0 | U62: 0 | V62: 0 | W62: 0 | X62: 0 | Y62: 587.5153337 | Z62: 0 | AA62: 0 | AB62: 0 | AC62: 0 | AD62: 0 | AE62: 323.256661 | AF62: 323.256661 | AG62: 323.256661 | AH62: 631269.3951 | AI62: 0 | AJ62: 631269.3951 | AK62: 92902.58697 | AL62: 0 | AM62: 92902.58697 | AN62: 910.7719947 | AO62: 0 | AP62: 910.7719947 | AQ62: 0.9143461642 | AR62: 0.9308688934 | AS62: 0.982250208 | AT62: 1920.126945 | AU62: 0.1773083607 | AV62: 0.00982250208 | AW62: 3.344115632 | AX62: 9.143461642e+11 | AY62: 572484.373 | AZ62: 9.82250208e+11 | BA62: 5623.209056 | BB62: =$F$14*SAR!V11 -> 0.008083469744 | BC62: 0.01 | BD62: 0.01168328186 | BE62: 910.7719947 | BF62: 910.7719947 | BG62: 0 | BH62: 0 | BI62: =IF(SUM(BI$59:BI61)=0,IF(ABS(BO62-$F$49)<0.01,$BJ62,0),0) -> 0 | BJ62: 3 | BK62: 1 | BL62: 0 | BM62: 94.015151 | BN62: 93.015151 | BO62: 0.836028908 | BP62: 323.256661 | BQ62: 0 | BR62: 0 | BS62: 1 | BT62: 0 | BU62: 0 | BV62: 0 | BW62: 1 | BX62: =Scenario_5!J62 -> 0.2832080201 | BY62: 1 | BZ62: 0 | CA62: 0 | CB62: 1 | CC62: 0 | CD62: 0 | CE62: 0 | CF62: 0.779296875 | CG62: 0.220703125 | CH62: 94.0841125 | CI62: 93.0841125 | CJ62: 91.24374045 | CK62: 0.7633645
A63: 4 | B63: 0 | C63: 0 | D63: 0 | E63: 1995 | F63: 0.85 | G63: 0 | H63: 9.839668604e+11 | I63: 0 | J63: 0 | K63: 0 | L63: 0 | M63: 0 | N63: 0 | O63: 317.345978 | P63: 159.1263404 | Q63: 64.53457139 | R63: 0 | S63: 43.88350855 | T63: 0 | U63: 0 | V63: 0 | W63: 0 | X63: 0 | Y63: 584.8903984 | Z63: 0 | AA63: 0 | AB63: 0 | AC63: 0 | AD63: 0 | AE63: 321.812396 | AF63: 321.812396 | AG63: 321.812396 | AH63: 620693.4035 | AI63: 0 | AJ63: 620693.4035 | AK63: 92308.74047 | AL63: 0 | AM63: 92308.74047 | AN63: 906.7027944 | AO63: 0 | AP63: 906.7027944 | AQ63: 0.9223640322 | AR63: 0.9373933912 | AS63: 0.9839668604 | AT63: 1936.964468 | AU63: 0.1785511221 | AV63: 0.009839668604 | AW63: 3.403021632 | AX63: 9.223640322e+11 | AY63: 576496.9392 | AZ63: 9.839668604e+11 | BA63: 5672.518943 | BB63: =$F$14*SAR!V12 -> 0.00818599994 | BC63: 0.01 | BD63: 0.01122912423 | BE63: 906.7027944 | BF63: 906.7027944 | BG63: 0 | BH63: 0 | BI63: =IF(SUM(BI$59:BI62)=0,IF(ABS(BO63-$F$49)<0.01,$BJ63,0),0) -> 0 | BJ63: 4 | BK63: 1 | BL63: 0 | BM63: 94.31439345 | BN63: 93.31439345 | BO63: 0.8507554079 | BP63: 321.812396 | BQ63: 0 | BR63: 0 | BS63: 1 | BT63: 0 | BU63: 0 | BV63: 0 | BW63: 1 | BX63: =Scenario_5!J63 -> 0.2832080201 | BY63: 1 | BZ63: 0 | CA63: 0 | CB63: 1 | CC63: 0 | CD63: 0 | CE63: 0 | CF63: 0.779296875 | CG63: 0.220703125 | CH63: 94.37990687 | CI63: 93.37990687 | CJ63: 91.5440398 | CK63: 0.775196275
A64: 5 | B64: 0 | C64: 0 | D64: 0 | E64: 1995 | F64: 0.85 | G64: 0 | H64: 9.855187147e+11 | I64: 0 | J64: 0 | K64: 0 | L64: 0 | M64: 0 | N64: 0 | O64: 321.27236 | P64: 161.0951405 | Q64: 65.33302922 | R64: 0 | S64: 44.42645987 | T64: 0 | U64: 0 | V64: 0 | W64: 0 | X64: 0 | Y64: 592.1269896 | Z64: 0 | AA64: 0 | AB64: 0 | AC64: 0 | AD64: 0 | AE64: 325.794039 | AF64: 325.794039 | AG64: 325.794039 | AH64: 623338.7551 | AI64: 0 | AJ64: 623338.7551 | AK64: 93287.79926 | AL64: 0 | AM64: 93287.79926 | AN64: 917.9210287 | AO64: 0 | AP64: 917.9210287 | AQ64: 0.9296605009 | AR64: 0.9433210014 | AS64: 0.9855187147 | AT64: 1952.287052 | AU64: 0.1796801907 | AV64: 0.009855187147 | AW64: 3.457074587 | AX64: 9.296605009e+11 | AY64: 580142.4194 | AZ64: 9.855187147e+11 | BA64: 5717.392226 | BB64: =$F$14*SAR!V13 -> 0.008490839452 | BC64: 0.01 | BD64: 0.008507364564 | BE64: 917.9210287 | BF64: 917.9210287 | BG64: 0 | BH64: 0 | BI64: =IF(SUM(BI$59:BI63)=0,IF(ABS(BO64-$F$49)<0.01,$BJ64,0),0) -> 0 | BJ64: 5 | BK64: 1 | BL64: 0 | BM64: 94.59867378 | BN64: 93.59867378 | BO64: 0.8642686469 | BP64: 325.794039 | BQ64: 0 | BR64: 0 | BS64: 1 | BT64: 0 | BU64: 0 | BV64: 0 | BW64: 1 | BX64: =Scenario_5!J64 -> 0.2832080201 | BY64: 1 | BZ64: 0 | CA64: 0 | CB64: 1 | CC64: 0 | CD64: 0 | CE64: 0 | CF64: 0.779296875 | CG64: 0.220703125 | CH64: 94.66091153 | CI64: 93.66091153 | CJ64: 91.82598901 | CK64: 0.7864364612
A65: 6 | B65: 0 | C65: 0 | D65: 0 | E65: 1995 | F65: 0.85 | G65: 0 | H65: 9.869213643e+11 | I65: 0 | J65: 0 | K65: 0 | L65: 0 | M65: 0 | N65: 0 | O65: 329.3273554 | P65: 165.1341453 | Q65: 66.97107005 | R65: 0 | S65: 45.54032764 | T65: 0 | U65: 0 | V65: 0 | W65: 0 | X65: 0 | Y65: 606.9728984 | Z65: 0 | AA65: 0 | AB65: 0 | AC65: 0 | AD65: 0 | AE65: 333.9624027 | AF65: 333.9624027 | AG65: 333.9624027 | AH65: 636043.0488 | AI65: 0 | AJ65: 636043.0488 | AK65: 95476.14752 | AL65: 0 | AM65: 95476.14752 | AN65: 940.9353011 | AO65: 0 | AP65: 940.9353011 | AQ65: 0.9362951036 | AR65: 0.9487028424 | AS65: 0.9869213643 | AT65: 1966.219717 | AU65: 0.1807053033 | AV65: 0.009869213643 | AW65: 3.506594084 | AX65: 9.362951036e+11 | AY65: 583452.2517 | AZ65: 9.869213643e+11 | BA65: 5758.195032 | BB65: =$F$14*SAR!V14 -> 0.00983416818 | BC65: 0.01 | BD65: 0.01043521095 | BE65: 940.9353011 | BF65: 940.9353011 | BG65: 0 | BH65: 0 | BI65: =IF(SUM(BI$59:BI64)=0,IF(ABS(BO65-$F$49)<0.01,$BJ65,0),0) -> 0 | BJ65: 6 | BK65: 1 | BL65: 0 | BM65: 94.86874009 | BN65: 93.86874009 | BO65: 0.8766485209 | BP65: 333.9624027 | BQ65: 0 | BR65: 0 | BS65: 1 | BT65: 0 | BU65: 0 | BV65: 0 | BW65: 1 | BX65: =Scenario_5!J65 -> 0.2832080201 | BY65: 1 | BZ65: 0 | CA65: 0 | CB65: 1 | CC65: 0 | CD65: 0 | CE65: 0 | CF65: 0.779296875 | CG65: 0.220703125 | CH65: 94.92786595 | CI65: 93.92786595 | CJ65: 92.09314148 | CK65: 0.7971146382
A66: 7 | B66: 0 | C66: 0 | D66: 0 | E66: 1995 | F66: 0.85 | G66: 0 | H66: 9.881889694e+11 | I66: 0 | J66: 0 | K66: 0 | L66: 0 | M66: 0 | N66: 0 | O66: 340.604419 | P66: 170.7887872 | Q66: 69.26434148 | R66: 0 | S66: 47.09975221 | T66: 0 | U66: 0 | V66: 0 | W66: 0 | X66: 0 | Y66: 627.7572999 | Z66: 0 | AA66: 0 | AB66: 0 | AC66: 0 | AD66: 0 | AE66: 345.3981829 | AF66: 345.3981829 | AG66: 345.3981829 | AH66: 656643.0005 | AI66: 0 | AJ66: 656643.0005 | AK66: 98605.16946 | AL66: 0 | AM66: 98605.16946 | AN66: 973.1554827 | AO66: 0 | AP66: 973.1554827 | AQ66: 0.9423234718 | AR66: 0.953586309 | AS66: 0.9881889694 | AT66: 1978.879291 | AU66: 0.1816354874 | AV66: 0.009881889694 | AW66: 3.551894102 | AX66: 9.423234718e+11 | AY66: 586455.5836 | AZ66: 9.881889694e+11 | BA66: 5795.269497 | BB66: =$F$14*SAR!V15 -> 0.009395565952 | BC66: 0.01 | BD66: 0.01078252561 | BE66: 973.1554827 | BF66: 973.1554827 | BG66: 0 | BH66: 0 | BI66: =IF(SUM(BI$59:BI65)=0,IF(ABS(BO66-$F$49)<0.01,$BJ66,0),0) -> 0 | BJ66: 7 | BK66: 1 | BL66: 0 | BM66: 95.12530309 | BN66: 94.12530309 | BO66: 0.8879735256 | BP66: 345.3981829 | BQ66: 0 | BR66: 0 | BS66: 1 | BT66: 0 | BU66: 0 | BV66: 0 | BW66: 1 | BX66: =Scenario_5!J66 -> 0.2832080201 | BY66: 1 | BZ66: 0 | CA66: 0 | CB66: 1 | CC66: 0 | CD66: 0 | CE66: 0 | CF66: 0.779296875 | CG66: 0.220703125 | CH66: 95.18147266 | CI66: 94.18147266 | CJ66: 92.3467897 | CK66: 0.8072589063
A67: 8 | B67: 0 | C67: 0 | D67: 0 | E67: 1995 | F67: 0.85 | G67: 0 | H67: 9.893343806e+11 | I67: 0 | J67: 0 | K67: 0 | L67: 0 | M67: 0 | N67: 0 | O67: 354.3688313 | P67: 177.6906568 | Q67: 72.06343305 | R67: 0 | S67: 49.00313447 | T67: 0 | U67: 0 | V67: 0 | W67: 0 | X67: 0 | Y67: 653.1260557 | Z67: 0 | AA67: 0 | AB67: 0 | AC67: 0 | AD67: 0 | AE67: 359.3563195 | AF67: 359.3563195 | AG67: 359.3563195 | AH67: 683500.8154 | AI67: 0 | AJ67: 683500.8154 | AK67: 102458.3766 | AL67: 0 | AM67: 102458.3766 | AN67: 1012.482375 | AO67: 0 | AP67: 1012.482375 | AQ67: 0.9477973891 | AR67: 0.9580152148 | AS67: 0.9893343806 | AT67: 1990.374517 | AU67: 0.1824790885 | AV67: 0.009893343806 | AW67: 3.593279563 | AX67: 9.477973891e+11 | AY67: 589179.3607 | AZ67: 9.893343806e+11 | BA67: 5828.934088 | BB67: =$F$14*SAR!V16 -> 0.008395852809 | BC67: 0.01 | BD67: 0.008600157849 | BE67: 1012.482375 | BF67: 1012.482375 | BG67: 0 | BH67: 0 | BI67: =IF(SUM(BI$59:BI66)=0,IF(ABS(BO67-$F$49)<0.01,$BJ67,0),0) -> 0 | BJ67: 8 | BK67: 1 | BL67: 0 | BM67: 95.36903793 | BN67: 94.36903793 | BO67: 0.8983198907 | BP67: 359.3563195 | BQ67: 0 | BR67: 0 | BS67: 1 | BT67: 0 | BU67: 0 | BV67: 0 | BW67: 1 | BX67: =Scenario_5!J67 -> 0.2832080201 | BY67: 1 | BZ67: 0 | CA67: 0 | CB67: 1 | CC67: 0 | CD67: 0 | CE67: 0 | CF67: 0.779296875 | CG67: 0.220703125 | CH67: 95.42239902 | CI67: 94.42239902 | CJ67: 92.58772478 | CK67: 0.816895961
A68: 9 | B68: 0 | C68: 0 | D68: 0 | E68: 1995 | F68: 0.85 | G68: 0 | H68: 9.903692539e+11 | I68: 0 | J68: 0 | K68: 0 | L68: 0 | M68: 0 | N68: 0 | O68: 369.9824976 | P68: 185.5197952 | Q68: 75.23858361 | R68: 0 | S68: 51.16223686 | T68: 0 | U68: 0 | V68: 0 | W68: 0 | X68: 0 | Y68: 681.9031132 | Z68: 0 | AA68: 0 | AB68: 0 | AC68: 0 | AD68: 0 | AE68: 375.1897369 | AF68: 375.1897369 | AG68: 375.1897369 | AH68: 715253.1211 | AI68: 0 | AJ68: 715253.1211 | AK68: 106848.8948 | AL68: 0 | AM68: 106848.8948 | AN68: 1057.09285 | AO68: 0 | AP68: 1057.09285 | AQ68: 0.9527648927 | AR68: 0.9620299589 | AS68: 0.9903692539 | AT68: 2000.806275 | AU68: 0.1832438017 | AV68: 0.009903692539 | AW68: 3.631043763 | AX68: 9.527648927e+11 | AY68: 591648.4284 | AZ68: 9.903692539e+11 | BA68: 5859.484235 | BB68: =$F$14*SAR!V17 -> 0.00850677471 | BC68: 0.01 | BD68: 0.007640751371 | BE68: 1057.09285 | BF68: 1057.09285 | BG68: 0 | BH68: 0 | BI68: =IF(SUM(BI$59:BI67)=0,IF(ABS(BO68-$F$49)<0.01,$BJ68,0),0) -> 0 | BJ68: 9 | BK68: 1 | BL68: 0 | BM68: 95.60058604 | BN68: 94.60058604 | BO68: 0.9077609408 | BP68: 375.1897369 | BQ68: 0 | BR68: 0 | BS68: 1 | BT68: 0 | BU68: 0 | BV68: 0 | BW68: 1 | BX68: =Scenario_5!J68 -> 0.2832080201 | BY68: 1 | BZ68: 0 | CA68: 0 | CB68: 1 | CC68: 0 | CD68: 0 | CE68: 0 | CF68: 0.779296875 | CG68: 0.220703125 | CH68: 95.65127907 | CI68: 94.65127907 | CJ68: 92.81660665 | CK68: 0.8260511629
A69: 10 | B69: 0 | C69: 0 | D69: 0 | E69: 1995 | F69: 0.85 | G69: 0 | H69: 9.913041565e+11 | I69: 0 | J69: 0 | K69: 0 | L69: 0 | M69: 0 | N69: 0 | O69: 386.868646 | P69: 193.9869925 | Q69: 78.67250251 | R69: 0 | S69: 53.49730171 | T69: 0 | U69: 0 | V69: 0 | W69: 0 | X69: 0 | Y69: 713.0254427 | Z69: 0 | AA69: 0 | AB69: 0 | AC69: 0 | AD69: 0 | AE69: 392.3135459 | AF69: 392.3135459 | AG69: 392.3135459 | AH69: 750681.3884 | AI69: 0 | AJ69: 750681.3884 | AK69: 111608.7747 | AL69: 0 | AM69: 111608.7747 | AN69: 1105.338989 | AO69: 0 | AP69: 1105.338989 | AQ69: 0.9572704122 | AR69: 0.9656677075 | AS69: 0.9913041565 | AT69: 2010.267866 | AU69: 0.1839367062 | AV69: 0.009913041565 | AW69: 3.665466569 | AX69: 9.572704122e+11 | AY69: 593885.6438 | AZ69: 9.913041565e+11 | BA69: 5887.19318 | BB69: =$F$14*SAR!V18 -> 0.007768130554 | BC69: 0.01 | BD69: 0.005171616998 | BE69: 1105.338989 | BF69: 1105.338989 | BG69: 0 | BH69: 0 | BI69: =IF(SUM(BI$59:BI68)=0,IF(ABS(BO69-$F$49)<0.01,$BJ69,0),0) -> 0 | BJ69: 10 | BK69: 1 | BL69: 0 | BM69: 95.82055673 | BN69: 94.82055673 | BO69: 0.9163666421 | BP69: 392.3135459 | BQ69: 0 | BR69: 0 | BS69: 1 | BT69: 0 | BU69: 0 | BV69: 0 | BW69: 1 | BX69: =Scenario_5!J69 -> 0.2832080201 | BY69: 1 | BZ69: 0 | CA69: 0 | CB69: 1 | CC69: 0 | CD69: 0 | CE69: 0 | CF69: 0.779296875 | CG69: 0.220703125 | CH69: 95.86871512 | CI69: 94.86871512 | CJ69: 93.03404308 | CK69: 0.8347486048
A70: 11 | B70: 0 | C70: 0 | D70: 0 | E70: 1995 | F70: 0.85 | G70: 0 | H70: 9.921486636e+11 | I70: 0 | J70: 0 | K70: 0 | L70: 0 | M70: 0 | N70: 0 | O70: 404.500528 | P70: 202.8281219 | Q70: 82.25807166 | R70: 0 | S70: 55.93548873 | T70: 0 | U70: 0 | V70: 0 | W70: 0 | X70: 0 | Y70: 745.5222103 | Z70: 0 | AA70: 0 | AB70: 0 | AC70: 0 | AD70: 0 | AE70: 410.193584 | AF70: 410.193584 | AG70: 410.193584 | AH70: 788654.6648 | AI70: 0 | AJ70: 788654.6648 | AK70: 116585.3878 | AL70: 0 | AM70: 116585.3878 | AN70: 1155.715794 | AO70: 0 | AP70: 1155.715794 | AQ70: 0.9613549321 | AR70: 0.9689625833 | AS70: 0.9921486636 | AT70: 2018.845358 | AU70: 0.1845643016 | AV70: 0.009921486636 | AW70: 3.696813222 | AX70: 9.613549321e+11 | AY70: 595911.9924 | AZ70: 9.921486636e+11 | BA70: 5912.312977 | BB70: =$F$14*SAR!V19 -> 0.007940757741 | BC70: 0.01 | BD70: 0.01562019192 | BE70: 1155.715794 | BF70: 1155.715794 | BG70: 0 | BH70: 0 | BI70: =IF(SUM(BI$59:BI69)=0,IF(ABS(BO70-$F$49)<0.01,$BJ70,0),0) -> 0 | BJ70: 11 | BK70: 1 | BL70: 0 | BM70: 96.0295289 | BN70: 95.0295289 | BO70: 0.9242033056 | BP70: 410.193584 | BQ70: 0 | BR70: 0 | BS70: 1 | BT70: 0 | BU70: 0 | BV70: 0 | BW70: 1 | BX70: =Scenario_5!J70 -> 0.2832080201 | BY70: 1 | BZ70: 0 | CA70: 0 | CB70: 1 | CC70: 0 | CD70: 0 | CE70: 0 | CF70: 0.779296875 | CG70: 0.220703125 | CH70: 96.07527936 | CI70: 95.07527936 | CJ70: 93.2406074 | CK70: 0.8430111745
A71: 12 | B71: 0 | C71: 0 | D71: 0 | E71: 1995 | F71: 0.85 | G71: 0 | H71: 9.92911449e+11 | I71: 0 | J71: 0 | K71: 0 | L71: 0 | M71: 0 | N71: 0 | O71: 422.4037095 | P71: 211.8052886 | Q71: 85.8988115 | R71: 0 | S71: 58.41119182 | T71: 0 | U71: 0 | V71: 0 | W71: 0 | X71: 0 | Y71: 778.5190015 | Z71: 0 | AA71: 0 | AB71: 0 | AC71: 0 | AD71: 0 | AE71: 428.34874 | AF71: 428.34874 | AG71: 428.34874 | AH71: 828116.6994 | AI71: 0 | AJ71: 828116.6994 | AK71: 121641.8252 | AL71: 0 | AM71: 121641.8252 | AN71: 1206.867742 | AO71: 0 | AP71: 1206.867742 | AQ71: 0.9650561713 | AR71: 0.9719458591 | AS71: 0.992911449 | AT71: 2026.61796 | AU71: 0.1851325446 | AV71: 0.00992911449 | AW71: 3.725333655 | AX71: 9.650561713e+11 | AY71: 597746.707 | AZ71: 9.92911449e+11 | BA71: 5935.075598 | BB71: =$F$14*SAR!V20 -> 0.007883888165 | BC71: 0.01 | BD71: 0.008061016176 | BE71: 1206.867742 | BF71: 1206.867742 | BG71: 0 | BH71: 0 | BI71: =IF(SUM(BI$59:BI70)=0,IF(ABS(BO71-$F$49)<0.01,$BJ71,0),0) -> 0 | BJ71: 12 | BK71: 1 | BL71: 0 | BM71: 96.22805245 | BN71: 95.22805245 | BO71: 0.9313334137 | BP71: 428.34874 | BQ71: 0 | BR71: 0 | BS71: 1 | BT71: 0 | BU71: 0 | BV71: 0 | BW71: 1 | BX71: =Scenario_5!J71 -> 0.2832080201 | BY71: 1 | BZ71: 0 | CA71: 0 | CB71: 1 | CC71: 0 | CD71: 0 | CE71: 0 | CF71: 0.779296875 | CG71: 0.220703125 | CH71: 96.2715154 | CI71: 95.2715154 | CJ71: 93.43684345 | CK71: 0.8508606158
A72: 13 | B72: 0 | C72: 0 | D72: 0 | E72: 1995 | F72: 0.85 | G72: 0 | H72: 9.936003662e+11 | I72: 0 | J72: 0 | K72: 0 | L72: 0 | M72: 0 | N72: 0 | O72: 440.1643263 | P72: 220.7109693 | Q72: 89.51055978 | R72: 0 | S72: 60.86718065 | T72: 0 | U72: 0 | V72: 0 | W72: 0 | X72: 0 | Y72: 811.2530361 | Z72: 0 | AA72: 0 | AB72: 0 | AC72: 0 | AD72: 0 | AE72: 446.3593248 | AF72: 446.3593248 | AG72: 446.3593248 | AH72: 868098.4687 | AI72: 0 | AJ72: 868098.4687 | AK72: 126659.0655 | AL72: 0 | AM72: 126659.0655 | AN72: 1257.612361 | AO72: 0 | AP72: 1257.612361 | AQ72: 0.9684087716 | AR72: 0.9746461501 | AS72: 0.9936003662 | AT72: 2033.65842 | AU72: 0.1856468857 | AV72: 0.009936003662 | AW72: 3.751262196 | AX72: 9.684087716e+11 | AY72: 599407.386 | AZ72: 9.936003662e+11 | BA72: 5955.69409 | BB72: =$F$14*SAR!V21 -> 0.007863383916 | BC72: 0.01 | BD72: 0.005541426451 | BE72: 1257.612361 | BF72: 1257.612361 | BG72: 0 | BH72: 0 | BI72: =IF(SUM(BI$59:BI71)=0,IF(ABS(BO72-$F$49)<0.01,$BJ72,0),0) -> 0 | BJ72: 13 | BK72: 1 | BL72: 0 | BM72: 96.41664983 | BN72: 95.41664983 | BO72: 0.937815549 | BP72: 446.3593248 | BQ72: 0 | BR72: 0 | BS72: 1 | BT72: 0 | BU72: 0 | BV72: 0 | BW72: 1 | BX72: =Scenario_5!J72 -> 0.2832080201 | BY72: 1 | BZ72: 0 | CA72: 0 | CB72: 1 | CC72: 0 | CD72: 0 | CE72: 0 | CF72: 0.779296875 | CG72: 0.220703125 | CH72: 96.45793963 | CI72: 95.45793963 | CJ72: 93.62326769 | CK72: 0.858317585
A73: 14 | B73: 0 | C73: 0 | D73: 0 | E73: 1995 | F73: 0.85 | G73: 0 | H73: 9.942225244e+11 | I73: 0 | J73: 0 | K73: 0 | L73: 0 | M73: 0 | N73: 0 | O73: 457.4376927 | P73: 229.3723288 | Q73: 93.02322222 | R73: 0 | S73: 63.25579111 | T73: 0 | U73: 0 | V73: 0 | W73: 0 | X73: 0 | Y73: 843.0890348 | Z73: 0 | AA73: 0 | AB73: 0 | AC73: 0 | AD73: 0 | AE73: 463.8758015 | AF73: 463.8758015 | AG73: 463.8758015 | AH73: 907741.5485 | AI73: 0 | AJ73: 907741.5485 | AK73: 131538.2806 | AL73: 0 | AM73: 131538.2806 | AN73: 1306.964836 | AO73: 0 | AP73: 1306.964836 | AQ73: 0.9714444912 | AR73: 0.9770896026 | AS73: 0.9942225244 | AT73: 2040.033432 | AU73: 0.1861123053 | AV73: 0.009942225244 | AW73: 3.774817598 | AX73: 9.714444912e+11 | AY73: 600910.1093 | AZ73: 9.942225244e+11 | BA73: 5974.363765 | BB73: =$F$14*SAR!V22 -> 0.008927103958 | BC73: 0.01 | BD73: 0.003000076373 | BE73: 1306.964836 | BF73: 1306.964836 | BG73: 0 | BH73: 0 | BI73: =IF(SUM(BI$59:BI72)=0,IF(ABS(BO73-$F$49)<0.01,$BJ73,0),0) -> 0 | BJ73: 14 | BK73: 1 | BL73: 0 | BM73: 96.59581734 | BN73: 95.59581734 | BO73: 0.9437043995 | BP73: 463.8758015 | BQ73: 0 | BR73: 0 | BS73: 1 | BT73: 0 | BU73: 0 | BV73: 0 | BW73: 1 | BX73: =Scenario_5!J73 -> 0.2832080201 | BY73: 1 | BZ73: 0 | CA73: 0 | CB73: 1 | CC73: 0 | CD73: 0 | CE73: 0 | CF73: 0.779296875 | CG73: 0.220703125 | CH73: 96.63504264 | CI73: 95.63504264 | CJ73: 93.80037071 | CK73: 0.8654017058
A74: 15 | B74: 0 | C74: 0 | D74: 0 | E74: 1995 | F74: 0.85 | G74: 0 | H74: 9.947843566e+11 | I74: 0 | J74: 0 | K74: 0 | L74: 0 | M74: 0 | N74: 0 | O74: 473.9536158 | P74: 237.6538845 | Q74: 96.38185316 | R74: 0 | S74: 65.53966015 | T74: 0 | U74: 0 | V74: 0 | W74: 0 | X74: 0 | Y74: 873.5290137 | Z74: 0 | AA74: 0 | AB74: 0 | AC74: 0 | AD74: 0 | AE74: 480.6241744 | AF74: 480.6241744 | AG74: 480.6241744 | AH74: 946321.2213 | AI74: 0 | AJ74: 946321.2213 | AK74: 136202.224 | AL74: 0 | AM74: 136202.224 | AN74: 1354.153188 | AO74: 0 | AP74: 1354.153188 | AQ74: 0.974192397 | AR74: 0.9793000771 | AS74: 0.9947843566 | AT74: 2045.804034 | AU74: 0.186533348 | AV74: 0.009947843566 | AW74: 3.796203306 | AX74: 9.74192397e+11 | AY74: 602269.5511 | AZ74: 9.947843566e+11 | BA74: 5991.263386 | BB74: =$F$14*SAR!V23 -> 0.00978817839 | BC74: 0.01 | BD74: 0.01074744455 | BE74: 1354.153188 | BF74: 1354.153188 | BG74: 0 | BH74: 0 | BI74: =IF(SUM(BI$59:BI73)=0,IF(ABS(BO74-$F$49)<0.01,$BJ74,0),0) -> 0 | BJ74: 15 | BK74: 1 | BL74: 0 | BM74: 96.76602647 | BN74: 95.76602647 | BO74: 0.9490508264 | BP74: 480.6241744 | BQ74: 0 | BR74: 0 | BS74: 1 | BT74: 0 | BU74: 0 | BV74: 0 | BW74: 1 | BX74: =Scenario_5!J74 -> 0.2832080201 | BY74: 1 | BZ74: 0 | CA74: 0 | CB74: 1 | CC74: 0 | CD74: 0 | CE74: 0 | CF74: 0.779296875 | CG74: 0.220703125 | CH74: 96.80329051 | CI74: 95.80329051 | CJ74: 93.96861857 | CK74: 0.8721316205
A75: 16 | B75: 0 | C75: 0 | D75: 0 | E75: 1995 | F75: 0.85 | G75: 0 | H75: 9.952916827e+11 | I75: 0 | J75: 0 | K75: 0 | L75: 0 | M75: 0 | N75: 0 | O75: 489.5166992 | P75: 245.4576591 | Q75: 99.54671732 | R75: 0 | S75: 67.69176778 | T75: 0 | U75: 0 | V75: 0 | W75: 0 | X75: 0 | Y75: 902.2128434 | Z75: 0 | AA75: 0 | AB75: 0 | AC75: 0 | AD75: 0 | AE75: 496.406297 | AF75: 496.406297 | AG75: 496.406297 | AH75: 983261.8824 | AI75: 0 | AJ75: 983261.8824 | AK75: 140595.2087 | AL75: 0 | AM75: 140595.2087 | AN75: 1398.61914 | AO75: 0 | AP75: 1398.61914 | AQ75: 0.9766790545 | AR75: 0.9812993231 | AS75: 0.9952916827 | AT75: 2051.026014 | AU75: 0.1869141568 | AV75: 0.009952916827 | AW75: 3.815607902 | AX75: 9.766790545e+11 | AY75: 603499.0874 | AZ75: 9.952916827e+11 | BA75: 6006.556329 | BB75: =$F$14*SAR!V24 -> 0.01174546299 | BC75: 0.01 | BD75: 0.005906912075 | BE75: 1398.61914 | BF75: 1398.61914 | BG75: 0 | BH75: 0 | BI75: =IF(SUM(BI$59:BI74)=0,IF(ABS(BO75-$F$49)<0.01,$BJ75,0),0) -> 0 | BJ75: 16 | BK75: 1 | BL75: 0 | BM75: 96.92772515 | BN75: 95.92772515 | BO75: 0.9539019755 | BP75: 496.406297 | BQ75: 0 | BR75: 0 | BS75: 1 | BT75: 0 | BU75: 0 | BV75: 0 | BW75: 1 | BX75: =Scenario_5!J75 -> 0.2832080201 | BY75: 1 | BZ75: 0 | CA75: 0 | CB75: 1 | CC75: 0 | CD75: 0 | CE75: 0 | CF75: 0.779296875 | CG75: 0.220703125 | CH75: 96.96312599 | CI75: 95.96312599 | CJ75: 94.12845405 | CK75: 0.8785250395
